Workbook

Sheet SOUMISSIONS
AF1: Formule dans le tableau n°2 : | AG1: SI(MIN(decompo1prix!F10;decompo2prix!F10;decompo3prix!F10;decompo4prix!F10;decompo5prix!F10;decompo6prix!F10;decompo7prix!F10;decompo8prix!F10;decompo9prix!F10;decompo10prix!F10)=decompo1prix!F10;decompo1prix!$A$7;SI(MIN(decompo1prix!F10;decompo2prix!F10;decompo3prix!F10;decompo4prix!F10;decompo5prix!F10;decompo6prix!F10;decompo7prix!F10;decompo8prix!F10;decompo9prix!F10;decompo10prix!F10)=decompo2prix!F10;decompo2prix!$A$7;SI(MIN(decompo1prix!F10;decompo2prix!F10;decompo3prix!F10;decompo4prix!F10;decompo5prix!F10;decompo6prix!F10;decompo7prix!F10;decompo8prix!F10;decompo9prix!F10;decompo10prix!F10)=decompo3prix!F10;decompo3prix!$A$7;SI(MIN(decompo1prix!F10;decompo2prix!F10;decompo3prix!F10;decompo4prix!F10;decompo5prix!F10;decompo6prix!F10;decompo7prix!F10;decompo8prix!F10;decompo9prix!F10;decompo10prix!F10)=decompo4prix!F10;decompo4prix!$A$7;SI(MIN(decompo1prix!F10;decompo2prix!F10;decompo3prix!F10;decompo4prix!F10;decompo5prix!F10;decompo6prix!F10;decompo7prix!F10;decompo8prix!F10;decompo9prix!F10;decompo10prix!F10)=decompo5prix!F10;decompo5prix!$A$7;SI(MIN(decompo1prix!F10;decompo2prix!F10;decompo3prix!F10;decompo4prix!F10;decompo5prix!F10;decompo6prix!F10;decompo7prix!F10;decompo8prix!F10;decompo9prix!F10;decompo10prix!F10)=decompo6prix!F10;decompo6prix!$A$7;SI(MIN(decompo1prix!F10;decompo2prix!F10;decompo3prix!F10;decompo4prix!F10;decompo5prix!F10;decompo6prix!F10;decompo7prix!F10;decompo8prix!F10;decompo9prix!F10;decompo10prix!F10)=decompo7prix!F10;decompo7prix!$A$7;SI(MIN(decompo1prix!F10;decompo2prix!F10;decompo3prix!F10;decompo4prix!F10;decompo5prix!F10;decompo6prix!F10;decompo7prix!F10;decompo8prix!F10;decompo9prix!F10;decompo10prix!F10)=decompo8prix!F10;decompo8prix!$A$7;SI(MIN(decompo1prix!F10;decompo2prix!F10;decompo3prix!F10;decompo4prix!F10;decompo5prix!F10;decompo6prix!F10;decompo7prix!F10;decompo8prix!F10;decompo9prix!F10;decompo10prix!F10)=decompo9prix!F10;decompo9prix!$A$7;decompo10prix!$A$7)))))))))
A2: Analyse
A6: TABLEAU DE BORD (prix moin disant) | T6: TABLEAU DE BORD (nom fournisseur moin disant)
A7: Durée | C7: 2 | D7: 4 | E7: 8 | F7: 16 | G7: 24 | H7: 32 | I7: 40 | J7: 100 | T7: Durée | V7: 2 | W7: 4 | X7: 8 | Y7: 16 | Z7: 24 | AA7: 32 | AB7: 40 | AC7: 100 | AJ7: Quantités | AR7: Quantités
A8: CAT | B8: CODE A | T8: CAT | AF8: Fournisseur | AG8: 2 | AH8: 4 | AI8: 8 | AJ8: 16 | AK8: 24 | AL8: 32 | AM8: 40 | AN8: 100 | AQ8: Fournisseur | AR8: 2 | AS8: 4 | AT8: 8 | AU8: 16 | AV8: 24 | AW8: 32 | AX8: 40 | AY8: 100
A9: Cumul (Somme N produit *Quantité) | C9: =SUM(C10:C210)*C7 -> 1663.56 | D9: 3281.36 | E9: 5020.72 | F9: 10024.32 | G9: 14242.08 | H9: 16299.2 | I9: 20114.8 | J9: 46144 | T9: Dénomination | U9: CODE A | AF9: alex | AG9: =SUM(decompo1prix!F10:F210)*AG8 -> 0 | AH9: =SUM(decompo1prix!G10:G210)*AH8 -> 0 | AI9: =SUM(decompo1prix!H10:H210)*AI8 -> 4296.4 | AJ9: =SUM(decompo1prix!I10:I210)*AJ8 -> 0 | AK9: =SUM(decompo1prix!J10:J210)*AK8 -> 0 | AL9: =SUM(decompo1prix!K10:K210)*AL8 -> 14559.36 | AM9: =SUM(decompo1prix!L10:L210)*AM8 -> 0 | AN9: =SUM(decompo1prix!M10:M210)*AN8 -> 0 | AQ9: alex | AR9: 710 | AT9: 537.05 | AV9: 480 | AW9: 454.98
A10: VIS 1 | B10: IN1 | C10: =MIN(decompo1prix!F10,decompo2prix!F10,decompo3prix!F10,decompo4prix!F10,decompo5prix!F10,decompo6prix!F10,decompo7prix!F10,decompo8prix!F10,decompo9prix!F10,decompo10prix!F10) -> 74.79 | D10: =MIN(decompo1prix!G10,decompo2prix!G10,decompo3prix!G10,decompo4prix!G10,decompo5prix!G10,decompo6prix!G10,decompo7prix!G10,decompo8prix!G10,decompo9prix!G10,decompo10prix!G10) -> 74.79 | E10: =MIN(decompo1prix!H10,decompo2prix!H10,decompo3prix!H10,decompo4prix!H10,decompo5prix!H10,decompo6prix!H10,decompo7prix!H10,decompo8prix!H10,decompo9prix!H10,decompo10prix!H10) -> 41.74 | F10: =MIN(decompo1prix!I10,decompo2prix!I10,decompo3prix!I10,decompo4prix!I10,decompo5prix!I10,decompo6prix!I10,decompo7prix!I10,decompo8prix!I10,decompo9prix!I10,decompo10prix!I10) -> 74.79 | G10: =MIN(decompo1prix!J10,decompo2prix!J10,decompo3prix!J10,decompo4prix!J10,decompo5prix!J10,decompo6prix!J10,decompo7prix!J10,decompo8prix!J10,decompo9prix!J10,decompo10prix!J10) -> 74.79 | H10: =MIN(decompo1prix!K10,decompo2prix!K10,decompo3prix!K10,decompo4prix!K10,decompo5prix!K10,decompo6prix!K10,decompo7prix!K10,decompo8prix!K10,decompo9prix!K10,decompo10prix!K10) -> 37.32 | I10: =MIN(decompo1prix!L10,decompo2prix!L10,decompo3prix!L10,decompo4prix!L10,decompo5prix!L10,decompo6prix!L10,decompo7prix!L10,decompo8prix!L10,decompo9prix!L10,decompo10prix!L10) -> 33.94 | J10: =MIN(decompo1prix!M10,decompo2prix!M10,decompo3prix!M10,decompo4prix!M10,decompo5prix!M10,decompo6prix!M10,decompo7prix!M10,decompo8prix!M10,decompo9prix!M10,decompo10prix!M10) -> 32.6 | T10: VIS 1 | U10: in1 | V10: =IF($T10="","",IF(MIN(decompo1prix!F10,decompo2prix!F10,decompo3prix!F10,decompo4prix!F10,decompo5prix!F10,decompo6prix!F10,decompo7prix!F10,decompo8prix!F10,decompo9prix!F10,decompo10prix!F10)=decompo1prix!F10,decompo1prix!$A$7,IF(MIN(decompo1prix!F10,decompo2prix!F10,decompo3prix!F10,decompo4prix!F10,decompo5prix!F10,decompo6prix!F10,decompo7prix!F10,decompo8prix!F10,decompo9prix!F10,decompo10prix!F10)=decompo2prix!F10,decompo2prix!$A$7,IF(MIN(decompo1prix!F10,decompo2prix!F10,decompo3prix!F10,decompo4prix!F10,decompo5prix!F10,decompo6prix!F10,decompo7prix!F10,decompo8prix!F10,decompo9prix!F10,decompo10prix!F10)=decompo3prix!F10,decompo3prix!$A$7,IF(MIN(decompo1prix!F10,decompo2prix!F10,decompo3prix!F10,decompo4prix!F10,decompo5prix!F10,decompo6prix!F10,decompo7prix!F10,decompo8prix!F10,decompo9prix!F10,decompo10prix!F10)=decompo4prix!F10,decompo4prix!$A$7,IF(MIN(decompo1prix!F10,decompo2prix!F10,decompo3prix!F10,decompo4prix!F10,decompo5prix!F10,decompo6prix!F10,decompo7prix!F10,decompo8prix!F10,decompo9prix!F10,decompo10prix!F10)=decompo5prix!F10,decompo5prix!$A$7,IF(MIN(decompo1prix!F10,decompo2prix!F10,decompo3prix!F10,decompo4prix!F10,decompo5prix!F10,decompo6prix!F10,decompo7prix!F10,decompo8prix!F10,decompo9prix!F10,decompo10prix!F10)=decompo6prix!F10,decompo6prix!$A$7,IF(MIN(decompo1prix!F10,decompo2prix!F10,decompo3prix!F10,decompo4prix!F10,decompo5prix!F10,decompo6prix!F10,decompo7prix!F10,decompo8prix!F10,decompo9prix!F10,decompo10prix!F10)=decompo7prix!F10,decompo7prix!$A$7,IF(MIN(decompo1prix!F10,decompo2prix!F10,decompo3prix!F10,decompo4prix!F10,decompo5prix!F10,decompo6prix!F10,decompo7prix!F10,decompo8prix!F10,decompo9prix!F10,decompo10prix!F10)=decompo8prix!F10,decompo8prix!$A$7,IF(MIN(decompo1prix!F10,decompo2prix!F10,decompo3prix!F10,decompo4prix!F10,decompo5prix!F10,decompo6prix!F10,decompo7prix!F10,decompo8prix!F10,decompo9prix!F10,decompo10prix!F10)=decompo9prix!F10,decompo9prix!$A$7,decompo10prix!$A$7)))))))))) -> thomas | W10: =IF($T10="","",IF(MIN(decompo1prix!G10,decompo2prix!G10,decompo3prix!G10,decompo4prix!G10,decompo5prix!G10,decompo6prix!G10,decompo7prix!G10,decompo8prix!G10,decompo9prix!G10,decompo10prix!G10)=decompo1prix!G10,decompo1prix!$A$7,IF(MIN(decompo1prix!G10,decompo2prix!G10,decompo3prix!G10,decompo4prix!G10,decompo5prix!G10,decompo6prix!G10,decompo7prix!G10,decompo8prix!G10,decompo9prix!G10,decompo10prix!G10)=decompo2prix!G10,decompo2prix!$A$7,IF(MIN(decompo1prix!G10,decompo2prix!G10,decompo3prix!G10,decompo4prix!G10,decompo5prix!G10,decompo6prix!G10,decompo7prix!G10,decompo8prix!G10,decompo9prix!G10,decompo10prix!G10)=decompo3prix!G10,decompo3prix!$A$7,IF(MIN(decompo1prix!G10,decompo2prix!G10,decompo3prix!G10,decompo4prix!G10,decompo5prix!G10,decompo6prix!G10,decompo7prix!G10,decompo8prix!G10,decompo9prix!G10,decompo10prix!G10)=decompo4prix!G10,decompo4prix!$A$7,IF(MIN(decompo1prix!G10,decompo2prix!G10,decompo3prix!G10,decompo4prix!G10,decompo5prix!G10,decompo6prix!G10,decompo7prix!G10,decompo8prix!G10,decompo9prix!G10,decompo10prix!G10)=decompo5prix!G10,decompo5prix!$A$7,IF(MIN(decompo1prix!G10,decompo2prix!G10,decompo3prix!G10,decompo4prix!G10,decompo5prix!G10,decompo6prix!G10,decompo7prix!G10,decompo8prix!G10,decompo9prix!G10,decompo10prix!G10)=decompo6prix!G10,decompo6prix!$A$7,IF(MIN(decompo1prix!G10,decompo2prix!G10,decompo3prix!G10,decompo4prix!G10,decompo5prix!G10,decompo6prix!G10,decompo7prix!G10,decompo8prix!G10,decompo9prix!G10,decompo10prix!G10)=decompo7prix!G10,decompo7prix!$A$7,IF(MIN(decompo1prix!G10,decompo2prix!G10,decompo3prix!G10,decompo4prix!G10,decompo5prix!G10,decompo6prix!G10,decompo7prix!G10,decompo8prix!G10,decompo9prix!G10,decompo10prix!G10)=decompo8prix!G10,decompo8prix!$A$7,IF(MIN(decompo1prix!G10,decompo2prix!G10,decompo3prix!G10,decompo4prix!G10,decompo5prix!G10,decompo6prix!G10,decompo7prix!G10,decompo8prix!G10,decompo9prix!G10,decompo10prix!G10)=decompo9prix!G10,decompo9prix!$A$7,decompo10prix!$A$7)))))))))) -> thomas | X10: =IF($T10="","",IF(MIN(decompo1prix!H10,decompo2prix!H10,decompo3prix!H10,decompo4prix!H10,decompo5prix!H10,decompo6prix!H10,decompo7prix!H10,decompo8prix!H10,decompo9prix!H10,decompo10prix!H10)=decompo1prix!H10,decompo1prix!$A$7,IF(MIN(decompo1prix!H10,decompo2prix!H10,decompo3prix!H10,decompo4prix!H10,decompo5prix!H10,decompo6prix!H10,decompo7prix!H10,decompo8prix!H10,decompo9prix!H10,decompo10prix!H10)=decompo2prix!H10,decompo2prix!$A$7,IF(MIN(decompo1prix!H10,decompo2prix!H10,decompo3prix!H10,decompo4prix!H10,decompo5prix!H10,decompo6prix!H10,decompo7prix!H10,decompo8prix!H10,decompo9prix!H10,decompo10prix!H10)=decompo3prix!H10,decompo3prix!$A$7,IF(MIN(decompo1prix!H10,decompo2prix!H10,decompo3prix!H10,decompo4prix!H10,decompo5prix!H10,decompo6prix!H10,decompo7prix!H10,decompo8prix!H10,decompo9prix!H10,decompo10prix!H10)=decompo4prix!H10,decompo4prix!$A$7,IF(MIN(decompo1prix!H10,decompo2prix!H10,decompo3prix!H10,decompo4prix!H10,decompo5prix!H10,decompo6prix!H10,decompo7prix!H10,decompo8prix!H10,decompo9prix!H10,decompo10prix!H10)=decompo5prix!H10,decompo5prix!$A$7,IF(MIN(decompo1prix!H10,decompo2prix!H10,decompo3prix!H10,decompo4prix!H10,decompo5prix!H10,decompo6prix!H10,decompo7prix!H10,decompo8prix!H10,decompo9prix!H10,decompo10prix!H10)=decompo6prix!H10,decompo6prix!$A$7,IF(MIN(decompo1prix!H10,decompo2prix!H10,decompo3prix!H10,decompo4prix!H10,decompo5prix!H10,decompo6prix!H10,decompo7prix!H10,decompo8prix!H10,decompo9prix!H10,decompo10prix!H10)=decompo7prix!H10,decompo7prix!$A$7,IF(MIN(decompo1prix!H10,decompo2prix!H10,decompo3prix!H10,decompo4prix!H10,decompo5prix!H10,decompo6prix!H10,decompo7prix!H10,decompo8prix!H10,decompo9prix!H10,decompo10prix!H10)=decompo8prix!H10,decompo8prix!$A$7,IF(MIN(decompo1prix!H10,decompo2prix!H10,decompo3prix!H10,decompo4prix!H10,decompo5prix!H10,decompo6prix!H10,decompo7prix!H10,decompo8prix!H10,decompo9prix!H10,decompo10prix!H10)=decompo9prix!H10,decompo9prix!$A$7,decompo10prix!$A$7)))))))))) -> alex | Y10: =IF($T10="","",IF(MIN(decompo1prix!I10,decompo2prix!I10,decompo3prix!I10,decompo4prix!I10,decompo5prix!I10,decompo6prix!I10,decompo7prix!I10,decompo8prix!I10,decompo9prix!I10,decompo10prix!I10)=decompo1prix!I10,decompo1prix!$A$7,IF(MIN(decompo1prix!I10,decompo2prix!I10,decompo3prix!I10,decompo4prix!I10,decompo5prix!I10,decompo6prix!I10,decompo7prix!I10,decompo8prix!I10,decompo9prix!I10,decompo10prix!I10)=decompo2prix!I10,decompo2prix!$A$7,IF(MIN(decompo1prix!I10,decompo2prix!I10,decompo3prix!I10,decompo4prix!I10,decompo5prix!I10,decompo6prix!I10,decompo7prix!I10,decompo8prix!I10,decompo9prix!I10,decompo10prix!I10)=decompo3prix!I10,decompo3prix!$A$7,IF(MIN(decompo1prix!I10,decompo2prix!I10,decompo3prix!I10,decompo4prix!I10,decompo5prix!I10,decompo6prix!I10,decompo7prix!I10,decompo8prix!I10,decompo9prix!I10,decompo10prix!I10)=decompo4prix!I10,decompo4prix!$A$7,IF(MIN(decompo1prix!I10,decompo2prix!I10,decompo3prix!I10,decompo4prix!I10,decompo5prix!I10,decompo6prix!I10,decompo7prix!I10,decompo8prix!I10,decompo9prix!I10,decompo10prix!I10)=decompo5prix!I10,decompo5prix!$A$7,IF(MIN(decompo1prix!I10,decompo2prix!I10,decompo3prix!I10,decompo4prix!I10,decompo5prix!I10,decompo6prix!I10,decompo7prix!I10,decompo8prix!I10,decompo9prix!I10,decompo10prix!I10)=decompo6prix!I10,decompo6prix!$A$7,IF(MIN(decompo1prix!I10,decompo2prix!I10,decompo3prix!I10,decompo4prix!I10,decompo5prix!I10,decompo6prix!I10,decompo7prix!I10,decompo8prix!I10,decompo9prix!I10,decompo10prix!I10)=decompo7prix!I10,decompo7prix!$A$7,IF(MIN(decompo1prix!I10,decompo2prix!I10,decompo3prix!I10,decompo4prix!I10,decompo5prix!I10,decompo6prix!I10,decompo7prix!I10,decompo8prix!I10,decompo9prix!I10,decompo10prix!I10)=decompo8prix!I10,decompo8prix!$A$7,IF(MIN(decompo1prix!I10,decompo2prix!I10,decompo3prix!I10,decompo4prix!I10,decompo5prix!I10,decompo6prix!I10,decompo7prix!I10,decompo8prix!I10,decompo9prix!I10,decompo10prix!I10)=decompo9prix!I10,decompo9prix!$A$7,decompo10prix!$A$7)))))))))) -> thomas | Z10: =IF($T10="","",IF(MIN(decompo1prix!J10,decompo2prix!J10,decompo3prix!J10,decompo4prix!J10,decompo5prix!J10,decompo6prix!J10,decompo7prix!J10,decompo8prix!J10,decompo9prix!J10,decompo10prix!J10)=decompo1prix!J10,decompo1prix!$A$7,IF(MIN(decompo1prix!J10,decompo2prix!J10,decompo3prix!J10,decompo4prix!J10,decompo5prix!J10,decompo6prix!J10,decompo7prix!J10,decompo8prix!J10,decompo9prix!J10,decompo10prix!J10)=decompo2prix!J10,decompo2prix!$A$7,IF(MIN(decompo1prix!J10,decompo2prix!J10,decompo3prix!J10,decompo4prix!J10,decompo5prix!J10,decompo6prix!J10,decompo7prix!J10,decompo8prix!J10,decompo9prix!J10,decompo10prix!J10)=decompo3prix!J10,decompo3prix!$A$7,IF(MIN(decompo1prix!J10,decompo2prix!J10,decompo3prix!J10,decompo4prix!J10,decompo5prix!J10,decompo6prix!J10,decompo7prix!J10,decompo8prix!J10,decompo9prix!J10,decompo10prix!J10)=decompo4prix!J10,decompo4prix!$A$7,IF(MIN(decompo1prix!J10,decompo2prix!J10,decompo3prix!J10,decompo4prix!J10,decompo5prix!J10,decompo6prix!J10,decompo7prix!J10,decompo8prix!J10,decompo9prix!J10,decompo10prix!J10)=decompo5prix!J10,decompo5prix!$A$7,IF(MIN(decompo1prix!J10,decompo2prix!J10,decompo3prix!J10,decompo4prix!J10,decompo5prix!J10,decompo6prix!J10,decompo7prix!J10,decompo8prix!J10,decompo9prix!J10,decompo10prix!J10)=decompo6prix!J10,decompo6prix!$A$7,IF(MIN(decompo1prix!J10,decompo2prix!J10,decompo3prix!J10,decompo4prix!J10,decompo5prix!J10,decompo6prix!J10,decompo7prix!J10,decompo8prix!J10,decompo9prix!J10,decompo10prix!J10)=decompo7prix!J10,decompo7prix!$A$7,IF(MIN(decompo1prix!J10,decompo2prix!J10,decompo3prix!J10,decompo4prix!J10,decompo5prix!J10,decompo6prix!J10,decompo7prix!J10,decompo8prix!J10,decompo9prix!J10,decompo10prix!J10)=decompo8prix!J10,decompo8prix!$A$7,IF(MIN(decompo1prix!J10,decompo2prix!J10,decompo3prix!J10,decompo4prix!J10,decompo5prix!J10,decompo6prix!J10,decompo7prix!J10,decompo8prix!J10,decompo9prix!J10,decompo10prix!J10)=decompo9prix!J10,decompo9prix!$A$7,decompo10prix!$A$7)))))))))) -> thomas | AA10: =IF($T10="","",IF(MIN(decompo1prix!K10,decompo2prix!K10,decompo3prix!K10,decompo4prix!K10,decompo5prix!K10,decompo6prix!K10,decompo7prix!K10,decompo8prix!K10,decompo9prix!K10,decompo10prix!K10)=decompo1prix!K10,decompo1prix!$A$7,IF(MIN(decompo1prix!K10,decompo2prix!K10,decompo3prix!K10,decompo4prix!K10,decompo5prix!K10,decompo6prix!K10,decompo7prix!K10,decompo8prix!K10,decompo9prix!K10,decompo10prix!K10)=decompo2prix!K10,decompo2prix!$A$7,IF(MIN(decompo1prix!K10,decompo2prix!K10,decompo3prix!K10,decompo4prix!K10,decompo5prix!K10,decompo6prix!K10,decompo7prix!K10,decompo8prix!K10,decompo9prix!K10,decompo10prix!K10)=decompo3prix!K10,decompo3prix!$A$7,IF(MIN(decompo1prix!K10,decompo2prix!K10,decompo3prix!K10,decompo4prix!K10,decompo5prix!K10,decompo6prix!K10,decompo7prix!K10,decompo8prix!K10,decompo9prix!K10,decompo10prix!K10)=decompo4prix!K10,decompo4prix!$A$7,IF(MIN(decompo1prix!K10,decompo2prix!K10,decompo3prix!K10,decompo4prix!K10,decompo5prix!K10,decompo6prix!K10,decompo7prix!K10,decompo8prix!K10,decompo9prix!K10,decompo10prix!K10)=decompo5prix!K10,decompo5prix!$A$7,IF(MIN(decompo1prix!K10,decompo2prix!K10,decompo3prix!K10,decompo4prix!K10,decompo5prix!K10,decompo6prix!K10,decompo7prix!K10,decompo8prix!K10,decompo9prix!K10,decompo10prix!K10)=decompo6prix!K10,decompo6prix!$A$7,IF(MIN(decompo1prix!K10,decompo2prix!K10,decompo3prix!K10,decompo4prix!K10,decompo5prix!K10,decompo6prix!K10,decompo7prix!K10,decompo8prix!K10,decompo9prix!K10,decompo10prix!K10)=decompo7prix!K10,decompo7prix!$A$7,IF(MIN(decompo1prix!K10,decompo2prix!K10,decompo3prix!K10,decompo4prix!K10,decompo5prix!K10,decompo6prix!K10,decompo7prix!K10,decompo8prix!K10,decompo9prix!K10,decompo10prix!K10)=decompo8prix!K10,decompo8prix!$A$7,IF(MIN(decompo1prix!K10,decompo2prix!K10,decompo3prix!K10,decompo4prix!K10,decompo5prix!K10,decompo6prix!K10,decompo7prix!K10,decompo8prix!K10,decompo9prix!K10,decompo10prix!K10)=decompo9prix!K10,decompo9prix!$A$7,decompo10prix!$A$7)))))))))) -> alex | AB10: =IF($T10="","",IF(MIN(decompo1prix!L10,decompo2prix!L10,decompo3prix!L10,decompo4prix!L10,decompo5prix!L10,decompo6prix!L10,decompo7prix!L10,decompo8prix!L10,decompo9prix!L10,decompo10prix!L10)=decompo1prix!L10,decompo1prix!$A$7,IF(MIN(decompo1prix!L10,decompo2prix!L10,decompo3prix!L10,decompo4prix!L10,decompo5prix!L10,decompo6prix!L10,decompo7prix!L10,decompo8prix!L10,decompo9prix!L10,decompo10prix!L10)=decompo2prix!L10,decompo2prix!$A$7,IF(MIN(decompo1prix!L10,decompo2prix!L10,decompo3prix!L10,decompo4prix!L10,decompo5prix!L10,decompo6prix!L10,decompo7prix!L10,decompo8prix!L10,decompo9prix!L10,decompo10prix!L10)=decompo3prix!L10,decompo3prix!$A$7,IF(MIN(decompo1prix!L10,decompo2prix!L10,decompo3prix!L10,decompo4prix!L10,decompo5prix!L10,decompo6prix!L10,decompo7prix!L10,decompo8prix!L10,decompo9prix!L10,decompo10prix!L10)=decompo4prix!L10,decompo4prix!$A$7,IF(MIN(decompo1prix!L10,decompo2prix!L10,decompo3prix!L10,decompo4prix!L10,decompo5prix!L10,decompo6prix!L10,decompo7prix!L10,decompo8prix!L10,decompo9prix!L10,decompo10prix!L10)=decompo5prix!L10,decompo5prix!$A$7,IF(MIN(decompo1prix!L10,decompo2prix!L10,decompo3prix!L10,decompo4prix!L10,decompo5prix!L10,decompo6prix!L10,decompo7prix!L10,decompo8prix!L10,decompo9prix!L10,decompo10prix!L10)=decompo6prix!L10,decompo6prix!$A$7,IF(MIN(decompo1prix!L10,decompo2prix!L10,decompo3prix!L10,decompo4prix!L10,decompo5prix!L10,decompo6prix!L10,decompo7prix!L10,decompo8prix!L10,decompo9prix!L10,decompo10prix!L10)=decompo7prix!L10,decompo7prix!$A$7,IF(MIN(decompo1prix!L10,decompo2prix!L10,decompo3prix!L10,decompo4prix!L10,decompo5prix!L10,decompo6prix!L10,decompo7prix!L10,decompo8prix!L10,decompo9prix!L10,decompo10prix!L10)=decompo8prix!L10,decompo8prix!$A$7,IF(MIN(decompo1prix!L10,decompo2prix!L10,decompo3prix!L10,decompo4prix!L10,decompo5prix!L10,decompo6prix!L10,decompo7prix!L10,decompo8prix!L10,decompo9prix!L10,decompo10prix!L10)=decompo9prix!L10,decompo9prix!$A$7,decompo10prix!$A$7)))))))))) -> ludo | AC10: =IF($T10="","",IF(MIN(decompo1prix!M10,decompo2prix!M10,decompo3prix!M10,decompo4prix!M10,decompo5prix!M10,decompo6prix!M10,decompo7prix!M10,decompo8prix!M10,decompo9prix!M10,decompo10prix!M10)=decompo1prix!M10,decompo1prix!$A$7,IF(MIN(decompo1prix!M10,decompo2prix!M10,decompo3prix!M10,decompo4prix!M10,decompo5prix!M10,decompo6prix!M10,decompo7prix!M10,decompo8prix!M10,decompo9prix!M10,decompo10prix!M10)=decompo2prix!M10,decompo2prix!$A$7,IF(MIN(decompo1prix!M10,decompo2prix!M10,decompo3prix!M10,decompo4prix!M10,decompo5prix!M10,decompo6prix!M10,decompo7prix!M10,decompo8prix!M10,decompo9prix!M10,decompo10prix!M10)=decompo3prix!M10,decompo3prix!$A$7,IF(MIN(decompo1prix!M10,decompo2prix!M10,decompo3prix!M10,decompo4prix!M10,decompo5prix!M10,decompo6prix!M10,decompo7prix!M10,decompo8prix!M10,decompo9prix!M10,decompo10prix!M10)=decompo4prix!M10,decompo4prix!$A$7,IF(MIN(decompo1prix!M10,decompo2prix!M10,decompo3prix!M10,decompo4prix!M10,decompo5prix!M10,decompo6prix!M10,decompo7prix!M10,decompo8prix!M10,decompo9prix!M10,decompo10prix!M10)=decompo5prix!M10,decompo5prix!$A$7,IF(MIN(decompo1prix!M10,decompo2prix!M10,decompo3prix!M10,decompo4prix!M10,decompo5prix!M10,decompo6prix!M10,decompo7prix!M10,decompo8prix!M10,decompo9prix!M10,decompo10prix!M10)=decompo6prix!M10,decompo6prix!$A$7,IF(MIN(decompo1prix!M10,decompo2prix!M10,decompo3prix!M10,decompo4prix!M10,decompo5prix!M10,decompo6prix!M10,decompo7prix!M10,decompo8prix!M10,decompo9prix!M10,decompo10prix!M10)=decompo7prix!M10,decompo7prix!$A$7,IF(MIN(decompo1prix!M10,decompo2prix!M10,decompo3prix!M10,decompo4prix!M10,decompo5prix!M10,decompo6prix!M10,decompo7prix!M10,decompo8prix!M10,decompo9prix!M10,decompo10prix!M10)=decompo8prix!M10,decompo8prix!$A$7,IF(MIN(decompo1prix!M10,decompo2prix!M10,decompo3prix!M10,decompo4prix!M10,decompo5prix!M10,decompo6prix!M10,decompo7prix!M10,decompo8prix!M10,decompo9prix!M10,decompo10prix!M10)=decompo9prix!M10,decompo9prix!$A$7,decompo10prix!$A$7)))))))))) -> ludo | AF10: Romain | AG10: =SUM(decompo2prix!F10:F210)*AG8 -> 1941.6 | AH10: =SUM(decompo2prix!G10:G210)*AH8 -> 3236.8 | AI10: =SUM(decompo2prix!H10:H210)*AI8 -> 5394.4 | AJ10: =SUM(decompo2prix!I10:I210)*AJ8 -> 9004.8 | AK10: =SUM(decompo2prix!J10:J210)*AK8 -> 12124.8 | AL10: =SUM(decompo2prix!K10:K210)*AL8 -> 14988.8 | AM10: =SUM(decompo2prix!L10:L210)*AM8 -> 17680 | AN10: =SUM(decompo2prix!M10:M210)*AN8 -> 40440 | AQ10: romain | AR10: 970.8 | AS10: 809.2 | AT10: 674.3 | AU10: 562.8 | AV10: 505.2 | AW10: 468.4 | AX10: 442 | AY10: 404.4
A11: VIS 2 | B11: IN2 | C11: =MIN(decompo1prix!F11,decompo2prix!F11,decompo3prix!F11,decompo4prix!F11,decompo5prix!F11,decompo6prix!F11,decompo7prix!F11,decompo8prix!F11,decompo9prix!F11,decompo10prix!F11) -> 26.63 | D11: =MIN(decompo1prix!G11,decompo2prix!G11,decompo3prix!G11,decompo4prix!G11,decompo5prix!G11,decompo6prix!G11,decompo7prix!G11,decompo8prix!G11,decompo9prix!G11,decompo10prix!G11) -> 26.63 | E11: =MIN(decompo1prix!H11,decompo2prix!H11,decompo3prix!H11,decompo4prix!H11,decompo5prix!H11,decompo6prix!H11,decompo7prix!H11,decompo8prix!H11,decompo9prix!H11,decompo10prix!H11) -> 22.31 | F11: =MIN(decompo1prix!I11,decompo2prix!I11,decompo3prix!I11,decompo4prix!I11,decompo5prix!I11,decompo6prix!I11,decompo7prix!I11,decompo8prix!I11,decompo9prix!I11,decompo10prix!I11) -> 20.29 | G11: =MIN(decompo1prix!J11,decompo2prix!J11,decompo3prix!J11,decompo4prix!J11,decompo5prix!J11,decompo6prix!J11,decompo7prix!J11,decompo8prix!J11,decompo9prix!J11,decompo10prix!J11) -> 20.29 | H11: =MIN(decompo1prix!K11,decompo2prix!K11,decompo3prix!K11,decompo4prix!K11,decompo5prix!K11,decompo6prix!K11,decompo7prix!K11,decompo8prix!K11,decompo9prix!K11,decompo10prix!K11) -> 19.26 | I11: =MIN(decompo1prix!L11,decompo2prix!L11,decompo3prix!L11,decompo4prix!L11,decompo5prix!L11,decompo6prix!L11,decompo7prix!L11,decompo8prix!L11,decompo9prix!L11,decompo10prix!L11) -> 19.26 | J11: =MIN(decompo1prix!M11,decompo2prix!M11,decompo3prix!M11,decompo4prix!M11,decompo5prix!M11,decompo6prix!M11,decompo7prix!M11,decompo8prix!M11,decompo9prix!M11,decompo10prix!M11) -> 17.75 | T11: VIS 2 | U11: in2 | V11: =IF($T11="","",IF(MIN(decompo1prix!F11,decompo2prix!F11,decompo3prix!F11,decompo4prix!F11,decompo5prix!F11,decompo6prix!F11,decompo7prix!F11,decompo8prix!F11,decompo9prix!F11,decompo10prix!F11)=decompo1prix!F11,decompo1prix!$A$7,IF(MIN(decompo1prix!F11,decompo2prix!F11,decompo3prix!F11,decompo4prix!F11,decompo5prix!F11,decompo6prix!F11,decompo7prix!F11,decompo8prix!F11,decompo9prix!F11,decompo10prix!F11)=decompo2prix!F11,decompo2prix!$A$7,IF(MIN(decompo1prix!F11,decompo2prix!F11,decompo3prix!F11,decompo4prix!F11,decompo5prix!F11,decompo6prix!F11,decompo7prix!F11,decompo8prix!F11,decompo9prix!F11,decompo10prix!F11)=decompo3prix!F11,decompo3prix!$A$7,IF(MIN(decompo1prix!F11,decompo2prix!F11,decompo3prix!F11,decompo4prix!F11,decompo5prix!F11,decompo6prix!F11,decompo7prix!F11,decompo8prix!F11,decompo9prix!F11,decompo10prix!F11)=decompo4prix!F11,decompo4prix!$A$7,IF(MIN(decompo1prix!F11,decompo2prix!F11,decompo3prix!F11,decompo4prix!F11,decompo5prix!F11,decompo6prix!F11,decompo7prix!F11,decompo8prix!F11,decompo9prix!F11,decompo10prix!F11)=decompo5prix!F11,decompo5prix!$A$7,IF(MIN(decompo1prix!F11,decompo2prix!F11,decompo3prix!F11,decompo4prix!F11,decompo5prix!F11,decompo6prix!F11,decompo7prix!F11,decompo8prix!F11,decompo9prix!F11,decompo10prix!F11)=decompo6prix!F11,decompo6prix!$A$7,IF(MIN(decompo1prix!F11,decompo2prix!F11,decompo3prix!F11,decompo4prix!F11,decompo5prix!F11,decompo6prix!F11,decompo7prix!F11,decompo8prix!F11,decompo9prix!F11,decompo10prix!F11)=decompo7prix!F11,decompo7prix!$A$7,IF(MIN(decompo1prix!F11,decompo2prix!F11,decompo3prix!F11,decompo4prix!F11,decompo5prix!F11,decompo6prix!F11,decompo7prix!F11,decompo8prix!F11,decompo9prix!F11,decompo10prix!F11)=decompo8prix!F11,decompo8prix!$A$7,IF(MIN(decompo1prix!F11,decompo2prix!F11,decompo3prix!F11,decompo4prix!F11,decompo5prix!F11,decompo6prix!F11,decompo7prix!F11,decompo8prix!F11,decompo9prix!F11,decompo10prix!F11)=decompo9prix!F11,decompo9prix!$A$7,decompo10prix!$A$7)))))))))) -> justine | W11: =IF($T11="","",IF(MIN(decompo1prix!G11,decompo2prix!G11,decompo3prix!G11,decompo4prix!G11,decompo5prix!G11,decompo6prix!G11,decompo7prix!G11,decompo8prix!G11,decompo9prix!G11,decompo10prix!G11)=decompo1prix!G11,decompo1prix!$A$7,IF(MIN(decompo1prix!G11,decompo2prix!G11,decompo3prix!G11,decompo4prix!G11,decompo5prix!G11,decompo6prix!G11,decompo7prix!G11,decompo8prix!G11,decompo9prix!G11,decompo10prix!G11)=decompo2prix!G11,decompo2prix!$A$7,IF(MIN(decompo1prix!G11,decompo2prix!G11,decompo3prix!G11,decompo4prix!G11,decompo5prix!G11,decompo6prix!G11,decompo7prix!G11,decompo8prix!G11,decompo9prix!G11,decompo10prix!G11)=decompo3prix!G11,decompo3prix!$A$7,IF(MIN(decompo1prix!G11,decompo2prix!G11,decompo3prix!G11,decompo4prix!G11,decompo5prix!G11,decompo6prix!G11,decompo7prix!G11,decompo8prix!G11,decompo9prix!G11,decompo10prix!G11)=decompo4prix!G11,decompo4prix!$A$7,IF(MIN(decompo1prix!G11,decompo2prix!G11,decompo3prix!G11,decompo4prix!G11,decompo5prix!G11,decompo6prix!G11,decompo7prix!G11,decompo8prix!G11,decompo9prix!G11,decompo10prix!G11)=decompo5prix!G11,decompo5prix!$A$7,IF(MIN(decompo1prix!G11,decompo2prix!G11,decompo3prix!G11,decompo4prix!G11,decompo5prix!G11,decompo6prix!G11,decompo7prix!G11,decompo8prix!G11,decompo9prix!G11,decompo10prix!G11)=decompo6prix!G11,decompo6prix!$A$7,IF(MIN(decompo1prix!G11,decompo2prix!G11,decompo3prix!G11,decompo4prix!G11,decompo5prix!G11,decompo6prix!G11,decompo7prix!G11,decompo8prix!G11,decompo9prix!G11,decompo10prix!G11)=decompo7prix!G11,decompo7prix!$A$7,IF(MIN(decompo1prix!G11,decompo2prix!G11,decompo3prix!G11,decompo4prix!G11,decompo5prix!G11,decompo6prix!G11,decompo7prix!G11,decompo8prix!G11,decompo9prix!G11,decompo10prix!G11)=decompo8prix!G11,decompo8prix!$A$7,IF(MIN(decompo1prix!G11,decompo2prix!G11,decompo3prix!G11,decompo4prix!G11,decompo5prix!G11,decompo6prix!G11,decompo7prix!G11,decompo8prix!G11,decompo9prix!G11,decompo10prix!G11)=decompo9prix!G11,decompo9prix!$A$7,decompo10prix!$A$7)))))))))) -> justine | X11: =IF($T11="","",IF(MIN(decompo1prix!H11,decompo2prix!H11,decompo3prix!H11,decompo4prix!H11,decompo5prix!H11,decompo6prix!H11,decompo7prix!H11,decompo8prix!H11,decompo9prix!H11,decompo10prix!H11)=decompo1prix!H11,decompo1prix!$A$7,IF(MIN(decompo1prix!H11,decompo2prix!H11,decompo3prix!H11,decompo4prix!H11,decompo5prix!H11,decompo6prix!H11,decompo7prix!H11,decompo8prix!H11,decompo9prix!H11,decompo10prix!H11)=decompo2prix!H11,decompo2prix!$A$7,IF(MIN(decompo1prix!H11,decompo2prix!H11,decompo3prix!H11,decompo4prix!H11,decompo5prix!H11,decompo6prix!H11,decompo7prix!H11,decompo8prix!H11,decompo9prix!H11,decompo10prix!H11)=decompo3prix!H11,decompo3prix!$A$7,IF(MIN(decompo1prix!H11,decompo2prix!H11,decompo3prix!H11,decompo4prix!H11,decompo5prix!H11,decompo6prix!H11,decompo7prix!H11,decompo8prix!H11,decompo9prix!H11,decompo10prix!H11)=decompo4prix!H11,decompo4prix!$A$7,IF(MIN(decompo1prix!H11,decompo2prix!H11,decompo3prix!H11,decompo4prix!H11,decompo5prix!H11,decompo6prix!H11,decompo7prix!H11,decompo8prix!H11,decompo9prix!H11,decompo10prix!H11)=decompo5prix!H11,decompo5prix!$A$7,IF(MIN(decompo1prix!H11,decompo2prix!H11,decompo3prix!H11,decompo4prix!H11,decompo5prix!H11,decompo6prix!H11,decompo7prix!H11,decompo8prix!H11,decompo9prix!H11,decompo10prix!H11)=decompo6prix!H11,decompo6prix!$A$7,IF(MIN(decompo1prix!H11,decompo2prix!H11,decompo3prix!H11,decompo4prix!H11,decompo5prix!H11,decompo6prix!H11,decompo7prix!H11,decompo8prix!H11,decompo9prix!H11,decompo10prix!H11)=decompo7prix!H11,decompo7prix!$A$7,IF(MIN(decompo1prix!H11,decompo2prix!H11,decompo3prix!H11,decompo4prix!H11,decompo5prix!H11,decompo6prix!H11,decompo7prix!H11,decompo8prix!H11,decompo9prix!H11,decompo10prix!H11)=decompo8prix!H11,decompo8prix!$A$7,IF(MIN(decompo1prix!H11,decompo2prix!H11,decompo3prix!H11,decompo4prix!H11,decompo5prix!H11,decompo6prix!H11,decompo7prix!H11,decompo8prix!H11,decompo9prix!H11,decompo10prix!H11)=decompo9prix!H11,decompo9prix!$A$7,decompo10prix!$A$7)))))))))) -> justine | Y11: =IF($T11="","",IF(MIN(decompo1prix!I11,decompo2prix!I11,decompo3prix!I11,decompo4prix!I11,decompo5prix!I11,decompo6prix!I11,decompo7prix!I11,decompo8prix!I11,decompo9prix!I11,decompo10prix!I11)=decompo1prix!I11,decompo1prix!$A$7,IF(MIN(decompo1prix!I11,decompo2prix!I11,decompo3prix!I11,decompo4prix!I11,decompo5prix!I11,decompo6prix!I11,decompo7prix!I11,decompo8prix!I11,decompo9prix!I11,decompo10prix!I11)=decompo2prix!I11,decompo2prix!$A$7,IF(MIN(decompo1prix!I11,decompo2prix!I11,decompo3prix!I11,decompo4prix!I11,decompo5prix!I11,decompo6prix!I11,decompo7prix!I11,decompo8prix!I11,decompo9prix!I11,decompo10prix!I11)=decompo3prix!I11,decompo3prix!$A$7,IF(MIN(decompo1prix!I11,decompo2prix!I11,decompo3prix!I11,decompo4prix!I11,decompo5prix!I11,decompo6prix!I11,decompo7prix!I11,decompo8prix!I11,decompo9prix!I11,decompo10prix!I11)=decompo4prix!I11,decompo4prix!$A$7,IF(MIN(decompo1prix!I11,decompo2prix!I11,decompo3prix!I11,decompo4prix!I11,decompo5prix!I11,decompo6prix!I11,decompo7prix!I11,decompo8prix!I11,decompo9prix!I11,decompo10prix!I11)=decompo5prix!I11,decompo5prix!$A$7,IF(MIN(decompo1prix!I11,decompo2prix!I11,decompo3prix!I11,decompo4prix!I11,decompo5prix!I11,decompo6prix!I11,decompo7prix!I11,decompo8prix!I11,decompo9prix!I11,decompo10prix!I11)=decompo6prix!I11,decompo6prix!$A$7,IF(MIN(decompo1prix!I11,decompo2prix!I11,decompo3prix!I11,decompo4prix!I11,decompo5prix!I11,decompo6prix!I11,decompo7prix!I11,decompo8prix!I11,decompo9prix!I11,decompo10prix!I11)=decompo7prix!I11,decompo7prix!$A$7,IF(MIN(decompo1prix!I11,decompo2prix!I11,decompo3prix!I11,decompo4prix!I11,decompo5prix!I11,decompo6prix!I11,decompo7prix!I11,decompo8prix!I11,decompo9prix!I11,decompo10prix!I11)=decompo8prix!I11,decompo8prix!$A$7,IF(MIN(decompo1prix!I11,decompo2prix!I11,decompo3prix!I11,decompo4prix!I11,decompo5prix!I11,decompo6prix!I11,decompo7prix!I11,decompo8prix!I11,decompo9prix!I11,decompo10prix!I11)=decompo9prix!I11,decompo9prix!$A$7,decompo10prix!$A$7)))))))))) -> justine | Z11: =IF($T11="","",IF(MIN(decompo1prix!J11,decompo2prix!J11,decompo3prix!J11,decompo4prix!J11,decompo5prix!J11,decompo6prix!J11,decompo7prix!J11,decompo8prix!J11,decompo9prix!J11,decompo10prix!J11)=decompo1prix!J11,decompo1prix!$A$7,IF(MIN(decompo1prix!J11,decompo2prix!J11,decompo3prix!J11,decompo4prix!J11,decompo5prix!J11,decompo6prix!J11,decompo7prix!J11,decompo8prix!J11,decompo9prix!J11,decompo10prix!J11)=decompo2prix!J11,decompo2prix!$A$7,IF(MIN(decompo1prix!J11,decompo2prix!J11,decompo3prix!J11,decompo4prix!J11,decompo5prix!J11,decompo6prix!J11,decompo7prix!J11,decompo8prix!J11,decompo9prix!J11,decompo10prix!J11)=decompo3prix!J11,decompo3prix!$A$7,IF(MIN(decompo1prix!J11,decompo2prix!J11,decompo3prix!J11,decompo4prix!J11,decompo5prix!J11,decompo6prix!J11,decompo7prix!J11,decompo8prix!J11,decompo9prix!J11,decompo10prix!J11)=decompo4prix!J11,decompo4prix!$A$7,IF(MIN(decompo1prix!J11,decompo2prix!J11,decompo3prix!J11,decompo4prix!J11,decompo5prix!J11,decompo6prix!J11,decompo7prix!J11,decompo8prix!J11,decompo9prix!J11,decompo10prix!J11)=decompo5prix!J11,decompo5prix!$A$7,IF(MIN(decompo1prix!J11,decompo2prix!J11,decompo3prix!J11,decompo4prix!J11,decompo5prix!J11,decompo6prix!J11,decompo7prix!J11,decompo8prix!J11,decompo9prix!J11,decompo10prix!J11)=decompo6prix!J11,decompo6prix!$A$7,IF(MIN(decompo1prix!J11,decompo2prix!J11,decompo3prix!J11,decompo4prix!J11,decompo5prix!J11,decompo6prix!J11,decompo7prix!J11,decompo8prix!J11,decompo9prix!J11,decompo10prix!J11)=decompo7prix!J11,decompo7prix!$A$7,IF(MIN(decompo1prix!J11,decompo2prix!J11,decompo3prix!J11,decompo4prix!J11,decompo5prix!J11,decompo6prix!J11,decompo7prix!J11,decompo8prix!J11,decompo9prix!J11,decompo10prix!J11)=decompo8prix!J11,decompo8prix!$A$7,IF(MIN(decompo1prix!J11,decompo2prix!J11,decompo3prix!J11,decompo4prix!J11,decompo5prix!J11,decompo6prix!J11,decompo7prix!J11,decompo8prix!J11,decompo9prix!J11,decompo10prix!J11)=decompo9prix!J11,decompo9prix!$A$7,decompo10prix!$A$7)))))))))) -> justine | AA11: =IF($T11="","",IF(MIN(decompo1prix!K11,decompo2prix!K11,decompo3prix!K11,decompo4prix!K11,decompo5prix!K11,decompo6prix!K11,decompo7prix!K11,decompo8prix!K11,decompo9prix!K11,decompo10prix!K11)=decompo1prix!K11,decompo1prix!$A$7,IF(MIN(decompo1prix!K11,decompo2prix!K11,decompo3prix!K11,decompo4prix!K11,decompo5prix!K11,decompo6prix!K11,decompo7prix!K11,decompo8prix!K11,decompo9prix!K11,decompo10prix!K11)=decompo2prix!K11,decompo2prix!$A$7,IF(MIN(decompo1prix!K11,decompo2prix!K11,decompo3prix!K11,decompo4prix!K11,decompo5prix!K11,decompo6prix!K11,decompo7prix!K11,decompo8prix!K11,decompo9prix!K11,decompo10prix!K11)=decompo3prix!K11,decompo3prix!$A$7,IF(MIN(decompo1prix!K11,decompo2prix!K11,decompo3prix!K11,decompo4prix!K11,decompo5prix!K11,decompo6prix!K11,decompo7prix!K11,decompo8prix!K11,decompo9prix!K11,decompo10prix!K11)=decompo4prix!K11,decompo4prix!$A$7,IF(MIN(decompo1prix!K11,decompo2prix!K11,decompo3prix!K11,decompo4prix!K11,decompo5prix!K11,decompo6prix!K11,decompo7prix!K11,decompo8prix!K11,decompo9prix!K11,decompo10prix!K11)=decompo5prix!K11,decompo5prix!$A$7,IF(MIN(decompo1prix!K11,decompo2prix!K11,decompo3prix!K11,decompo4prix!K11,decompo5prix!K11,decompo6prix!K11,decompo7prix!K11,decompo8prix!K11,decompo9prix!K11,decompo10prix!K11)=decompo6prix!K11,decompo6prix!$A$7,IF(MIN(decompo1prix!K11,decompo2prix!K11,decompo3prix!K11,decompo4prix!K11,decompo5prix!K11,decompo6prix!K11,decompo7prix!K11,decompo8prix!K11,decompo9prix!K11,decompo10prix!K11)=decompo7prix!K11,decompo7prix!$A$7,IF(MIN(decompo1prix!K11,decompo2prix!K11,decompo3prix!K11,decompo4prix!K11,decompo5prix!K11,decompo6prix!K11,decompo7prix!K11,decompo8prix!K11,decompo9prix!K11,decompo10prix!K11)=decompo8prix!K11,decompo8prix!$A$7,IF(MIN(decompo1prix!K11,decompo2prix!K11,decompo3prix!K11,decompo4prix!K11,decompo5prix!K11,decompo6prix!K11,decompo7prix!K11,decompo8prix!K11,decompo9prix!K11,decompo10prix!K11)=decompo9prix!K11,decompo9prix!$A$7,decompo10prix!$A$7)))))))))) -> justine | AB11: =IF($T11="","",IF(MIN(decompo1prix!L11,decompo2prix!L11,decompo3prix!L11,decompo4prix!L11,decompo5prix!L11,decompo6prix!L11,decompo7prix!L11,decompo8prix!L11,decompo9prix!L11,decompo10prix!L11)=decompo1prix!L11,decompo1prix!$A$7,IF(MIN(decompo1prix!L11,decompo2prix!L11,decompo3prix!L11,decompo4prix!L11,decompo5prix!L11,decompo6prix!L11,decompo7prix!L11,decompo8prix!L11,decompo9prix!L11,decompo10prix!L11)=decompo2prix!L11,decompo2prix!$A$7,IF(MIN(decompo1prix!L11,decompo2prix!L11,decompo3prix!L11,decompo4prix!L11,decompo5prix!L11,decompo6prix!L11,decompo7prix!L11,decompo8prix!L11,decompo9prix!L11,decompo10prix!L11)=decompo3prix!L11,decompo3prix!$A$7,IF(MIN(decompo1prix!L11,decompo2prix!L11,decompo3prix!L11,decompo4prix!L11,decompo5prix!L11,decompo6prix!L11,decompo7prix!L11,decompo8prix!L11,decompo9prix!L11,decompo10prix!L11)=decompo4prix!L11,decompo4prix!$A$7,IF(MIN(decompo1prix!L11,decompo2prix!L11,decompo3prix!L11,decompo4prix!L11,decompo5prix!L11,decompo6prix!L11,decompo7prix!L11,decompo8prix!L11,decompo9prix!L11,decompo10prix!L11)=decompo5prix!L11,decompo5prix!$A$7,IF(MIN(decompo1prix!L11,decompo2prix!L11,decompo3prix!L11,decompo4prix!L11,decompo5prix!L11,decompo6prix!L11,decompo7prix!L11,decompo8prix!L11,decompo9prix!L11,decompo10prix!L11)=decompo6prix!L11,decompo6prix!$A$7,IF(MIN(decompo1prix!L11,decompo2prix!L11,decompo3prix!L11,decompo4prix!L11,decompo5prix!L11,decompo6prix!L11,decompo7prix!L11,decompo8prix!L11,decompo9prix!L11,decompo10prix!L11)=decompo7prix!L11,decompo7prix!$A$7,IF(MIN(decompo1prix!L11,decompo2prix!L11,decompo3prix!L11,decompo4prix!L11,decompo5prix!L11,decompo6prix!L11,decompo7prix!L11,decompo8prix!L11,decompo9prix!L11,decompo10prix!L11)=decompo8prix!L11,decompo8prix!$A$7,IF(MIN(decompo1prix!L11,decompo2prix!L11,decompo3prix!L11,decompo4prix!L11,decompo5prix!L11,decompo6prix!L11,decompo7prix!L11,decompo8prix!L11,decompo9prix!L11,decompo10prix!L11)=decompo9prix!L11,decompo9prix!$A$7,decompo10prix!$A$7)))))))))) -> justine | AC11: =IF($T11="","",IF(MIN(decompo1prix!M11,decompo2prix!M11,decompo3prix!M11,decompo4prix!M11,decompo5prix!M11,decompo6prix!M11,decompo7prix!M11,decompo8prix!M11,decompo9prix!M11,decompo10prix!M11)=decompo1prix!M11,decompo1prix!$A$7,IF(MIN(decompo1prix!M11,decompo2prix!M11,decompo3prix!M11,decompo4prix!M11,decompo5prix!M11,decompo6prix!M11,decompo7prix!M11,decompo8prix!M11,decompo9prix!M11,decompo10prix!M11)=decompo2prix!M11,decompo2prix!$A$7,IF(MIN(decompo1prix!M11,decompo2prix!M11,decompo3prix!M11,decompo4prix!M11,decompo5prix!M11,decompo6prix!M11,decompo7prix!M11,decompo8prix!M11,decompo9prix!M11,decompo10prix!M11)=decompo3prix!M11,decompo3prix!$A$7,IF(MIN(decompo1prix!M11,decompo2prix!M11,decompo3prix!M11,decompo4prix!M11,decompo5prix!M11,decompo6prix!M11,decompo7prix!M11,decompo8prix!M11,decompo9prix!M11,decompo10prix!M11)=decompo4prix!M11,decompo4prix!$A$7,IF(MIN(decompo1prix!M11,decompo2prix!M11,decompo3prix!M11,decompo4prix!M11,decompo5prix!M11,decompo6prix!M11,decompo7prix!M11,decompo8prix!M11,decompo9prix!M11,decompo10prix!M11)=decompo5prix!M11,decompo5prix!$A$7,IF(MIN(decompo1prix!M11,decompo2prix!M11,decompo3prix!M11,decompo4prix!M11,decompo5prix!M11,decompo6prix!M11,decompo7prix!M11,decompo8prix!M11,decompo9prix!M11,decompo10prix!M11)=decompo6prix!M11,decompo6prix!$A$7,IF(MIN(decompo1prix!M11,decompo2prix!M11,decompo3prix!M11,decompo4prix!M11,decompo5prix!M11,decompo6prix!M11,decompo7prix!M11,decompo8prix!M11,decompo9prix!M11,decompo10prix!M11)=decompo7prix!M11,decompo7prix!$A$7,IF(MIN(decompo1prix!M11,decompo2prix!M11,decompo3prix!M11,decompo4prix!M11,decompo5prix!M11,decompo6prix!M11,decompo7prix!M11,decompo8prix!M11,decompo9prix!M11,decompo10prix!M11)=decompo8prix!M11,decompo8prix!$A$7,IF(MIN(decompo1prix!M11,decompo2prix!M11,decompo3prix!M11,decompo4prix!M11,decompo5prix!M11,decompo6prix!M11,decompo7prix!M11,decompo8prix!M11,decompo9prix!M11,decompo10prix!M11)=decompo9prix!M11,decompo9prix!$A$7,decompo10prix!$A$7)))))))))) -> justine | AF11: thomas | AG11: =SUM(decompo3prix!F10:F210)*AG8 -> 2558 | AH11: =SUM(decompo3prix!G10:G210)*AH8 -> 5116 | AI11: =SUM(decompo3prix!H10:H210)*AI8 -> 9916.48 | AJ11: =SUM(decompo3prix!I10:I210)*AJ8 -> 19308.64 | AK11: =SUM(decompo3prix!J10:J210)*AK8 -> 28962.96 | AL11: =SUM(decompo3prix!K10:K210)*AL8 -> 35706.24 | AM11: =SUM(decompo3prix!L10:L210)*AM8 -> 44632.8 | AN11: =SUM(decompo3prix!M10:M210)*AN8 -> 96825 | AQ11: thomas | AR11: 1279 | AS11: 1279 | AT11: 1239.56 | AU11: 1206.79 | AV11: 1206.79 | AW11: 1115.82 | AX11: 1115.82 | AY11: 968.25
A12: VIS 3 | B12: IN3 | C12: =MIN(decompo1prix!F12,decompo2prix!F12,decompo3prix!F12,decompo4prix!F12,decompo5prix!F12,decompo6prix!F12,decompo7prix!F12,decompo8prix!F12,decompo9prix!F12,decompo10prix!F12) -> 38.39 | D12: =MIN(decompo1prix!G12,decompo2prix!G12,decompo3prix!G12,decompo4prix!G12,decompo5prix!G12,decompo6prix!G12,decompo7prix!G12,decompo8prix!G12,decompo9prix!G12,decompo10prix!G12) -> 38.39 | E12: =MIN(decompo1prix!H12,decompo2prix!H12,decompo3prix!H12,decompo4prix!H12,decompo5prix!H12,decompo6prix!H12,decompo7prix!H12,decompo8prix!H12,decompo9prix!H12,decompo10prix!H12) -> 26.2 | F12: =MIN(decompo1prix!I12,decompo2prix!I12,decompo3prix!I12,decompo4prix!I12,decompo5prix!I12,decompo6prix!I12,decompo7prix!I12,decompo8prix!I12,decompo9prix!I12,decompo10prix!I12) -> 34.66 | G12: =MIN(decompo1prix!J12,decompo2prix!J12,decompo3prix!J12,decompo4prix!J12,decompo5prix!J12,decompo6prix!J12,decompo7prix!J12,decompo8prix!J12,decompo9prix!J12,decompo10prix!J12) -> 34.66 | H12: =MIN(decompo1prix!K12,decompo2prix!K12,decompo3prix!K12,decompo4prix!K12,decompo5prix!K12,decompo6prix!K12,decompo7prix!K12,decompo8prix!K12,decompo9prix!K12,decompo10prix!K12) -> 22.24 | I12: =MIN(decompo1prix!L12,decompo2prix!L12,decompo3prix!L12,decompo4prix!L12,decompo5prix!L12,decompo6prix!L12,decompo7prix!L12,decompo8prix!L12,decompo9prix!L12,decompo10prix!L12) -> 33.94 | J12: =MIN(decompo1prix!M12,decompo2prix!M12,decompo3prix!M12,decompo4prix!M12,decompo5prix!M12,decompo6prix!M12,decompo7prix!M12,decompo8prix!M12,decompo9prix!M12,decompo10prix!M12) -> 30.1 | T12: VIS 3 | U12: in3 | V12: =IF($T12="","",IF(MIN(decompo1prix!F12,decompo2prix!F12,decompo3prix!F12,decompo4prix!F12,decompo5prix!F12,decompo6prix!F12,decompo7prix!F12,decompo8prix!F12,decompo9prix!F12,decompo10prix!F12)=decompo1prix!F12,decompo1prix!$A$7,IF(MIN(decompo1prix!F12,decompo2prix!F12,decompo3prix!F12,decompo4prix!F12,decompo5prix!F12,decompo6prix!F12,decompo7prix!F12,decompo8prix!F12,decompo9prix!F12,decompo10prix!F12)=decompo2prix!F12,decompo2prix!$A$7,IF(MIN(decompo1prix!F12,decompo2prix!F12,decompo3prix!F12,decompo4prix!F12,decompo5prix!F12,decompo6prix!F12,decompo7prix!F12,decompo8prix!F12,decompo9prix!F12,decompo10prix!F12)=decompo3prix!F12,decompo3prix!$A$7,IF(MIN(decompo1prix!F12,decompo2prix!F12,decompo3prix!F12,decompo4prix!F12,decompo5prix!F12,decompo6prix!F12,decompo7prix!F12,decompo8prix!F12,decompo9prix!F12,decompo10prix!F12)=decompo4prix!F12,decompo4prix!$A$7,IF(MIN(decompo1prix!F12,decompo2prix!F12,decompo3prix!F12,decompo4prix!F12,decompo5prix!F12,decompo6prix!F12,decompo7prix!F12,decompo8prix!F12,decompo9prix!F12,decompo10prix!F12)=decompo5prix!F12,decompo5prix!$A$7,IF(MIN(decompo1prix!F12,decompo2prix!F12,decompo3prix!F12,decompo4prix!F12,decompo5prix!F12,decompo6prix!F12,decompo7prix!F12,decompo8prix!F12,decompo9prix!F12,decompo10prix!F12)=decompo6prix!F12,decompo6prix!$A$7,IF(MIN(decompo1prix!F12,decompo2prix!F12,decompo3prix!F12,decompo4prix!F12,decompo5prix!F12,decompo6prix!F12,decompo7prix!F12,decompo8prix!F12,decompo9prix!F12,decompo10prix!F12)=decompo7prix!F12,decompo7prix!$A$7,IF(MIN(decompo1prix!F12,decompo2prix!F12,decompo3prix!F12,decompo4prix!F12,decompo5prix!F12,decompo6prix!F12,decompo7prix!F12,decompo8prix!F12,decompo9prix!F12,decompo10prix!F12)=decompo8prix!F12,decompo8prix!$A$7,IF(MIN(decompo1prix!F12,decompo2prix!F12,decompo3prix!F12,decompo4prix!F12,decompo5prix!F12,decompo6prix!F12,decompo7prix!F12,decompo8prix!F12,decompo9prix!F12,decompo10prix!F12)=decompo9prix!F12,decompo9prix!$A$7,decompo10prix!$A$7)))))))))) -> thomas | W12: =IF($T12="","",IF(MIN(decompo1prix!G12,decompo2prix!G12,decompo3prix!G12,decompo4prix!G12,decompo5prix!G12,decompo6prix!G12,decompo7prix!G12,decompo8prix!G12,decompo9prix!G12,decompo10prix!G12)=decompo1prix!G12,decompo1prix!$A$7,IF(MIN(decompo1prix!G12,decompo2prix!G12,decompo3prix!G12,decompo4prix!G12,decompo5prix!G12,decompo6prix!G12,decompo7prix!G12,decompo8prix!G12,decompo9prix!G12,decompo10prix!G12)=decompo2prix!G12,decompo2prix!$A$7,IF(MIN(decompo1prix!G12,decompo2prix!G12,decompo3prix!G12,decompo4prix!G12,decompo5prix!G12,decompo6prix!G12,decompo7prix!G12,decompo8prix!G12,decompo9prix!G12,decompo10prix!G12)=decompo3prix!G12,decompo3prix!$A$7,IF(MIN(decompo1prix!G12,decompo2prix!G12,decompo3prix!G12,decompo4prix!G12,decompo5prix!G12,decompo6prix!G12,decompo7prix!G12,decompo8prix!G12,decompo9prix!G12,decompo10prix!G12)=decompo4prix!G12,decompo4prix!$A$7,IF(MIN(decompo1prix!G12,decompo2prix!G12,decompo3prix!G12,decompo4prix!G12,decompo5prix!G12,decompo6prix!G12,decompo7prix!G12,decompo8prix!G12,decompo9prix!G12,decompo10prix!G12)=decompo5prix!G12,decompo5prix!$A$7,IF(MIN(decompo1prix!G12,decompo2prix!G12,decompo3prix!G12,decompo4prix!G12,decompo5prix!G12,decompo6prix!G12,decompo7prix!G12,decompo8prix!G12,decompo9prix!G12,decompo10prix!G12)=decompo6prix!G12,decompo6prix!$A$7,IF(MIN(decompo1prix!G12,decompo2prix!G12,decompo3prix!G12,decompo4prix!G12,decompo5prix!G12,decompo6prix!G12,decompo7prix!G12,decompo8prix!G12,decompo9prix!G12,decompo10prix!G12)=decompo7prix!G12,decompo7prix!$A$7,IF(MIN(decompo1prix!G12,decompo2prix!G12,decompo3prix!G12,decompo4prix!G12,decompo5prix!G12,decompo6prix!G12,decompo7prix!G12,decompo8prix!G12,decompo9prix!G12,decompo10prix!G12)=decompo8prix!G12,decompo8prix!$A$7,IF(MIN(decompo1prix!G12,decompo2prix!G12,decompo3prix!G12,decompo4prix!G12,decompo5prix!G12,decompo6prix!G12,decompo7prix!G12,decompo8prix!G12,decompo9prix!G12,decompo10prix!G12)=decompo9prix!G12,decompo9prix!$A$7,decompo10prix!$A$7)))))))))) -> thomas | X12: =IF($T12="","",IF(MIN(decompo1prix!H12,decompo2prix!H12,decompo3prix!H12,decompo4prix!H12,decompo5prix!H12,decompo6prix!H12,decompo7prix!H12,decompo8prix!H12,decompo9prix!H12,decompo10prix!H12)=decompo1prix!H12,decompo1prix!$A$7,IF(MIN(decompo1prix!H12,decompo2prix!H12,decompo3prix!H12,decompo4prix!H12,decompo5prix!H12,decompo6prix!H12,decompo7prix!H12,decompo8prix!H12,decompo9prix!H12,decompo10prix!H12)=decompo2prix!H12,decompo2prix!$A$7,IF(MIN(decompo1prix!H12,decompo2prix!H12,decompo3prix!H12,decompo4prix!H12,decompo5prix!H12,decompo6prix!H12,decompo7prix!H12,decompo8prix!H12,decompo9prix!H12,decompo10prix!H12)=decompo3prix!H12,decompo3prix!$A$7,IF(MIN(decompo1prix!H12,decompo2prix!H12,decompo3prix!H12,decompo4prix!H12,decompo5prix!H12,decompo6prix!H12,decompo7prix!H12,decompo8prix!H12,decompo9prix!H12,decompo10prix!H12)=decompo4prix!H12,decompo4prix!$A$7,IF(MIN(decompo1prix!H12,decompo2prix!H12,decompo3prix!H12,decompo4prix!H12,decompo5prix!H12,decompo6prix!H12,decompo7prix!H12,decompo8prix!H12,decompo9prix!H12,decompo10prix!H12)=decompo5prix!H12,decompo5prix!$A$7,IF(MIN(decompo1prix!H12,decompo2prix!H12,decompo3prix!H12,decompo4prix!H12,decompo5prix!H12,decompo6prix!H12,decompo7prix!H12,decompo8prix!H12,decompo9prix!H12,decompo10prix!H12)=decompo6prix!H12,decompo6prix!$A$7,IF(MIN(decompo1prix!H12,decompo2prix!H12,decompo3prix!H12,decompo4prix!H12,decompo5prix!H12,decompo6prix!H12,decompo7prix!H12,decompo8prix!H12,decompo9prix!H12,decompo10prix!H12)=decompo7prix!H12,decompo7prix!$A$7,IF(MIN(decompo1prix!H12,decompo2prix!H12,decompo3prix!H12,decompo4prix!H12,decompo5prix!H12,decompo6prix!H12,decompo7prix!H12,decompo8prix!H12,decompo9prix!H12,decompo10prix!H12)=decompo8prix!H12,decompo8prix!$A$7,IF(MIN(decompo1prix!H12,decompo2prix!H12,decompo3prix!H12,decompo4prix!H12,decompo5prix!H12,decompo6prix!H12,decompo7prix!H12,decompo8prix!H12,decompo9prix!H12,decompo10prix!H12)=decompo9prix!H12,decompo9prix!$A$7,decompo10prix!$A$7)))))))))) -> alex | Y12: =IF($T12="","",IF(MIN(decompo1prix!I12,decompo2prix!I12,decompo3prix!I12,decompo4prix!I12,decompo5prix!I12,decompo6prix!I12,decompo7prix!I12,decompo8prix!I12,decompo9prix!I12,decompo10prix!I12)=decompo1prix!I12,decompo1prix!$A$7,IF(MIN(decompo1prix!I12,decompo2prix!I12,decompo3prix!I12,decompo4prix!I12,decompo5prix!I12,decompo6prix!I12,decompo7prix!I12,decompo8prix!I12,decompo9prix!I12,decompo10prix!I12)=decompo2prix!I12,decompo2prix!$A$7,IF(MIN(decompo1prix!I12,decompo2prix!I12,decompo3prix!I12,decompo4prix!I12,decompo5prix!I12,decompo6prix!I12,decompo7prix!I12,decompo8prix!I12,decompo9prix!I12,decompo10prix!I12)=decompo3prix!I12,decompo3prix!$A$7,IF(MIN(decompo1prix!I12,decompo2prix!I12,decompo3prix!I12,decompo4prix!I12,decompo5prix!I12,decompo6prix!I12,decompo7prix!I12,decompo8prix!I12,decompo9prix!I12,decompo10prix!I12)=decompo4prix!I12,decompo4prix!$A$7,IF(MIN(decompo1prix!I12,decompo2prix!I12,decompo3prix!I12,decompo4prix!I12,decompo5prix!I12,decompo6prix!I12,decompo7prix!I12,decompo8prix!I12,decompo9prix!I12,decompo10prix!I12)=decompo5prix!I12,decompo5prix!$A$7,IF(MIN(decompo1prix!I12,decompo2prix!I12,decompo3prix!I12,decompo4prix!I12,decompo5prix!I12,decompo6prix!I12,decompo7prix!I12,decompo8prix!I12,decompo9prix!I12,decompo10prix!I12)=decompo6prix!I12,decompo6prix!$A$7,IF(MIN(decompo1prix!I12,decompo2prix!I12,decompo3prix!I12,decompo4prix!I12,decompo5prix!I12,decompo6prix!I12,decompo7prix!I12,decompo8prix!I12,decompo9prix!I12,decompo10prix!I12)=decompo7prix!I12,decompo7prix!$A$7,IF(MIN(decompo1prix!I12,decompo2prix!I12,decompo3prix!I12,decompo4prix!I12,decompo5prix!I12,decompo6prix!I12,decompo7prix!I12,decompo8prix!I12,decompo9prix!I12,decompo10prix!I12)=decompo8prix!I12,decompo8prix!$A$7,IF(MIN(decompo1prix!I12,decompo2prix!I12,decompo3prix!I12,decompo4prix!I12,decompo5prix!I12,decompo6prix!I12,decompo7prix!I12,decompo8prix!I12,decompo9prix!I12,decompo10prix!I12)=decompo9prix!I12,decompo9prix!$A$7,decompo10prix!$A$7)))))))))) -> thomas | Z12: =IF($T12="","",IF(MIN(decompo1prix!J12,decompo2prix!J12,decompo3prix!J12,decompo4prix!J12,decompo5prix!J12,decompo6prix!J12,decompo7prix!J12,decompo8prix!J12,decompo9prix!J12,decompo10prix!J12)=decompo1prix!J12,decompo1prix!$A$7,IF(MIN(decompo1prix!J12,decompo2prix!J12,decompo3prix!J12,decompo4prix!J12,decompo5prix!J12,decompo6prix!J12,decompo7prix!J12,decompo8prix!J12,decompo9prix!J12,decompo10prix!J12)=decompo2prix!J12,decompo2prix!$A$7,IF(MIN(decompo1prix!J12,decompo2prix!J12,decompo3prix!J12,decompo4prix!J12,decompo5prix!J12,decompo6prix!J12,decompo7prix!J12,decompo8prix!J12,decompo9prix!J12,decompo10prix!J12)=decompo3prix!J12,decompo3prix!$A$7,IF(MIN(decompo1prix!J12,decompo2prix!J12,decompo3prix!J12,decompo4prix!J12,decompo5prix!J12,decompo6prix!J12,decompo7prix!J12,decompo8prix!J12,decompo9prix!J12,decompo10prix!J12)=decompo4prix!J12,decompo4prix!$A$7,IF(MIN(decompo1prix!J12,decompo2prix!J12,decompo3prix!J12,decompo4prix!J12,decompo5prix!J12,decompo6prix!J12,decompo7prix!J12,decompo8prix!J12,decompo9prix!J12,decompo10prix!J12)=decompo5prix!J12,decompo5prix!$A$7,IF(MIN(decompo1prix!J12,decompo2prix!J12,decompo3prix!J12,decompo4prix!J12,decompo5prix!J12,decompo6prix!J12,decompo7prix!J12,decompo8prix!J12,decompo9prix!J12,decompo10prix!J12)=decompo6prix!J12,decompo6prix!$A$7,IF(MIN(decompo1prix!J12,decompo2prix!J12,decompo3prix!J12,decompo4prix!J12,decompo5prix!J12,decompo6prix!J12,decompo7prix!J12,decompo8prix!J12,decompo9prix!J12,decompo10prix!J12)=decompo7prix!J12,decompo7prix!$A$7,IF(MIN(decompo1prix!J12,decompo2prix!J12,decompo3prix!J12,decompo4prix!J12,decompo5prix!J12,decompo6prix!J12,decompo7prix!J12,decompo8prix!J12,decompo9prix!J12,decompo10prix!J12)=decompo8prix!J12,decompo8prix!$A$7,IF(MIN(decompo1prix!J12,decompo2prix!J12,decompo3prix!J12,decompo4prix!J12,decompo5prix!J12,decompo6prix!J12,decompo7prix!J12,decompo8prix!J12,decompo9prix!J12,decompo10prix!J12)=decompo9prix!J12,decompo9prix!$A$7,decompo10prix!$A$7)))))))))) -> thomas | AA12: =IF($T12="","",IF(MIN(decompo1prix!K12,decompo2prix!K12,decompo3prix!K12,decompo4prix!K12,decompo5prix!K12,decompo6prix!K12,decompo7prix!K12,decompo8prix!K12,decompo9prix!K12,decompo10prix!K12)=decompo1prix!K12,decompo1prix!$A$7,IF(MIN(decompo1prix!K12,decompo2prix!K12,decompo3prix!K12,decompo4prix!K12,decompo5prix!K12,decompo6prix!K12,decompo7prix!K12,decompo8prix!K12,decompo9prix!K12,decompo10prix!K12)=decompo2prix!K12,decompo2prix!$A$7,IF(MIN(decompo1prix!K12,decompo2prix!K12,decompo3prix!K12,decompo4prix!K12,decompo5prix!K12,decompo6prix!K12,decompo7prix!K12,decompo8prix!K12,decompo9prix!K12,decompo10prix!K12)=decompo3prix!K12,decompo3prix!$A$7,IF(MIN(decompo1prix!K12,decompo2prix!K12,decompo3prix!K12,decompo4prix!K12,decompo5prix!K12,decompo6prix!K12,decompo7prix!K12,decompo8prix!K12,decompo9prix!K12,decompo10prix!K12)=decompo4prix!K12,decompo4prix!$A$7,IF(MIN(decompo1prix!K12,decompo2prix!K12,decompo3prix!K12,decompo4prix!K12,decompo5prix!K12,decompo6prix!K12,decompo7prix!K12,decompo8prix!K12,decompo9prix!K12,decompo10prix!K12)=decompo5prix!K12,decompo5prix!$A$7,IF(MIN(decompo1prix!K12,decompo2prix!K12,decompo3prix!K12,decompo4prix!K12,decompo5prix!K12,decompo6prix!K12,decompo7prix!K12,decompo8prix!K12,decompo9prix!K12,decompo10prix!K12)=decompo6prix!K12,decompo6prix!$A$7,IF(MIN(decompo1prix!K12,decompo2prix!K12,decompo3prix!K12,decompo4prix!K12,decompo5prix!K12,decompo6prix!K12,decompo7prix!K12,decompo8prix!K12,decompo9prix!K12,decompo10prix!K12)=decompo7prix!K12,decompo7prix!$A$7,IF(MIN(decompo1prix!K12,decompo2prix!K12,decompo3prix!K12,decompo4prix!K12,decompo5prix!K12,decompo6prix!K12,decompo7prix!K12,decompo8prix!K12,decompo9prix!K12,decompo10prix!K12)=decompo8prix!K12,decompo8prix!$A$7,IF(MIN(decompo1prix!K12,decompo2prix!K12,decompo3prix!K12,decompo4prix!K12,decompo5prix!K12,decompo6prix!K12,decompo7prix!K12,decompo8prix!K12,decompo9prix!K12,decompo10prix!K12)=decompo9prix!K12,decompo9prix!$A$7,decompo10prix!$A$7)))))))))) -> alex | AB12: =IF($T12="","",IF(MIN(decompo1prix!L12,decompo2prix!L12,decompo3prix!L12,decompo4prix!L12,decompo5prix!L12,decompo6prix!L12,decompo7prix!L12,decompo8prix!L12,decompo9prix!L12,decompo10prix!L12)=decompo1prix!L12,decompo1prix!$A$7,IF(MIN(decompo1prix!L12,decompo2prix!L12,decompo3prix!L12,decompo4prix!L12,decompo5prix!L12,decompo6prix!L12,decompo7prix!L12,decompo8prix!L12,decompo9prix!L12,decompo10prix!L12)=decompo2prix!L12,decompo2prix!$A$7,IF(MIN(decompo1prix!L12,decompo2prix!L12,decompo3prix!L12,decompo4prix!L12,decompo5prix!L12,decompo6prix!L12,decompo7prix!L12,decompo8prix!L12,decompo9prix!L12,decompo10prix!L12)=decompo3prix!L12,decompo3prix!$A$7,IF(MIN(decompo1prix!L12,decompo2prix!L12,decompo3prix!L12,decompo4prix!L12,decompo5prix!L12,decompo6prix!L12,decompo7prix!L12,decompo8prix!L12,decompo9prix!L12,decompo10prix!L12)=decompo4prix!L12,decompo4prix!$A$7,IF(MIN(decompo1prix!L12,decompo2prix!L12,decompo3prix!L12,decompo4prix!L12,decompo5prix!L12,decompo6prix!L12,decompo7prix!L12,decompo8prix!L12,decompo9prix!L12,decompo10prix!L12)=decompo5prix!L12,decompo5prix!$A$7,IF(MIN(decompo1prix!L12,decompo2prix!L12,decompo3prix!L12,decompo4prix!L12,decompo5prix!L12,decompo6prix!L12,decompo7prix!L12,decompo8prix!L12,decompo9prix!L12,decompo10prix!L12)=decompo6prix!L12,decompo6prix!$A$7,IF(MIN(decompo1prix!L12,decompo2prix!L12,decompo3prix!L12,decompo4prix!L12,decompo5prix!L12,decompo6prix!L12,decompo7prix!L12,decompo8prix!L12,decompo9prix!L12,decompo10prix!L12)=decompo7prix!L12,decompo7prix!$A$7,IF(MIN(decompo1prix!L12,decompo2prix!L12,decompo3prix!L12,decompo4prix!L12,decompo5prix!L12,decompo6prix!L12,decompo7prix!L12,decompo8prix!L12,decompo9prix!L12,decompo10prix!L12)=decompo8prix!L12,decompo8prix!$A$7,IF(MIN(decompo1prix!L12,decompo2prix!L12,decompo3prix!L12,decompo4prix!L12,decompo5prix!L12,decompo6prix!L12,decompo7prix!L12,decompo8prix!L12,decompo9prix!L12,decompo10prix!L12)=decompo9prix!L12,decompo9prix!$A$7,decompo10prix!$A$7)))))))))) -> ludo | AC12: =IF($T12="","",IF(MIN(decompo1prix!M12,decompo2prix!M12,decompo3prix!M12,decompo4prix!M12,decompo5prix!M12,decompo6prix!M12,decompo7prix!M12,decompo8prix!M12,decompo9prix!M12,decompo10prix!M12)=decompo1prix!M12,decompo1prix!$A$7,IF(MIN(decompo1prix!M12,decompo2prix!M12,decompo3prix!M12,decompo4prix!M12,decompo5prix!M12,decompo6prix!M12,decompo7prix!M12,decompo8prix!M12,decompo9prix!M12,decompo10prix!M12)=decompo2prix!M12,decompo2prix!$A$7,IF(MIN(decompo1prix!M12,decompo2prix!M12,decompo3prix!M12,decompo4prix!M12,decompo5prix!M12,decompo6prix!M12,decompo7prix!M12,decompo8prix!M12,decompo9prix!M12,decompo10prix!M12)=decompo3prix!M12,decompo3prix!$A$7,IF(MIN(decompo1prix!M12,decompo2prix!M12,decompo3prix!M12,decompo4prix!M12,decompo5prix!M12,decompo6prix!M12,decompo7prix!M12,decompo8prix!M12,decompo9prix!M12,decompo10prix!M12)=decompo4prix!M12,decompo4prix!$A$7,IF(MIN(decompo1prix!M12,decompo2prix!M12,decompo3prix!M12,decompo4prix!M12,decompo5prix!M12,decompo6prix!M12,decompo7prix!M12,decompo8prix!M12,decompo9prix!M12,decompo10prix!M12)=decompo5prix!M12,decompo5prix!$A$7,IF(MIN(decompo1prix!M12,decompo2prix!M12,decompo3prix!M12,decompo4prix!M12,decompo5prix!M12,decompo6prix!M12,decompo7prix!M12,decompo8prix!M12,decompo9prix!M12,decompo10prix!M12)=decompo6prix!M12,decompo6prix!$A$7,IF(MIN(decompo1prix!M12,decompo2prix!M12,decompo3prix!M12,decompo4prix!M12,decompo5prix!M12,decompo6prix!M12,decompo7prix!M12,decompo8prix!M12,decompo9prix!M12,decompo10prix!M12)=decompo7prix!M12,decompo7prix!$A$7,IF(MIN(decompo1prix!M12,decompo2prix!M12,decompo3prix!M12,decompo4prix!M12,decompo5prix!M12,decompo6prix!M12,decompo7prix!M12,decompo8prix!M12,decompo9prix!M12,decompo10prix!M12)=decompo8prix!M12,decompo8prix!$A$7,IF(MIN(decompo1prix!M12,decompo2prix!M12,decompo3prix!M12,decompo4prix!M12,decompo5prix!M12,decompo6prix!M12,decompo7prix!M12,decompo8prix!M12,decompo9prix!M12,decompo10prix!M12)=decompo9prix!M12,decompo9prix!$A$7,decompo10prix!$A$7)))))))))) -> thomas | AF12: ludo | AG12: =SUM(decompo4prix!F10:F210)*AG8 -> 0 | AH12: =SUM(decompo4prix!G10:G210)*AH8 -> 0 | AI12: =SUM(decompo4prix!H10:H210)*AI8 -> 0 | AJ12: =SUM(decompo4prix!I10:I210)*AJ8 -> 0 | AK12: =SUM(decompo4prix!J10:J210)*AK8 -> 0 | AL12: =SUM(decompo4prix!K10:K210)*AL8 -> 0 | AM12: =SUM(decompo4prix!L10:L210)*AM8 -> 26544.8 | AN12: =SUM(decompo4prix!M10:M210)*AN8 -> 63473 | AQ12: ludo | AX12: 663.62 | AY12: 634.73
A13: VIS 4 | B13: IN4 | C13: =MIN(decompo1prix!F13,decompo2prix!F13,decompo3prix!F13,decompo4prix!F13,decompo5prix!F13,decompo6prix!F13,decompo7prix!F13,decompo8prix!F13,decompo9prix!F13,decompo10prix!F13) -> 42.07 | D13: =MIN(decompo1prix!G13,decompo2prix!G13,decompo3prix!G13,decompo4prix!G13,decompo5prix!G13,decompo6prix!G13,decompo7prix!G13,decompo8prix!G13,decompo9prix!G13,decompo10prix!G13) -> 42.07 | E13: =MIN(decompo1prix!H13,decompo2prix!H13,decompo3prix!H13,decompo4prix!H13,decompo5prix!H13,decompo6prix!H13,decompo7prix!H13,decompo8prix!H13,decompo9prix!H13,decompo10prix!H13) -> 35.25 | F13: =MIN(decompo1prix!I13,decompo2prix!I13,decompo3prix!I13,decompo4prix!I13,decompo5prix!I13,decompo6prix!I13,decompo7prix!I13,decompo8prix!I13,decompo9prix!I13,decompo10prix!I13) -> 30.9 | G13: =MIN(decompo1prix!J13,decompo2prix!J13,decompo3prix!J13,decompo4prix!J13,decompo5prix!J13,decompo6prix!J13,decompo7prix!J13,decompo8prix!J13,decompo9prix!J13,decompo10prix!J13) -> 27.8 | H13: =MIN(decompo1prix!K13,decompo2prix!K13,decompo3prix!K13,decompo4prix!K13,decompo5prix!K13,decompo6prix!K13,decompo7prix!K13,decompo8prix!K13,decompo9prix!K13,decompo10prix!K13) -> 25.8 | I13: =MIN(decompo1prix!L13,decompo2prix!L13,decompo3prix!L13,decompo4prix!L13,decompo5prix!L13,decompo6prix!L13,decompo7prix!L13,decompo8prix!L13,decompo9prix!L13,decompo10prix!L13) -> 24.3 | J13: =MIN(decompo1prix!M13,decompo2prix!M13,decompo3prix!M13,decompo4prix!M13,decompo5prix!M13,decompo6prix!M13,decompo7prix!M13,decompo8prix!M13,decompo9prix!M13,decompo10prix!M13) -> 22.2 | T13: VIS 4 | U13: in4 | V13: =IF($T13="","",IF(MIN(decompo1prix!F13,decompo2prix!F13,decompo3prix!F13,decompo4prix!F13,decompo5prix!F13,decompo6prix!F13,decompo7prix!F13,decompo8prix!F13,decompo9prix!F13,decompo10prix!F13)=decompo1prix!F13,decompo1prix!$A$7,IF(MIN(decompo1prix!F13,decompo2prix!F13,decompo3prix!F13,decompo4prix!F13,decompo5prix!F13,decompo6prix!F13,decompo7prix!F13,decompo8prix!F13,decompo9prix!F13,decompo10prix!F13)=decompo2prix!F13,decompo2prix!$A$7,IF(MIN(decompo1prix!F13,decompo2prix!F13,decompo3prix!F13,decompo4prix!F13,decompo5prix!F13,decompo6prix!F13,decompo7prix!F13,decompo8prix!F13,decompo9prix!F13,decompo10prix!F13)=decompo3prix!F13,decompo3prix!$A$7,IF(MIN(decompo1prix!F13,decompo2prix!F13,decompo3prix!F13,decompo4prix!F13,decompo5prix!F13,decompo6prix!F13,decompo7prix!F13,decompo8prix!F13,decompo9prix!F13,decompo10prix!F13)=decompo4prix!F13,decompo4prix!$A$7,IF(MIN(decompo1prix!F13,decompo2prix!F13,decompo3prix!F13,decompo4prix!F13,decompo5prix!F13,decompo6prix!F13,decompo7prix!F13,decompo8prix!F13,decompo9prix!F13,decompo10prix!F13)=decompo5prix!F13,decompo5prix!$A$7,IF(MIN(decompo1prix!F13,decompo2prix!F13,decompo3prix!F13,decompo4prix!F13,decompo5prix!F13,decompo6prix!F13,decompo7prix!F13,decompo8prix!F13,decompo9prix!F13,decompo10prix!F13)=decompo6prix!F13,decompo6prix!$A$7,IF(MIN(decompo1prix!F13,decompo2prix!F13,decompo3prix!F13,decompo4prix!F13,decompo5prix!F13,decompo6prix!F13,decompo7prix!F13,decompo8prix!F13,decompo9prix!F13,decompo10prix!F13)=decompo7prix!F13,decompo7prix!$A$7,IF(MIN(decompo1prix!F13,decompo2prix!F13,decompo3prix!F13,decompo4prix!F13,decompo5prix!F13,decompo6prix!F13,decompo7prix!F13,decompo8prix!F13,decompo9prix!F13,decompo10prix!F13)=decompo8prix!F13,decompo8prix!$A$7,IF(MIN(decompo1prix!F13,decompo2prix!F13,decompo3prix!F13,decompo4prix!F13,decompo5prix!F13,decompo6prix!F13,decompo7prix!F13,decompo8prix!F13,decompo9prix!F13,decompo10prix!F13)=decompo9prix!F13,decompo9prix!$A$7,decompo10prix!$A$7)))))))))) -> justine | W13: =IF($T13="","",IF(MIN(decompo1prix!G13,decompo2prix!G13,decompo3prix!G13,decompo4prix!G13,decompo5prix!G13,decompo6prix!G13,decompo7prix!G13,decompo8prix!G13,decompo9prix!G13,decompo10prix!G13)=decompo1prix!G13,decompo1prix!$A$7,IF(MIN(decompo1prix!G13,decompo2prix!G13,decompo3prix!G13,decompo4prix!G13,decompo5prix!G13,decompo6prix!G13,decompo7prix!G13,decompo8prix!G13,decompo9prix!G13,decompo10prix!G13)=decompo2prix!G13,decompo2prix!$A$7,IF(MIN(decompo1prix!G13,decompo2prix!G13,decompo3prix!G13,decompo4prix!G13,decompo5prix!G13,decompo6prix!G13,decompo7prix!G13,decompo8prix!G13,decompo9prix!G13,decompo10prix!G13)=decompo3prix!G13,decompo3prix!$A$7,IF(MIN(decompo1prix!G13,decompo2prix!G13,decompo3prix!G13,decompo4prix!G13,decompo5prix!G13,decompo6prix!G13,decompo7prix!G13,decompo8prix!G13,decompo9prix!G13,decompo10prix!G13)=decompo4prix!G13,decompo4prix!$A$7,IF(MIN(decompo1prix!G13,decompo2prix!G13,decompo3prix!G13,decompo4prix!G13,decompo5prix!G13,decompo6prix!G13,decompo7prix!G13,decompo8prix!G13,decompo9prix!G13,decompo10prix!G13)=decompo5prix!G13,decompo5prix!$A$7,IF(MIN(decompo1prix!G13,decompo2prix!G13,decompo3prix!G13,decompo4prix!G13,decompo5prix!G13,decompo6prix!G13,decompo7prix!G13,decompo8prix!G13,decompo9prix!G13,decompo10prix!G13)=decompo6prix!G13,decompo6prix!$A$7,IF(MIN(decompo1prix!G13,decompo2prix!G13,decompo3prix!G13,decompo4prix!G13,decompo5prix!G13,decompo6prix!G13,decompo7prix!G13,decompo8prix!G13,decompo9prix!G13,decompo10prix!G13)=decompo7prix!G13,decompo7prix!$A$7,IF(MIN(decompo1prix!G13,decompo2prix!G13,decompo3prix!G13,decompo4prix!G13,decompo5prix!G13,decompo6prix!G13,decompo7prix!G13,decompo8prix!G13,decompo9prix!G13,decompo10prix!G13)=decompo8prix!G13,decompo8prix!$A$7,IF(MIN(decompo1prix!G13,decompo2prix!G13,decompo3prix!G13,decompo4prix!G13,decompo5prix!G13,decompo6prix!G13,decompo7prix!G13,decompo8prix!G13,decompo9prix!G13,decompo10prix!G13)=decompo9prix!G13,decompo9prix!$A$7,decompo10prix!$A$7)))))))))) -> justine | X13: =IF($T13="","",IF(MIN(decompo1prix!H13,decompo2prix!H13,decompo3prix!H13,decompo4prix!H13,decompo5prix!H13,decompo6prix!H13,decompo7prix!H13,decompo8prix!H13,decompo9prix!H13,decompo10prix!H13)=decompo1prix!H13,decompo1prix!$A$7,IF(MIN(decompo1prix!H13,decompo2prix!H13,decompo3prix!H13,decompo4prix!H13,decompo5prix!H13,decompo6prix!H13,decompo7prix!H13,decompo8prix!H13,decompo9prix!H13,decompo10prix!H13)=decompo2prix!H13,decompo2prix!$A$7,IF(MIN(decompo1prix!H13,decompo2prix!H13,decompo3prix!H13,decompo4prix!H13,decompo5prix!H13,decompo6prix!H13,decompo7prix!H13,decompo8prix!H13,decompo9prix!H13,decompo10prix!H13)=decompo3prix!H13,decompo3prix!$A$7,IF(MIN(decompo1prix!H13,decompo2prix!H13,decompo3prix!H13,decompo4prix!H13,decompo5prix!H13,decompo6prix!H13,decompo7prix!H13,decompo8prix!H13,decompo9prix!H13,decompo10prix!H13)=decompo4prix!H13,decompo4prix!$A$7,IF(MIN(decompo1prix!H13,decompo2prix!H13,decompo3prix!H13,decompo4prix!H13,decompo5prix!H13,decompo6prix!H13,decompo7prix!H13,decompo8prix!H13,decompo9prix!H13,decompo10prix!H13)=decompo5prix!H13,decompo5prix!$A$7,IF(MIN(decompo1prix!H13,decompo2prix!H13,decompo3prix!H13,decompo4prix!H13,decompo5prix!H13,decompo6prix!H13,decompo7prix!H13,decompo8prix!H13,decompo9prix!H13,decompo10prix!H13)=decompo6prix!H13,decompo6prix!$A$7,IF(MIN(decompo1prix!H13,decompo2prix!H13,decompo3prix!H13,decompo4prix!H13,decompo5prix!H13,decompo6prix!H13,decompo7prix!H13,decompo8prix!H13,decompo9prix!H13,decompo10prix!H13)=decompo7prix!H13,decompo7prix!$A$7,IF(MIN(decompo1prix!H13,decompo2prix!H13,decompo3prix!H13,decompo4prix!H13,decompo5prix!H13,decompo6prix!H13,decompo7prix!H13,decompo8prix!H13,decompo9prix!H13,decompo10prix!H13)=decompo8prix!H13,decompo8prix!$A$7,IF(MIN(decompo1prix!H13,decompo2prix!H13,decompo3prix!H13,decompo4prix!H13,decompo5prix!H13,decompo6prix!H13,decompo7prix!H13,decompo8prix!H13,decompo9prix!H13,decompo10prix!H13)=decompo9prix!H13,decompo9prix!$A$7,decompo10prix!$A$7)))))))))) -> justine | Y13: =IF($T13="","",IF(MIN(decompo1prix!I13,decompo2prix!I13,decompo3prix!I13,decompo4prix!I13,decompo5prix!I13,decompo6prix!I13,decompo7prix!I13,decompo8prix!I13,decompo9prix!I13,decompo10prix!I13)=decompo1prix!I13,decompo1prix!$A$7,IF(MIN(decompo1prix!I13,decompo2prix!I13,decompo3prix!I13,decompo4prix!I13,decompo5prix!I13,decompo6prix!I13,decompo7prix!I13,decompo8prix!I13,decompo9prix!I13,decompo10prix!I13)=decompo2prix!I13,decompo2prix!$A$7,IF(MIN(decompo1prix!I13,decompo2prix!I13,decompo3prix!I13,decompo4prix!I13,decompo5prix!I13,decompo6prix!I13,decompo7prix!I13,decompo8prix!I13,decompo9prix!I13,decompo10prix!I13)=decompo3prix!I13,decompo3prix!$A$7,IF(MIN(decompo1prix!I13,decompo2prix!I13,decompo3prix!I13,decompo4prix!I13,decompo5prix!I13,decompo6prix!I13,decompo7prix!I13,decompo8prix!I13,decompo9prix!I13,decompo10prix!I13)=decompo4prix!I13,decompo4prix!$A$7,IF(MIN(decompo1prix!I13,decompo2prix!I13,decompo3prix!I13,decompo4prix!I13,decompo5prix!I13,decompo6prix!I13,decompo7prix!I13,decompo8prix!I13,decompo9prix!I13,decompo10prix!I13)=decompo5prix!I13,decompo5prix!$A$7,IF(MIN(decompo1prix!I13,decompo2prix!I13,decompo3prix!I13,decompo4prix!I13,decompo5prix!I13,decompo6prix!I13,decompo7prix!I13,decompo8prix!I13,decompo9prix!I13,decompo10prix!I13)=decompo6prix!I13,decompo6prix!$A$7,IF(MIN(decompo1prix!I13,decompo2prix!I13,decompo3prix!I13,decompo4prix!I13,decompo5prix!I13,decompo6prix!I13,decompo7prix!I13,decompo8prix!I13,decompo9prix!I13,decompo10prix!I13)=decompo7prix!I13,decompo7prix!$A$7,IF(MIN(decompo1prix!I13,decompo2prix!I13,decompo3prix!I13,decompo4prix!I13,decompo5prix!I13,decompo6prix!I13,decompo7prix!I13,decompo8prix!I13,decompo9prix!I13,decompo10prix!I13)=decompo8prix!I13,decompo8prix!$A$7,IF(MIN(decompo1prix!I13,decompo2prix!I13,decompo3prix!I13,decompo4prix!I13,decompo5prix!I13,decompo6prix!I13,decompo7prix!I13,decompo8prix!I13,decompo9prix!I13,decompo10prix!I13)=decompo9prix!I13,decompo9prix!$A$7,decompo10prix!$A$7)))))))))) -> romain | Z13: =IF($T13="","",IF(MIN(decompo1prix!J13,decompo2prix!J13,decompo3prix!J13,decompo4prix!J13,decompo5prix!J13,decompo6prix!J13,decompo7prix!J13,decompo8prix!J13,decompo9prix!J13,decompo10prix!J13)=decompo1prix!J13,decompo1prix!$A$7,IF(MIN(decompo1prix!J13,decompo2prix!J13,decompo3prix!J13,decompo4prix!J13,decompo5prix!J13,decompo6prix!J13,decompo7prix!J13,decompo8prix!J13,decompo9prix!J13,decompo10prix!J13)=decompo2prix!J13,decompo2prix!$A$7,IF(MIN(decompo1prix!J13,decompo2prix!J13,decompo3prix!J13,decompo4prix!J13,decompo5prix!J13,decompo6prix!J13,decompo7prix!J13,decompo8prix!J13,decompo9prix!J13,decompo10prix!J13)=decompo3prix!J13,decompo3prix!$A$7,IF(MIN(decompo1prix!J13,decompo2prix!J13,decompo3prix!J13,decompo4prix!J13,decompo5prix!J13,decompo6prix!J13,decompo7prix!J13,decompo8prix!J13,decompo9prix!J13,decompo10prix!J13)=decompo4prix!J13,decompo4prix!$A$7,IF(MIN(decompo1prix!J13,decompo2prix!J13,decompo3prix!J13,decompo4prix!J13,decompo5prix!J13,decompo6prix!J13,decompo7prix!J13,decompo8prix!J13,decompo9prix!J13,decompo10prix!J13)=decompo5prix!J13,decompo5prix!$A$7,IF(MIN(decompo1prix!J13,decompo2prix!J13,decompo3prix!J13,decompo4prix!J13,decompo5prix!J13,decompo6prix!J13,decompo7prix!J13,decompo8prix!J13,decompo9prix!J13,decompo10prix!J13)=decompo6prix!J13,decompo6prix!$A$7,IF(MIN(decompo1prix!J13,decompo2prix!J13,decompo3prix!J13,decompo4prix!J13,decompo5prix!J13,decompo6prix!J13,decompo7prix!J13,decompo8prix!J13,decompo9prix!J13,decompo10prix!J13)=decompo7prix!J13,decompo7prix!$A$7,IF(MIN(decompo1prix!J13,decompo2prix!J13,decompo3prix!J13,decompo4prix!J13,decompo5prix!J13,decompo6prix!J13,decompo7prix!J13,decompo8prix!J13,decompo9prix!J13,decompo10prix!J13)=decompo8prix!J13,decompo8prix!$A$7,IF(MIN(decompo1prix!J13,decompo2prix!J13,decompo3prix!J13,decompo4prix!J13,decompo5prix!J13,decompo6prix!J13,decompo7prix!J13,decompo8prix!J13,decompo9prix!J13,decompo10prix!J13)=decompo9prix!J13,decompo9prix!$A$7,decompo10prix!$A$7)))))))))) -> romain | AA13: =IF($T13="","",IF(MIN(decompo1prix!K13,decompo2prix!K13,decompo3prix!K13,decompo4prix!K13,decompo5prix!K13,decompo6prix!K13,decompo7prix!K13,decompo8prix!K13,decompo9prix!K13,decompo10prix!K13)=decompo1prix!K13,decompo1prix!$A$7,IF(MIN(decompo1prix!K13,decompo2prix!K13,decompo3prix!K13,decompo4prix!K13,decompo5prix!K13,decompo6prix!K13,decompo7prix!K13,decompo8prix!K13,decompo9prix!K13,decompo10prix!K13)=decompo2prix!K13,decompo2prix!$A$7,IF(MIN(decompo1prix!K13,decompo2prix!K13,decompo3prix!K13,decompo4prix!K13,decompo5prix!K13,decompo6prix!K13,decompo7prix!K13,decompo8prix!K13,decompo9prix!K13,decompo10prix!K13)=decompo3prix!K13,decompo3prix!$A$7,IF(MIN(decompo1prix!K13,decompo2prix!K13,decompo3prix!K13,decompo4prix!K13,decompo5prix!K13,decompo6prix!K13,decompo7prix!K13,decompo8prix!K13,decompo9prix!K13,decompo10prix!K13)=decompo4prix!K13,decompo4prix!$A$7,IF(MIN(decompo1prix!K13,decompo2prix!K13,decompo3prix!K13,decompo4prix!K13,decompo5prix!K13,decompo6prix!K13,decompo7prix!K13,decompo8prix!K13,decompo9prix!K13,decompo10prix!K13)=decompo5prix!K13,decompo5prix!$A$7,IF(MIN(decompo1prix!K13,decompo2prix!K13,decompo3prix!K13,decompo4prix!K13,decompo5prix!K13,decompo6prix!K13,decompo7prix!K13,decompo8prix!K13,decompo9prix!K13,decompo10prix!K13)=decompo6prix!K13,decompo6prix!$A$7,IF(MIN(decompo1prix!K13,decompo2prix!K13,decompo3prix!K13,decompo4prix!K13,decompo5prix!K13,decompo6prix!K13,decompo7prix!K13,decompo8prix!K13,decompo9prix!K13,decompo10prix!K13)=decompo7prix!K13,decompo7prix!$A$7,IF(MIN(decompo1prix!K13,decompo2prix!K13,decompo3prix!K13,decompo4prix!K13,decompo5prix!K13,decompo6prix!K13,decompo7prix!K13,decompo8prix!K13,decompo9prix!K13,decompo10prix!K13)=decompo8prix!K13,decompo8prix!$A$7,IF(MIN(decompo1prix!K13,decompo2prix!K13,decompo3prix!K13,decompo4prix!K13,decompo5prix!K13,decompo6prix!K13,decompo7prix!K13,decompo8prix!K13,decompo9prix!K13,decompo10prix!K13)=decompo9prix!K13,decompo9prix!$A$7,decompo10prix!$A$7)))))))))) -> romain | AB13: =IF($T13="","",IF(MIN(decompo1prix!L13,decompo2prix!L13,decompo3prix!L13,decompo4prix!L13,decompo5prix!L13,decompo6prix!L13,decompo7prix!L13,decompo8prix!L13,decompo9prix!L13,decompo10prix!L13)=decompo1prix!L13,decompo1prix!$A$7,IF(MIN(decompo1prix!L13,decompo2prix!L13,decompo3prix!L13,decompo4prix!L13,decompo5prix!L13,decompo6prix!L13,decompo7prix!L13,decompo8prix!L13,decompo9prix!L13,decompo10prix!L13)=decompo2prix!L13,decompo2prix!$A$7,IF(MIN(decompo1prix!L13,decompo2prix!L13,decompo3prix!L13,decompo4prix!L13,decompo5prix!L13,decompo6prix!L13,decompo7prix!L13,decompo8prix!L13,decompo9prix!L13,decompo10prix!L13)=decompo3prix!L13,decompo3prix!$A$7,IF(MIN(decompo1prix!L13,decompo2prix!L13,decompo3prix!L13,decompo4prix!L13,decompo5prix!L13,decompo6prix!L13,decompo7prix!L13,decompo8prix!L13,decompo9prix!L13,decompo10prix!L13)=decompo4prix!L13,decompo4prix!$A$7,IF(MIN(decompo1prix!L13,decompo2prix!L13,decompo3prix!L13,decompo4prix!L13,decompo5prix!L13,decompo6prix!L13,decompo7prix!L13,decompo8prix!L13,decompo9prix!L13,decompo10prix!L13)=decompo5prix!L13,decompo5prix!$A$7,IF(MIN(decompo1prix!L13,decompo2prix!L13,decompo3prix!L13,decompo4prix!L13,decompo5prix!L13,decompo6prix!L13,decompo7prix!L13,decompo8prix!L13,decompo9prix!L13,decompo10prix!L13)=decompo6prix!L13,decompo6prix!$A$7,IF(MIN(decompo1prix!L13,decompo2prix!L13,decompo3prix!L13,decompo4prix!L13,decompo5prix!L13,decompo6prix!L13,decompo7prix!L13,decompo8prix!L13,decompo9prix!L13,decompo10prix!L13)=decompo7prix!L13,decompo7prix!$A$7,IF(MIN(decompo1prix!L13,decompo2prix!L13,decompo3prix!L13,decompo4prix!L13,decompo5prix!L13,decompo6prix!L13,decompo7prix!L13,decompo8prix!L13,decompo9prix!L13,decompo10prix!L13)=decompo8prix!L13,decompo8prix!$A$7,IF(MIN(decompo1prix!L13,decompo2prix!L13,decompo3prix!L13,decompo4prix!L13,decompo5prix!L13,decompo6prix!L13,decompo7prix!L13,decompo8prix!L13,decompo9prix!L13,decompo10prix!L13)=decompo9prix!L13,decompo9prix!$A$7,decompo10prix!$A$7)))))))))) -> romain | AC13: =IF($T13="","",IF(MIN(decompo1prix!M13,decompo2prix!M13,decompo3prix!M13,decompo4prix!M13,decompo5prix!M13,decompo6prix!M13,decompo7prix!M13,decompo8prix!M13,decompo9prix!M13,decompo10prix!M13)=decompo1prix!M13,decompo1prix!$A$7,IF(MIN(decompo1prix!M13,decompo2prix!M13,decompo3prix!M13,decompo4prix!M13,decompo5prix!M13,decompo6prix!M13,decompo7prix!M13,decompo8prix!M13,decompo9prix!M13,decompo10prix!M13)=decompo2prix!M13,decompo2prix!$A$7,IF(MIN(decompo1prix!M13,decompo2prix!M13,decompo3prix!M13,decompo4prix!M13,decompo5prix!M13,decompo6prix!M13,decompo7prix!M13,decompo8prix!M13,decompo9prix!M13,decompo10prix!M13)=decompo3prix!M13,decompo3prix!$A$7,IF(MIN(decompo1prix!M13,decompo2prix!M13,decompo3prix!M13,decompo4prix!M13,decompo5prix!M13,decompo6prix!M13,decompo7prix!M13,decompo8prix!M13,decompo9prix!M13,decompo10prix!M13)=decompo4prix!M13,decompo4prix!$A$7,IF(MIN(decompo1prix!M13,decompo2prix!M13,decompo3prix!M13,decompo4prix!M13,decompo5prix!M13,decompo6prix!M13,decompo7prix!M13,decompo8prix!M13,decompo9prix!M13,decompo10prix!M13)=decompo5prix!M13,decompo5prix!$A$7,IF(MIN(decompo1prix!M13,decompo2prix!M13,decompo3prix!M13,decompo4prix!M13,decompo5prix!M13,decompo6prix!M13,decompo7prix!M13,decompo8prix!M13,decompo9prix!M13,decompo10prix!M13)=decompo6prix!M13,decompo6prix!$A$7,IF(MIN(decompo1prix!M13,decompo2prix!M13,decompo3prix!M13,decompo4prix!M13,decompo5prix!M13,decompo6prix!M13,decompo7prix!M13,decompo8prix!M13,decompo9prix!M13,decompo10prix!M13)=decompo7prix!M13,decompo7prix!$A$7,IF(MIN(decompo1prix!M13,decompo2prix!M13,decompo3prix!M13,decompo4prix!M13,decompo5prix!M13,decompo6prix!M13,decompo7prix!M13,decompo8prix!M13,decompo9prix!M13,decompo10prix!M13)=decompo8prix!M13,decompo8prix!$A$7,IF(MIN(decompo1prix!M13,decompo2prix!M13,decompo3prix!M13,decompo4prix!M13,decompo5prix!M13,decompo6prix!M13,decompo7prix!M13,decompo8prix!M13,decompo9prix!M13,decompo10prix!M13)=decompo9prix!M13,decompo9prix!$A$7,decompo10prix!$A$7)))))))))) -> romain | AF13: justine | AG13: =SUM(decompo5prix!F10:F210)*AG8 -> 1453.84 | AH13: =SUM(decompo5prix!G10:G210)*AH8 -> 2907.68 | AI13: =SUM(decompo5prix!H10:H210)*AI8 -> 4876.8 | AJ13: =SUM(decompo5prix!I10:I210)*AJ8 -> 8637.92 | AK13: =SUM(decompo5prix!J10:J210)*AK8 -> 12956.88 | AL13: =SUM(decompo5prix!K10:K210)*AL8 -> 16426.24 | AM13: =SUM(decompo5prix!L10:L210)*AM8 -> 20532.8 | AN13: =SUM(decompo5prix!M10:M210)*AN8 -> 47297 | AQ13: justine | AR13: 726.92 | AS13: 726.92 | AT13: 609.6 | AU13: 539.87 | AV13: 539.87 | AW13: 513.32 | AX13: 513.32 | AY13: 472.97
A14: VIS 5 | B14: IN5 | C14: =MIN(decompo1prix!F14,decompo2prix!F14,decompo3prix!F14,decompo4prix!F14,decompo5prix!F14,decompo6prix!F14,decompo7prix!F14,decompo8prix!F14,decompo9prix!F14,decompo10prix!F14) -> 52.6 | D14: =MIN(decompo1prix!G14,decompo2prix!G14,decompo3prix!G14,decompo4prix!G14,decompo5prix!G14,decompo6prix!G14,decompo7prix!G14,decompo8prix!G14,decompo9prix!G14,decompo10prix!G14) -> 43.9 | E14: =MIN(decompo1prix!H14,decompo2prix!H14,decompo3prix!H14,decompo4prix!H14,decompo5prix!H14,decompo6prix!H14,decompo7prix!H14,decompo8prix!H14,decompo9prix!H14,decompo10prix!H14) -> 36.7 | F14: =MIN(decompo1prix!I14,decompo2prix!I14,decompo3prix!I14,decompo4prix!I14,decompo5prix!I14,decompo6prix!I14,decompo7prix!I14,decompo8prix!I14,decompo9prix!I14,decompo10prix!I14) -> 30.9 | G14: =MIN(decompo1prix!J14,decompo2prix!J14,decompo3prix!J14,decompo4prix!J14,decompo5prix!J14,decompo6prix!J14,decompo7prix!J14,decompo8prix!J14,decompo9prix!J14,decompo10prix!J14) -> 27.4 | H14: =MIN(decompo1prix!K14,decompo2prix!K14,decompo3prix!K14,decompo4prix!K14,decompo5prix!K14,decompo6prix!K14,decompo7prix!K14,decompo8prix!K14,decompo9prix!K14,decompo10prix!K14) -> 25.3 | I14: =MIN(decompo1prix!L14,decompo2prix!L14,decompo3prix!L14,decompo4prix!L14,decompo5prix!L14,decompo6prix!L14,decompo7prix!L14,decompo8prix!L14,decompo9prix!L14,decompo10prix!L14) -> 23.9 | J14: =MIN(decompo1prix!M14,decompo2prix!M14,decompo3prix!M14,decompo4prix!M14,decompo5prix!M14,decompo6prix!M14,decompo7prix!M14,decompo8prix!M14,decompo9prix!M14,decompo10prix!M14) -> 21.9 | T14: VIS 5 | U14: in5 | V14: =IF($T14="","",IF(MIN(decompo1prix!F14,decompo2prix!F14,decompo3prix!F14,decompo4prix!F14,decompo5prix!F14,decompo6prix!F14,decompo7prix!F14,decompo8prix!F14,decompo9prix!F14,decompo10prix!F14)=decompo1prix!F14,decompo1prix!$A$7,IF(MIN(decompo1prix!F14,decompo2prix!F14,decompo3prix!F14,decompo4prix!F14,decompo5prix!F14,decompo6prix!F14,decompo7prix!F14,decompo8prix!F14,decompo9prix!F14,decompo10prix!F14)=decompo2prix!F14,decompo2prix!$A$7,IF(MIN(decompo1prix!F14,decompo2prix!F14,decompo3prix!F14,decompo4prix!F14,decompo5prix!F14,decompo6prix!F14,decompo7prix!F14,decompo8prix!F14,decompo9prix!F14,decompo10prix!F14)=decompo3prix!F14,decompo3prix!$A$7,IF(MIN(decompo1prix!F14,decompo2prix!F14,decompo3prix!F14,decompo4prix!F14,decompo5prix!F14,decompo6prix!F14,decompo7prix!F14,decompo8prix!F14,decompo9prix!F14,decompo10prix!F14)=decompo4prix!F14,decompo4prix!$A$7,IF(MIN(decompo1prix!F14,decompo2prix!F14,decompo3prix!F14,decompo4prix!F14,decompo5prix!F14,decompo6prix!F14,decompo7prix!F14,decompo8prix!F14,decompo9prix!F14,decompo10prix!F14)=decompo5prix!F14,decompo5prix!$A$7,IF(MIN(decompo1prix!F14,decompo2prix!F14,decompo3prix!F14,decompo4prix!F14,decompo5prix!F14,decompo6prix!F14,decompo7prix!F14,decompo8prix!F14,decompo9prix!F14,decompo10prix!F14)=decompo6prix!F14,decompo6prix!$A$7,IF(MIN(decompo1prix!F14,decompo2prix!F14,decompo3prix!F14,decompo4prix!F14,decompo5prix!F14,decompo6prix!F14,decompo7prix!F14,decompo8prix!F14,decompo9prix!F14,decompo10prix!F14)=decompo7prix!F14,decompo7prix!$A$7,IF(MIN(decompo1prix!F14,decompo2prix!F14,decompo3prix!F14,decompo4prix!F14,decompo5prix!F14,decompo6prix!F14,decompo7prix!F14,decompo8prix!F14,decompo9prix!F14,decompo10prix!F14)=decompo8prix!F14,decompo8prix!$A$7,IF(MIN(decompo1prix!F14,decompo2prix!F14,decompo3prix!F14,decompo4prix!F14,decompo5prix!F14,decompo6prix!F14,decompo7prix!F14,decompo8prix!F14,decompo9prix!F14,decompo10prix!F14)=decompo9prix!F14,decompo9prix!$A$7,decompo10prix!$A$7)))))))))) -> romain | W14: =IF($T14="","",IF(MIN(decompo1prix!G14,decompo2prix!G14,decompo3prix!G14,decompo4prix!G14,decompo5prix!G14,decompo6prix!G14,decompo7prix!G14,decompo8prix!G14,decompo9prix!G14,decompo10prix!G14)=decompo1prix!G14,decompo1prix!$A$7,IF(MIN(decompo1prix!G14,decompo2prix!G14,decompo3prix!G14,decompo4prix!G14,decompo5prix!G14,decompo6prix!G14,decompo7prix!G14,decompo8prix!G14,decompo9prix!G14,decompo10prix!G14)=decompo2prix!G14,decompo2prix!$A$7,IF(MIN(decompo1prix!G14,decompo2prix!G14,decompo3prix!G14,decompo4prix!G14,decompo5prix!G14,decompo6prix!G14,decompo7prix!G14,decompo8prix!G14,decompo9prix!G14,decompo10prix!G14)=decompo3prix!G14,decompo3prix!$A$7,IF(MIN(decompo1prix!G14,decompo2prix!G14,decompo3prix!G14,decompo4prix!G14,decompo5prix!G14,decompo6prix!G14,decompo7prix!G14,decompo8prix!G14,decompo9prix!G14,decompo10prix!G14)=decompo4prix!G14,decompo4prix!$A$7,IF(MIN(decompo1prix!G14,decompo2prix!G14,decompo3prix!G14,decompo4prix!G14,decompo5prix!G14,decompo6prix!G14,decompo7prix!G14,decompo8prix!G14,decompo9prix!G14,decompo10prix!G14)=decompo5prix!G14,decompo5prix!$A$7,IF(MIN(decompo1prix!G14,decompo2prix!G14,decompo3prix!G14,decompo4prix!G14,decompo5prix!G14,decompo6prix!G14,decompo7prix!G14,decompo8prix!G14,decompo9prix!G14,decompo10prix!G14)=decompo6prix!G14,decompo6prix!$A$7,IF(MIN(decompo1prix!G14,decompo2prix!G14,decompo3prix!G14,decompo4prix!G14,decompo5prix!G14,decompo6prix!G14,decompo7prix!G14,decompo8prix!G14,decompo9prix!G14,decompo10prix!G14)=decompo7prix!G14,decompo7prix!$A$7,IF(MIN(decompo1prix!G14,decompo2prix!G14,decompo3prix!G14,decompo4prix!G14,decompo5prix!G14,decompo6prix!G14,decompo7prix!G14,decompo8prix!G14,decompo9prix!G14,decompo10prix!G14)=decompo8prix!G14,decompo8prix!$A$7,IF(MIN(decompo1prix!G14,decompo2prix!G14,decompo3prix!G14,decompo4prix!G14,decompo5prix!G14,decompo6prix!G14,decompo7prix!G14,decompo8prix!G14,decompo9prix!G14,decompo10prix!G14)=decompo9prix!G14,decompo9prix!$A$7,decompo10prix!$A$7)))))))))) -> romain | X14: =IF($T14="","",IF(MIN(decompo1prix!H14,decompo2prix!H14,decompo3prix!H14,decompo4prix!H14,decompo5prix!H14,decompo6prix!H14,decompo7prix!H14,decompo8prix!H14,decompo9prix!H14,decompo10prix!H14)=decompo1prix!H14,decompo1prix!$A$7,IF(MIN(decompo1prix!H14,decompo2prix!H14,decompo3prix!H14,decompo4prix!H14,decompo5prix!H14,decompo6prix!H14,decompo7prix!H14,decompo8prix!H14,decompo9prix!H14,decompo10prix!H14)=decompo2prix!H14,decompo2prix!$A$7,IF(MIN(decompo1prix!H14,decompo2prix!H14,decompo3prix!H14,decompo4prix!H14,decompo5prix!H14,decompo6prix!H14,decompo7prix!H14,decompo8prix!H14,decompo9prix!H14,decompo10prix!H14)=decompo3prix!H14,decompo3prix!$A$7,IF(MIN(decompo1prix!H14,decompo2prix!H14,decompo3prix!H14,decompo4prix!H14,decompo5prix!H14,decompo6prix!H14,decompo7prix!H14,decompo8prix!H14,decompo9prix!H14,decompo10prix!H14)=decompo4prix!H14,decompo4prix!$A$7,IF(MIN(decompo1prix!H14,decompo2prix!H14,decompo3prix!H14,decompo4prix!H14,decompo5prix!H14,decompo6prix!H14,decompo7prix!H14,decompo8prix!H14,decompo9prix!H14,decompo10prix!H14)=decompo5prix!H14,decompo5prix!$A$7,IF(MIN(decompo1prix!H14,decompo2prix!H14,decompo3prix!H14,decompo4prix!H14,decompo5prix!H14,decompo6prix!H14,decompo7prix!H14,decompo8prix!H14,decompo9prix!H14,decompo10prix!H14)=decompo6prix!H14,decompo6prix!$A$7,IF(MIN(decompo1prix!H14,decompo2prix!H14,decompo3prix!H14,decompo4prix!H14,decompo5prix!H14,decompo6prix!H14,decompo7prix!H14,decompo8prix!H14,decompo9prix!H14,decompo10prix!H14)=decompo7prix!H14,decompo7prix!$A$7,IF(MIN(decompo1prix!H14,decompo2prix!H14,decompo3prix!H14,decompo4prix!H14,decompo5prix!H14,decompo6prix!H14,decompo7prix!H14,decompo8prix!H14,decompo9prix!H14,decompo10prix!H14)=decompo8prix!H14,decompo8prix!$A$7,IF(MIN(decompo1prix!H14,decompo2prix!H14,decompo3prix!H14,decompo4prix!H14,decompo5prix!H14,decompo6prix!H14,decompo7prix!H14,decompo8prix!H14,decompo9prix!H14,decompo10prix!H14)=decompo9prix!H14,decompo9prix!$A$7,decompo10prix!$A$7)))))))))) -> romain | Y14: =IF($T14="","",IF(MIN(decompo1prix!I14,decompo2prix!I14,decompo3prix!I14,decompo4prix!I14,decompo5prix!I14,decompo6prix!I14,decompo7prix!I14,decompo8prix!I14,decompo9prix!I14,decompo10prix!I14)=decompo1prix!I14,decompo1prix!$A$7,IF(MIN(decompo1prix!I14,decompo2prix!I14,decompo3prix!I14,decompo4prix!I14,decompo5prix!I14,decompo6prix!I14,decompo7prix!I14,decompo8prix!I14,decompo9prix!I14,decompo10prix!I14)=decompo2prix!I14,decompo2prix!$A$7,IF(MIN(decompo1prix!I14,decompo2prix!I14,decompo3prix!I14,decompo4prix!I14,decompo5prix!I14,decompo6prix!I14,decompo7prix!I14,decompo8prix!I14,decompo9prix!I14,decompo10prix!I14)=decompo3prix!I14,decompo3prix!$A$7,IF(MIN(decompo1prix!I14,decompo2prix!I14,decompo3prix!I14,decompo4prix!I14,decompo5prix!I14,decompo6prix!I14,decompo7prix!I14,decompo8prix!I14,decompo9prix!I14,decompo10prix!I14)=decompo4prix!I14,decompo4prix!$A$7,IF(MIN(decompo1prix!I14,decompo2prix!I14,decompo3prix!I14,decompo4prix!I14,decompo5prix!I14,decompo6prix!I14,decompo7prix!I14,decompo8prix!I14,decompo9prix!I14,decompo10prix!I14)=decompo5prix!I14,decompo5prix!$A$7,IF(MIN(decompo1prix!I14,decompo2prix!I14,decompo3prix!I14,decompo4prix!I14,decompo5prix!I14,decompo6prix!I14,decompo7prix!I14,decompo8prix!I14,decompo9prix!I14,decompo10prix!I14)=decompo6prix!I14,decompo6prix!$A$7,IF(MIN(decompo1prix!I14,decompo2prix!I14,decompo3prix!I14,decompo4prix!I14,decompo5prix!I14,decompo6prix!I14,decompo7prix!I14,decompo8prix!I14,decompo9prix!I14,decompo10prix!I14)=decompo7prix!I14,decompo7prix!$A$7,IF(MIN(decompo1prix!I14,decompo2prix!I14,decompo3prix!I14,decompo4prix!I14,decompo5prix!I14,decompo6prix!I14,decompo7prix!I14,decompo8prix!I14,decompo9prix!I14,decompo10prix!I14)=decompo8prix!I14,decompo8prix!$A$7,IF(MIN(decompo1prix!I14,decompo2prix!I14,decompo3prix!I14,decompo4prix!I14,decompo5prix!I14,decompo6prix!I14,decompo7prix!I14,decompo8prix!I14,decompo9prix!I14,decompo10prix!I14)=decompo9prix!I14,decompo9prix!$A$7,decompo10prix!$A$7)))))))))) -> romain | Z14: =IF($T14="","",IF(MIN(decompo1prix!J14,decompo2prix!J14,decompo3prix!J14,decompo4prix!J14,decompo5prix!J14,decompo6prix!J14,decompo7prix!J14,decompo8prix!J14,decompo9prix!J14,decompo10prix!J14)=decompo1prix!J14,decompo1prix!$A$7,IF(MIN(decompo1prix!J14,decompo2prix!J14,decompo3prix!J14,decompo4prix!J14,decompo5prix!J14,decompo6prix!J14,decompo7prix!J14,decompo8prix!J14,decompo9prix!J14,decompo10prix!J14)=decompo2prix!J14,decompo2prix!$A$7,IF(MIN(decompo1prix!J14,decompo2prix!J14,decompo3prix!J14,decompo4prix!J14,decompo5prix!J14,decompo6prix!J14,decompo7prix!J14,decompo8prix!J14,decompo9prix!J14,decompo10prix!J14)=decompo3prix!J14,decompo3prix!$A$7,IF(MIN(decompo1prix!J14,decompo2prix!J14,decompo3prix!J14,decompo4prix!J14,decompo5prix!J14,decompo6prix!J14,decompo7prix!J14,decompo8prix!J14,decompo9prix!J14,decompo10prix!J14)=decompo4prix!J14,decompo4prix!$A$7,IF(MIN(decompo1prix!J14,decompo2prix!J14,decompo3prix!J14,decompo4prix!J14,decompo5prix!J14,decompo6prix!J14,decompo7prix!J14,decompo8prix!J14,decompo9prix!J14,decompo10prix!J14)=decompo5prix!J14,decompo5prix!$A$7,IF(MIN(decompo1prix!J14,decompo2prix!J14,decompo3prix!J14,decompo4prix!J14,decompo5prix!J14,decompo6prix!J14,decompo7prix!J14,decompo8prix!J14,decompo9prix!J14,decompo10prix!J14)=decompo6prix!J14,decompo6prix!$A$7,IF(MIN(decompo1prix!J14,decompo2prix!J14,decompo3prix!J14,decompo4prix!J14,decompo5prix!J14,decompo6prix!J14,decompo7prix!J14,decompo8prix!J14,decompo9prix!J14,decompo10prix!J14)=decompo7prix!J14,decompo7prix!$A$7,IF(MIN(decompo1prix!J14,decompo2prix!J14,decompo3prix!J14,decompo4prix!J14,decompo5prix!J14,decompo6prix!J14,decompo7prix!J14,decompo8prix!J14,decompo9prix!J14,decompo10prix!J14)=decompo8prix!J14,decompo8prix!$A$7,IF(MIN(decompo1prix!J14,decompo2prix!J14,decompo3prix!J14,decompo4prix!J14,decompo5prix!J14,decompo6prix!J14,decompo7prix!J14,decompo8prix!J14,decompo9prix!J14,decompo10prix!J14)=decompo9prix!J14,decompo9prix!$A$7,decompo10prix!$A$7)))))))))) -> romain | AA14: =IF($T14="","",IF(MIN(decompo1prix!K14,decompo2prix!K14,decompo3prix!K14,decompo4prix!K14,decompo5prix!K14,decompo6prix!K14,decompo7prix!K14,decompo8prix!K14,decompo9prix!K14,decompo10prix!K14)=decompo1prix!K14,decompo1prix!$A$7,IF(MIN(decompo1prix!K14,decompo2prix!K14,decompo3prix!K14,decompo4prix!K14,decompo5prix!K14,decompo6prix!K14,decompo7prix!K14,decompo8prix!K14,decompo9prix!K14,decompo10prix!K14)=decompo2prix!K14,decompo2prix!$A$7,IF(MIN(decompo1prix!K14,decompo2prix!K14,decompo3prix!K14,decompo4prix!K14,decompo5prix!K14,decompo6prix!K14,decompo7prix!K14,decompo8prix!K14,decompo9prix!K14,decompo10prix!K14)=decompo3prix!K14,decompo3prix!$A$7,IF(MIN(decompo1prix!K14,decompo2prix!K14,decompo3prix!K14,decompo4prix!K14,decompo5prix!K14,decompo6prix!K14,decompo7prix!K14,decompo8prix!K14,decompo9prix!K14,decompo10prix!K14)=decompo4prix!K14,decompo4prix!$A$7,IF(MIN(decompo1prix!K14,decompo2prix!K14,decompo3prix!K14,decompo4prix!K14,decompo5prix!K14,decompo6prix!K14,decompo7prix!K14,decompo8prix!K14,decompo9prix!K14,decompo10prix!K14)=decompo5prix!K14,decompo5prix!$A$7,IF(MIN(decompo1prix!K14,decompo2prix!K14,decompo3prix!K14,decompo4prix!K14,decompo5prix!K14,decompo6prix!K14,decompo7prix!K14,decompo8prix!K14,decompo9prix!K14,decompo10prix!K14)=decompo6prix!K14,decompo6prix!$A$7,IF(MIN(decompo1prix!K14,decompo2prix!K14,decompo3prix!K14,decompo4prix!K14,decompo5prix!K14,decompo6prix!K14,decompo7prix!K14,decompo8prix!K14,decompo9prix!K14,decompo10prix!K14)=decompo7prix!K14,decompo7prix!$A$7,IF(MIN(decompo1prix!K14,decompo2prix!K14,decompo3prix!K14,decompo4prix!K14,decompo5prix!K14,decompo6prix!K14,decompo7prix!K14,decompo8prix!K14,decompo9prix!K14,decompo10prix!K14)=decompo8prix!K14,decompo8prix!$A$7,IF(MIN(decompo1prix!K14,decompo2prix!K14,decompo3prix!K14,decompo4prix!K14,decompo5prix!K14,decompo6prix!K14,decompo7prix!K14,decompo8prix!K14,decompo9prix!K14,decompo10prix!K14)=decompo9prix!K14,decompo9prix!$A$7,decompo10prix!$A$7)))))))))) -> romain | AB14: =IF($T14="","",IF(MIN(decompo1prix!L14,decompo2prix!L14,decompo3prix!L14,decompo4prix!L14,decompo5prix!L14,decompo6prix!L14,decompo7prix!L14,decompo8prix!L14,decompo9prix!L14,decompo10prix!L14)=decompo1prix!L14,decompo1prix!$A$7,IF(MIN(decompo1prix!L14,decompo2prix!L14,decompo3prix!L14,decompo4prix!L14,decompo5prix!L14,decompo6prix!L14,decompo7prix!L14,decompo8prix!L14,decompo9prix!L14,decompo10prix!L14)=decompo2prix!L14,decompo2prix!$A$7,IF(MIN(decompo1prix!L14,decompo2prix!L14,decompo3prix!L14,decompo4prix!L14,decompo5prix!L14,decompo6prix!L14,decompo7prix!L14,decompo8prix!L14,decompo9prix!L14,decompo10prix!L14)=decompo3prix!L14,decompo3prix!$A$7,IF(MIN(decompo1prix!L14,decompo2prix!L14,decompo3prix!L14,decompo4prix!L14,decompo5prix!L14,decompo6prix!L14,decompo7prix!L14,decompo8prix!L14,decompo9prix!L14,decompo10prix!L14)=decompo4prix!L14,decompo4prix!$A$7,IF(MIN(decompo1prix!L14,decompo2prix!L14,decompo3prix!L14,decompo4prix!L14,decompo5prix!L14,decompo6prix!L14,decompo7prix!L14,decompo8prix!L14,decompo9prix!L14,decompo10prix!L14)=decompo5prix!L14,decompo5prix!$A$7,IF(MIN(decompo1prix!L14,decompo2prix!L14,decompo3prix!L14,decompo4prix!L14,decompo5prix!L14,decompo6prix!L14,decompo7prix!L14,decompo8prix!L14,decompo9prix!L14,decompo10prix!L14)=decompo6prix!L14,decompo6prix!$A$7,IF(MIN(decompo1prix!L14,decompo2prix!L14,decompo3prix!L14,decompo4prix!L14,decompo5prix!L14,decompo6prix!L14,decompo7prix!L14,decompo8prix!L14,decompo9prix!L14,decompo10prix!L14)=decompo7prix!L14,decompo7prix!$A$7,IF(MIN(decompo1prix!L14,decompo2prix!L14,decompo3prix!L14,decompo4prix!L14,decompo5prix!L14,decompo6prix!L14,decompo7prix!L14,decompo8prix!L14,decompo9prix!L14,decompo10prix!L14)=decompo8prix!L14,decompo8prix!$A$7,IF(MIN(decompo1prix!L14,decompo2prix!L14,decompo3prix!L14,decompo4prix!L14,decompo5prix!L14,decompo6prix!L14,decompo7prix!L14,decompo8prix!L14,decompo9prix!L14,decompo10prix!L14)=decompo9prix!L14,decompo9prix!$A$7,decompo10prix!$A$7)))))))))) -> romain | AC14: =IF($T14="","",IF(MIN(decompo1prix!M14,decompo2prix!M14,decompo3prix!M14,decompo4prix!M14,decompo5prix!M14,decompo6prix!M14,decompo7prix!M14,decompo8prix!M14,decompo9prix!M14,decompo10prix!M14)=decompo1prix!M14,decompo1prix!$A$7,IF(MIN(decompo1prix!M14,decompo2prix!M14,decompo3prix!M14,decompo4prix!M14,decompo5prix!M14,decompo6prix!M14,decompo7prix!M14,decompo8prix!M14,decompo9prix!M14,decompo10prix!M14)=decompo2prix!M14,decompo2prix!$A$7,IF(MIN(decompo1prix!M14,decompo2prix!M14,decompo3prix!M14,decompo4prix!M14,decompo5prix!M14,decompo6prix!M14,decompo7prix!M14,decompo8prix!M14,decompo9prix!M14,decompo10prix!M14)=decompo3prix!M14,decompo3prix!$A$7,IF(MIN(decompo1prix!M14,decompo2prix!M14,decompo3prix!M14,decompo4prix!M14,decompo5prix!M14,decompo6prix!M14,decompo7prix!M14,decompo8prix!M14,decompo9prix!M14,decompo10prix!M14)=decompo4prix!M14,decompo4prix!$A$7,IF(MIN(decompo1prix!M14,decompo2prix!M14,decompo3prix!M14,decompo4prix!M14,decompo5prix!M14,decompo6prix!M14,decompo7prix!M14,decompo8prix!M14,decompo9prix!M14,decompo10prix!M14)=decompo5prix!M14,decompo5prix!$A$7,IF(MIN(decompo1prix!M14,decompo2prix!M14,decompo3prix!M14,decompo4prix!M14,decompo5prix!M14,decompo6prix!M14,decompo7prix!M14,decompo8prix!M14,decompo9prix!M14,decompo10prix!M14)=decompo6prix!M14,decompo6prix!$A$7,IF(MIN(decompo1prix!M14,decompo2prix!M14,decompo3prix!M14,decompo4prix!M14,decompo5prix!M14,decompo6prix!M14,decompo7prix!M14,decompo8prix!M14,decompo9prix!M14,decompo10prix!M14)=decompo7prix!M14,decompo7prix!$A$7,IF(MIN(decompo1prix!M14,decompo2prix!M14,decompo3prix!M14,decompo4prix!M14,decompo5prix!M14,decompo6prix!M14,decompo7prix!M14,decompo8prix!M14,decompo9prix!M14,decompo10prix!M14)=decompo8prix!M14,decompo8prix!$A$7,IF(MIN(decompo1prix!M14,decompo2prix!M14,decompo3prix!M14,decompo4prix!M14,decompo5prix!M14,decompo6prix!M14,decompo7prix!M14,decompo8prix!M14,decompo9prix!M14,decompo10prix!M14)=decompo9prix!M14,decompo9prix!$A$7,decompo10prix!$A$7)))))))))) -> romain | AF14: FR6 | AG14: =SUM(decompo6prix!F10:F210) -> 0 | AH14: =SUM(decompo6prix!G10:G210) -> 0 | AI14: =SUM(decompo6prix!H10:H210) -> 0 | AJ14: =SUM(decompo6prix!I10:I210) -> 0 | AK14: =SUM(decompo6prix!J10:J210) -> 0 | AL14: =SUM(decompo6prix!K10:K210) -> 0 | AM14: =SUM(decompo6prix!L10:L210) -> 0 | AN14: =SUM(decompo6prix!M10:M210) -> 0 | AQ14: FR6
A15: VIS 6 | B15: IN6 | C15: =MIN(decompo1prix!F15,decompo2prix!F15,decompo3prix!F15,decompo4prix!F15,decompo5prix!F15,decompo6prix!F15,decompo7prix!F15,decompo8prix!F15,decompo9prix!F15,decompo10prix!F15) -> 26.62 | D15: =MIN(decompo1prix!G15,decompo2prix!G15,decompo3prix!G15,decompo4prix!G15,decompo5prix!G15,decompo6prix!G15,decompo7prix!G15,decompo8prix!G15,decompo9prix!G15,decompo10prix!G15) -> 26.62 | E15: =MIN(decompo1prix!H15,decompo2prix!H15,decompo3prix!H15,decompo4prix!H15,decompo5prix!H15,decompo6prix!H15,decompo7prix!H15,decompo8prix!H15,decompo9prix!H15,decompo10prix!H15) -> 22.31 | F15: =MIN(decompo1prix!I15,decompo2prix!I15,decompo3prix!I15,decompo4prix!I15,decompo5prix!I15,decompo6prix!I15,decompo7prix!I15,decompo8prix!I15,decompo9prix!I15,decompo10prix!I15) -> 20.29 | G15: =MIN(decompo1prix!J15,decompo2prix!J15,decompo3prix!J15,decompo4prix!J15,decompo5prix!J15,decompo6prix!J15,decompo7prix!J15,decompo8prix!J15,decompo9prix!J15,decompo10prix!J15) -> 20.29 | H15: =MIN(decompo1prix!K15,decompo2prix!K15,decompo3prix!K15,decompo4prix!K15,decompo5prix!K15,decompo6prix!K15,decompo7prix!K15,decompo8prix!K15,decompo9prix!K15,decompo10prix!K15) -> 19.26 | I15: =MIN(decompo1prix!L15,decompo2prix!L15,decompo3prix!L15,decompo4prix!L15,decompo5prix!L15,decompo6prix!L15,decompo7prix!L15,decompo8prix!L15,decompo9prix!L15,decompo10prix!L15) -> 19.26 | J15: =MIN(decompo1prix!M15,decompo2prix!M15,decompo3prix!M15,decompo4prix!M15,decompo5prix!M15,decompo6prix!M15,decompo7prix!M15,decompo8prix!M15,decompo9prix!M15,decompo10prix!M15) -> 17.74 | T15: VIS 6 | U15: in6 | V15: =IF($T15="","",IF(MIN(decompo1prix!F15,decompo2prix!F15,decompo3prix!F15,decompo4prix!F15,decompo5prix!F15,decompo6prix!F15,decompo7prix!F15,decompo8prix!F15,decompo9prix!F15,decompo10prix!F15)=decompo1prix!F15,decompo1prix!$A$7,IF(MIN(decompo1prix!F15,decompo2prix!F15,decompo3prix!F15,decompo4prix!F15,decompo5prix!F15,decompo6prix!F15,decompo7prix!F15,decompo8prix!F15,decompo9prix!F15,decompo10prix!F15)=decompo2prix!F15,decompo2prix!$A$7,IF(MIN(decompo1prix!F15,decompo2prix!F15,decompo3prix!F15,decompo4prix!F15,decompo5prix!F15,decompo6prix!F15,decompo7prix!F15,decompo8prix!F15,decompo9prix!F15,decompo10prix!F15)=decompo3prix!F15,decompo3prix!$A$7,IF(MIN(decompo1prix!F15,decompo2prix!F15,decompo3prix!F15,decompo4prix!F15,decompo5prix!F15,decompo6prix!F15,decompo7prix!F15,decompo8prix!F15,decompo9prix!F15,decompo10prix!F15)=decompo4prix!F15,decompo4prix!$A$7,IF(MIN(decompo1prix!F15,decompo2prix!F15,decompo3prix!F15,decompo4prix!F15,decompo5prix!F15,decompo6prix!F15,decompo7prix!F15,decompo8prix!F15,decompo9prix!F15,decompo10prix!F15)=decompo5prix!F15,decompo5prix!$A$7,IF(MIN(decompo1prix!F15,decompo2prix!F15,decompo3prix!F15,decompo4prix!F15,decompo5prix!F15,decompo6prix!F15,decompo7prix!F15,decompo8prix!F15,decompo9prix!F15,decompo10prix!F15)=decompo6prix!F15,decompo6prix!$A$7,IF(MIN(decompo1prix!F15,decompo2prix!F15,decompo3prix!F15,decompo4prix!F15,decompo5prix!F15,decompo6prix!F15,decompo7prix!F15,decompo8prix!F15,decompo9prix!F15,decompo10prix!F15)=decompo7prix!F15,decompo7prix!$A$7,IF(MIN(decompo1prix!F15,decompo2prix!F15,decompo3prix!F15,decompo4prix!F15,decompo5prix!F15,decompo6prix!F15,decompo7prix!F15,decompo8prix!F15,decompo9prix!F15,decompo10prix!F15)=decompo8prix!F15,decompo8prix!$A$7,IF(MIN(decompo1prix!F15,decompo2prix!F15,decompo3prix!F15,decompo4prix!F15,decompo5prix!F15,decompo6prix!F15,decompo7prix!F15,decompo8prix!F15,decompo9prix!F15,decompo10prix!F15)=decompo9prix!F15,decompo9prix!$A$7,decompo10prix!$A$7)))))))))) -> justine | W15: =IF($T15="","",IF(MIN(decompo1prix!G15,decompo2prix!G15,decompo3prix!G15,decompo4prix!G15,decompo5prix!G15,decompo6prix!G15,decompo7prix!G15,decompo8prix!G15,decompo9prix!G15,decompo10prix!G15)=decompo1prix!G15,decompo1prix!$A$7,IF(MIN(decompo1prix!G15,decompo2prix!G15,decompo3prix!G15,decompo4prix!G15,decompo5prix!G15,decompo6prix!G15,decompo7prix!G15,decompo8prix!G15,decompo9prix!G15,decompo10prix!G15)=decompo2prix!G15,decompo2prix!$A$7,IF(MIN(decompo1prix!G15,decompo2prix!G15,decompo3prix!G15,decompo4prix!G15,decompo5prix!G15,decompo6prix!G15,decompo7prix!G15,decompo8prix!G15,decompo9prix!G15,decompo10prix!G15)=decompo3prix!G15,decompo3prix!$A$7,IF(MIN(decompo1prix!G15,decompo2prix!G15,decompo3prix!G15,decompo4prix!G15,decompo5prix!G15,decompo6prix!G15,decompo7prix!G15,decompo8prix!G15,decompo9prix!G15,decompo10prix!G15)=decompo4prix!G15,decompo4prix!$A$7,IF(MIN(decompo1prix!G15,decompo2prix!G15,decompo3prix!G15,decompo4prix!G15,decompo5prix!G15,decompo6prix!G15,decompo7prix!G15,decompo8prix!G15,decompo9prix!G15,decompo10prix!G15)=decompo5prix!G15,decompo5prix!$A$7,IF(MIN(decompo1prix!G15,decompo2prix!G15,decompo3prix!G15,decompo4prix!G15,decompo5prix!G15,decompo6prix!G15,decompo7prix!G15,decompo8prix!G15,decompo9prix!G15,decompo10prix!G15)=decompo6prix!G15,decompo6prix!$A$7,IF(MIN(decompo1prix!G15,decompo2prix!G15,decompo3prix!G15,decompo4prix!G15,decompo5prix!G15,decompo6prix!G15,decompo7prix!G15,decompo8prix!G15,decompo9prix!G15,decompo10prix!G15)=decompo7prix!G15,decompo7prix!$A$7,IF(MIN(decompo1prix!G15,decompo2prix!G15,decompo3prix!G15,decompo4prix!G15,decompo5prix!G15,decompo6prix!G15,decompo7prix!G15,decompo8prix!G15,decompo9prix!G15,decompo10prix!G15)=decompo8prix!G15,decompo8prix!$A$7,IF(MIN(decompo1prix!G15,decompo2prix!G15,decompo3prix!G15,decompo4prix!G15,decompo5prix!G15,decompo6prix!G15,decompo7prix!G15,decompo8prix!G15,decompo9prix!G15,decompo10prix!G15)=decompo9prix!G15,decompo9prix!$A$7,decompo10prix!$A$7)))))))))) -> justine | X15: =IF($T15="","",IF(MIN(decompo1prix!H15,decompo2prix!H15,decompo3prix!H15,decompo4prix!H15,decompo5prix!H15,decompo6prix!H15,decompo7prix!H15,decompo8prix!H15,decompo9prix!H15,decompo10prix!H15)=decompo1prix!H15,decompo1prix!$A$7,IF(MIN(decompo1prix!H15,decompo2prix!H15,decompo3prix!H15,decompo4prix!H15,decompo5prix!H15,decompo6prix!H15,decompo7prix!H15,decompo8prix!H15,decompo9prix!H15,decompo10prix!H15)=decompo2prix!H15,decompo2prix!$A$7,IF(MIN(decompo1prix!H15,decompo2prix!H15,decompo3prix!H15,decompo4prix!H15,decompo5prix!H15,decompo6prix!H15,decompo7prix!H15,decompo8prix!H15,decompo9prix!H15,decompo10prix!H15)=decompo3prix!H15,decompo3prix!$A$7,IF(MIN(decompo1prix!H15,decompo2prix!H15,decompo3prix!H15,decompo4prix!H15,decompo5prix!H15,decompo6prix!H15,decompo7prix!H15,decompo8prix!H15,decompo9prix!H15,decompo10prix!H15)=decompo4prix!H15,decompo4prix!$A$7,IF(MIN(decompo1prix!H15,decompo2prix!H15,decompo3prix!H15,decompo4prix!H15,decompo5prix!H15,decompo6prix!H15,decompo7prix!H15,decompo8prix!H15,decompo9prix!H15,decompo10prix!H15)=decompo5prix!H15,decompo5prix!$A$7,IF(MIN(decompo1prix!H15,decompo2prix!H15,decompo3prix!H15,decompo4prix!H15,decompo5prix!H15,decompo6prix!H15,decompo7prix!H15,decompo8prix!H15,decompo9prix!H15,decompo10prix!H15)=decompo6prix!H15,decompo6prix!$A$7,IF(MIN(decompo1prix!H15,decompo2prix!H15,decompo3prix!H15,decompo4prix!H15,decompo5prix!H15,decompo6prix!H15,decompo7prix!H15,decompo8prix!H15,decompo9prix!H15,decompo10prix!H15)=decompo7prix!H15,decompo7prix!$A$7,IF(MIN(decompo1prix!H15,decompo2prix!H15,decompo3prix!H15,decompo4prix!H15,decompo5prix!H15,decompo6prix!H15,decompo7prix!H15,decompo8prix!H15,decompo9prix!H15,decompo10prix!H15)=decompo8prix!H15,decompo8prix!$A$7,IF(MIN(decompo1prix!H15,decompo2prix!H15,decompo3prix!H15,decompo4prix!H15,decompo5prix!H15,decompo6prix!H15,decompo7prix!H15,decompo8prix!H15,decompo9prix!H15,decompo10prix!H15)=decompo9prix!H15,decompo9prix!$A$7,decompo10prix!$A$7)))))))))) -> justine | Y15: =IF($T15="","",IF(MIN(decompo1prix!I15,decompo2prix!I15,decompo3prix!I15,decompo4prix!I15,decompo5prix!I15,decompo6prix!I15,decompo7prix!I15,decompo8prix!I15,decompo9prix!I15,decompo10prix!I15)=decompo1prix!I15,decompo1prix!$A$7,IF(MIN(decompo1prix!I15,decompo2prix!I15,decompo3prix!I15,decompo4prix!I15,decompo5prix!I15,decompo6prix!I15,decompo7prix!I15,decompo8prix!I15,decompo9prix!I15,decompo10prix!I15)=decompo2prix!I15,decompo2prix!$A$7,IF(MIN(decompo1prix!I15,decompo2prix!I15,decompo3prix!I15,decompo4prix!I15,decompo5prix!I15,decompo6prix!I15,decompo7prix!I15,decompo8prix!I15,decompo9prix!I15,decompo10prix!I15)=decompo3prix!I15,decompo3prix!$A$7,IF(MIN(decompo1prix!I15,decompo2prix!I15,decompo3prix!I15,decompo4prix!I15,decompo5prix!I15,decompo6prix!I15,decompo7prix!I15,decompo8prix!I15,decompo9prix!I15,decompo10prix!I15)=decompo4prix!I15,decompo4prix!$A$7,IF(MIN(decompo1prix!I15,decompo2prix!I15,decompo3prix!I15,decompo4prix!I15,decompo5prix!I15,decompo6prix!I15,decompo7prix!I15,decompo8prix!I15,decompo9prix!I15,decompo10prix!I15)=decompo5prix!I15,decompo5prix!$A$7,IF(MIN(decompo1prix!I15,decompo2prix!I15,decompo3prix!I15,decompo4prix!I15,decompo5prix!I15,decompo6prix!I15,decompo7prix!I15,decompo8prix!I15,decompo9prix!I15,decompo10prix!I15)=decompo6prix!I15,decompo6prix!$A$7,IF(MIN(decompo1prix!I15,decompo2prix!I15,decompo3prix!I15,decompo4prix!I15,decompo5prix!I15,decompo6prix!I15,decompo7prix!I15,decompo8prix!I15,decompo9prix!I15,decompo10prix!I15)=decompo7prix!I15,decompo7prix!$A$7,IF(MIN(decompo1prix!I15,decompo2prix!I15,decompo3prix!I15,decompo4prix!I15,decompo5prix!I15,decompo6prix!I15,decompo7prix!I15,decompo8prix!I15,decompo9prix!I15,decompo10prix!I15)=decompo8prix!I15,decompo8prix!$A$7,IF(MIN(decompo1prix!I15,decompo2prix!I15,decompo3prix!I15,decompo4prix!I15,decompo5prix!I15,decompo6prix!I15,decompo7prix!I15,decompo8prix!I15,decompo9prix!I15,decompo10prix!I15)=decompo9prix!I15,decompo9prix!$A$7,decompo10prix!$A$7)))))))))) -> justine | Z15: =IF($T15="","",IF(MIN(decompo1prix!J15,decompo2prix!J15,decompo3prix!J15,decompo4prix!J15,decompo5prix!J15,decompo6prix!J15,decompo7prix!J15,decompo8prix!J15,decompo9prix!J15,decompo10prix!J15)=decompo1prix!J15,decompo1prix!$A$7,IF(MIN(decompo1prix!J15,decompo2prix!J15,decompo3prix!J15,decompo4prix!J15,decompo5prix!J15,decompo6prix!J15,decompo7prix!J15,decompo8prix!J15,decompo9prix!J15,decompo10prix!J15)=decompo2prix!J15,decompo2prix!$A$7,IF(MIN(decompo1prix!J15,decompo2prix!J15,decompo3prix!J15,decompo4prix!J15,decompo5prix!J15,decompo6prix!J15,decompo7prix!J15,decompo8prix!J15,decompo9prix!J15,decompo10prix!J15)=decompo3prix!J15,decompo3prix!$A$7,IF(MIN(decompo1prix!J15,decompo2prix!J15,decompo3prix!J15,decompo4prix!J15,decompo5prix!J15,decompo6prix!J15,decompo7prix!J15,decompo8prix!J15,decompo9prix!J15,decompo10prix!J15)=decompo4prix!J15,decompo4prix!$A$7,IF(MIN(decompo1prix!J15,decompo2prix!J15,decompo3prix!J15,decompo4prix!J15,decompo5prix!J15,decompo6prix!J15,decompo7prix!J15,decompo8prix!J15,decompo9prix!J15,decompo10prix!J15)=decompo5prix!J15,decompo5prix!$A$7,IF(MIN(decompo1prix!J15,decompo2prix!J15,decompo3prix!J15,decompo4prix!J15,decompo5prix!J15,decompo6prix!J15,decompo7prix!J15,decompo8prix!J15,decompo9prix!J15,decompo10prix!J15)=decompo6prix!J15,decompo6prix!$A$7,IF(MIN(decompo1prix!J15,decompo2prix!J15,decompo3prix!J15,decompo4prix!J15,decompo5prix!J15,decompo6prix!J15,decompo7prix!J15,decompo8prix!J15,decompo9prix!J15,decompo10prix!J15)=decompo7prix!J15,decompo7prix!$A$7,IF(MIN(decompo1prix!J15,decompo2prix!J15,decompo3prix!J15,decompo4prix!J15,decompo5prix!J15,decompo6prix!J15,decompo7prix!J15,decompo8prix!J15,decompo9prix!J15,decompo10prix!J15)=decompo8prix!J15,decompo8prix!$A$7,IF(MIN(decompo1prix!J15,decompo2prix!J15,decompo3prix!J15,decompo4prix!J15,decompo5prix!J15,decompo6prix!J15,decompo7prix!J15,decompo8prix!J15,decompo9prix!J15,decompo10prix!J15)=decompo9prix!J15,decompo9prix!$A$7,decompo10prix!$A$7)))))))))) -> justine | AA15: =IF($T15="","",IF(MIN(decompo1prix!K15,decompo2prix!K15,decompo3prix!K15,decompo4prix!K15,decompo5prix!K15,decompo6prix!K15,decompo7prix!K15,decompo8prix!K15,decompo9prix!K15,decompo10prix!K15)=decompo1prix!K15,decompo1prix!$A$7,IF(MIN(decompo1prix!K15,decompo2prix!K15,decompo3prix!K15,decompo4prix!K15,decompo5prix!K15,decompo6prix!K15,decompo7prix!K15,decompo8prix!K15,decompo9prix!K15,decompo10prix!K15)=decompo2prix!K15,decompo2prix!$A$7,IF(MIN(decompo1prix!K15,decompo2prix!K15,decompo3prix!K15,decompo4prix!K15,decompo5prix!K15,decompo6prix!K15,decompo7prix!K15,decompo8prix!K15,decompo9prix!K15,decompo10prix!K15)=decompo3prix!K15,decompo3prix!$A$7,IF(MIN(decompo1prix!K15,decompo2prix!K15,decompo3prix!K15,decompo4prix!K15,decompo5prix!K15,decompo6prix!K15,decompo7prix!K15,decompo8prix!K15,decompo9prix!K15,decompo10prix!K15)=decompo4prix!K15,decompo4prix!$A$7,IF(MIN(decompo1prix!K15,decompo2prix!K15,decompo3prix!K15,decompo4prix!K15,decompo5prix!K15,decompo6prix!K15,decompo7prix!K15,decompo8prix!K15,decompo9prix!K15,decompo10prix!K15)=decompo5prix!K15,decompo5prix!$A$7,IF(MIN(decompo1prix!K15,decompo2prix!K15,decompo3prix!K15,decompo4prix!K15,decompo5prix!K15,decompo6prix!K15,decompo7prix!K15,decompo8prix!K15,decompo9prix!K15,decompo10prix!K15)=decompo6prix!K15,decompo6prix!$A$7,IF(MIN(decompo1prix!K15,decompo2prix!K15,decompo3prix!K15,decompo4prix!K15,decompo5prix!K15,decompo6prix!K15,decompo7prix!K15,decompo8prix!K15,decompo9prix!K15,decompo10prix!K15)=decompo7prix!K15,decompo7prix!$A$7,IF(MIN(decompo1prix!K15,decompo2prix!K15,decompo3prix!K15,decompo4prix!K15,decompo5prix!K15,decompo6prix!K15,decompo7prix!K15,decompo8prix!K15,decompo9prix!K15,decompo10prix!K15)=decompo8prix!K15,decompo8prix!$A$7,IF(MIN(decompo1prix!K15,decompo2prix!K15,decompo3prix!K15,decompo4prix!K15,decompo5prix!K15,decompo6prix!K15,decompo7prix!K15,decompo8prix!K15,decompo9prix!K15,decompo10prix!K15)=decompo9prix!K15,decompo9prix!$A$7,decompo10prix!$A$7)))))))))) -> justine | AB15: =IF($T15="","",IF(MIN(decompo1prix!L15,decompo2prix!L15,decompo3prix!L15,decompo4prix!L15,decompo5prix!L15,decompo6prix!L15,decompo7prix!L15,decompo8prix!L15,decompo9prix!L15,decompo10prix!L15)=decompo1prix!L15,decompo1prix!$A$7,IF(MIN(decompo1prix!L15,decompo2prix!L15,decompo3prix!L15,decompo4prix!L15,decompo5prix!L15,decompo6prix!L15,decompo7prix!L15,decompo8prix!L15,decompo9prix!L15,decompo10prix!L15)=decompo2prix!L15,decompo2prix!$A$7,IF(MIN(decompo1prix!L15,decompo2prix!L15,decompo3prix!L15,decompo4prix!L15,decompo5prix!L15,decompo6prix!L15,decompo7prix!L15,decompo8prix!L15,decompo9prix!L15,decompo10prix!L15)=decompo3prix!L15,decompo3prix!$A$7,IF(MIN(decompo1prix!L15,decompo2prix!L15,decompo3prix!L15,decompo4prix!L15,decompo5prix!L15,decompo6prix!L15,decompo7prix!L15,decompo8prix!L15,decompo9prix!L15,decompo10prix!L15)=decompo4prix!L15,decompo4prix!$A$7,IF(MIN(decompo1prix!L15,decompo2prix!L15,decompo3prix!L15,decompo4prix!L15,decompo5prix!L15,decompo6prix!L15,decompo7prix!L15,decompo8prix!L15,decompo9prix!L15,decompo10prix!L15)=decompo5prix!L15,decompo5prix!$A$7,IF(MIN(decompo1prix!L15,decompo2prix!L15,decompo3prix!L15,decompo4prix!L15,decompo5prix!L15,decompo6prix!L15,decompo7prix!L15,decompo8prix!L15,decompo9prix!L15,decompo10prix!L15)=decompo6prix!L15,decompo6prix!$A$7,IF(MIN(decompo1prix!L15,decompo2prix!L15,decompo3prix!L15,decompo4prix!L15,decompo5prix!L15,decompo6prix!L15,decompo7prix!L15,decompo8prix!L15,decompo9prix!L15,decompo10prix!L15)=decompo7prix!L15,decompo7prix!$A$7,IF(MIN(decompo1prix!L15,decompo2prix!L15,decompo3prix!L15,decompo4prix!L15,decompo5prix!L15,decompo6prix!L15,decompo7prix!L15,decompo8prix!L15,decompo9prix!L15,decompo10prix!L15)=decompo8prix!L15,decompo8prix!$A$7,IF(MIN(decompo1prix!L15,decompo2prix!L15,decompo3prix!L15,decompo4prix!L15,decompo5prix!L15,decompo6prix!L15,decompo7prix!L15,decompo8prix!L15,decompo9prix!L15,decompo10prix!L15)=decompo9prix!L15,decompo9prix!$A$7,decompo10prix!$A$7)))))))))) -> justine | AC15: =IF($T15="","",IF(MIN(decompo1prix!M15,decompo2prix!M15,decompo3prix!M15,decompo4prix!M15,decompo5prix!M15,decompo6prix!M15,decompo7prix!M15,decompo8prix!M15,decompo9prix!M15,decompo10prix!M15)=decompo1prix!M15,decompo1prix!$A$7,IF(MIN(decompo1prix!M15,decompo2prix!M15,decompo3prix!M15,decompo4prix!M15,decompo5prix!M15,decompo6prix!M15,decompo7prix!M15,decompo8prix!M15,decompo9prix!M15,decompo10prix!M15)=decompo2prix!M15,decompo2prix!$A$7,IF(MIN(decompo1prix!M15,decompo2prix!M15,decompo3prix!M15,decompo4prix!M15,decompo5prix!M15,decompo6prix!M15,decompo7prix!M15,decompo8prix!M15,decompo9prix!M15,decompo10prix!M15)=decompo3prix!M15,decompo3prix!$A$7,IF(MIN(decompo1prix!M15,decompo2prix!M15,decompo3prix!M15,decompo4prix!M15,decompo5prix!M15,decompo6prix!M15,decompo7prix!M15,decompo8prix!M15,decompo9prix!M15,decompo10prix!M15)=decompo4prix!M15,decompo4prix!$A$7,IF(MIN(decompo1prix!M15,decompo2prix!M15,decompo3prix!M15,decompo4prix!M15,decompo5prix!M15,decompo6prix!M15,decompo7prix!M15,decompo8prix!M15,decompo9prix!M15,decompo10prix!M15)=decompo5prix!M15,decompo5prix!$A$7,IF(MIN(decompo1prix!M15,decompo2prix!M15,decompo3prix!M15,decompo4prix!M15,decompo5prix!M15,decompo6prix!M15,decompo7prix!M15,decompo8prix!M15,decompo9prix!M15,decompo10prix!M15)=decompo6prix!M15,decompo6prix!$A$7,IF(MIN(decompo1prix!M15,decompo2prix!M15,decompo3prix!M15,decompo4prix!M15,decompo5prix!M15,decompo6prix!M15,decompo7prix!M15,decompo8prix!M15,decompo9prix!M15,decompo10prix!M15)=decompo7prix!M15,decompo7prix!$A$7,IF(MIN(decompo1prix!M15,decompo2prix!M15,decompo3prix!M15,decompo4prix!M15,decompo5prix!M15,decompo6prix!M15,decompo7prix!M15,decompo8prix!M15,decompo9prix!M15,decompo10prix!M15)=decompo8prix!M15,decompo8prix!$A$7,IF(MIN(decompo1prix!M15,decompo2prix!M15,decompo3prix!M15,decompo4prix!M15,decompo5prix!M15,decompo6prix!M15,decompo7prix!M15,decompo8prix!M15,decompo9prix!M15,decompo10prix!M15)=decompo9prix!M15,decompo9prix!$A$7,decompo10prix!$A$7)))))))))) -> justine | AF15: FR7 | AG15: =SUM(decompo7prix!F10:F210) -> 0 | AH15: =SUM(decompo7prix!G10:G210) -> 0 | AI15: =SUM(decompo7prix!H10:H210) -> 0 | AJ15: =SUM(decompo7prix!I10:I210) -> 0 | AK15: =SUM(decompo7prix!J10:J210) -> 0 | AL15: =SUM(decompo7prix!K10:K210) -> 0 | AM15: =SUM(decompo7prix!L10:L210) -> 0 | AN15: =SUM(decompo7prix!M10:M210) -> 0 | AQ15: FR7
A16: VIS 7 | B16: IN7 | C16: =MIN(decompo1prix!F16,decompo2prix!F16,decompo3prix!F16,decompo4prix!F16,decompo5prix!F16,decompo6prix!F16,decompo7prix!F16,decompo8prix!F16,decompo9prix!F16,decompo10prix!F16) -> 29.23 | D16: =MIN(decompo1prix!G16,decompo2prix!G16,decompo3prix!G16,decompo4prix!G16,decompo5prix!G16,decompo6prix!G16,decompo7prix!G16,decompo8prix!G16,decompo9prix!G16,decompo10prix!G16) -> 29.23 | E16: =MIN(decompo1prix!H16,decompo2prix!H16,decompo3prix!H16,decompo4prix!H16,decompo5prix!H16,decompo6prix!H16,decompo7prix!H16,decompo8prix!H16,decompo9prix!H16,decompo10prix!H16) -> 24.5 | F16: =MIN(decompo1prix!I16,decompo2prix!I16,decompo3prix!I16,decompo4prix!I16,decompo5prix!I16,decompo6prix!I16,decompo7prix!I16,decompo8prix!I16,decompo9prix!I16,decompo10prix!I16) -> 22.27 | G16: =MIN(decompo1prix!J16,decompo2prix!J16,decompo3prix!J16,decompo4prix!J16,decompo5prix!J16,decompo6prix!J16,decompo7prix!J16,decompo8prix!J16,decompo9prix!J16,decompo10prix!J16) -> 22.27 | H16: =MIN(decompo1prix!K16,decompo2prix!K16,decompo3prix!K16,decompo4prix!K16,decompo5prix!K16,decompo6prix!K16,decompo7prix!K16,decompo8prix!K16,decompo9prix!K16,decompo10prix!K16) -> 21.15 | I16: =MIN(decompo1prix!L16,decompo2prix!L16,decompo3prix!L16,decompo4prix!L16,decompo5prix!L16,decompo6prix!L16,decompo7prix!L16,decompo8prix!L16,decompo9prix!L16,decompo10prix!L16) -> 21.1 | J16: =MIN(decompo1prix!M16,decompo2prix!M16,decompo3prix!M16,decompo4prix!M16,decompo5prix!M16,decompo6prix!M16,decompo7prix!M16,decompo8prix!M16,decompo9prix!M16,decompo10prix!M16) -> 19.3 | T16: VIS 7 | U16: in7 | V16: =IF($T16="","",IF(MIN(decompo1prix!F16,decompo2prix!F16,decompo3prix!F16,decompo4prix!F16,decompo5prix!F16,decompo6prix!F16,decompo7prix!F16,decompo8prix!F16,decompo9prix!F16,decompo10prix!F16)=decompo1prix!F16,decompo1prix!$A$7,IF(MIN(decompo1prix!F16,decompo2prix!F16,decompo3prix!F16,decompo4prix!F16,decompo5prix!F16,decompo6prix!F16,decompo7prix!F16,decompo8prix!F16,decompo9prix!F16,decompo10prix!F16)=decompo2prix!F16,decompo2prix!$A$7,IF(MIN(decompo1prix!F16,decompo2prix!F16,decompo3prix!F16,decompo4prix!F16,decompo5prix!F16,decompo6prix!F16,decompo7prix!F16,decompo8prix!F16,decompo9prix!F16,decompo10prix!F16)=decompo3prix!F16,decompo3prix!$A$7,IF(MIN(decompo1prix!F16,decompo2prix!F16,decompo3prix!F16,decompo4prix!F16,decompo5prix!F16,decompo6prix!F16,decompo7prix!F16,decompo8prix!F16,decompo9prix!F16,decompo10prix!F16)=decompo4prix!F16,decompo4prix!$A$7,IF(MIN(decompo1prix!F16,decompo2prix!F16,decompo3prix!F16,decompo4prix!F16,decompo5prix!F16,decompo6prix!F16,decompo7prix!F16,decompo8prix!F16,decompo9prix!F16,decompo10prix!F16)=decompo5prix!F16,decompo5prix!$A$7,IF(MIN(decompo1prix!F16,decompo2prix!F16,decompo3prix!F16,decompo4prix!F16,decompo5prix!F16,decompo6prix!F16,decompo7prix!F16,decompo8prix!F16,decompo9prix!F16,decompo10prix!F16)=decompo6prix!F16,decompo6prix!$A$7,IF(MIN(decompo1prix!F16,decompo2prix!F16,decompo3prix!F16,decompo4prix!F16,decompo5prix!F16,decompo6prix!F16,decompo7prix!F16,decompo8prix!F16,decompo9prix!F16,decompo10prix!F16)=decompo7prix!F16,decompo7prix!$A$7,IF(MIN(decompo1prix!F16,decompo2prix!F16,decompo3prix!F16,decompo4prix!F16,decompo5prix!F16,decompo6prix!F16,decompo7prix!F16,decompo8prix!F16,decompo9prix!F16,decompo10prix!F16)=decompo8prix!F16,decompo8prix!$A$7,IF(MIN(decompo1prix!F16,decompo2prix!F16,decompo3prix!F16,decompo4prix!F16,decompo5prix!F16,decompo6prix!F16,decompo7prix!F16,decompo8prix!F16,decompo9prix!F16,decompo10prix!F16)=decompo9prix!F16,decompo9prix!$A$7,decompo10prix!$A$7)))))))))) -> justine | W16: =IF($T16="","",IF(MIN(decompo1prix!G16,decompo2prix!G16,decompo3prix!G16,decompo4prix!G16,decompo5prix!G16,decompo6prix!G16,decompo7prix!G16,decompo8prix!G16,decompo9prix!G16,decompo10prix!G16)=decompo1prix!G16,decompo1prix!$A$7,IF(MIN(decompo1prix!G16,decompo2prix!G16,decompo3prix!G16,decompo4prix!G16,decompo5prix!G16,decompo6prix!G16,decompo7prix!G16,decompo8prix!G16,decompo9prix!G16,decompo10prix!G16)=decompo2prix!G16,decompo2prix!$A$7,IF(MIN(decompo1prix!G16,decompo2prix!G16,decompo3prix!G16,decompo4prix!G16,decompo5prix!G16,decompo6prix!G16,decompo7prix!G16,decompo8prix!G16,decompo9prix!G16,decompo10prix!G16)=decompo3prix!G16,decompo3prix!$A$7,IF(MIN(decompo1prix!G16,decompo2prix!G16,decompo3prix!G16,decompo4prix!G16,decompo5prix!G16,decompo6prix!G16,decompo7prix!G16,decompo8prix!G16,decompo9prix!G16,decompo10prix!G16)=decompo4prix!G16,decompo4prix!$A$7,IF(MIN(decompo1prix!G16,decompo2prix!G16,decompo3prix!G16,decompo4prix!G16,decompo5prix!G16,decompo6prix!G16,decompo7prix!G16,decompo8prix!G16,decompo9prix!G16,decompo10prix!G16)=decompo5prix!G16,decompo5prix!$A$7,IF(MIN(decompo1prix!G16,decompo2prix!G16,decompo3prix!G16,decompo4prix!G16,decompo5prix!G16,decompo6prix!G16,decompo7prix!G16,decompo8prix!G16,decompo9prix!G16,decompo10prix!G16)=decompo6prix!G16,decompo6prix!$A$7,IF(MIN(decompo1prix!G16,decompo2prix!G16,decompo3prix!G16,decompo4prix!G16,decompo5prix!G16,decompo6prix!G16,decompo7prix!G16,decompo8prix!G16,decompo9prix!G16,decompo10prix!G16)=decompo7prix!G16,decompo7prix!$A$7,IF(MIN(decompo1prix!G16,decompo2prix!G16,decompo3prix!G16,decompo4prix!G16,decompo5prix!G16,decompo6prix!G16,decompo7prix!G16,decompo8prix!G16,decompo9prix!G16,decompo10prix!G16)=decompo8prix!G16,decompo8prix!$A$7,IF(MIN(decompo1prix!G16,decompo2prix!G16,decompo3prix!G16,decompo4prix!G16,decompo5prix!G16,decompo6prix!G16,decompo7prix!G16,decompo8prix!G16,decompo9prix!G16,decompo10prix!G16)=decompo9prix!G16,decompo9prix!$A$7,decompo10prix!$A$7)))))))))) -> justine | X16: =IF($T16="","",IF(MIN(decompo1prix!H16,decompo2prix!H16,decompo3prix!H16,decompo4prix!H16,decompo5prix!H16,decompo6prix!H16,decompo7prix!H16,decompo8prix!H16,decompo9prix!H16,decompo10prix!H16)=decompo1prix!H16,decompo1prix!$A$7,IF(MIN(decompo1prix!H16,decompo2prix!H16,decompo3prix!H16,decompo4prix!H16,decompo5prix!H16,decompo6prix!H16,decompo7prix!H16,decompo8prix!H16,decompo9prix!H16,decompo10prix!H16)=decompo2prix!H16,decompo2prix!$A$7,IF(MIN(decompo1prix!H16,decompo2prix!H16,decompo3prix!H16,decompo4prix!H16,decompo5prix!H16,decompo6prix!H16,decompo7prix!H16,decompo8prix!H16,decompo9prix!H16,decompo10prix!H16)=decompo3prix!H16,decompo3prix!$A$7,IF(MIN(decompo1prix!H16,decompo2prix!H16,decompo3prix!H16,decompo4prix!H16,decompo5prix!H16,decompo6prix!H16,decompo7prix!H16,decompo8prix!H16,decompo9prix!H16,decompo10prix!H16)=decompo4prix!H16,decompo4prix!$A$7,IF(MIN(decompo1prix!H16,decompo2prix!H16,decompo3prix!H16,decompo4prix!H16,decompo5prix!H16,decompo6prix!H16,decompo7prix!H16,decompo8prix!H16,decompo9prix!H16,decompo10prix!H16)=decompo5prix!H16,decompo5prix!$A$7,IF(MIN(decompo1prix!H16,decompo2prix!H16,decompo3prix!H16,decompo4prix!H16,decompo5prix!H16,decompo6prix!H16,decompo7prix!H16,decompo8prix!H16,decompo9prix!H16,decompo10prix!H16)=decompo6prix!H16,decompo6prix!$A$7,IF(MIN(decompo1prix!H16,decompo2prix!H16,decompo3prix!H16,decompo4prix!H16,decompo5prix!H16,decompo6prix!H16,decompo7prix!H16,decompo8prix!H16,decompo9prix!H16,decompo10prix!H16)=decompo7prix!H16,decompo7prix!$A$7,IF(MIN(decompo1prix!H16,decompo2prix!H16,decompo3prix!H16,decompo4prix!H16,decompo5prix!H16,decompo6prix!H16,decompo7prix!H16,decompo8prix!H16,decompo9prix!H16,decompo10prix!H16)=decompo8prix!H16,decompo8prix!$A$7,IF(MIN(decompo1prix!H16,decompo2prix!H16,decompo3prix!H16,decompo4prix!H16,decompo5prix!H16,decompo6prix!H16,decompo7prix!H16,decompo8prix!H16,decompo9prix!H16,decompo10prix!H16)=decompo9prix!H16,decompo9prix!$A$7,decompo10prix!$A$7)))))))))) -> justine | Y16: =IF($T16="","",IF(MIN(decompo1prix!I16,decompo2prix!I16,decompo3prix!I16,decompo4prix!I16,decompo5prix!I16,decompo6prix!I16,decompo7prix!I16,decompo8prix!I16,decompo9prix!I16,decompo10prix!I16)=decompo1prix!I16,decompo1prix!$A$7,IF(MIN(decompo1prix!I16,decompo2prix!I16,decompo3prix!I16,decompo4prix!I16,decompo5prix!I16,decompo6prix!I16,decompo7prix!I16,decompo8prix!I16,decompo9prix!I16,decompo10prix!I16)=decompo2prix!I16,decompo2prix!$A$7,IF(MIN(decompo1prix!I16,decompo2prix!I16,decompo3prix!I16,decompo4prix!I16,decompo5prix!I16,decompo6prix!I16,decompo7prix!I16,decompo8prix!I16,decompo9prix!I16,decompo10prix!I16)=decompo3prix!I16,decompo3prix!$A$7,IF(MIN(decompo1prix!I16,decompo2prix!I16,decompo3prix!I16,decompo4prix!I16,decompo5prix!I16,decompo6prix!I16,decompo7prix!I16,decompo8prix!I16,decompo9prix!I16,decompo10prix!I16)=decompo4prix!I16,decompo4prix!$A$7,IF(MIN(decompo1prix!I16,decompo2prix!I16,decompo3prix!I16,decompo4prix!I16,decompo5prix!I16,decompo6prix!I16,decompo7prix!I16,decompo8prix!I16,decompo9prix!I16,decompo10prix!I16)=decompo5prix!I16,decompo5prix!$A$7,IF(MIN(decompo1prix!I16,decompo2prix!I16,decompo3prix!I16,decompo4prix!I16,decompo5prix!I16,decompo6prix!I16,decompo7prix!I16,decompo8prix!I16,decompo9prix!I16,decompo10prix!I16)=decompo6prix!I16,decompo6prix!$A$7,IF(MIN(decompo1prix!I16,decompo2prix!I16,decompo3prix!I16,decompo4prix!I16,decompo5prix!I16,decompo6prix!I16,decompo7prix!I16,decompo8prix!I16,decompo9prix!I16,decompo10prix!I16)=decompo7prix!I16,decompo7prix!$A$7,IF(MIN(decompo1prix!I16,decompo2prix!I16,decompo3prix!I16,decompo4prix!I16,decompo5prix!I16,decompo6prix!I16,decompo7prix!I16,decompo8prix!I16,decompo9prix!I16,decompo10prix!I16)=decompo8prix!I16,decompo8prix!$A$7,IF(MIN(decompo1prix!I16,decompo2prix!I16,decompo3prix!I16,decompo4prix!I16,decompo5prix!I16,decompo6prix!I16,decompo7prix!I16,decompo8prix!I16,decompo9prix!I16,decompo10prix!I16)=decompo9prix!I16,decompo9prix!$A$7,decompo10prix!$A$7)))))))))) -> justine | Z16: =IF($T16="","",IF(MIN(decompo1prix!J16,decompo2prix!J16,decompo3prix!J16,decompo4prix!J16,decompo5prix!J16,decompo6prix!J16,decompo7prix!J16,decompo8prix!J16,decompo9prix!J16,decompo10prix!J16)=decompo1prix!J16,decompo1prix!$A$7,IF(MIN(decompo1prix!J16,decompo2prix!J16,decompo3prix!J16,decompo4prix!J16,decompo5prix!J16,decompo6prix!J16,decompo7prix!J16,decompo8prix!J16,decompo9prix!J16,decompo10prix!J16)=decompo2prix!J16,decompo2prix!$A$7,IF(MIN(decompo1prix!J16,decompo2prix!J16,decompo3prix!J16,decompo4prix!J16,decompo5prix!J16,decompo6prix!J16,decompo7prix!J16,decompo8prix!J16,decompo9prix!J16,decompo10prix!J16)=decompo3prix!J16,decompo3prix!$A$7,IF(MIN(decompo1prix!J16,decompo2prix!J16,decompo3prix!J16,decompo4prix!J16,decompo5prix!J16,decompo6prix!J16,decompo7prix!J16,decompo8prix!J16,decompo9prix!J16,decompo10prix!J16)=decompo4prix!J16,decompo4prix!$A$7,IF(MIN(decompo1prix!J16,decompo2prix!J16,decompo3prix!J16,decompo4prix!J16,decompo5prix!J16,decompo6prix!J16,decompo7prix!J16,decompo8prix!J16,decompo9prix!J16,decompo10prix!J16)=decompo5prix!J16,decompo5prix!$A$7,IF(MIN(decompo1prix!J16,decompo2prix!J16,decompo3prix!J16,decompo4prix!J16,decompo5prix!J16,decompo6prix!J16,decompo7prix!J16,decompo8prix!J16,decompo9prix!J16,decompo10prix!J16)=decompo6prix!J16,decompo6prix!$A$7,IF(MIN(decompo1prix!J16,decompo2prix!J16,decompo3prix!J16,decompo4prix!J16,decompo5prix!J16,decompo6prix!J16,decompo7prix!J16,decompo8prix!J16,decompo9prix!J16,decompo10prix!J16)=decompo7prix!J16,decompo7prix!$A$7,IF(MIN(decompo1prix!J16,decompo2prix!J16,decompo3prix!J16,decompo4prix!J16,decompo5prix!J16,decompo6prix!J16,decompo7prix!J16,decompo8prix!J16,decompo9prix!J16,decompo10prix!J16)=decompo8prix!J16,decompo8prix!$A$7,IF(MIN(decompo1prix!J16,decompo2prix!J16,decompo3prix!J16,decompo4prix!J16,decompo5prix!J16,decompo6prix!J16,decompo7prix!J16,decompo8prix!J16,decompo9prix!J16,decompo10prix!J16)=decompo9prix!J16,decompo9prix!$A$7,decompo10prix!$A$7)))))))))) -> justine | AA16: =IF($T16="","",IF(MIN(decompo1prix!K16,decompo2prix!K16,decompo3prix!K16,decompo4prix!K16,decompo5prix!K16,decompo6prix!K16,decompo7prix!K16,decompo8prix!K16,decompo9prix!K16,decompo10prix!K16)=decompo1prix!K16,decompo1prix!$A$7,IF(MIN(decompo1prix!K16,decompo2prix!K16,decompo3prix!K16,decompo4prix!K16,decompo5prix!K16,decompo6prix!K16,decompo7prix!K16,decompo8prix!K16,decompo9prix!K16,decompo10prix!K16)=decompo2prix!K16,decompo2prix!$A$7,IF(MIN(decompo1prix!K16,decompo2prix!K16,decompo3prix!K16,decompo4prix!K16,decompo5prix!K16,decompo6prix!K16,decompo7prix!K16,decompo8prix!K16,decompo9prix!K16,decompo10prix!K16)=decompo3prix!K16,decompo3prix!$A$7,IF(MIN(decompo1prix!K16,decompo2prix!K16,decompo3prix!K16,decompo4prix!K16,decompo5prix!K16,decompo6prix!K16,decompo7prix!K16,decompo8prix!K16,decompo9prix!K16,decompo10prix!K16)=decompo4prix!K16,decompo4prix!$A$7,IF(MIN(decompo1prix!K16,decompo2prix!K16,decompo3prix!K16,decompo4prix!K16,decompo5prix!K16,decompo6prix!K16,decompo7prix!K16,decompo8prix!K16,decompo9prix!K16,decompo10prix!K16)=decompo5prix!K16,decompo5prix!$A$7,IF(MIN(decompo1prix!K16,decompo2prix!K16,decompo3prix!K16,decompo4prix!K16,decompo5prix!K16,decompo6prix!K16,decompo7prix!K16,decompo8prix!K16,decompo9prix!K16,decompo10prix!K16)=decompo6prix!K16,decompo6prix!$A$7,IF(MIN(decompo1prix!K16,decompo2prix!K16,decompo3prix!K16,decompo4prix!K16,decompo5prix!K16,decompo6prix!K16,decompo7prix!K16,decompo8prix!K16,decompo9prix!K16,decompo10prix!K16)=decompo7prix!K16,decompo7prix!$A$7,IF(MIN(decompo1prix!K16,decompo2prix!K16,decompo3prix!K16,decompo4prix!K16,decompo5prix!K16,decompo6prix!K16,decompo7prix!K16,decompo8prix!K16,decompo9prix!K16,decompo10prix!K16)=decompo8prix!K16,decompo8prix!$A$7,IF(MIN(decompo1prix!K16,decompo2prix!K16,decompo3prix!K16,decompo4prix!K16,decompo5prix!K16,decompo6prix!K16,decompo7prix!K16,decompo8prix!K16,decompo9prix!K16,decompo10prix!K16)=decompo9prix!K16,decompo9prix!$A$7,decompo10prix!$A$7)))))))))) -> justine | AB16: =IF($T16="","",IF(MIN(decompo1prix!L16,decompo2prix!L16,decompo3prix!L16,decompo4prix!L16,decompo5prix!L16,decompo6prix!L16,decompo7prix!L16,decompo8prix!L16,decompo9prix!L16,decompo10prix!L16)=decompo1prix!L16,decompo1prix!$A$7,IF(MIN(decompo1prix!L16,decompo2prix!L16,decompo3prix!L16,decompo4prix!L16,decompo5prix!L16,decompo6prix!L16,decompo7prix!L16,decompo8prix!L16,decompo9prix!L16,decompo10prix!L16)=decompo2prix!L16,decompo2prix!$A$7,IF(MIN(decompo1prix!L16,decompo2prix!L16,decompo3prix!L16,decompo4prix!L16,decompo5prix!L16,decompo6prix!L16,decompo7prix!L16,decompo8prix!L16,decompo9prix!L16,decompo10prix!L16)=decompo3prix!L16,decompo3prix!$A$7,IF(MIN(decompo1prix!L16,decompo2prix!L16,decompo3prix!L16,decompo4prix!L16,decompo5prix!L16,decompo6prix!L16,decompo7prix!L16,decompo8prix!L16,decompo9prix!L16,decompo10prix!L16)=decompo4prix!L16,decompo4prix!$A$7,IF(MIN(decompo1prix!L16,decompo2prix!L16,decompo3prix!L16,decompo4prix!L16,decompo5prix!L16,decompo6prix!L16,decompo7prix!L16,decompo8prix!L16,decompo9prix!L16,decompo10prix!L16)=decompo5prix!L16,decompo5prix!$A$7,IF(MIN(decompo1prix!L16,decompo2prix!L16,decompo3prix!L16,decompo4prix!L16,decompo5prix!L16,decompo6prix!L16,decompo7prix!L16,decompo8prix!L16,decompo9prix!L16,decompo10prix!L16)=decompo6prix!L16,decompo6prix!$A$7,IF(MIN(decompo1prix!L16,decompo2prix!L16,decompo3prix!L16,decompo4prix!L16,decompo5prix!L16,decompo6prix!L16,decompo7prix!L16,decompo8prix!L16,decompo9prix!L16,decompo10prix!L16)=decompo7prix!L16,decompo7prix!$A$7,IF(MIN(decompo1prix!L16,decompo2prix!L16,decompo3prix!L16,decompo4prix!L16,decompo5prix!L16,decompo6prix!L16,decompo7prix!L16,decompo8prix!L16,decompo9prix!L16,decompo10prix!L16)=decompo8prix!L16,decompo8prix!$A$7,IF(MIN(decompo1prix!L16,decompo2prix!L16,decompo3prix!L16,decompo4prix!L16,decompo5prix!L16,decompo6prix!L16,decompo7prix!L16,decompo8prix!L16,decompo9prix!L16,decompo10prix!L16)=decompo9prix!L16,decompo9prix!$A$7,decompo10prix!$A$7)))))))))) -> romain | AC16: =IF($T16="","",IF(MIN(decompo1prix!M16,decompo2prix!M16,decompo3prix!M16,decompo4prix!M16,decompo5prix!M16,decompo6prix!M16,decompo7prix!M16,decompo8prix!M16,decompo9prix!M16,decompo10prix!M16)=decompo1prix!M16,decompo1prix!$A$7,IF(MIN(decompo1prix!M16,decompo2prix!M16,decompo3prix!M16,decompo4prix!M16,decompo5prix!M16,decompo6prix!M16,decompo7prix!M16,decompo8prix!M16,decompo9prix!M16,decompo10prix!M16)=decompo2prix!M16,decompo2prix!$A$7,IF(MIN(decompo1prix!M16,decompo2prix!M16,decompo3prix!M16,decompo4prix!M16,decompo5prix!M16,decompo6prix!M16,decompo7prix!M16,decompo8prix!M16,decompo9prix!M16,decompo10prix!M16)=decompo3prix!M16,decompo3prix!$A$7,IF(MIN(decompo1prix!M16,decompo2prix!M16,decompo3prix!M16,decompo4prix!M16,decompo5prix!M16,decompo6prix!M16,decompo7prix!M16,decompo8prix!M16,decompo9prix!M16,decompo10prix!M16)=decompo4prix!M16,decompo4prix!$A$7,IF(MIN(decompo1prix!M16,decompo2prix!M16,decompo3prix!M16,decompo4prix!M16,decompo5prix!M16,decompo6prix!M16,decompo7prix!M16,decompo8prix!M16,decompo9prix!M16,decompo10prix!M16)=decompo5prix!M16,decompo5prix!$A$7,IF(MIN(decompo1prix!M16,decompo2prix!M16,decompo3prix!M16,decompo4prix!M16,decompo5prix!M16,decompo6prix!M16,decompo7prix!M16,decompo8prix!M16,decompo9prix!M16,decompo10prix!M16)=decompo6prix!M16,decompo6prix!$A$7,IF(MIN(decompo1prix!M16,decompo2prix!M16,decompo3prix!M16,decompo4prix!M16,decompo5prix!M16,decompo6prix!M16,decompo7prix!M16,decompo8prix!M16,decompo9prix!M16,decompo10prix!M16)=decompo7prix!M16,decompo7prix!$A$7,IF(MIN(decompo1prix!M16,decompo2prix!M16,decompo3prix!M16,decompo4prix!M16,decompo5prix!M16,decompo6prix!M16,decompo7prix!M16,decompo8prix!M16,decompo9prix!M16,decompo10prix!M16)=decompo8prix!M16,decompo8prix!$A$7,IF(MIN(decompo1prix!M16,decompo2prix!M16,decompo3prix!M16,decompo4prix!M16,decompo5prix!M16,decompo6prix!M16,decompo7prix!M16,decompo8prix!M16,decompo9prix!M16,decompo10prix!M16)=decompo9prix!M16,decompo9prix!$A$7,decompo10prix!$A$7)))))))))) -> romain | AF16: FR8 | AG16: =SUM(decompo8prix!F10:F210) -> 0 | AH16: =SUM(decompo8prix!G10:G210) -> 0 | AI16: =SUM(decompo8prix!H10:H210) -> 0 | AJ16: =SUM(decompo8prix!I10:I210) -> 0 | AK16: =SUM(decompo8prix!J10:J210) -> 0 | AL16: =SUM(decompo8prix!K10:K210) -> 0 | AM16: =SUM(decompo8prix!L10:L210) -> 0 | AN16: =SUM(decompo8prix!M10:M210) -> 0 | AQ16: FR8
A17: VIS 8 | B17: IN8 | C17: =MIN(decompo1prix!F17,decompo2prix!F17,decompo3prix!F17,decompo4prix!F17,decompo5prix!F17,decompo6prix!F17,decompo7prix!F17,decompo8prix!F17,decompo9prix!F17,decompo10prix!F17) -> 37.67 | D17: =MIN(decompo1prix!G17,decompo2prix!G17,decompo3prix!G17,decompo4prix!G17,decompo5prix!G17,decompo6prix!G17,decompo7prix!G17,decompo8prix!G17,decompo9prix!G17,decompo10prix!G17) -> 35.3 | E17: =MIN(decompo1prix!H17,decompo2prix!H17,decompo3prix!H17,decompo4prix!H17,decompo5prix!H17,decompo6prix!H17,decompo7prix!H17,decompo8prix!H17,decompo9prix!H17,decompo10prix!H17) -> 29.5 | F17: =MIN(decompo1prix!I17,decompo2prix!I17,decompo3prix!I17,decompo4prix!I17,decompo5prix!I17,decompo6prix!I17,decompo7prix!I17,decompo8prix!I17,decompo9prix!I17,decompo10prix!I17) -> 24.5 | G17: =MIN(decompo1prix!J17,decompo2prix!J17,decompo3prix!J17,decompo4prix!J17,decompo5prix!J17,decompo6prix!J17,decompo7prix!J17,decompo8prix!J17,decompo9prix!J17,decompo10prix!J17) -> 22 | H17: =MIN(decompo1prix!K17,decompo2prix!K17,decompo3prix!K17,decompo4prix!K17,decompo5prix!K17,decompo6prix!K17,decompo7prix!K17,decompo8prix!K17,decompo9prix!K17,decompo10prix!K17) -> 20.5 | I17: =MIN(decompo1prix!L17,decompo2prix!L17,decompo3prix!L17,decompo4prix!L17,decompo5prix!L17,decompo6prix!L17,decompo7prix!L17,decompo8prix!L17,decompo9prix!L17,decompo10prix!L17) -> 19.4 | J17: =MIN(decompo1prix!M17,decompo2prix!M17,decompo3prix!M17,decompo4prix!M17,decompo5prix!M17,decompo6prix!M17,decompo7prix!M17,decompo8prix!M17,decompo9prix!M17,decompo10prix!M17) -> 17.7 | T17: VIS 8 | U17: in8 | V17: =IF($T17="","",IF(MIN(decompo1prix!F17,decompo2prix!F17,decompo3prix!F17,decompo4prix!F17,decompo5prix!F17,decompo6prix!F17,decompo7prix!F17,decompo8prix!F17,decompo9prix!F17,decompo10prix!F17)=decompo1prix!F17,decompo1prix!$A$7,IF(MIN(decompo1prix!F17,decompo2prix!F17,decompo3prix!F17,decompo4prix!F17,decompo5prix!F17,decompo6prix!F17,decompo7prix!F17,decompo8prix!F17,decompo9prix!F17,decompo10prix!F17)=decompo2prix!F17,decompo2prix!$A$7,IF(MIN(decompo1prix!F17,decompo2prix!F17,decompo3prix!F17,decompo4prix!F17,decompo5prix!F17,decompo6prix!F17,decompo7prix!F17,decompo8prix!F17,decompo9prix!F17,decompo10prix!F17)=decompo3prix!F17,decompo3prix!$A$7,IF(MIN(decompo1prix!F17,decompo2prix!F17,decompo3prix!F17,decompo4prix!F17,decompo5prix!F17,decompo6prix!F17,decompo7prix!F17,decompo8prix!F17,decompo9prix!F17,decompo10prix!F17)=decompo4prix!F17,decompo4prix!$A$7,IF(MIN(decompo1prix!F17,decompo2prix!F17,decompo3prix!F17,decompo4prix!F17,decompo5prix!F17,decompo6prix!F17,decompo7prix!F17,decompo8prix!F17,decompo9prix!F17,decompo10prix!F17)=decompo5prix!F17,decompo5prix!$A$7,IF(MIN(decompo1prix!F17,decompo2prix!F17,decompo3prix!F17,decompo4prix!F17,decompo5prix!F17,decompo6prix!F17,decompo7prix!F17,decompo8prix!F17,decompo9prix!F17,decompo10prix!F17)=decompo6prix!F17,decompo6prix!$A$7,IF(MIN(decompo1prix!F17,decompo2prix!F17,decompo3prix!F17,decompo4prix!F17,decompo5prix!F17,decompo6prix!F17,decompo7prix!F17,decompo8prix!F17,decompo9prix!F17,decompo10prix!F17)=decompo7prix!F17,decompo7prix!$A$7,IF(MIN(decompo1prix!F17,decompo2prix!F17,decompo3prix!F17,decompo4prix!F17,decompo5prix!F17,decompo6prix!F17,decompo7prix!F17,decompo8prix!F17,decompo9prix!F17,decompo10prix!F17)=decompo8prix!F17,decompo8prix!$A$7,IF(MIN(decompo1prix!F17,decompo2prix!F17,decompo3prix!F17,decompo4prix!F17,decompo5prix!F17,decompo6prix!F17,decompo7prix!F17,decompo8prix!F17,decompo9prix!F17,decompo10prix!F17)=decompo9prix!F17,decompo9prix!$A$7,decompo10prix!$A$7)))))))))) -> justine | W17: =IF($T17="","",IF(MIN(decompo1prix!G17,decompo2prix!G17,decompo3prix!G17,decompo4prix!G17,decompo5prix!G17,decompo6prix!G17,decompo7prix!G17,decompo8prix!G17,decompo9prix!G17,decompo10prix!G17)=decompo1prix!G17,decompo1prix!$A$7,IF(MIN(decompo1prix!G17,decompo2prix!G17,decompo3prix!G17,decompo4prix!G17,decompo5prix!G17,decompo6prix!G17,decompo7prix!G17,decompo8prix!G17,decompo9prix!G17,decompo10prix!G17)=decompo2prix!G17,decompo2prix!$A$7,IF(MIN(decompo1prix!G17,decompo2prix!G17,decompo3prix!G17,decompo4prix!G17,decompo5prix!G17,decompo6prix!G17,decompo7prix!G17,decompo8prix!G17,decompo9prix!G17,decompo10prix!G17)=decompo3prix!G17,decompo3prix!$A$7,IF(MIN(decompo1prix!G17,decompo2prix!G17,decompo3prix!G17,decompo4prix!G17,decompo5prix!G17,decompo6prix!G17,decompo7prix!G17,decompo8prix!G17,decompo9prix!G17,decompo10prix!G17)=decompo4prix!G17,decompo4prix!$A$7,IF(MIN(decompo1prix!G17,decompo2prix!G17,decompo3prix!G17,decompo4prix!G17,decompo5prix!G17,decompo6prix!G17,decompo7prix!G17,decompo8prix!G17,decompo9prix!G17,decompo10prix!G17)=decompo5prix!G17,decompo5prix!$A$7,IF(MIN(decompo1prix!G17,decompo2prix!G17,decompo3prix!G17,decompo4prix!G17,decompo5prix!G17,decompo6prix!G17,decompo7prix!G17,decompo8prix!G17,decompo9prix!G17,decompo10prix!G17)=decompo6prix!G17,decompo6prix!$A$7,IF(MIN(decompo1prix!G17,decompo2prix!G17,decompo3prix!G17,decompo4prix!G17,decompo5prix!G17,decompo6prix!G17,decompo7prix!G17,decompo8prix!G17,decompo9prix!G17,decompo10prix!G17)=decompo7prix!G17,decompo7prix!$A$7,IF(MIN(decompo1prix!G17,decompo2prix!G17,decompo3prix!G17,decompo4prix!G17,decompo5prix!G17,decompo6prix!G17,decompo7prix!G17,decompo8prix!G17,decompo9prix!G17,decompo10prix!G17)=decompo8prix!G17,decompo8prix!$A$7,IF(MIN(decompo1prix!G17,decompo2prix!G17,decompo3prix!G17,decompo4prix!G17,decompo5prix!G17,decompo6prix!G17,decompo7prix!G17,decompo8prix!G17,decompo9prix!G17,decompo10prix!G17)=decompo9prix!G17,decompo9prix!$A$7,decompo10prix!$A$7)))))))))) -> romain | X17: =IF($T17="","",IF(MIN(decompo1prix!H17,decompo2prix!H17,decompo3prix!H17,decompo4prix!H17,decompo5prix!H17,decompo6prix!H17,decompo7prix!H17,decompo8prix!H17,decompo9prix!H17,decompo10prix!H17)=decompo1prix!H17,decompo1prix!$A$7,IF(MIN(decompo1prix!H17,decompo2prix!H17,decompo3prix!H17,decompo4prix!H17,decompo5prix!H17,decompo6prix!H17,decompo7prix!H17,decompo8prix!H17,decompo9prix!H17,decompo10prix!H17)=decompo2prix!H17,decompo2prix!$A$7,IF(MIN(decompo1prix!H17,decompo2prix!H17,decompo3prix!H17,decompo4prix!H17,decompo5prix!H17,decompo6prix!H17,decompo7prix!H17,decompo8prix!H17,decompo9prix!H17,decompo10prix!H17)=decompo3prix!H17,decompo3prix!$A$7,IF(MIN(decompo1prix!H17,decompo2prix!H17,decompo3prix!H17,decompo4prix!H17,decompo5prix!H17,decompo6prix!H17,decompo7prix!H17,decompo8prix!H17,decompo9prix!H17,decompo10prix!H17)=decompo4prix!H17,decompo4prix!$A$7,IF(MIN(decompo1prix!H17,decompo2prix!H17,decompo3prix!H17,decompo4prix!H17,decompo5prix!H17,decompo6prix!H17,decompo7prix!H17,decompo8prix!H17,decompo9prix!H17,decompo10prix!H17)=decompo5prix!H17,decompo5prix!$A$7,IF(MIN(decompo1prix!H17,decompo2prix!H17,decompo3prix!H17,decompo4prix!H17,decompo5prix!H17,decompo6prix!H17,decompo7prix!H17,decompo8prix!H17,decompo9prix!H17,decompo10prix!H17)=decompo6prix!H17,decompo6prix!$A$7,IF(MIN(decompo1prix!H17,decompo2prix!H17,decompo3prix!H17,decompo4prix!H17,decompo5prix!H17,decompo6prix!H17,decompo7prix!H17,decompo8prix!H17,decompo9prix!H17,decompo10prix!H17)=decompo7prix!H17,decompo7prix!$A$7,IF(MIN(decompo1prix!H17,decompo2prix!H17,decompo3prix!H17,decompo4prix!H17,decompo5prix!H17,decompo6prix!H17,decompo7prix!H17,decompo8prix!H17,decompo9prix!H17,decompo10prix!H17)=decompo8prix!H17,decompo8prix!$A$7,IF(MIN(decompo1prix!H17,decompo2prix!H17,decompo3prix!H17,decompo4prix!H17,decompo5prix!H17,decompo6prix!H17,decompo7prix!H17,decompo8prix!H17,decompo9prix!H17,decompo10prix!H17)=decompo9prix!H17,decompo9prix!$A$7,decompo10prix!$A$7)))))))))) -> romain | Y17: =IF($T17="","",IF(MIN(decompo1prix!I17,decompo2prix!I17,decompo3prix!I17,decompo4prix!I17,decompo5prix!I17,decompo6prix!I17,decompo7prix!I17,decompo8prix!I17,decompo9prix!I17,decompo10prix!I17)=decompo1prix!I17,decompo1prix!$A$7,IF(MIN(decompo1prix!I17,decompo2prix!I17,decompo3prix!I17,decompo4prix!I17,decompo5prix!I17,decompo6prix!I17,decompo7prix!I17,decompo8prix!I17,decompo9prix!I17,decompo10prix!I17)=decompo2prix!I17,decompo2prix!$A$7,IF(MIN(decompo1prix!I17,decompo2prix!I17,decompo3prix!I17,decompo4prix!I17,decompo5prix!I17,decompo6prix!I17,decompo7prix!I17,decompo8prix!I17,decompo9prix!I17,decompo10prix!I17)=decompo3prix!I17,decompo3prix!$A$7,IF(MIN(decompo1prix!I17,decompo2prix!I17,decompo3prix!I17,decompo4prix!I17,decompo5prix!I17,decompo6prix!I17,decompo7prix!I17,decompo8prix!I17,decompo9prix!I17,decompo10prix!I17)=decompo4prix!I17,decompo4prix!$A$7,IF(MIN(decompo1prix!I17,decompo2prix!I17,decompo3prix!I17,decompo4prix!I17,decompo5prix!I17,decompo6prix!I17,decompo7prix!I17,decompo8prix!I17,decompo9prix!I17,decompo10prix!I17)=decompo5prix!I17,decompo5prix!$A$7,IF(MIN(decompo1prix!I17,decompo2prix!I17,decompo3prix!I17,decompo4prix!I17,decompo5prix!I17,decompo6prix!I17,decompo7prix!I17,decompo8prix!I17,decompo9prix!I17,decompo10prix!I17)=decompo6prix!I17,decompo6prix!$A$7,IF(MIN(decompo1prix!I17,decompo2prix!I17,decompo3prix!I17,decompo4prix!I17,decompo5prix!I17,decompo6prix!I17,decompo7prix!I17,decompo8prix!I17,decompo9prix!I17,decompo10prix!I17)=decompo7prix!I17,decompo7prix!$A$7,IF(MIN(decompo1prix!I17,decompo2prix!I17,decompo3prix!I17,decompo4prix!I17,decompo5prix!I17,decompo6prix!I17,decompo7prix!I17,decompo8prix!I17,decompo9prix!I17,decompo10prix!I17)=decompo8prix!I17,decompo8prix!$A$7,IF(MIN(decompo1prix!I17,decompo2prix!I17,decompo3prix!I17,decompo4prix!I17,decompo5prix!I17,decompo6prix!I17,decompo7prix!I17,decompo8prix!I17,decompo9prix!I17,decompo10prix!I17)=decompo9prix!I17,decompo9prix!$A$7,decompo10prix!$A$7)))))))))) -> romain | Z17: =IF($T17="","",IF(MIN(decompo1prix!J17,decompo2prix!J17,decompo3prix!J17,decompo4prix!J17,decompo5prix!J17,decompo6prix!J17,decompo7prix!J17,decompo8prix!J17,decompo9prix!J17,decompo10prix!J17)=decompo1prix!J17,decompo1prix!$A$7,IF(MIN(decompo1prix!J17,decompo2prix!J17,decompo3prix!J17,decompo4prix!J17,decompo5prix!J17,decompo6prix!J17,decompo7prix!J17,decompo8prix!J17,decompo9prix!J17,decompo10prix!J17)=decompo2prix!J17,decompo2prix!$A$7,IF(MIN(decompo1prix!J17,decompo2prix!J17,decompo3prix!J17,decompo4prix!J17,decompo5prix!J17,decompo6prix!J17,decompo7prix!J17,decompo8prix!J17,decompo9prix!J17,decompo10prix!J17)=decompo3prix!J17,decompo3prix!$A$7,IF(MIN(decompo1prix!J17,decompo2prix!J17,decompo3prix!J17,decompo4prix!J17,decompo5prix!J17,decompo6prix!J17,decompo7prix!J17,decompo8prix!J17,decompo9prix!J17,decompo10prix!J17)=decompo4prix!J17,decompo4prix!$A$7,IF(MIN(decompo1prix!J17,decompo2prix!J17,decompo3prix!J17,decompo4prix!J17,decompo5prix!J17,decompo6prix!J17,decompo7prix!J17,decompo8prix!J17,decompo9prix!J17,decompo10prix!J17)=decompo5prix!J17,decompo5prix!$A$7,IF(MIN(decompo1prix!J17,decompo2prix!J17,decompo3prix!J17,decompo4prix!J17,decompo5prix!J17,decompo6prix!J17,decompo7prix!J17,decompo8prix!J17,decompo9prix!J17,decompo10prix!J17)=decompo6prix!J17,decompo6prix!$A$7,IF(MIN(decompo1prix!J17,decompo2prix!J17,decompo3prix!J17,decompo4prix!J17,decompo5prix!J17,decompo6prix!J17,decompo7prix!J17,decompo8prix!J17,decompo9prix!J17,decompo10prix!J17)=decompo7prix!J17,decompo7prix!$A$7,IF(MIN(decompo1prix!J17,decompo2prix!J17,decompo3prix!J17,decompo4prix!J17,decompo5prix!J17,decompo6prix!J17,decompo7prix!J17,decompo8prix!J17,decompo9prix!J17,decompo10prix!J17)=decompo8prix!J17,decompo8prix!$A$7,IF(MIN(decompo1prix!J17,decompo2prix!J17,decompo3prix!J17,decompo4prix!J17,decompo5prix!J17,decompo6prix!J17,decompo7prix!J17,decompo8prix!J17,decompo9prix!J17,decompo10prix!J17)=decompo9prix!J17,decompo9prix!$A$7,decompo10prix!$A$7)))))))))) -> romain | AA17: =IF($T17="","",IF(MIN(decompo1prix!K17,decompo2prix!K17,decompo3prix!K17,decompo4prix!K17,decompo5prix!K17,decompo6prix!K17,decompo7prix!K17,decompo8prix!K17,decompo9prix!K17,decompo10prix!K17)=decompo1prix!K17,decompo1prix!$A$7,IF(MIN(decompo1prix!K17,decompo2prix!K17,decompo3prix!K17,decompo4prix!K17,decompo5prix!K17,decompo6prix!K17,decompo7prix!K17,decompo8prix!K17,decompo9prix!K17,decompo10prix!K17)=decompo2prix!K17,decompo2prix!$A$7,IF(MIN(decompo1prix!K17,decompo2prix!K17,decompo3prix!K17,decompo4prix!K17,decompo5prix!K17,decompo6prix!K17,decompo7prix!K17,decompo8prix!K17,decompo9prix!K17,decompo10prix!K17)=decompo3prix!K17,decompo3prix!$A$7,IF(MIN(decompo1prix!K17,decompo2prix!K17,decompo3prix!K17,decompo4prix!K17,decompo5prix!K17,decompo6prix!K17,decompo7prix!K17,decompo8prix!K17,decompo9prix!K17,decompo10prix!K17)=decompo4prix!K17,decompo4prix!$A$7,IF(MIN(decompo1prix!K17,decompo2prix!K17,decompo3prix!K17,decompo4prix!K17,decompo5prix!K17,decompo6prix!K17,decompo7prix!K17,decompo8prix!K17,decompo9prix!K17,decompo10prix!K17)=decompo5prix!K17,decompo5prix!$A$7,IF(MIN(decompo1prix!K17,decompo2prix!K17,decompo3prix!K17,decompo4prix!K17,decompo5prix!K17,decompo6prix!K17,decompo7prix!K17,decompo8prix!K17,decompo9prix!K17,decompo10prix!K17)=decompo6prix!K17,decompo6prix!$A$7,IF(MIN(decompo1prix!K17,decompo2prix!K17,decompo3prix!K17,decompo4prix!K17,decompo5prix!K17,decompo6prix!K17,decompo7prix!K17,decompo8prix!K17,decompo9prix!K17,decompo10prix!K17)=decompo7prix!K17,decompo7prix!$A$7,IF(MIN(decompo1prix!K17,decompo2prix!K17,decompo3prix!K17,decompo4prix!K17,decompo5prix!K17,decompo6prix!K17,decompo7prix!K17,decompo8prix!K17,decompo9prix!K17,decompo10prix!K17)=decompo8prix!K17,decompo8prix!$A$7,IF(MIN(decompo1prix!K17,decompo2prix!K17,decompo3prix!K17,decompo4prix!K17,decompo5prix!K17,decompo6prix!K17,decompo7prix!K17,decompo8prix!K17,decompo9prix!K17,decompo10prix!K17)=decompo9prix!K17,decompo9prix!$A$7,decompo10prix!$A$7)))))))))) -> romain | AB17: =IF($T17="","",IF(MIN(decompo1prix!L17,decompo2prix!L17,decompo3prix!L17,decompo4prix!L17,decompo5prix!L17,decompo6prix!L17,decompo7prix!L17,decompo8prix!L17,decompo9prix!L17,decompo10prix!L17)=decompo1prix!L17,decompo1prix!$A$7,IF(MIN(decompo1prix!L17,decompo2prix!L17,decompo3prix!L17,decompo4prix!L17,decompo5prix!L17,decompo6prix!L17,decompo7prix!L17,decompo8prix!L17,decompo9prix!L17,decompo10prix!L17)=decompo2prix!L17,decompo2prix!$A$7,IF(MIN(decompo1prix!L17,decompo2prix!L17,decompo3prix!L17,decompo4prix!L17,decompo5prix!L17,decompo6prix!L17,decompo7prix!L17,decompo8prix!L17,decompo9prix!L17,decompo10prix!L17)=decompo3prix!L17,decompo3prix!$A$7,IF(MIN(decompo1prix!L17,decompo2prix!L17,decompo3prix!L17,decompo4prix!L17,decompo5prix!L17,decompo6prix!L17,decompo7prix!L17,decompo8prix!L17,decompo9prix!L17,decompo10prix!L17)=decompo4prix!L17,decompo4prix!$A$7,IF(MIN(decompo1prix!L17,decompo2prix!L17,decompo3prix!L17,decompo4prix!L17,decompo5prix!L17,decompo6prix!L17,decompo7prix!L17,decompo8prix!L17,decompo9prix!L17,decompo10prix!L17)=decompo5prix!L17,decompo5prix!$A$7,IF(MIN(decompo1prix!L17,decompo2prix!L17,decompo3prix!L17,decompo4prix!L17,decompo5prix!L17,decompo6prix!L17,decompo7prix!L17,decompo8prix!L17,decompo9prix!L17,decompo10prix!L17)=decompo6prix!L17,decompo6prix!$A$7,IF(MIN(decompo1prix!L17,decompo2prix!L17,decompo3prix!L17,decompo4prix!L17,decompo5prix!L17,decompo6prix!L17,decompo7prix!L17,decompo8prix!L17,decompo9prix!L17,decompo10prix!L17)=decompo7prix!L17,decompo7prix!$A$7,IF(MIN(decompo1prix!L17,decompo2prix!L17,decompo3prix!L17,decompo4prix!L17,decompo5prix!L17,decompo6prix!L17,decompo7prix!L17,decompo8prix!L17,decompo9prix!L17,decompo10prix!L17)=decompo8prix!L17,decompo8prix!$A$7,IF(MIN(decompo1prix!L17,decompo2prix!L17,decompo3prix!L17,decompo4prix!L17,decompo5prix!L17,decompo6prix!L17,decompo7prix!L17,decompo8prix!L17,decompo9prix!L17,decompo10prix!L17)=decompo9prix!L17,decompo9prix!$A$7,decompo10prix!$A$7)))))))))) -> romain | AC17: =IF($T17="","",IF(MIN(decompo1prix!M17,decompo2prix!M17,decompo3prix!M17,decompo4prix!M17,decompo5prix!M17,decompo6prix!M17,decompo7prix!M17,decompo8prix!M17,decompo9prix!M17,decompo10prix!M17)=decompo1prix!M17,decompo1prix!$A$7,IF(MIN(decompo1prix!M17,decompo2prix!M17,decompo3prix!M17,decompo4prix!M17,decompo5prix!M17,decompo6prix!M17,decompo7prix!M17,decompo8prix!M17,decompo9prix!M17,decompo10prix!M17)=decompo2prix!M17,decompo2prix!$A$7,IF(MIN(decompo1prix!M17,decompo2prix!M17,decompo3prix!M17,decompo4prix!M17,decompo5prix!M17,decompo6prix!M17,decompo7prix!M17,decompo8prix!M17,decompo9prix!M17,decompo10prix!M17)=decompo3prix!M17,decompo3prix!$A$7,IF(MIN(decompo1prix!M17,decompo2prix!M17,decompo3prix!M17,decompo4prix!M17,decompo5prix!M17,decompo6prix!M17,decompo7prix!M17,decompo8prix!M17,decompo9prix!M17,decompo10prix!M17)=decompo4prix!M17,decompo4prix!$A$7,IF(MIN(decompo1prix!M17,decompo2prix!M17,decompo3prix!M17,decompo4prix!M17,decompo5prix!M17,decompo6prix!M17,decompo7prix!M17,decompo8prix!M17,decompo9prix!M17,decompo10prix!M17)=decompo5prix!M17,decompo5prix!$A$7,IF(MIN(decompo1prix!M17,decompo2prix!M17,decompo3prix!M17,decompo4prix!M17,decompo5prix!M17,decompo6prix!M17,decompo7prix!M17,decompo8prix!M17,decompo9prix!M17,decompo10prix!M17)=decompo6prix!M17,decompo6prix!$A$7,IF(MIN(decompo1prix!M17,decompo2prix!M17,decompo3prix!M17,decompo4prix!M17,decompo5prix!M17,decompo6prix!M17,decompo7prix!M17,decompo8prix!M17,decompo9prix!M17,decompo10prix!M17)=decompo7prix!M17,decompo7prix!$A$7,IF(MIN(decompo1prix!M17,decompo2prix!M17,decompo3prix!M17,decompo4prix!M17,decompo5prix!M17,decompo6prix!M17,decompo7prix!M17,decompo8prix!M17,decompo9prix!M17,decompo10prix!M17)=decompo8prix!M17,decompo8prix!$A$7,IF(MIN(decompo1prix!M17,decompo2prix!M17,decompo3prix!M17,decompo4prix!M17,decompo5prix!M17,decompo6prix!M17,decompo7prix!M17,decompo8prix!M17,decompo9prix!M17,decompo10prix!M17)=decompo9prix!M17,decompo9prix!$A$7,decompo10prix!$A$7)))))))))) -> romain | AF17: FR9 | AG17: =SUM(decompo9prix!F10:F210) -> 0 | AH17: =SUM(decompo9prix!G10:G210) -> 0 | AI17: =SUM(decompo9prix!H10:H210) -> 0 | AJ17: =SUM(decompo9prix!I10:I210) -> 0 | AK17: =SUM(decompo9prix!J10:J210) -> 0 | AL17: =SUM(decompo9prix!K10:K210) -> 0 | AM17: =SUM(decompo9prix!L10:L210) -> 0 | AN17: =SUM(decompo9prix!M10:M210) -> 0 | AQ17: FR9
A18: VIS 9 | B18: IN9 | C18: =MIN(decompo1prix!F18,decompo2prix!F18,decompo3prix!F18,decompo4prix!F18,decompo5prix!F18,decompo6prix!F18,decompo7prix!F18,decompo8prix!F18,decompo9prix!F18,decompo10prix!F18) -> 28.31 | D18: =MIN(decompo1prix!G18,decompo2prix!G18,decompo3prix!G18,decompo4prix!G18,decompo5prix!G18,decompo6prix!G18,decompo7prix!G18,decompo8prix!G18,decompo9prix!G18,decompo10prix!G18) -> 28.31 | E18: =MIN(decompo1prix!H18,decompo2prix!H18,decompo3prix!H18,decompo4prix!H18,decompo5prix!H18,decompo6prix!H18,decompo7prix!H18,decompo8prix!H18,decompo9prix!H18,decompo10prix!H18) -> 23.72 | F18: =MIN(decompo1prix!I18,decompo2prix!I18,decompo3prix!I18,decompo4prix!I18,decompo5prix!I18,decompo6prix!I18,decompo7prix!I18,decompo8prix!I18,decompo9prix!I18,decompo10prix!I18) -> 21.57 | G18: =MIN(decompo1prix!J18,decompo2prix!J18,decompo3prix!J18,decompo4prix!J18,decompo5prix!J18,decompo6prix!J18,decompo7prix!J18,decompo8prix!J18,decompo9prix!J18,decompo10prix!J18) -> 21.57 | H18: =MIN(decompo1prix!K18,decompo2prix!K18,decompo3prix!K18,decompo4prix!K18,decompo5prix!K18,decompo6prix!K18,decompo7prix!K18,decompo8prix!K18,decompo9prix!K18,decompo10prix!K18) -> 20.49 | I18: =MIN(decompo1prix!L18,decompo2prix!L18,decompo3prix!L18,decompo4prix!L18,decompo5prix!L18,decompo6prix!L18,decompo7prix!L18,decompo8prix!L18,decompo9prix!L18,decompo10prix!L18) -> 20 | J18: =MIN(decompo1prix!M18,decompo2prix!M18,decompo3prix!M18,decompo4prix!M18,decompo5prix!M18,decompo6prix!M18,decompo7prix!M18,decompo8prix!M18,decompo9prix!M18,decompo10prix!M18) -> 18.2 | T18: VIS 9 | U18: in9 | V18: =IF($T18="","",IF(MIN(decompo1prix!F18,decompo2prix!F18,decompo3prix!F18,decompo4prix!F18,decompo5prix!F18,decompo6prix!F18,decompo7prix!F18,decompo8prix!F18,decompo9prix!F18,decompo10prix!F18)=decompo1prix!F18,decompo1prix!$A$7,IF(MIN(decompo1prix!F18,decompo2prix!F18,decompo3prix!F18,decompo4prix!F18,decompo5prix!F18,decompo6prix!F18,decompo7prix!F18,decompo8prix!F18,decompo9prix!F18,decompo10prix!F18)=decompo2prix!F18,decompo2prix!$A$7,IF(MIN(decompo1prix!F18,decompo2prix!F18,decompo3prix!F18,decompo4prix!F18,decompo5prix!F18,decompo6prix!F18,decompo7prix!F18,decompo8prix!F18,decompo9prix!F18,decompo10prix!F18)=decompo3prix!F18,decompo3prix!$A$7,IF(MIN(decompo1prix!F18,decompo2prix!F18,decompo3prix!F18,decompo4prix!F18,decompo5prix!F18,decompo6prix!F18,decompo7prix!F18,decompo8prix!F18,decompo9prix!F18,decompo10prix!F18)=decompo4prix!F18,decompo4prix!$A$7,IF(MIN(decompo1prix!F18,decompo2prix!F18,decompo3prix!F18,decompo4prix!F18,decompo5prix!F18,decompo6prix!F18,decompo7prix!F18,decompo8prix!F18,decompo9prix!F18,decompo10prix!F18)=decompo5prix!F18,decompo5prix!$A$7,IF(MIN(decompo1prix!F18,decompo2prix!F18,decompo3prix!F18,decompo4prix!F18,decompo5prix!F18,decompo6prix!F18,decompo7prix!F18,decompo8prix!F18,decompo9prix!F18,decompo10prix!F18)=decompo6prix!F18,decompo6prix!$A$7,IF(MIN(decompo1prix!F18,decompo2prix!F18,decompo3prix!F18,decompo4prix!F18,decompo5prix!F18,decompo6prix!F18,decompo7prix!F18,decompo8prix!F18,decompo9prix!F18,decompo10prix!F18)=decompo7prix!F18,decompo7prix!$A$7,IF(MIN(decompo1prix!F18,decompo2prix!F18,decompo3prix!F18,decompo4prix!F18,decompo5prix!F18,decompo6prix!F18,decompo7prix!F18,decompo8prix!F18,decompo9prix!F18,decompo10prix!F18)=decompo8prix!F18,decompo8prix!$A$7,IF(MIN(decompo1prix!F18,decompo2prix!F18,decompo3prix!F18,decompo4prix!F18,decompo5prix!F18,decompo6prix!F18,decompo7prix!F18,decompo8prix!F18,decompo9prix!F18,decompo10prix!F18)=decompo9prix!F18,decompo9prix!$A$7,decompo10prix!$A$7)))))))))) -> justine | W18: =IF($T18="","",IF(MIN(decompo1prix!G18,decompo2prix!G18,decompo3prix!G18,decompo4prix!G18,decompo5prix!G18,decompo6prix!G18,decompo7prix!G18,decompo8prix!G18,decompo9prix!G18,decompo10prix!G18)=decompo1prix!G18,decompo1prix!$A$7,IF(MIN(decompo1prix!G18,decompo2prix!G18,decompo3prix!G18,decompo4prix!G18,decompo5prix!G18,decompo6prix!G18,decompo7prix!G18,decompo8prix!G18,decompo9prix!G18,decompo10prix!G18)=decompo2prix!G18,decompo2prix!$A$7,IF(MIN(decompo1prix!G18,decompo2prix!G18,decompo3prix!G18,decompo4prix!G18,decompo5prix!G18,decompo6prix!G18,decompo7prix!G18,decompo8prix!G18,decompo9prix!G18,decompo10prix!G18)=decompo3prix!G18,decompo3prix!$A$7,IF(MIN(decompo1prix!G18,decompo2prix!G18,decompo3prix!G18,decompo4prix!G18,decompo5prix!G18,decompo6prix!G18,decompo7prix!G18,decompo8prix!G18,decompo9prix!G18,decompo10prix!G18)=decompo4prix!G18,decompo4prix!$A$7,IF(MIN(decompo1prix!G18,decompo2prix!G18,decompo3prix!G18,decompo4prix!G18,decompo5prix!G18,decompo6prix!G18,decompo7prix!G18,decompo8prix!G18,decompo9prix!G18,decompo10prix!G18)=decompo5prix!G18,decompo5prix!$A$7,IF(MIN(decompo1prix!G18,decompo2prix!G18,decompo3prix!G18,decompo4prix!G18,decompo5prix!G18,decompo6prix!G18,decompo7prix!G18,decompo8prix!G18,decompo9prix!G18,decompo10prix!G18)=decompo6prix!G18,decompo6prix!$A$7,IF(MIN(decompo1prix!G18,decompo2prix!G18,decompo3prix!G18,decompo4prix!G18,decompo5prix!G18,decompo6prix!G18,decompo7prix!G18,decompo8prix!G18,decompo9prix!G18,decompo10prix!G18)=decompo7prix!G18,decompo7prix!$A$7,IF(MIN(decompo1prix!G18,decompo2prix!G18,decompo3prix!G18,decompo4prix!G18,decompo5prix!G18,decompo6prix!G18,decompo7prix!G18,decompo8prix!G18,decompo9prix!G18,decompo10prix!G18)=decompo8prix!G18,decompo8prix!$A$7,IF(MIN(decompo1prix!G18,decompo2prix!G18,decompo3prix!G18,decompo4prix!G18,decompo5prix!G18,decompo6prix!G18,decompo7prix!G18,decompo8prix!G18,decompo9prix!G18,decompo10prix!G18)=decompo9prix!G18,decompo9prix!$A$7,decompo10prix!$A$7)))))))))) -> justine | X18: =IF($T18="","",IF(MIN(decompo1prix!H18,decompo2prix!H18,decompo3prix!H18,decompo4prix!H18,decompo5prix!H18,decompo6prix!H18,decompo7prix!H18,decompo8prix!H18,decompo9prix!H18,decompo10prix!H18)=decompo1prix!H18,decompo1prix!$A$7,IF(MIN(decompo1prix!H18,decompo2prix!H18,decompo3prix!H18,decompo4prix!H18,decompo5prix!H18,decompo6prix!H18,decompo7prix!H18,decompo8prix!H18,decompo9prix!H18,decompo10prix!H18)=decompo2prix!H18,decompo2prix!$A$7,IF(MIN(decompo1prix!H18,decompo2prix!H18,decompo3prix!H18,decompo4prix!H18,decompo5prix!H18,decompo6prix!H18,decompo7prix!H18,decompo8prix!H18,decompo9prix!H18,decompo10prix!H18)=decompo3prix!H18,decompo3prix!$A$7,IF(MIN(decompo1prix!H18,decompo2prix!H18,decompo3prix!H18,decompo4prix!H18,decompo5prix!H18,decompo6prix!H18,decompo7prix!H18,decompo8prix!H18,decompo9prix!H18,decompo10prix!H18)=decompo4prix!H18,decompo4prix!$A$7,IF(MIN(decompo1prix!H18,decompo2prix!H18,decompo3prix!H18,decompo4prix!H18,decompo5prix!H18,decompo6prix!H18,decompo7prix!H18,decompo8prix!H18,decompo9prix!H18,decompo10prix!H18)=decompo5prix!H18,decompo5prix!$A$7,IF(MIN(decompo1prix!H18,decompo2prix!H18,decompo3prix!H18,decompo4prix!H18,decompo5prix!H18,decompo6prix!H18,decompo7prix!H18,decompo8prix!H18,decompo9prix!H18,decompo10prix!H18)=decompo6prix!H18,decompo6prix!$A$7,IF(MIN(decompo1prix!H18,decompo2prix!H18,decompo3prix!H18,decompo4prix!H18,decompo5prix!H18,decompo6prix!H18,decompo7prix!H18,decompo8prix!H18,decompo9prix!H18,decompo10prix!H18)=decompo7prix!H18,decompo7prix!$A$7,IF(MIN(decompo1prix!H18,decompo2prix!H18,decompo3prix!H18,decompo4prix!H18,decompo5prix!H18,decompo6prix!H18,decompo7prix!H18,decompo8prix!H18,decompo9prix!H18,decompo10prix!H18)=decompo8prix!H18,decompo8prix!$A$7,IF(MIN(decompo1prix!H18,decompo2prix!H18,decompo3prix!H18,decompo4prix!H18,decompo5prix!H18,decompo6prix!H18,decompo7prix!H18,decompo8prix!H18,decompo9prix!H18,decompo10prix!H18)=decompo9prix!H18,decompo9prix!$A$7,decompo10prix!$A$7)))))))))) -> justine | Y18: =IF($T18="","",IF(MIN(decompo1prix!I18,decompo2prix!I18,decompo3prix!I18,decompo4prix!I18,decompo5prix!I18,decompo6prix!I18,decompo7prix!I18,decompo8prix!I18,decompo9prix!I18,decompo10prix!I18)=decompo1prix!I18,decompo1prix!$A$7,IF(MIN(decompo1prix!I18,decompo2prix!I18,decompo3prix!I18,decompo4prix!I18,decompo5prix!I18,decompo6prix!I18,decompo7prix!I18,decompo8prix!I18,decompo9prix!I18,decompo10prix!I18)=decompo2prix!I18,decompo2prix!$A$7,IF(MIN(decompo1prix!I18,decompo2prix!I18,decompo3prix!I18,decompo4prix!I18,decompo5prix!I18,decompo6prix!I18,decompo7prix!I18,decompo8prix!I18,decompo9prix!I18,decompo10prix!I18)=decompo3prix!I18,decompo3prix!$A$7,IF(MIN(decompo1prix!I18,decompo2prix!I18,decompo3prix!I18,decompo4prix!I18,decompo5prix!I18,decompo6prix!I18,decompo7prix!I18,decompo8prix!I18,decompo9prix!I18,decompo10prix!I18)=decompo4prix!I18,decompo4prix!$A$7,IF(MIN(decompo1prix!I18,decompo2prix!I18,decompo3prix!I18,decompo4prix!I18,decompo5prix!I18,decompo6prix!I18,decompo7prix!I18,decompo8prix!I18,decompo9prix!I18,decompo10prix!I18)=decompo5prix!I18,decompo5prix!$A$7,IF(MIN(decompo1prix!I18,decompo2prix!I18,decompo3prix!I18,decompo4prix!I18,decompo5prix!I18,decompo6prix!I18,decompo7prix!I18,decompo8prix!I18,decompo9prix!I18,decompo10prix!I18)=decompo6prix!I18,decompo6prix!$A$7,IF(MIN(decompo1prix!I18,decompo2prix!I18,decompo3prix!I18,decompo4prix!I18,decompo5prix!I18,decompo6prix!I18,decompo7prix!I18,decompo8prix!I18,decompo9prix!I18,decompo10prix!I18)=decompo7prix!I18,decompo7prix!$A$7,IF(MIN(decompo1prix!I18,decompo2prix!I18,decompo3prix!I18,decompo4prix!I18,decompo5prix!I18,decompo6prix!I18,decompo7prix!I18,decompo8prix!I18,decompo9prix!I18,decompo10prix!I18)=decompo8prix!I18,decompo8prix!$A$7,IF(MIN(decompo1prix!I18,decompo2prix!I18,decompo3prix!I18,decompo4prix!I18,decompo5prix!I18,decompo6prix!I18,decompo7prix!I18,decompo8prix!I18,decompo9prix!I18,decompo10prix!I18)=decompo9prix!I18,decompo9prix!$A$7,decompo10prix!$A$7)))))))))) -> justine | Z18: =IF($T18="","",IF(MIN(decompo1prix!J18,decompo2prix!J18,decompo3prix!J18,decompo4prix!J18,decompo5prix!J18,decompo6prix!J18,decompo7prix!J18,decompo8prix!J18,decompo9prix!J18,decompo10prix!J18)=decompo1prix!J18,decompo1prix!$A$7,IF(MIN(decompo1prix!J18,decompo2prix!J18,decompo3prix!J18,decompo4prix!J18,decompo5prix!J18,decompo6prix!J18,decompo7prix!J18,decompo8prix!J18,decompo9prix!J18,decompo10prix!J18)=decompo2prix!J18,decompo2prix!$A$7,IF(MIN(decompo1prix!J18,decompo2prix!J18,decompo3prix!J18,decompo4prix!J18,decompo5prix!J18,decompo6prix!J18,decompo7prix!J18,decompo8prix!J18,decompo9prix!J18,decompo10prix!J18)=decompo3prix!J18,decompo3prix!$A$7,IF(MIN(decompo1prix!J18,decompo2prix!J18,decompo3prix!J18,decompo4prix!J18,decompo5prix!J18,decompo6prix!J18,decompo7prix!J18,decompo8prix!J18,decompo9prix!J18,decompo10prix!J18)=decompo4prix!J18,decompo4prix!$A$7,IF(MIN(decompo1prix!J18,decompo2prix!J18,decompo3prix!J18,decompo4prix!J18,decompo5prix!J18,decompo6prix!J18,decompo7prix!J18,decompo8prix!J18,decompo9prix!J18,decompo10prix!J18)=decompo5prix!J18,decompo5prix!$A$7,IF(MIN(decompo1prix!J18,decompo2prix!J18,decompo3prix!J18,decompo4prix!J18,decompo5prix!J18,decompo6prix!J18,decompo7prix!J18,decompo8prix!J18,decompo9prix!J18,decompo10prix!J18)=decompo6prix!J18,decompo6prix!$A$7,IF(MIN(decompo1prix!J18,decompo2prix!J18,decompo3prix!J18,decompo4prix!J18,decompo5prix!J18,decompo6prix!J18,decompo7prix!J18,decompo8prix!J18,decompo9prix!J18,decompo10prix!J18)=decompo7prix!J18,decompo7prix!$A$7,IF(MIN(decompo1prix!J18,decompo2prix!J18,decompo3prix!J18,decompo4prix!J18,decompo5prix!J18,decompo6prix!J18,decompo7prix!J18,decompo8prix!J18,decompo9prix!J18,decompo10prix!J18)=decompo8prix!J18,decompo8prix!$A$7,IF(MIN(decompo1prix!J18,decompo2prix!J18,decompo3prix!J18,decompo4prix!J18,decompo5prix!J18,decompo6prix!J18,decompo7prix!J18,decompo8prix!J18,decompo9prix!J18,decompo10prix!J18)=decompo9prix!J18,decompo9prix!$A$7,decompo10prix!$A$7)))))))))) -> justine | AA18: =IF($T18="","",IF(MIN(decompo1prix!K18,decompo2prix!K18,decompo3prix!K18,decompo4prix!K18,decompo5prix!K18,decompo6prix!K18,decompo7prix!K18,decompo8prix!K18,decompo9prix!K18,decompo10prix!K18)=decompo1prix!K18,decompo1prix!$A$7,IF(MIN(decompo1prix!K18,decompo2prix!K18,decompo3prix!K18,decompo4prix!K18,decompo5prix!K18,decompo6prix!K18,decompo7prix!K18,decompo8prix!K18,decompo9prix!K18,decompo10prix!K18)=decompo2prix!K18,decompo2prix!$A$7,IF(MIN(decompo1prix!K18,decompo2prix!K18,decompo3prix!K18,decompo4prix!K18,decompo5prix!K18,decompo6prix!K18,decompo7prix!K18,decompo8prix!K18,decompo9prix!K18,decompo10prix!K18)=decompo3prix!K18,decompo3prix!$A$7,IF(MIN(decompo1prix!K18,decompo2prix!K18,decompo3prix!K18,decompo4prix!K18,decompo5prix!K18,decompo6prix!K18,decompo7prix!K18,decompo8prix!K18,decompo9prix!K18,decompo10prix!K18)=decompo4prix!K18,decompo4prix!$A$7,IF(MIN(decompo1prix!K18,decompo2prix!K18,decompo3prix!K18,decompo4prix!K18,decompo5prix!K18,decompo6prix!K18,decompo7prix!K18,decompo8prix!K18,decompo9prix!K18,decompo10prix!K18)=decompo5prix!K18,decompo5prix!$A$7,IF(MIN(decompo1prix!K18,decompo2prix!K18,decompo3prix!K18,decompo4prix!K18,decompo5prix!K18,decompo6prix!K18,decompo7prix!K18,decompo8prix!K18,decompo9prix!K18,decompo10prix!K18)=decompo6prix!K18,decompo6prix!$A$7,IF(MIN(decompo1prix!K18,decompo2prix!K18,decompo3prix!K18,decompo4prix!K18,decompo5prix!K18,decompo6prix!K18,decompo7prix!K18,decompo8prix!K18,decompo9prix!K18,decompo10prix!K18)=decompo7prix!K18,decompo7prix!$A$7,IF(MIN(decompo1prix!K18,decompo2prix!K18,decompo3prix!K18,decompo4prix!K18,decompo5prix!K18,decompo6prix!K18,decompo7prix!K18,decompo8prix!K18,decompo9prix!K18,decompo10prix!K18)=decompo8prix!K18,decompo8prix!$A$7,IF(MIN(decompo1prix!K18,decompo2prix!K18,decompo3prix!K18,decompo4prix!K18,decompo5prix!K18,decompo6prix!K18,decompo7prix!K18,decompo8prix!K18,decompo9prix!K18,decompo10prix!K18)=decompo9prix!K18,decompo9prix!$A$7,decompo10prix!$A$7)))))))))) -> justine | AB18: =IF($T18="","",IF(MIN(decompo1prix!L18,decompo2prix!L18,decompo3prix!L18,decompo4prix!L18,decompo5prix!L18,decompo6prix!L18,decompo7prix!L18,decompo8prix!L18,decompo9prix!L18,decompo10prix!L18)=decompo1prix!L18,decompo1prix!$A$7,IF(MIN(decompo1prix!L18,decompo2prix!L18,decompo3prix!L18,decompo4prix!L18,decompo5prix!L18,decompo6prix!L18,decompo7prix!L18,decompo8prix!L18,decompo9prix!L18,decompo10prix!L18)=decompo2prix!L18,decompo2prix!$A$7,IF(MIN(decompo1prix!L18,decompo2prix!L18,decompo3prix!L18,decompo4prix!L18,decompo5prix!L18,decompo6prix!L18,decompo7prix!L18,decompo8prix!L18,decompo9prix!L18,decompo10prix!L18)=decompo3prix!L18,decompo3prix!$A$7,IF(MIN(decompo1prix!L18,decompo2prix!L18,decompo3prix!L18,decompo4prix!L18,decompo5prix!L18,decompo6prix!L18,decompo7prix!L18,decompo8prix!L18,decompo9prix!L18,decompo10prix!L18)=decompo4prix!L18,decompo4prix!$A$7,IF(MIN(decompo1prix!L18,decompo2prix!L18,decompo3prix!L18,decompo4prix!L18,decompo5prix!L18,decompo6prix!L18,decompo7prix!L18,decompo8prix!L18,decompo9prix!L18,decompo10prix!L18)=decompo5prix!L18,decompo5prix!$A$7,IF(MIN(decompo1prix!L18,decompo2prix!L18,decompo3prix!L18,decompo4prix!L18,decompo5prix!L18,decompo6prix!L18,decompo7prix!L18,decompo8prix!L18,decompo9prix!L18,decompo10prix!L18)=decompo6prix!L18,decompo6prix!$A$7,IF(MIN(decompo1prix!L18,decompo2prix!L18,decompo3prix!L18,decompo4prix!L18,decompo5prix!L18,decompo6prix!L18,decompo7prix!L18,decompo8prix!L18,decompo9prix!L18,decompo10prix!L18)=decompo7prix!L18,decompo7prix!$A$7,IF(MIN(decompo1prix!L18,decompo2prix!L18,decompo3prix!L18,decompo4prix!L18,decompo5prix!L18,decompo6prix!L18,decompo7prix!L18,decompo8prix!L18,decompo9prix!L18,decompo10prix!L18)=decompo8prix!L18,decompo8prix!$A$7,IF(MIN(decompo1prix!L18,decompo2prix!L18,decompo3prix!L18,decompo4prix!L18,decompo5prix!L18,decompo6prix!L18,decompo7prix!L18,decompo8prix!L18,decompo9prix!L18,decompo10prix!L18)=decompo9prix!L18,decompo9prix!$A$7,decompo10prix!$A$7)))))))))) -> romain | AC18: =IF($T18="","",IF(MIN(decompo1prix!M18,decompo2prix!M18,decompo3prix!M18,decompo4prix!M18,decompo5prix!M18,decompo6prix!M18,decompo7prix!M18,decompo8prix!M18,decompo9prix!M18,decompo10prix!M18)=decompo1prix!M18,decompo1prix!$A$7,IF(MIN(decompo1prix!M18,decompo2prix!M18,decompo3prix!M18,decompo4prix!M18,decompo5prix!M18,decompo6prix!M18,decompo7prix!M18,decompo8prix!M18,decompo9prix!M18,decompo10prix!M18)=decompo2prix!M18,decompo2prix!$A$7,IF(MIN(decompo1prix!M18,decompo2prix!M18,decompo3prix!M18,decompo4prix!M18,decompo5prix!M18,decompo6prix!M18,decompo7prix!M18,decompo8prix!M18,decompo9prix!M18,decompo10prix!M18)=decompo3prix!M18,decompo3prix!$A$7,IF(MIN(decompo1prix!M18,decompo2prix!M18,decompo3prix!M18,decompo4prix!M18,decompo5prix!M18,decompo6prix!M18,decompo7prix!M18,decompo8prix!M18,decompo9prix!M18,decompo10prix!M18)=decompo4prix!M18,decompo4prix!$A$7,IF(MIN(decompo1prix!M18,decompo2prix!M18,decompo3prix!M18,decompo4prix!M18,decompo5prix!M18,decompo6prix!M18,decompo7prix!M18,decompo8prix!M18,decompo9prix!M18,decompo10prix!M18)=decompo5prix!M18,decompo5prix!$A$7,IF(MIN(decompo1prix!M18,decompo2prix!M18,decompo3prix!M18,decompo4prix!M18,decompo5prix!M18,decompo6prix!M18,decompo7prix!M18,decompo8prix!M18,decompo9prix!M18,decompo10prix!M18)=decompo6prix!M18,decompo6prix!$A$7,IF(MIN(decompo1prix!M18,decompo2prix!M18,decompo3prix!M18,decompo4prix!M18,decompo5prix!M18,decompo6prix!M18,decompo7prix!M18,decompo8prix!M18,decompo9prix!M18,decompo10prix!M18)=decompo7prix!M18,decompo7prix!$A$7,IF(MIN(decompo1prix!M18,decompo2prix!M18,decompo3prix!M18,decompo4prix!M18,decompo5prix!M18,decompo6prix!M18,decompo7prix!M18,decompo8prix!M18,decompo9prix!M18,decompo10prix!M18)=decompo8prix!M18,decompo8prix!$A$7,IF(MIN(decompo1prix!M18,decompo2prix!M18,decompo3prix!M18,decompo4prix!M18,decompo5prix!M18,decompo6prix!M18,decompo7prix!M18,decompo8prix!M18,decompo9prix!M18,decompo10prix!M18)=decompo9prix!M18,decompo9prix!$A$7,decompo10prix!$A$7)))))))))) -> romain | AF18: FR10 | AG18: =SUM(decompo10prix!F10:F210) -> 0 | AH18: =SUM(decompo10prix!G10:G210) -> 0 | AI18: =SUM(decompo10prix!H10:H210) -> 0 | AJ18: =SUM(decompo10prix!I10:I210) -> 0 | AK18: =SUM(decompo10prix!J10:J210) -> 0 | AL18: =SUM(decompo10prix!K10:K210) -> 0 | AM18: =SUM(decompo10prix!L10:L210) -> 0 | AN18: =SUM(decompo10prix!M10:M210) -> 0 | AQ18: FR10
A19: VIS 10 | B19: IN10 | C19: =MIN(decompo1prix!F19,decompo2prix!F19,decompo3prix!F19,decompo4prix!F19,decompo5prix!F19,decompo6prix!F19,decompo7prix!F19,decompo8prix!F19,decompo9prix!F19,decompo10prix!F19) -> 47.65 | D19: =MIN(decompo1prix!G19,decompo2prix!G19,decompo3prix!G19,decompo4prix!G19,decompo5prix!G19,decompo6prix!G19,decompo7prix!G19,decompo8prix!G19,decompo9prix!G19,decompo10prix!G19) -> 47.65 | E19: =MIN(decompo1prix!H19,decompo2prix!H19,decompo3prix!H19,decompo4prix!H19,decompo5prix!H19,decompo6prix!H19,decompo7prix!H19,decompo8prix!H19,decompo9prix!H19,decompo10prix!H19) -> 39.9 | F19: =MIN(decompo1prix!I19,decompo2prix!I19,decompo3prix!I19,decompo4prix!I19,decompo5prix!I19,decompo6prix!I19,decompo7prix!I19,decompo8prix!I19,decompo9prix!I19,decompo10prix!I19) -> 33.2 | G19: =MIN(decompo1prix!J19,decompo2prix!J19,decompo3prix!J19,decompo4prix!J19,decompo5prix!J19,decompo6prix!J19,decompo7prix!J19,decompo8prix!J19,decompo9prix!J19,decompo10prix!J19) -> 29.9 | H19: =MIN(decompo1prix!K19,decompo2prix!K19,decompo3prix!K19,decompo4prix!K19,decompo5prix!K19,decompo6prix!K19,decompo7prix!K19,decompo8prix!K19,decompo9prix!K19,decompo10prix!K19) -> 27.7 | I19: =MIN(decompo1prix!L19,decompo2prix!L19,decompo3prix!L19,decompo4prix!L19,decompo5prix!L19,decompo6prix!L19,decompo7prix!L19,decompo8prix!L19,decompo9prix!L19,decompo10prix!L19) -> 25 | J19: =MIN(decompo1prix!M19,decompo2prix!M19,decompo3prix!M19,decompo4prix!M19,decompo5prix!M19,decompo6prix!M19,decompo7prix!M19,decompo8prix!M19,decompo9prix!M19,decompo10prix!M19) -> 23.05 | T19: VIS 10 | U19: in10 | V19: =IF($T19="","",IF(MIN(decompo1prix!F19,decompo2prix!F19,decompo3prix!F19,decompo4prix!F19,decompo5prix!F19,decompo6prix!F19,decompo7prix!F19,decompo8prix!F19,decompo9prix!F19,decompo10prix!F19)=decompo1prix!F19,decompo1prix!$A$7,IF(MIN(decompo1prix!F19,decompo2prix!F19,decompo3prix!F19,decompo4prix!F19,decompo5prix!F19,decompo6prix!F19,decompo7prix!F19,decompo8prix!F19,decompo9prix!F19,decompo10prix!F19)=decompo2prix!F19,decompo2prix!$A$7,IF(MIN(decompo1prix!F19,decompo2prix!F19,decompo3prix!F19,decompo4prix!F19,decompo5prix!F19,decompo6prix!F19,decompo7prix!F19,decompo8prix!F19,decompo9prix!F19,decompo10prix!F19)=decompo3prix!F19,decompo3prix!$A$7,IF(MIN(decompo1prix!F19,decompo2prix!F19,decompo3prix!F19,decompo4prix!F19,decompo5prix!F19,decompo6prix!F19,decompo7prix!F19,decompo8prix!F19,decompo9prix!F19,decompo10prix!F19)=decompo4prix!F19,decompo4prix!$A$7,IF(MIN(decompo1prix!F19,decompo2prix!F19,decompo3prix!F19,decompo4prix!F19,decompo5prix!F19,decompo6prix!F19,decompo7prix!F19,decompo8prix!F19,decompo9prix!F19,decompo10prix!F19)=decompo5prix!F19,decompo5prix!$A$7,IF(MIN(decompo1prix!F19,decompo2prix!F19,decompo3prix!F19,decompo4prix!F19,decompo5prix!F19,decompo6prix!F19,decompo7prix!F19,decompo8prix!F19,decompo9prix!F19,decompo10prix!F19)=decompo6prix!F19,decompo6prix!$A$7,IF(MIN(decompo1prix!F19,decompo2prix!F19,decompo3prix!F19,decompo4prix!F19,decompo5prix!F19,decompo6prix!F19,decompo7prix!F19,decompo8prix!F19,decompo9prix!F19,decompo10prix!F19)=decompo7prix!F19,decompo7prix!$A$7,IF(MIN(decompo1prix!F19,decompo2prix!F19,decompo3prix!F19,decompo4prix!F19,decompo5prix!F19,decompo6prix!F19,decompo7prix!F19,decompo8prix!F19,decompo9prix!F19,decompo10prix!F19)=decompo8prix!F19,decompo8prix!$A$7,IF(MIN(decompo1prix!F19,decompo2prix!F19,decompo3prix!F19,decompo4prix!F19,decompo5prix!F19,decompo6prix!F19,decompo7prix!F19,decompo8prix!F19,decompo9prix!F19,decompo10prix!F19)=decompo9prix!F19,decompo9prix!$A$7,decompo10prix!$A$7)))))))))) -> justine | W19: =IF($T19="","",IF(MIN(decompo1prix!G19,decompo2prix!G19,decompo3prix!G19,decompo4prix!G19,decompo5prix!G19,decompo6prix!G19,decompo7prix!G19,decompo8prix!G19,decompo9prix!G19,decompo10prix!G19)=decompo1prix!G19,decompo1prix!$A$7,IF(MIN(decompo1prix!G19,decompo2prix!G19,decompo3prix!G19,decompo4prix!G19,decompo5prix!G19,decompo6prix!G19,decompo7prix!G19,decompo8prix!G19,decompo9prix!G19,decompo10prix!G19)=decompo2prix!G19,decompo2prix!$A$7,IF(MIN(decompo1prix!G19,decompo2prix!G19,decompo3prix!G19,decompo4prix!G19,decompo5prix!G19,decompo6prix!G19,decompo7prix!G19,decompo8prix!G19,decompo9prix!G19,decompo10prix!G19)=decompo3prix!G19,decompo3prix!$A$7,IF(MIN(decompo1prix!G19,decompo2prix!G19,decompo3prix!G19,decompo4prix!G19,decompo5prix!G19,decompo6prix!G19,decompo7prix!G19,decompo8prix!G19,decompo9prix!G19,decompo10prix!G19)=decompo4prix!G19,decompo4prix!$A$7,IF(MIN(decompo1prix!G19,decompo2prix!G19,decompo3prix!G19,decompo4prix!G19,decompo5prix!G19,decompo6prix!G19,decompo7prix!G19,decompo8prix!G19,decompo9prix!G19,decompo10prix!G19)=decompo5prix!G19,decompo5prix!$A$7,IF(MIN(decompo1prix!G19,decompo2prix!G19,decompo3prix!G19,decompo4prix!G19,decompo5prix!G19,decompo6prix!G19,decompo7prix!G19,decompo8prix!G19,decompo9prix!G19,decompo10prix!G19)=decompo6prix!G19,decompo6prix!$A$7,IF(MIN(decompo1prix!G19,decompo2prix!G19,decompo3prix!G19,decompo4prix!G19,decompo5prix!G19,decompo6prix!G19,decompo7prix!G19,decompo8prix!G19,decompo9prix!G19,decompo10prix!G19)=decompo7prix!G19,decompo7prix!$A$7,IF(MIN(decompo1prix!G19,decompo2prix!G19,decompo3prix!G19,decompo4prix!G19,decompo5prix!G19,decompo6prix!G19,decompo7prix!G19,decompo8prix!G19,decompo9prix!G19,decompo10prix!G19)=decompo8prix!G19,decompo8prix!$A$7,IF(MIN(decompo1prix!G19,decompo2prix!G19,decompo3prix!G19,decompo4prix!G19,decompo5prix!G19,decompo6prix!G19,decompo7prix!G19,decompo8prix!G19,decompo9prix!G19,decompo10prix!G19)=decompo9prix!G19,decompo9prix!$A$7,decompo10prix!$A$7)))))))))) -> justine | X19: =IF($T19="","",IF(MIN(decompo1prix!H19,decompo2prix!H19,decompo3prix!H19,decompo4prix!H19,decompo5prix!H19,decompo6prix!H19,decompo7prix!H19,decompo8prix!H19,decompo9prix!H19,decompo10prix!H19)=decompo1prix!H19,decompo1prix!$A$7,IF(MIN(decompo1prix!H19,decompo2prix!H19,decompo3prix!H19,decompo4prix!H19,decompo5prix!H19,decompo6prix!H19,decompo7prix!H19,decompo8prix!H19,decompo9prix!H19,decompo10prix!H19)=decompo2prix!H19,decompo2prix!$A$7,IF(MIN(decompo1prix!H19,decompo2prix!H19,decompo3prix!H19,decompo4prix!H19,decompo5prix!H19,decompo6prix!H19,decompo7prix!H19,decompo8prix!H19,decompo9prix!H19,decompo10prix!H19)=decompo3prix!H19,decompo3prix!$A$7,IF(MIN(decompo1prix!H19,decompo2prix!H19,decompo3prix!H19,decompo4prix!H19,decompo5prix!H19,decompo6prix!H19,decompo7prix!H19,decompo8prix!H19,decompo9prix!H19,decompo10prix!H19)=decompo4prix!H19,decompo4prix!$A$7,IF(MIN(decompo1prix!H19,decompo2prix!H19,decompo3prix!H19,decompo4prix!H19,decompo5prix!H19,decompo6prix!H19,decompo7prix!H19,decompo8prix!H19,decompo9prix!H19,decompo10prix!H19)=decompo5prix!H19,decompo5prix!$A$7,IF(MIN(decompo1prix!H19,decompo2prix!H19,decompo3prix!H19,decompo4prix!H19,decompo5prix!H19,decompo6prix!H19,decompo7prix!H19,decompo8prix!H19,decompo9prix!H19,decompo10prix!H19)=decompo6prix!H19,decompo6prix!$A$7,IF(MIN(decompo1prix!H19,decompo2prix!H19,decompo3prix!H19,decompo4prix!H19,decompo5prix!H19,decompo6prix!H19,decompo7prix!H19,decompo8prix!H19,decompo9prix!H19,decompo10prix!H19)=decompo7prix!H19,decompo7prix!$A$7,IF(MIN(decompo1prix!H19,decompo2prix!H19,decompo3prix!H19,decompo4prix!H19,decompo5prix!H19,decompo6prix!H19,decompo7prix!H19,decompo8prix!H19,decompo9prix!H19,decompo10prix!H19)=decompo8prix!H19,decompo8prix!$A$7,IF(MIN(decompo1prix!H19,decompo2prix!H19,decompo3prix!H19,decompo4prix!H19,decompo5prix!H19,decompo6prix!H19,decompo7prix!H19,decompo8prix!H19,decompo9prix!H19,decompo10prix!H19)=decompo9prix!H19,decompo9prix!$A$7,decompo10prix!$A$7)))))))))) -> romain | Y19: =IF($T19="","",IF(MIN(decompo1prix!I19,decompo2prix!I19,decompo3prix!I19,decompo4prix!I19,decompo5prix!I19,decompo6prix!I19,decompo7prix!I19,decompo8prix!I19,decompo9prix!I19,decompo10prix!I19)=decompo1prix!I19,decompo1prix!$A$7,IF(MIN(decompo1prix!I19,decompo2prix!I19,decompo3prix!I19,decompo4prix!I19,decompo5prix!I19,decompo6prix!I19,decompo7prix!I19,decompo8prix!I19,decompo9prix!I19,decompo10prix!I19)=decompo2prix!I19,decompo2prix!$A$7,IF(MIN(decompo1prix!I19,decompo2prix!I19,decompo3prix!I19,decompo4prix!I19,decompo5prix!I19,decompo6prix!I19,decompo7prix!I19,decompo8prix!I19,decompo9prix!I19,decompo10prix!I19)=decompo3prix!I19,decompo3prix!$A$7,IF(MIN(decompo1prix!I19,decompo2prix!I19,decompo3prix!I19,decompo4prix!I19,decompo5prix!I19,decompo6prix!I19,decompo7prix!I19,decompo8prix!I19,decompo9prix!I19,decompo10prix!I19)=decompo4prix!I19,decompo4prix!$A$7,IF(MIN(decompo1prix!I19,decompo2prix!I19,decompo3prix!I19,decompo4prix!I19,decompo5prix!I19,decompo6prix!I19,decompo7prix!I19,decompo8prix!I19,decompo9prix!I19,decompo10prix!I19)=decompo5prix!I19,decompo5prix!$A$7,IF(MIN(decompo1prix!I19,decompo2prix!I19,decompo3prix!I19,decompo4prix!I19,decompo5prix!I19,decompo6prix!I19,decompo7prix!I19,decompo8prix!I19,decompo9prix!I19,decompo10prix!I19)=decompo6prix!I19,decompo6prix!$A$7,IF(MIN(decompo1prix!I19,decompo2prix!I19,decompo3prix!I19,decompo4prix!I19,decompo5prix!I19,decompo6prix!I19,decompo7prix!I19,decompo8prix!I19,decompo9prix!I19,decompo10prix!I19)=decompo7prix!I19,decompo7prix!$A$7,IF(MIN(decompo1prix!I19,decompo2prix!I19,decompo3prix!I19,decompo4prix!I19,decompo5prix!I19,decompo6prix!I19,decompo7prix!I19,decompo8prix!I19,decompo9prix!I19,decompo10prix!I19)=decompo8prix!I19,decompo8prix!$A$7,IF(MIN(decompo1prix!I19,decompo2prix!I19,decompo3prix!I19,decompo4prix!I19,decompo5prix!I19,decompo6prix!I19,decompo7prix!I19,decompo8prix!I19,decompo9prix!I19,decompo10prix!I19)=decompo9prix!I19,decompo9prix!$A$7,decompo10prix!$A$7)))))))))) -> romain | Z19: =IF($T19="","",IF(MIN(decompo1prix!J19,decompo2prix!J19,decompo3prix!J19,decompo4prix!J19,decompo5prix!J19,decompo6prix!J19,decompo7prix!J19,decompo8prix!J19,decompo9prix!J19,decompo10prix!J19)=decompo1prix!J19,decompo1prix!$A$7,IF(MIN(decompo1prix!J19,decompo2prix!J19,decompo3prix!J19,decompo4prix!J19,decompo5prix!J19,decompo6prix!J19,decompo7prix!J19,decompo8prix!J19,decompo9prix!J19,decompo10prix!J19)=decompo2prix!J19,decompo2prix!$A$7,IF(MIN(decompo1prix!J19,decompo2prix!J19,decompo3prix!J19,decompo4prix!J19,decompo5prix!J19,decompo6prix!J19,decompo7prix!J19,decompo8prix!J19,decompo9prix!J19,decompo10prix!J19)=decompo3prix!J19,decompo3prix!$A$7,IF(MIN(decompo1prix!J19,decompo2prix!J19,decompo3prix!J19,decompo4prix!J19,decompo5prix!J19,decompo6prix!J19,decompo7prix!J19,decompo8prix!J19,decompo9prix!J19,decompo10prix!J19)=decompo4prix!J19,decompo4prix!$A$7,IF(MIN(decompo1prix!J19,decompo2prix!J19,decompo3prix!J19,decompo4prix!J19,decompo5prix!J19,decompo6prix!J19,decompo7prix!J19,decompo8prix!J19,decompo9prix!J19,decompo10prix!J19)=decompo5prix!J19,decompo5prix!$A$7,IF(MIN(decompo1prix!J19,decompo2prix!J19,decompo3prix!J19,decompo4prix!J19,decompo5prix!J19,decompo6prix!J19,decompo7prix!J19,decompo8prix!J19,decompo9prix!J19,decompo10prix!J19)=decompo6prix!J19,decompo6prix!$A$7,IF(MIN(decompo1prix!J19,decompo2prix!J19,decompo3prix!J19,decompo4prix!J19,decompo5prix!J19,decompo6prix!J19,decompo7prix!J19,decompo8prix!J19,decompo9prix!J19,decompo10prix!J19)=decompo7prix!J19,decompo7prix!$A$7,IF(MIN(decompo1prix!J19,decompo2prix!J19,decompo3prix!J19,decompo4prix!J19,decompo5prix!J19,decompo6prix!J19,decompo7prix!J19,decompo8prix!J19,decompo9prix!J19,decompo10prix!J19)=decompo8prix!J19,decompo8prix!$A$7,IF(MIN(decompo1prix!J19,decompo2prix!J19,decompo3prix!J19,decompo4prix!J19,decompo5prix!J19,decompo6prix!J19,decompo7prix!J19,decompo8prix!J19,decompo9prix!J19,decompo10prix!J19)=decompo9prix!J19,decompo9prix!$A$7,decompo10prix!$A$7)))))))))) -> romain | AA19: =IF($T19="","",IF(MIN(decompo1prix!K19,decompo2prix!K19,decompo3prix!K19,decompo4prix!K19,decompo5prix!K19,decompo6prix!K19,decompo7prix!K19,decompo8prix!K19,decompo9prix!K19,decompo10prix!K19)=decompo1prix!K19,decompo1prix!$A$7,IF(MIN(decompo1prix!K19,decompo2prix!K19,decompo3prix!K19,decompo4prix!K19,decompo5prix!K19,decompo6prix!K19,decompo7prix!K19,decompo8prix!K19,decompo9prix!K19,decompo10prix!K19)=decompo2prix!K19,decompo2prix!$A$7,IF(MIN(decompo1prix!K19,decompo2prix!K19,decompo3prix!K19,decompo4prix!K19,decompo5prix!K19,decompo6prix!K19,decompo7prix!K19,decompo8prix!K19,decompo9prix!K19,decompo10prix!K19)=decompo3prix!K19,decompo3prix!$A$7,IF(MIN(decompo1prix!K19,decompo2prix!K19,decompo3prix!K19,decompo4prix!K19,decompo5prix!K19,decompo6prix!K19,decompo7prix!K19,decompo8prix!K19,decompo9prix!K19,decompo10prix!K19)=decompo4prix!K19,decompo4prix!$A$7,IF(MIN(decompo1prix!K19,decompo2prix!K19,decompo3prix!K19,decompo4prix!K19,decompo5prix!K19,decompo6prix!K19,decompo7prix!K19,decompo8prix!K19,decompo9prix!K19,decompo10prix!K19)=decompo5prix!K19,decompo5prix!$A$7,IF(MIN(decompo1prix!K19,decompo2prix!K19,decompo3prix!K19,decompo4prix!K19,decompo5prix!K19,decompo6prix!K19,decompo7prix!K19,decompo8prix!K19,decompo9prix!K19,decompo10prix!K19)=decompo6prix!K19,decompo6prix!$A$7,IF(MIN(decompo1prix!K19,decompo2prix!K19,decompo3prix!K19,decompo4prix!K19,decompo5prix!K19,decompo6prix!K19,decompo7prix!K19,decompo8prix!K19,decompo9prix!K19,decompo10prix!K19)=decompo7prix!K19,decompo7prix!$A$7,IF(MIN(decompo1prix!K19,decompo2prix!K19,decompo3prix!K19,decompo4prix!K19,decompo5prix!K19,decompo6prix!K19,decompo7prix!K19,decompo8prix!K19,decompo9prix!K19,decompo10prix!K19)=decompo8prix!K19,decompo8prix!$A$7,IF(MIN(decompo1prix!K19,decompo2prix!K19,decompo3prix!K19,decompo4prix!K19,decompo5prix!K19,decompo6prix!K19,decompo7prix!K19,decompo8prix!K19,decompo9prix!K19,decompo10prix!K19)=decompo9prix!K19,decompo9prix!$A$7,decompo10prix!$A$7)))))))))) -> romain | AB19: =IF($T19="","",IF(MIN(decompo1prix!L19,decompo2prix!L19,decompo3prix!L19,decompo4prix!L19,decompo5prix!L19,decompo6prix!L19,decompo7prix!L19,decompo8prix!L19,decompo9prix!L19,decompo10prix!L19)=decompo1prix!L19,decompo1prix!$A$7,IF(MIN(decompo1prix!L19,decompo2prix!L19,decompo3prix!L19,decompo4prix!L19,decompo5prix!L19,decompo6prix!L19,decompo7prix!L19,decompo8prix!L19,decompo9prix!L19,decompo10prix!L19)=decompo2prix!L19,decompo2prix!$A$7,IF(MIN(decompo1prix!L19,decompo2prix!L19,decompo3prix!L19,decompo4prix!L19,decompo5prix!L19,decompo6prix!L19,decompo7prix!L19,decompo8prix!L19,decompo9prix!L19,decompo10prix!L19)=decompo3prix!L19,decompo3prix!$A$7,IF(MIN(decompo1prix!L19,decompo2prix!L19,decompo3prix!L19,decompo4prix!L19,decompo5prix!L19,decompo6prix!L19,decompo7prix!L19,decompo8prix!L19,decompo9prix!L19,decompo10prix!L19)=decompo4prix!L19,decompo4prix!$A$7,IF(MIN(decompo1prix!L19,decompo2prix!L19,decompo3prix!L19,decompo4prix!L19,decompo5prix!L19,decompo6prix!L19,decompo7prix!L19,decompo8prix!L19,decompo9prix!L19,decompo10prix!L19)=decompo5prix!L19,decompo5prix!$A$7,IF(MIN(decompo1prix!L19,decompo2prix!L19,decompo3prix!L19,decompo4prix!L19,decompo5prix!L19,decompo6prix!L19,decompo7prix!L19,decompo8prix!L19,decompo9prix!L19,decompo10prix!L19)=decompo6prix!L19,decompo6prix!$A$7,IF(MIN(decompo1prix!L19,decompo2prix!L19,decompo3prix!L19,decompo4prix!L19,decompo5prix!L19,decompo6prix!L19,decompo7prix!L19,decompo8prix!L19,decompo9prix!L19,decompo10prix!L19)=decompo7prix!L19,decompo7prix!$A$7,IF(MIN(decompo1prix!L19,decompo2prix!L19,decompo3prix!L19,decompo4prix!L19,decompo5prix!L19,decompo6prix!L19,decompo7prix!L19,decompo8prix!L19,decompo9prix!L19,decompo10prix!L19)=decompo8prix!L19,decompo8prix!$A$7,IF(MIN(decompo1prix!L19,decompo2prix!L19,decompo3prix!L19,decompo4prix!L19,decompo5prix!L19,decompo6prix!L19,decompo7prix!L19,decompo8prix!L19,decompo9prix!L19,decompo10prix!L19)=decompo9prix!L19,decompo9prix!$A$7,decompo10prix!$A$7)))))))))) -> ludo | AC19: =IF($T19="","",IF(MIN(decompo1prix!M19,decompo2prix!M19,decompo3prix!M19,decompo4prix!M19,decompo5prix!M19,decompo6prix!M19,decompo7prix!M19,decompo8prix!M19,decompo9prix!M19,decompo10prix!M19)=decompo1prix!M19,decompo1prix!$A$7,IF(MIN(decompo1prix!M19,decompo2prix!M19,decompo3prix!M19,decompo4prix!M19,decompo5prix!M19,decompo6prix!M19,decompo7prix!M19,decompo8prix!M19,decompo9prix!M19,decompo10prix!M19)=decompo2prix!M19,decompo2prix!$A$7,IF(MIN(decompo1prix!M19,decompo2prix!M19,decompo3prix!M19,decompo4prix!M19,decompo5prix!M19,decompo6prix!M19,decompo7prix!M19,decompo8prix!M19,decompo9prix!M19,decompo10prix!M19)=decompo3prix!M19,decompo3prix!$A$7,IF(MIN(decompo1prix!M19,decompo2prix!M19,decompo3prix!M19,decompo4prix!M19,decompo5prix!M19,decompo6prix!M19,decompo7prix!M19,decompo8prix!M19,decompo9prix!M19,decompo10prix!M19)=decompo4prix!M19,decompo4prix!$A$7,IF(MIN(decompo1prix!M19,decompo2prix!M19,decompo3prix!M19,decompo4prix!M19,decompo5prix!M19,decompo6prix!M19,decompo7prix!M19,decompo8prix!M19,decompo9prix!M19,decompo10prix!M19)=decompo5prix!M19,decompo5prix!$A$7,IF(MIN(decompo1prix!M19,decompo2prix!M19,decompo3prix!M19,decompo4prix!M19,decompo5prix!M19,decompo6prix!M19,decompo7prix!M19,decompo8prix!M19,decompo9prix!M19,decompo10prix!M19)=decompo6prix!M19,decompo6prix!$A$7,IF(MIN(decompo1prix!M19,decompo2prix!M19,decompo3prix!M19,decompo4prix!M19,decompo5prix!M19,decompo6prix!M19,decompo7prix!M19,decompo8prix!M19,decompo9prix!M19,decompo10prix!M19)=decompo7prix!M19,decompo7prix!$A$7,IF(MIN(decompo1prix!M19,decompo2prix!M19,decompo3prix!M19,decompo4prix!M19,decompo5prix!M19,decompo6prix!M19,decompo7prix!M19,decompo8prix!M19,decompo9prix!M19,decompo10prix!M19)=decompo8prix!M19,decompo8prix!$A$7,IF(MIN(decompo1prix!M19,decompo2prix!M19,decompo3prix!M19,decompo4prix!M19,decompo5prix!M19,decompo6prix!M19,decompo7prix!M19,decompo8prix!M19,decompo9prix!M19,decompo10prix!M19)=decompo9prix!M19,decompo9prix!$A$7,decompo10prix!$A$7)))))))))) -> ludo | AF19: Best cumul | AG19: =MIN(IF(AG9:AG18>0,AG9:AG18)) -> 1453.84 | AH19: =MIN(IF(AH9:AH18>0,AH9:AH18)) -> 2907.68 | AI19: =MIN(IF(AI9:AI18>0,AI9:AI18)) -> 4296.4 | AJ19: =MIN(IF(AJ9:AJ18>0,AJ9:AJ18)) -> 8637.92 | AK19: =MIN(IF(AK9:AK18>0,AK9:AK18)) -> 12124.8 | AL19: =MIN(IF(AL9:AL18>0,AL9:AL18)) -> 14559.36 | AM19: =MIN(IF(AM9:AM18>0,AM9:AM18)) -> 17680 | AN19: =MIN(IF(AN9:AN18>0,AN9:AN18)) -> 40440 | AQ19: Best cumul | AR19: 726.92 | AS19: 726.92 | AT19: 537.05 | AU19: 539.87 | AV19: 505.2 | AW19: 454.98 | AX19: 442 | AY19: 404.4
A20: VIS 11 | B20: IN11 | C20: =MIN(decompo1prix!F20,decompo2prix!F20,decompo3prix!F20,decompo4prix!F20,decompo5prix!F20,decompo6prix!F20,decompo7prix!F20,decompo8prix!F20,decompo9prix!F20,decompo10prix!F20) -> 33.05 | D20: =MIN(decompo1prix!G20,decompo2prix!G20,decompo3prix!G20,decompo4prix!G20,decompo5prix!G20,decompo6prix!G20,decompo7prix!G20,decompo8prix!G20,decompo9prix!G20,decompo10prix!G20) -> 33.05 | E20: =MIN(decompo1prix!H20,decompo2prix!H20,decompo3prix!H20,decompo4prix!H20,decompo5prix!H20,decompo6prix!H20,decompo7prix!H20,decompo8prix!H20,decompo9prix!H20,decompo10prix!H20) -> 27.7 | F20: =MIN(decompo1prix!I20,decompo2prix!I20,decompo3prix!I20,decompo4prix!I20,decompo5prix!I20,decompo6prix!I20,decompo7prix!I20,decompo8prix!I20,decompo9prix!I20,decompo10prix!I20) -> 25.19 | G20: =MIN(decompo1prix!J20,decompo2prix!J20,decompo3prix!J20,decompo4prix!J20,decompo5prix!J20,decompo6prix!J20,decompo7prix!J20,decompo8prix!J20,decompo9prix!J20,decompo10prix!J20) -> 25.19 | H20: =MIN(decompo1prix!K20,decompo2prix!K20,decompo3prix!K20,decompo4prix!K20,decompo5prix!K20,decompo6prix!K20,decompo7prix!K20,decompo8prix!K20,decompo9prix!K20,decompo10prix!K20) -> 23.91 | I20: =MIN(decompo1prix!L20,decompo2prix!L20,decompo3prix!L20,decompo4prix!L20,decompo5prix!L20,decompo6prix!L20,decompo7prix!L20,decompo8prix!L20,decompo9prix!L20,decompo10prix!L20) -> 23.1 | J20: =MIN(decompo1prix!M20,decompo2prix!M20,decompo3prix!M20,decompo4prix!M20,decompo5prix!M20,decompo6prix!M20,decompo7prix!M20,decompo8prix!M20,decompo9prix!M20,decompo10prix!M20) -> 21.1 | T20: VIS 11 | U20: in11 | V20: =IF($T20="","",IF(MIN(decompo1prix!F20,decompo2prix!F20,decompo3prix!F20,decompo4prix!F20,decompo5prix!F20,decompo6prix!F20,decompo7prix!F20,decompo8prix!F20,decompo9prix!F20,decompo10prix!F20)=decompo1prix!F20,decompo1prix!$A$7,IF(MIN(decompo1prix!F20,decompo2prix!F20,decompo3prix!F20,decompo4prix!F20,decompo5prix!F20,decompo6prix!F20,decompo7prix!F20,decompo8prix!F20,decompo9prix!F20,decompo10prix!F20)=decompo2prix!F20,decompo2prix!$A$7,IF(MIN(decompo1prix!F20,decompo2prix!F20,decompo3prix!F20,decompo4prix!F20,decompo5prix!F20,decompo6prix!F20,decompo7prix!F20,decompo8prix!F20,decompo9prix!F20,decompo10prix!F20)=decompo3prix!F20,decompo3prix!$A$7,IF(MIN(decompo1prix!F20,decompo2prix!F20,decompo3prix!F20,decompo4prix!F20,decompo5prix!F20,decompo6prix!F20,decompo7prix!F20,decompo8prix!F20,decompo9prix!F20,decompo10prix!F20)=decompo4prix!F20,decompo4prix!$A$7,IF(MIN(decompo1prix!F20,decompo2prix!F20,decompo3prix!F20,decompo4prix!F20,decompo5prix!F20,decompo6prix!F20,decompo7prix!F20,decompo8prix!F20,decompo9prix!F20,decompo10prix!F20)=decompo5prix!F20,decompo5prix!$A$7,IF(MIN(decompo1prix!F20,decompo2prix!F20,decompo3prix!F20,decompo4prix!F20,decompo5prix!F20,decompo6prix!F20,decompo7prix!F20,decompo8prix!F20,decompo9prix!F20,decompo10prix!F20)=decompo6prix!F20,decompo6prix!$A$7,IF(MIN(decompo1prix!F20,decompo2prix!F20,decompo3prix!F20,decompo4prix!F20,decompo5prix!F20,decompo6prix!F20,decompo7prix!F20,decompo8prix!F20,decompo9prix!F20,decompo10prix!F20)=decompo7prix!F20,decompo7prix!$A$7,IF(MIN(decompo1prix!F20,decompo2prix!F20,decompo3prix!F20,decompo4prix!F20,decompo5prix!F20,decompo6prix!F20,decompo7prix!F20,decompo8prix!F20,decompo9prix!F20,decompo10prix!F20)=decompo8prix!F20,decompo8prix!$A$7,IF(MIN(decompo1prix!F20,decompo2prix!F20,decompo3prix!F20,decompo4prix!F20,decompo5prix!F20,decompo6prix!F20,decompo7prix!F20,decompo8prix!F20,decompo9prix!F20,decompo10prix!F20)=decompo9prix!F20,decompo9prix!$A$7,decompo10prix!$A$7)))))))))) -> justine | W20: =IF($T20="","",IF(MIN(decompo1prix!G20,decompo2prix!G20,decompo3prix!G20,decompo4prix!G20,decompo5prix!G20,decompo6prix!G20,decompo7prix!G20,decompo8prix!G20,decompo9prix!G20,decompo10prix!G20)=decompo1prix!G20,decompo1prix!$A$7,IF(MIN(decompo1prix!G20,decompo2prix!G20,decompo3prix!G20,decompo4prix!G20,decompo5prix!G20,decompo6prix!G20,decompo7prix!G20,decompo8prix!G20,decompo9prix!G20,decompo10prix!G20)=decompo2prix!G20,decompo2prix!$A$7,IF(MIN(decompo1prix!G20,decompo2prix!G20,decompo3prix!G20,decompo4prix!G20,decompo5prix!G20,decompo6prix!G20,decompo7prix!G20,decompo8prix!G20,decompo9prix!G20,decompo10prix!G20)=decompo3prix!G20,decompo3prix!$A$7,IF(MIN(decompo1prix!G20,decompo2prix!G20,decompo3prix!G20,decompo4prix!G20,decompo5prix!G20,decompo6prix!G20,decompo7prix!G20,decompo8prix!G20,decompo9prix!G20,decompo10prix!G20)=decompo4prix!G20,decompo4prix!$A$7,IF(MIN(decompo1prix!G20,decompo2prix!G20,decompo3prix!G20,decompo4prix!G20,decompo5prix!G20,decompo6prix!G20,decompo7prix!G20,decompo8prix!G20,decompo9prix!G20,decompo10prix!G20)=decompo5prix!G20,decompo5prix!$A$7,IF(MIN(decompo1prix!G20,decompo2prix!G20,decompo3prix!G20,decompo4prix!G20,decompo5prix!G20,decompo6prix!G20,decompo7prix!G20,decompo8prix!G20,decompo9prix!G20,decompo10prix!G20)=decompo6prix!G20,decompo6prix!$A$7,IF(MIN(decompo1prix!G20,decompo2prix!G20,decompo3prix!G20,decompo4prix!G20,decompo5prix!G20,decompo6prix!G20,decompo7prix!G20,decompo8prix!G20,decompo9prix!G20,decompo10prix!G20)=decompo7prix!G20,decompo7prix!$A$7,IF(MIN(decompo1prix!G20,decompo2prix!G20,decompo3prix!G20,decompo4prix!G20,decompo5prix!G20,decompo6prix!G20,decompo7prix!G20,decompo8prix!G20,decompo9prix!G20,decompo10prix!G20)=decompo8prix!G20,decompo8prix!$A$7,IF(MIN(decompo1prix!G20,decompo2prix!G20,decompo3prix!G20,decompo4prix!G20,decompo5prix!G20,decompo6prix!G20,decompo7prix!G20,decompo8prix!G20,decompo9prix!G20,decompo10prix!G20)=decompo9prix!G20,decompo9prix!$A$7,decompo10prix!$A$7)))))))))) -> justine | X20: =IF($T20="","",IF(MIN(decompo1prix!H20,decompo2prix!H20,decompo3prix!H20,decompo4prix!H20,decompo5prix!H20,decompo6prix!H20,decompo7prix!H20,decompo8prix!H20,decompo9prix!H20,decompo10prix!H20)=decompo1prix!H20,decompo1prix!$A$7,IF(MIN(decompo1prix!H20,decompo2prix!H20,decompo3prix!H20,decompo4prix!H20,decompo5prix!H20,decompo6prix!H20,decompo7prix!H20,decompo8prix!H20,decompo9prix!H20,decompo10prix!H20)=decompo2prix!H20,decompo2prix!$A$7,IF(MIN(decompo1prix!H20,decompo2prix!H20,decompo3prix!H20,decompo4prix!H20,decompo5prix!H20,decompo6prix!H20,decompo7prix!H20,decompo8prix!H20,decompo9prix!H20,decompo10prix!H20)=decompo3prix!H20,decompo3prix!$A$7,IF(MIN(decompo1prix!H20,decompo2prix!H20,decompo3prix!H20,decompo4prix!H20,decompo5prix!H20,decompo6prix!H20,decompo7prix!H20,decompo8prix!H20,decompo9prix!H20,decompo10prix!H20)=decompo4prix!H20,decompo4prix!$A$7,IF(MIN(decompo1prix!H20,decompo2prix!H20,decompo3prix!H20,decompo4prix!H20,decompo5prix!H20,decompo6prix!H20,decompo7prix!H20,decompo8prix!H20,decompo9prix!H20,decompo10prix!H20)=decompo5prix!H20,decompo5prix!$A$7,IF(MIN(decompo1prix!H20,decompo2prix!H20,decompo3prix!H20,decompo4prix!H20,decompo5prix!H20,decompo6prix!H20,decompo7prix!H20,decompo8prix!H20,decompo9prix!H20,decompo10prix!H20)=decompo6prix!H20,decompo6prix!$A$7,IF(MIN(decompo1prix!H20,decompo2prix!H20,decompo3prix!H20,decompo4prix!H20,decompo5prix!H20,decompo6prix!H20,decompo7prix!H20,decompo8prix!H20,decompo9prix!H20,decompo10prix!H20)=decompo7prix!H20,decompo7prix!$A$7,IF(MIN(decompo1prix!H20,decompo2prix!H20,decompo3prix!H20,decompo4prix!H20,decompo5prix!H20,decompo6prix!H20,decompo7prix!H20,decompo8prix!H20,decompo9prix!H20,decompo10prix!H20)=decompo8prix!H20,decompo8prix!$A$7,IF(MIN(decompo1prix!H20,decompo2prix!H20,decompo3prix!H20,decompo4prix!H20,decompo5prix!H20,decompo6prix!H20,decompo7prix!H20,decompo8prix!H20,decompo9prix!H20,decompo10prix!H20)=decompo9prix!H20,decompo9prix!$A$7,decompo10prix!$A$7)))))))))) -> justine | Y20: =IF($T20="","",IF(MIN(decompo1prix!I20,decompo2prix!I20,decompo3prix!I20,decompo4prix!I20,decompo5prix!I20,decompo6prix!I20,decompo7prix!I20,decompo8prix!I20,decompo9prix!I20,decompo10prix!I20)=decompo1prix!I20,decompo1prix!$A$7,IF(MIN(decompo1prix!I20,decompo2prix!I20,decompo3prix!I20,decompo4prix!I20,decompo5prix!I20,decompo6prix!I20,decompo7prix!I20,decompo8prix!I20,decompo9prix!I20,decompo10prix!I20)=decompo2prix!I20,decompo2prix!$A$7,IF(MIN(decompo1prix!I20,decompo2prix!I20,decompo3prix!I20,decompo4prix!I20,decompo5prix!I20,decompo6prix!I20,decompo7prix!I20,decompo8prix!I20,decompo9prix!I20,decompo10prix!I20)=decompo3prix!I20,decompo3prix!$A$7,IF(MIN(decompo1prix!I20,decompo2prix!I20,decompo3prix!I20,decompo4prix!I20,decompo5prix!I20,decompo6prix!I20,decompo7prix!I20,decompo8prix!I20,decompo9prix!I20,decompo10prix!I20)=decompo4prix!I20,decompo4prix!$A$7,IF(MIN(decompo1prix!I20,decompo2prix!I20,decompo3prix!I20,decompo4prix!I20,decompo5prix!I20,decompo6prix!I20,decompo7prix!I20,decompo8prix!I20,decompo9prix!I20,decompo10prix!I20)=decompo5prix!I20,decompo5prix!$A$7,IF(MIN(decompo1prix!I20,decompo2prix!I20,decompo3prix!I20,decompo4prix!I20,decompo5prix!I20,decompo6prix!I20,decompo7prix!I20,decompo8prix!I20,decompo9prix!I20,decompo10prix!I20)=decompo6prix!I20,decompo6prix!$A$7,IF(MIN(decompo1prix!I20,decompo2prix!I20,decompo3prix!I20,decompo4prix!I20,decompo5prix!I20,decompo6prix!I20,decompo7prix!I20,decompo8prix!I20,decompo9prix!I20,decompo10prix!I20)=decompo7prix!I20,decompo7prix!$A$7,IF(MIN(decompo1prix!I20,decompo2prix!I20,decompo3prix!I20,decompo4prix!I20,decompo5prix!I20,decompo6prix!I20,decompo7prix!I20,decompo8prix!I20,decompo9prix!I20,decompo10prix!I20)=decompo8prix!I20,decompo8prix!$A$7,IF(MIN(decompo1prix!I20,decompo2prix!I20,decompo3prix!I20,decompo4prix!I20,decompo5prix!I20,decompo6prix!I20,decompo7prix!I20,decompo8prix!I20,decompo9prix!I20,decompo10prix!I20)=decompo9prix!I20,decompo9prix!$A$7,decompo10prix!$A$7)))))))))) -> justine | Z20: =IF($T20="","",IF(MIN(decompo1prix!J20,decompo2prix!J20,decompo3prix!J20,decompo4prix!J20,decompo5prix!J20,decompo6prix!J20,decompo7prix!J20,decompo8prix!J20,decompo9prix!J20,decompo10prix!J20)=decompo1prix!J20,decompo1prix!$A$7,IF(MIN(decompo1prix!J20,decompo2prix!J20,decompo3prix!J20,decompo4prix!J20,decompo5prix!J20,decompo6prix!J20,decompo7prix!J20,decompo8prix!J20,decompo9prix!J20,decompo10prix!J20)=decompo2prix!J20,decompo2prix!$A$7,IF(MIN(decompo1prix!J20,decompo2prix!J20,decompo3prix!J20,decompo4prix!J20,decompo5prix!J20,decompo6prix!J20,decompo7prix!J20,decompo8prix!J20,decompo9prix!J20,decompo10prix!J20)=decompo3prix!J20,decompo3prix!$A$7,IF(MIN(decompo1prix!J20,decompo2prix!J20,decompo3prix!J20,decompo4prix!J20,decompo5prix!J20,decompo6prix!J20,decompo7prix!J20,decompo8prix!J20,decompo9prix!J20,decompo10prix!J20)=decompo4prix!J20,decompo4prix!$A$7,IF(MIN(decompo1prix!J20,decompo2prix!J20,decompo3prix!J20,decompo4prix!J20,decompo5prix!J20,decompo6prix!J20,decompo7prix!J20,decompo8prix!J20,decompo9prix!J20,decompo10prix!J20)=decompo5prix!J20,decompo5prix!$A$7,IF(MIN(decompo1prix!J20,decompo2prix!J20,decompo3prix!J20,decompo4prix!J20,decompo5prix!J20,decompo6prix!J20,decompo7prix!J20,decompo8prix!J20,decompo9prix!J20,decompo10prix!J20)=decompo6prix!J20,decompo6prix!$A$7,IF(MIN(decompo1prix!J20,decompo2prix!J20,decompo3prix!J20,decompo4prix!J20,decompo5prix!J20,decompo6prix!J20,decompo7prix!J20,decompo8prix!J20,decompo9prix!J20,decompo10prix!J20)=decompo7prix!J20,decompo7prix!$A$7,IF(MIN(decompo1prix!J20,decompo2prix!J20,decompo3prix!J20,decompo4prix!J20,decompo5prix!J20,decompo6prix!J20,decompo7prix!J20,decompo8prix!J20,decompo9prix!J20,decompo10prix!J20)=decompo8prix!J20,decompo8prix!$A$7,IF(MIN(decompo1prix!J20,decompo2prix!J20,decompo3prix!J20,decompo4prix!J20,decompo5prix!J20,decompo6prix!J20,decompo7prix!J20,decompo8prix!J20,decompo9prix!J20,decompo10prix!J20)=decompo9prix!J20,decompo9prix!$A$7,decompo10prix!$A$7)))))))))) -> justine | AA20: =IF($T20="","",IF(MIN(decompo1prix!K20,decompo2prix!K20,decompo3prix!K20,decompo4prix!K20,decompo5prix!K20,decompo6prix!K20,decompo7prix!K20,decompo8prix!K20,decompo9prix!K20,decompo10prix!K20)=decompo1prix!K20,decompo1prix!$A$7,IF(MIN(decompo1prix!K20,decompo2prix!K20,decompo3prix!K20,decompo4prix!K20,decompo5prix!K20,decompo6prix!K20,decompo7prix!K20,decompo8prix!K20,decompo9prix!K20,decompo10prix!K20)=decompo2prix!K20,decompo2prix!$A$7,IF(MIN(decompo1prix!K20,decompo2prix!K20,decompo3prix!K20,decompo4prix!K20,decompo5prix!K20,decompo6prix!K20,decompo7prix!K20,decompo8prix!K20,decompo9prix!K20,decompo10prix!K20)=decompo3prix!K20,decompo3prix!$A$7,IF(MIN(decompo1prix!K20,decompo2prix!K20,decompo3prix!K20,decompo4prix!K20,decompo5prix!K20,decompo6prix!K20,decompo7prix!K20,decompo8prix!K20,decompo9prix!K20,decompo10prix!K20)=decompo4prix!K20,decompo4prix!$A$7,IF(MIN(decompo1prix!K20,decompo2prix!K20,decompo3prix!K20,decompo4prix!K20,decompo5prix!K20,decompo6prix!K20,decompo7prix!K20,decompo8prix!K20,decompo9prix!K20,decompo10prix!K20)=decompo5prix!K20,decompo5prix!$A$7,IF(MIN(decompo1prix!K20,decompo2prix!K20,decompo3prix!K20,decompo4prix!K20,decompo5prix!K20,decompo6prix!K20,decompo7prix!K20,decompo8prix!K20,decompo9prix!K20,decompo10prix!K20)=decompo6prix!K20,decompo6prix!$A$7,IF(MIN(decompo1prix!K20,decompo2prix!K20,decompo3prix!K20,decompo4prix!K20,decompo5prix!K20,decompo6prix!K20,decompo7prix!K20,decompo8prix!K20,decompo9prix!K20,decompo10prix!K20)=decompo7prix!K20,decompo7prix!$A$7,IF(MIN(decompo1prix!K20,decompo2prix!K20,decompo3prix!K20,decompo4prix!K20,decompo5prix!K20,decompo6prix!K20,decompo7prix!K20,decompo8prix!K20,decompo9prix!K20,decompo10prix!K20)=decompo8prix!K20,decompo8prix!$A$7,IF(MIN(decompo1prix!K20,decompo2prix!K20,decompo3prix!K20,decompo4prix!K20,decompo5prix!K20,decompo6prix!K20,decompo7prix!K20,decompo8prix!K20,decompo9prix!K20,decompo10prix!K20)=decompo9prix!K20,decompo9prix!$A$7,decompo10prix!$A$7)))))))))) -> justine | AB20: =IF($T20="","",IF(MIN(decompo1prix!L20,decompo2prix!L20,decompo3prix!L20,decompo4prix!L20,decompo5prix!L20,decompo6prix!L20,decompo7prix!L20,decompo8prix!L20,decompo9prix!L20,decompo10prix!L20)=decompo1prix!L20,decompo1prix!$A$7,IF(MIN(decompo1prix!L20,decompo2prix!L20,decompo3prix!L20,decompo4prix!L20,decompo5prix!L20,decompo6prix!L20,decompo7prix!L20,decompo8prix!L20,decompo9prix!L20,decompo10prix!L20)=decompo2prix!L20,decompo2prix!$A$7,IF(MIN(decompo1prix!L20,decompo2prix!L20,decompo3prix!L20,decompo4prix!L20,decompo5prix!L20,decompo6prix!L20,decompo7prix!L20,decompo8prix!L20,decompo9prix!L20,decompo10prix!L20)=decompo3prix!L20,decompo3prix!$A$7,IF(MIN(decompo1prix!L20,decompo2prix!L20,decompo3prix!L20,decompo4prix!L20,decompo5prix!L20,decompo6prix!L20,decompo7prix!L20,decompo8prix!L20,decompo9prix!L20,decompo10prix!L20)=decompo4prix!L20,decompo4prix!$A$7,IF(MIN(decompo1prix!L20,decompo2prix!L20,decompo3prix!L20,decompo4prix!L20,decompo5prix!L20,decompo6prix!L20,decompo7prix!L20,decompo8prix!L20,decompo9prix!L20,decompo10prix!L20)=decompo5prix!L20,decompo5prix!$A$7,IF(MIN(decompo1prix!L20,decompo2prix!L20,decompo3prix!L20,decompo4prix!L20,decompo5prix!L20,decompo6prix!L20,decompo7prix!L20,decompo8prix!L20,decompo9prix!L20,decompo10prix!L20)=decompo6prix!L20,decompo6prix!$A$7,IF(MIN(decompo1prix!L20,decompo2prix!L20,decompo3prix!L20,decompo4prix!L20,decompo5prix!L20,decompo6prix!L20,decompo7prix!L20,decompo8prix!L20,decompo9prix!L20,decompo10prix!L20)=decompo7prix!L20,decompo7prix!$A$7,IF(MIN(decompo1prix!L20,decompo2prix!L20,decompo3prix!L20,decompo4prix!L20,decompo5prix!L20,decompo6prix!L20,decompo7prix!L20,decompo8prix!L20,decompo9prix!L20,decompo10prix!L20)=decompo8prix!L20,decompo8prix!$A$7,IF(MIN(decompo1prix!L20,decompo2prix!L20,decompo3prix!L20,decompo4prix!L20,decompo5prix!L20,decompo6prix!L20,decompo7prix!L20,decompo8prix!L20,decompo9prix!L20,decompo10prix!L20)=decompo9prix!L20,decompo9prix!$A$7,decompo10prix!$A$7)))))))))) -> romain | AC20: =IF($T20="","",IF(MIN(decompo1prix!M20,decompo2prix!M20,decompo3prix!M20,decompo4prix!M20,decompo5prix!M20,decompo6prix!M20,decompo7prix!M20,decompo8prix!M20,decompo9prix!M20,decompo10prix!M20)=decompo1prix!M20,decompo1prix!$A$7,IF(MIN(decompo1prix!M20,decompo2prix!M20,decompo3prix!M20,decompo4prix!M20,decompo5prix!M20,decompo6prix!M20,decompo7prix!M20,decompo8prix!M20,decompo9prix!M20,decompo10prix!M20)=decompo2prix!M20,decompo2prix!$A$7,IF(MIN(decompo1prix!M20,decompo2prix!M20,decompo3prix!M20,decompo4prix!M20,decompo5prix!M20,decompo6prix!M20,decompo7prix!M20,decompo8prix!M20,decompo9prix!M20,decompo10prix!M20)=decompo3prix!M20,decompo3prix!$A$7,IF(MIN(decompo1prix!M20,decompo2prix!M20,decompo3prix!M20,decompo4prix!M20,decompo5prix!M20,decompo6prix!M20,decompo7prix!M20,decompo8prix!M20,decompo9prix!M20,decompo10prix!M20)=decompo4prix!M20,decompo4prix!$A$7,IF(MIN(decompo1prix!M20,decompo2prix!M20,decompo3prix!M20,decompo4prix!M20,decompo5prix!M20,decompo6prix!M20,decompo7prix!M20,decompo8prix!M20,decompo9prix!M20,decompo10prix!M20)=decompo5prix!M20,decompo5prix!$A$7,IF(MIN(decompo1prix!M20,decompo2prix!M20,decompo3prix!M20,decompo4prix!M20,decompo5prix!M20,decompo6prix!M20,decompo7prix!M20,decompo8prix!M20,decompo9prix!M20,decompo10prix!M20)=decompo6prix!M20,decompo6prix!$A$7,IF(MIN(decompo1prix!M20,decompo2prix!M20,decompo3prix!M20,decompo4prix!M20,decompo5prix!M20,decompo6prix!M20,decompo7prix!M20,decompo8prix!M20,decompo9prix!M20,decompo10prix!M20)=decompo7prix!M20,decompo7prix!$A$7,IF(MIN(decompo1prix!M20,decompo2prix!M20,decompo3prix!M20,decompo4prix!M20,decompo5prix!M20,decompo6prix!M20,decompo7prix!M20,decompo8prix!M20,decompo9prix!M20,decompo10prix!M20)=decompo8prix!M20,decompo8prix!$A$7,IF(MIN(decompo1prix!M20,decompo2prix!M20,decompo3prix!M20,decompo4prix!M20,decompo5prix!M20,decompo6prix!M20,decompo7prix!M20,decompo8prix!M20,decompo9prix!M20,decompo10prix!M20)=decompo9prix!M20,decompo9prix!$A$7,decompo10prix!$A$7)))))))))) -> romain | AF20: Best cumul prix moins disant | AG20: =C9 -> 1663.56 | AH20: =D9 -> 3281.36 | AI20: 5020.72 | AJ20: 10024.32 | AK20: 14242.08 | AL20: 16299.2 | AM20: 20114.8 | AN20: 46144 | AQ20: Best cumul prix moins disant | AR20: =C9 -> 1663.56 | AS20: =D9 -> 3281.36 | AT20: 5020.72 | AU20: 10024.32 | AV20: 14242.08 | AW20: 16299.2 | AX20: 20114.8 | AY20: 46144
A21: VIS 12 | B21: IN12 | C21: =MIN(decompo1prix!F21,decompo2prix!F21,decompo3prix!F21,decompo4prix!F21,decompo5prix!F21,decompo6prix!F21,decompo7prix!F21,decompo8prix!F21,decompo9prix!F21,decompo10prix!F21) -> 33.67 | D21: =MIN(decompo1prix!G21,decompo2prix!G21,decompo3prix!G21,decompo4prix!G21,decompo5prix!G21,decompo6prix!G21,decompo7prix!G21,decompo8prix!G21,decompo9prix!G21,decompo10prix!G21) -> 33.3 | E21: =MIN(decompo1prix!H21,decompo2prix!H21,decompo3prix!H21,decompo4prix!H21,decompo5prix!H21,decompo6prix!H21,decompo7prix!H21,decompo8prix!H21,decompo9prix!H21,decompo10prix!H21) -> 27.8 | F21: =MIN(decompo1prix!I21,decompo2prix!I21,decompo3prix!I21,decompo4prix!I21,decompo5prix!I21,decompo6prix!I21,decompo7prix!I21,decompo8prix!I21,decompo9prix!I21,decompo10prix!I21) -> 23.1 | G21: =MIN(decompo1prix!J21,decompo2prix!J21,decompo3prix!J21,decompo4prix!J21,decompo5prix!J21,decompo6prix!J21,decompo7prix!J21,decompo8prix!J21,decompo9prix!J21,decompo10prix!J21) -> 20.8 | H21: =MIN(decompo1prix!K21,decompo2prix!K21,decompo3prix!K21,decompo4prix!K21,decompo5prix!K21,decompo6prix!K21,decompo7prix!K21,decompo8prix!K21,decompo9prix!K21,decompo10prix!K21) -> 19.3 | I21: =MIN(decompo1prix!L21,decompo2prix!L21,decompo3prix!L21,decompo4prix!L21,decompo5prix!L21,decompo6prix!L21,decompo7prix!L21,decompo8prix!L21,decompo9prix!L21,decompo10prix!L21) -> 18.2 | J21: =MIN(decompo1prix!M21,decompo2prix!M21,decompo3prix!M21,decompo4prix!M21,decompo5prix!M21,decompo6prix!M21,decompo7prix!M21,decompo8prix!M21,decompo9prix!M21,decompo10prix!M21) -> 16.6 | T21: VIS 12 | U21: in12 | V21: =IF($T21="","",IF(MIN(decompo1prix!F21,decompo2prix!F21,decompo3prix!F21,decompo4prix!F21,decompo5prix!F21,decompo6prix!F21,decompo7prix!F21,decompo8prix!F21,decompo9prix!F21,decompo10prix!F21)=decompo1prix!F21,decompo1prix!$A$7,IF(MIN(decompo1prix!F21,decompo2prix!F21,decompo3prix!F21,decompo4prix!F21,decompo5prix!F21,decompo6prix!F21,decompo7prix!F21,decompo8prix!F21,decompo9prix!F21,decompo10prix!F21)=decompo2prix!F21,decompo2prix!$A$7,IF(MIN(decompo1prix!F21,decompo2prix!F21,decompo3prix!F21,decompo4prix!F21,decompo5prix!F21,decompo6prix!F21,decompo7prix!F21,decompo8prix!F21,decompo9prix!F21,decompo10prix!F21)=decompo3prix!F21,decompo3prix!$A$7,IF(MIN(decompo1prix!F21,decompo2prix!F21,decompo3prix!F21,decompo4prix!F21,decompo5prix!F21,decompo6prix!F21,decompo7prix!F21,decompo8prix!F21,decompo9prix!F21,decompo10prix!F21)=decompo4prix!F21,decompo4prix!$A$7,IF(MIN(decompo1prix!F21,decompo2prix!F21,decompo3prix!F21,decompo4prix!F21,decompo5prix!F21,decompo6prix!F21,decompo7prix!F21,decompo8prix!F21,decompo9prix!F21,decompo10prix!F21)=decompo5prix!F21,decompo5prix!$A$7,IF(MIN(decompo1prix!F21,decompo2prix!F21,decompo3prix!F21,decompo4prix!F21,decompo5prix!F21,decompo6prix!F21,decompo7prix!F21,decompo8prix!F21,decompo9prix!F21,decompo10prix!F21)=decompo6prix!F21,decompo6prix!$A$7,IF(MIN(decompo1prix!F21,decompo2prix!F21,decompo3prix!F21,decompo4prix!F21,decompo5prix!F21,decompo6prix!F21,decompo7prix!F21,decompo8prix!F21,decompo9prix!F21,decompo10prix!F21)=decompo7prix!F21,decompo7prix!$A$7,IF(MIN(decompo1prix!F21,decompo2prix!F21,decompo3prix!F21,decompo4prix!F21,decompo5prix!F21,decompo6prix!F21,decompo7prix!F21,decompo8prix!F21,decompo9prix!F21,decompo10prix!F21)=decompo8prix!F21,decompo8prix!$A$7,IF(MIN(decompo1prix!F21,decompo2prix!F21,decompo3prix!F21,decompo4prix!F21,decompo5prix!F21,decompo6prix!F21,decompo7prix!F21,decompo8prix!F21,decompo9prix!F21,decompo10prix!F21)=decompo9prix!F21,decompo9prix!$A$7,decompo10prix!$A$7)))))))))) -> justine | W21: =IF($T21="","",IF(MIN(decompo1prix!G21,decompo2prix!G21,decompo3prix!G21,decompo4prix!G21,decompo5prix!G21,decompo6prix!G21,decompo7prix!G21,decompo8prix!G21,decompo9prix!G21,decompo10prix!G21)=decompo1prix!G21,decompo1prix!$A$7,IF(MIN(decompo1prix!G21,decompo2prix!G21,decompo3prix!G21,decompo4prix!G21,decompo5prix!G21,decompo6prix!G21,decompo7prix!G21,decompo8prix!G21,decompo9prix!G21,decompo10prix!G21)=decompo2prix!G21,decompo2prix!$A$7,IF(MIN(decompo1prix!G21,decompo2prix!G21,decompo3prix!G21,decompo4prix!G21,decompo5prix!G21,decompo6prix!G21,decompo7prix!G21,decompo8prix!G21,decompo9prix!G21,decompo10prix!G21)=decompo3prix!G21,decompo3prix!$A$7,IF(MIN(decompo1prix!G21,decompo2prix!G21,decompo3prix!G21,decompo4prix!G21,decompo5prix!G21,decompo6prix!G21,decompo7prix!G21,decompo8prix!G21,decompo9prix!G21,decompo10prix!G21)=decompo4prix!G21,decompo4prix!$A$7,IF(MIN(decompo1prix!G21,decompo2prix!G21,decompo3prix!G21,decompo4prix!G21,decompo5prix!G21,decompo6prix!G21,decompo7prix!G21,decompo8prix!G21,decompo9prix!G21,decompo10prix!G21)=decompo5prix!G21,decompo5prix!$A$7,IF(MIN(decompo1prix!G21,decompo2prix!G21,decompo3prix!G21,decompo4prix!G21,decompo5prix!G21,decompo6prix!G21,decompo7prix!G21,decompo8prix!G21,decompo9prix!G21,decompo10prix!G21)=decompo6prix!G21,decompo6prix!$A$7,IF(MIN(decompo1prix!G21,decompo2prix!G21,decompo3prix!G21,decompo4prix!G21,decompo5prix!G21,decompo6prix!G21,decompo7prix!G21,decompo8prix!G21,decompo9prix!G21,decompo10prix!G21)=decompo7prix!G21,decompo7prix!$A$7,IF(MIN(decompo1prix!G21,decompo2prix!G21,decompo3prix!G21,decompo4prix!G21,decompo5prix!G21,decompo6prix!G21,decompo7prix!G21,decompo8prix!G21,decompo9prix!G21,decompo10prix!G21)=decompo8prix!G21,decompo8prix!$A$7,IF(MIN(decompo1prix!G21,decompo2prix!G21,decompo3prix!G21,decompo4prix!G21,decompo5prix!G21,decompo6prix!G21,decompo7prix!G21,decompo8prix!G21,decompo9prix!G21,decompo10prix!G21)=decompo9prix!G21,decompo9prix!$A$7,decompo10prix!$A$7)))))))))) -> romain | X21: =IF($T21="","",IF(MIN(decompo1prix!H21,decompo2prix!H21,decompo3prix!H21,decompo4prix!H21,decompo5prix!H21,decompo6prix!H21,decompo7prix!H21,decompo8prix!H21,decompo9prix!H21,decompo10prix!H21)=decompo1prix!H21,decompo1prix!$A$7,IF(MIN(decompo1prix!H21,decompo2prix!H21,decompo3prix!H21,decompo4prix!H21,decompo5prix!H21,decompo6prix!H21,decompo7prix!H21,decompo8prix!H21,decompo9prix!H21,decompo10prix!H21)=decompo2prix!H21,decompo2prix!$A$7,IF(MIN(decompo1prix!H21,decompo2prix!H21,decompo3prix!H21,decompo4prix!H21,decompo5prix!H21,decompo6prix!H21,decompo7prix!H21,decompo8prix!H21,decompo9prix!H21,decompo10prix!H21)=decompo3prix!H21,decompo3prix!$A$7,IF(MIN(decompo1prix!H21,decompo2prix!H21,decompo3prix!H21,decompo4prix!H21,decompo5prix!H21,decompo6prix!H21,decompo7prix!H21,decompo8prix!H21,decompo9prix!H21,decompo10prix!H21)=decompo4prix!H21,decompo4prix!$A$7,IF(MIN(decompo1prix!H21,decompo2prix!H21,decompo3prix!H21,decompo4prix!H21,decompo5prix!H21,decompo6prix!H21,decompo7prix!H21,decompo8prix!H21,decompo9prix!H21,decompo10prix!H21)=decompo5prix!H21,decompo5prix!$A$7,IF(MIN(decompo1prix!H21,decompo2prix!H21,decompo3prix!H21,decompo4prix!H21,decompo5prix!H21,decompo6prix!H21,decompo7prix!H21,decompo8prix!H21,decompo9prix!H21,decompo10prix!H21)=decompo6prix!H21,decompo6prix!$A$7,IF(MIN(decompo1prix!H21,decompo2prix!H21,decompo3prix!H21,decompo4prix!H21,decompo5prix!H21,decompo6prix!H21,decompo7prix!H21,decompo8prix!H21,decompo9prix!H21,decompo10prix!H21)=decompo7prix!H21,decompo7prix!$A$7,IF(MIN(decompo1prix!H21,decompo2prix!H21,decompo3prix!H21,decompo4prix!H21,decompo5prix!H21,decompo6prix!H21,decompo7prix!H21,decompo8prix!H21,decompo9prix!H21,decompo10prix!H21)=decompo8prix!H21,decompo8prix!$A$7,IF(MIN(decompo1prix!H21,decompo2prix!H21,decompo3prix!H21,decompo4prix!H21,decompo5prix!H21,decompo6prix!H21,decompo7prix!H21,decompo8prix!H21,decompo9prix!H21,decompo10prix!H21)=decompo9prix!H21,decompo9prix!$A$7,decompo10prix!$A$7)))))))))) -> romain | Y21: =IF($T21="","",IF(MIN(decompo1prix!I21,decompo2prix!I21,decompo3prix!I21,decompo4prix!I21,decompo5prix!I21,decompo6prix!I21,decompo7prix!I21,decompo8prix!I21,decompo9prix!I21,decompo10prix!I21)=decompo1prix!I21,decompo1prix!$A$7,IF(MIN(decompo1prix!I21,decompo2prix!I21,decompo3prix!I21,decompo4prix!I21,decompo5prix!I21,decompo6prix!I21,decompo7prix!I21,decompo8prix!I21,decompo9prix!I21,decompo10prix!I21)=decompo2prix!I21,decompo2prix!$A$7,IF(MIN(decompo1prix!I21,decompo2prix!I21,decompo3prix!I21,decompo4prix!I21,decompo5prix!I21,decompo6prix!I21,decompo7prix!I21,decompo8prix!I21,decompo9prix!I21,decompo10prix!I21)=decompo3prix!I21,decompo3prix!$A$7,IF(MIN(decompo1prix!I21,decompo2prix!I21,decompo3prix!I21,decompo4prix!I21,decompo5prix!I21,decompo6prix!I21,decompo7prix!I21,decompo8prix!I21,decompo9prix!I21,decompo10prix!I21)=decompo4prix!I21,decompo4prix!$A$7,IF(MIN(decompo1prix!I21,decompo2prix!I21,decompo3prix!I21,decompo4prix!I21,decompo5prix!I21,decompo6prix!I21,decompo7prix!I21,decompo8prix!I21,decompo9prix!I21,decompo10prix!I21)=decompo5prix!I21,decompo5prix!$A$7,IF(MIN(decompo1prix!I21,decompo2prix!I21,decompo3prix!I21,decompo4prix!I21,decompo5prix!I21,decompo6prix!I21,decompo7prix!I21,decompo8prix!I21,decompo9prix!I21,decompo10prix!I21)=decompo6prix!I21,decompo6prix!$A$7,IF(MIN(decompo1prix!I21,decompo2prix!I21,decompo3prix!I21,decompo4prix!I21,decompo5prix!I21,decompo6prix!I21,decompo7prix!I21,decompo8prix!I21,decompo9prix!I21,decompo10prix!I21)=decompo7prix!I21,decompo7prix!$A$7,IF(MIN(decompo1prix!I21,decompo2prix!I21,decompo3prix!I21,decompo4prix!I21,decompo5prix!I21,decompo6prix!I21,decompo7prix!I21,decompo8prix!I21,decompo9prix!I21,decompo10prix!I21)=decompo8prix!I21,decompo8prix!$A$7,IF(MIN(decompo1prix!I21,decompo2prix!I21,decompo3prix!I21,decompo4prix!I21,decompo5prix!I21,decompo6prix!I21,decompo7prix!I21,decompo8prix!I21,decompo9prix!I21,decompo10prix!I21)=decompo9prix!I21,decompo9prix!$A$7,decompo10prix!$A$7)))))))))) -> romain | Z21: =IF($T21="","",IF(MIN(decompo1prix!J21,decompo2prix!J21,decompo3prix!J21,decompo4prix!J21,decompo5prix!J21,decompo6prix!J21,decompo7prix!J21,decompo8prix!J21,decompo9prix!J21,decompo10prix!J21)=decompo1prix!J21,decompo1prix!$A$7,IF(MIN(decompo1prix!J21,decompo2prix!J21,decompo3prix!J21,decompo4prix!J21,decompo5prix!J21,decompo6prix!J21,decompo7prix!J21,decompo8prix!J21,decompo9prix!J21,decompo10prix!J21)=decompo2prix!J21,decompo2prix!$A$7,IF(MIN(decompo1prix!J21,decompo2prix!J21,decompo3prix!J21,decompo4prix!J21,decompo5prix!J21,decompo6prix!J21,decompo7prix!J21,decompo8prix!J21,decompo9prix!J21,decompo10prix!J21)=decompo3prix!J21,decompo3prix!$A$7,IF(MIN(decompo1prix!J21,decompo2prix!J21,decompo3prix!J21,decompo4prix!J21,decompo5prix!J21,decompo6prix!J21,decompo7prix!J21,decompo8prix!J21,decompo9prix!J21,decompo10prix!J21)=decompo4prix!J21,decompo4prix!$A$7,IF(MIN(decompo1prix!J21,decompo2prix!J21,decompo3prix!J21,decompo4prix!J21,decompo5prix!J21,decompo6prix!J21,decompo7prix!J21,decompo8prix!J21,decompo9prix!J21,decompo10prix!J21)=decompo5prix!J21,decompo5prix!$A$7,IF(MIN(decompo1prix!J21,decompo2prix!J21,decompo3prix!J21,decompo4prix!J21,decompo5prix!J21,decompo6prix!J21,decompo7prix!J21,decompo8prix!J21,decompo9prix!J21,decompo10prix!J21)=decompo6prix!J21,decompo6prix!$A$7,IF(MIN(decompo1prix!J21,decompo2prix!J21,decompo3prix!J21,decompo4prix!J21,decompo5prix!J21,decompo6prix!J21,decompo7prix!J21,decompo8prix!J21,decompo9prix!J21,decompo10prix!J21)=decompo7prix!J21,decompo7prix!$A$7,IF(MIN(decompo1prix!J21,decompo2prix!J21,decompo3prix!J21,decompo4prix!J21,decompo5prix!J21,decompo6prix!J21,decompo7prix!J21,decompo8prix!J21,decompo9prix!J21,decompo10prix!J21)=decompo8prix!J21,decompo8prix!$A$7,IF(MIN(decompo1prix!J21,decompo2prix!J21,decompo3prix!J21,decompo4prix!J21,decompo5prix!J21,decompo6prix!J21,decompo7prix!J21,decompo8prix!J21,decompo9prix!J21,decompo10prix!J21)=decompo9prix!J21,decompo9prix!$A$7,decompo10prix!$A$7)))))))))) -> romain | AA21: =IF($T21="","",IF(MIN(decompo1prix!K21,decompo2prix!K21,decompo3prix!K21,decompo4prix!K21,decompo5prix!K21,decompo6prix!K21,decompo7prix!K21,decompo8prix!K21,decompo9prix!K21,decompo10prix!K21)=decompo1prix!K21,decompo1prix!$A$7,IF(MIN(decompo1prix!K21,decompo2prix!K21,decompo3prix!K21,decompo4prix!K21,decompo5prix!K21,decompo6prix!K21,decompo7prix!K21,decompo8prix!K21,decompo9prix!K21,decompo10prix!K21)=decompo2prix!K21,decompo2prix!$A$7,IF(MIN(decompo1prix!K21,decompo2prix!K21,decompo3prix!K21,decompo4prix!K21,decompo5prix!K21,decompo6prix!K21,decompo7prix!K21,decompo8prix!K21,decompo9prix!K21,decompo10prix!K21)=decompo3prix!K21,decompo3prix!$A$7,IF(MIN(decompo1prix!K21,decompo2prix!K21,decompo3prix!K21,decompo4prix!K21,decompo5prix!K21,decompo6prix!K21,decompo7prix!K21,decompo8prix!K21,decompo9prix!K21,decompo10prix!K21)=decompo4prix!K21,decompo4prix!$A$7,IF(MIN(decompo1prix!K21,decompo2prix!K21,decompo3prix!K21,decompo4prix!K21,decompo5prix!K21,decompo6prix!K21,decompo7prix!K21,decompo8prix!K21,decompo9prix!K21,decompo10prix!K21)=decompo5prix!K21,decompo5prix!$A$7,IF(MIN(decompo1prix!K21,decompo2prix!K21,decompo3prix!K21,decompo4prix!K21,decompo5prix!K21,decompo6prix!K21,decompo7prix!K21,decompo8prix!K21,decompo9prix!K21,decompo10prix!K21)=decompo6prix!K21,decompo6prix!$A$7,IF(MIN(decompo1prix!K21,decompo2prix!K21,decompo3prix!K21,decompo4prix!K21,decompo5prix!K21,decompo6prix!K21,decompo7prix!K21,decompo8prix!K21,decompo9prix!K21,decompo10prix!K21)=decompo7prix!K21,decompo7prix!$A$7,IF(MIN(decompo1prix!K21,decompo2prix!K21,decompo3prix!K21,decompo4prix!K21,decompo5prix!K21,decompo6prix!K21,decompo7prix!K21,decompo8prix!K21,decompo9prix!K21,decompo10prix!K21)=decompo8prix!K21,decompo8prix!$A$7,IF(MIN(decompo1prix!K21,decompo2prix!K21,decompo3prix!K21,decompo4prix!K21,decompo5prix!K21,decompo6prix!K21,decompo7prix!K21,decompo8prix!K21,decompo9prix!K21,decompo10prix!K21)=decompo9prix!K21,decompo9prix!$A$7,decompo10prix!$A$7)))))))))) -> romain | AB21: =IF($T21="","",IF(MIN(decompo1prix!L21,decompo2prix!L21,decompo3prix!L21,decompo4prix!L21,decompo5prix!L21,decompo6prix!L21,decompo7prix!L21,decompo8prix!L21,decompo9prix!L21,decompo10prix!L21)=decompo1prix!L21,decompo1prix!$A$7,IF(MIN(decompo1prix!L21,decompo2prix!L21,decompo3prix!L21,decompo4prix!L21,decompo5prix!L21,decompo6prix!L21,decompo7prix!L21,decompo8prix!L21,decompo9prix!L21,decompo10prix!L21)=decompo2prix!L21,decompo2prix!$A$7,IF(MIN(decompo1prix!L21,decompo2prix!L21,decompo3prix!L21,decompo4prix!L21,decompo5prix!L21,decompo6prix!L21,decompo7prix!L21,decompo8prix!L21,decompo9prix!L21,decompo10prix!L21)=decompo3prix!L21,decompo3prix!$A$7,IF(MIN(decompo1prix!L21,decompo2prix!L21,decompo3prix!L21,decompo4prix!L21,decompo5prix!L21,decompo6prix!L21,decompo7prix!L21,decompo8prix!L21,decompo9prix!L21,decompo10prix!L21)=decompo4prix!L21,decompo4prix!$A$7,IF(MIN(decompo1prix!L21,decompo2prix!L21,decompo3prix!L21,decompo4prix!L21,decompo5prix!L21,decompo6prix!L21,decompo7prix!L21,decompo8prix!L21,decompo9prix!L21,decompo10prix!L21)=decompo5prix!L21,decompo5prix!$A$7,IF(MIN(decompo1prix!L21,decompo2prix!L21,decompo3prix!L21,decompo4prix!L21,decompo5prix!L21,decompo6prix!L21,decompo7prix!L21,decompo8prix!L21,decompo9prix!L21,decompo10prix!L21)=decompo6prix!L21,decompo6prix!$A$7,IF(MIN(decompo1prix!L21,decompo2prix!L21,decompo3prix!L21,decompo4prix!L21,decompo5prix!L21,decompo6prix!L21,decompo7prix!L21,decompo8prix!L21,decompo9prix!L21,decompo10prix!L21)=decompo7prix!L21,decompo7prix!$A$7,IF(MIN(decompo1prix!L21,decompo2prix!L21,decompo3prix!L21,decompo4prix!L21,decompo5prix!L21,decompo6prix!L21,decompo7prix!L21,decompo8prix!L21,decompo9prix!L21,decompo10prix!L21)=decompo8prix!L21,decompo8prix!$A$7,IF(MIN(decompo1prix!L21,decompo2prix!L21,decompo3prix!L21,decompo4prix!L21,decompo5prix!L21,decompo6prix!L21,decompo7prix!L21,decompo8prix!L21,decompo9prix!L21,decompo10prix!L21)=decompo9prix!L21,decompo9prix!$A$7,decompo10prix!$A$7)))))))))) -> romain | AC21: =IF($T21="","",IF(MIN(decompo1prix!M21,decompo2prix!M21,decompo3prix!M21,decompo4prix!M21,decompo5prix!M21,decompo6prix!M21,decompo7prix!M21,decompo8prix!M21,decompo9prix!M21,decompo10prix!M21)=decompo1prix!M21,decompo1prix!$A$7,IF(MIN(decompo1prix!M21,decompo2prix!M21,decompo3prix!M21,decompo4prix!M21,decompo5prix!M21,decompo6prix!M21,decompo7prix!M21,decompo8prix!M21,decompo9prix!M21,decompo10prix!M21)=decompo2prix!M21,decompo2prix!$A$7,IF(MIN(decompo1prix!M21,decompo2prix!M21,decompo3prix!M21,decompo4prix!M21,decompo5prix!M21,decompo6prix!M21,decompo7prix!M21,decompo8prix!M21,decompo9prix!M21,decompo10prix!M21)=decompo3prix!M21,decompo3prix!$A$7,IF(MIN(decompo1prix!M21,decompo2prix!M21,decompo3prix!M21,decompo4prix!M21,decompo5prix!M21,decompo6prix!M21,decompo7prix!M21,decompo8prix!M21,decompo9prix!M21,decompo10prix!M21)=decompo4prix!M21,decompo4prix!$A$7,IF(MIN(decompo1prix!M21,decompo2prix!M21,decompo3prix!M21,decompo4prix!M21,decompo5prix!M21,decompo6prix!M21,decompo7prix!M21,decompo8prix!M21,decompo9prix!M21,decompo10prix!M21)=decompo5prix!M21,decompo5prix!$A$7,IF(MIN(decompo1prix!M21,decompo2prix!M21,decompo3prix!M21,decompo4prix!M21,decompo5prix!M21,decompo6prix!M21,decompo7prix!M21,decompo8prix!M21,decompo9prix!M21,decompo10prix!M21)=decompo6prix!M21,decompo6prix!$A$7,IF(MIN(decompo1prix!M21,decompo2prix!M21,decompo3prix!M21,decompo4prix!M21,decompo5prix!M21,decompo6prix!M21,decompo7prix!M21,decompo8prix!M21,decompo9prix!M21,decompo10prix!M21)=decompo7prix!M21,decompo7prix!$A$7,IF(MIN(decompo1prix!M21,decompo2prix!M21,decompo3prix!M21,decompo4prix!M21,decompo5prix!M21,decompo6prix!M21,decompo7prix!M21,decompo8prix!M21,decompo9prix!M21,decompo10prix!M21)=decompo8prix!M21,decompo8prix!$A$7,IF(MIN(decompo1prix!M21,decompo2prix!M21,decompo3prix!M21,decompo4prix!M21,decompo5prix!M21,decompo6prix!M21,decompo7prix!M21,decompo8prix!M21,decompo9prix!M21,decompo10prix!M21)=decompo9prix!M21,decompo9prix!$A$7,decompo10prix!$A$7)))))))))) -> romain
A22: VIS 13 | B22: IN13 | C22: =MIN(decompo1prix!F22,decompo2prix!F22,decompo3prix!F22,decompo4prix!F22,decompo5prix!F22,decompo6prix!F22,decompo7prix!F22,decompo8prix!F22,decompo9prix!F22,decompo10prix!F22) -> 22.84 | D22: =MIN(decompo1prix!G22,decompo2prix!G22,decompo3prix!G22,decompo4prix!G22,decompo5prix!G22,decompo6prix!G22,decompo7prix!G22,decompo8prix!G22,decompo9prix!G22,decompo10prix!G22) -> 22.84 | E22: =MIN(decompo1prix!H22,decompo2prix!H22,decompo3prix!H22,decompo4prix!H22,decompo5prix!H22,decompo6prix!H22,decompo7prix!H22,decompo8prix!H22,decompo9prix!H22,decompo10prix!H22) -> 19.15 | F22: =MIN(decompo1prix!I22,decompo2prix!I22,decompo3prix!I22,decompo4prix!I22,decompo5prix!I22,decompo6prix!I22,decompo7prix!I22,decompo8prix!I22,decompo9prix!I22,decompo10prix!I22) -> 17.4 | G22: =MIN(decompo1prix!J22,decompo2prix!J22,decompo3prix!J22,decompo4prix!J22,decompo5prix!J22,decompo6prix!J22,decompo7prix!J22,decompo8prix!J22,decompo9prix!J22,decompo10prix!J22) -> 17.4 | H22: =MIN(decompo1prix!K22,decompo2prix!K22,decompo3prix!K22,decompo4prix!K22,decompo5prix!K22,decompo6prix!K22,decompo7prix!K22,decompo8prix!K22,decompo9prix!K22,decompo10prix!K22) -> 16.52 | I22: =MIN(decompo1prix!L22,decompo2prix!L22,decompo3prix!L22,decompo4prix!L22,decompo5prix!L22,decompo6prix!L22,decompo7prix!L22,decompo8prix!L22,decompo9prix!L22,decompo10prix!L22) -> 16.52 | J22: =MIN(decompo1prix!M22,decompo2prix!M22,decompo3prix!M22,decompo4prix!M22,decompo5prix!M22,decompo6prix!M22,decompo7prix!M22,decompo8prix!M22,decompo9prix!M22,decompo10prix!M22) -> 15.22 | T22: VIS 13 | U22: in13 | V22: =IF($T22="","",IF(MIN(decompo1prix!F22,decompo2prix!F22,decompo3prix!F22,decompo4prix!F22,decompo5prix!F22,decompo6prix!F22,decompo7prix!F22,decompo8prix!F22,decompo9prix!F22,decompo10prix!F22)=decompo1prix!F22,decompo1prix!$A$7,IF(MIN(decompo1prix!F22,decompo2prix!F22,decompo3prix!F22,decompo4prix!F22,decompo5prix!F22,decompo6prix!F22,decompo7prix!F22,decompo8prix!F22,decompo9prix!F22,decompo10prix!F22)=decompo2prix!F22,decompo2prix!$A$7,IF(MIN(decompo1prix!F22,decompo2prix!F22,decompo3prix!F22,decompo4prix!F22,decompo5prix!F22,decompo6prix!F22,decompo7prix!F22,decompo8prix!F22,decompo9prix!F22,decompo10prix!F22)=decompo3prix!F22,decompo3prix!$A$7,IF(MIN(decompo1prix!F22,decompo2prix!F22,decompo3prix!F22,decompo4prix!F22,decompo5prix!F22,decompo6prix!F22,decompo7prix!F22,decompo8prix!F22,decompo9prix!F22,decompo10prix!F22)=decompo4prix!F22,decompo4prix!$A$7,IF(MIN(decompo1prix!F22,decompo2prix!F22,decompo3prix!F22,decompo4prix!F22,decompo5prix!F22,decompo6prix!F22,decompo7prix!F22,decompo8prix!F22,decompo9prix!F22,decompo10prix!F22)=decompo5prix!F22,decompo5prix!$A$7,IF(MIN(decompo1prix!F22,decompo2prix!F22,decompo3prix!F22,decompo4prix!F22,decompo5prix!F22,decompo6prix!F22,decompo7prix!F22,decompo8prix!F22,decompo9prix!F22,decompo10prix!F22)=decompo6prix!F22,decompo6prix!$A$7,IF(MIN(decompo1prix!F22,decompo2prix!F22,decompo3prix!F22,decompo4prix!F22,decompo5prix!F22,decompo6prix!F22,decompo7prix!F22,decompo8prix!F22,decompo9prix!F22,decompo10prix!F22)=decompo7prix!F22,decompo7prix!$A$7,IF(MIN(decompo1prix!F22,decompo2prix!F22,decompo3prix!F22,decompo4prix!F22,decompo5prix!F22,decompo6prix!F22,decompo7prix!F22,decompo8prix!F22,decompo9prix!F22,decompo10prix!F22)=decompo8prix!F22,decompo8prix!$A$7,IF(MIN(decompo1prix!F22,decompo2prix!F22,decompo3prix!F22,decompo4prix!F22,decompo5prix!F22,decompo6prix!F22,decompo7prix!F22,decompo8prix!F22,decompo9prix!F22,decompo10prix!F22)=decompo9prix!F22,decompo9prix!$A$7,decompo10prix!$A$7)))))))))) -> justine | W22: =IF($T22="","",IF(MIN(decompo1prix!G22,decompo2prix!G22,decompo3prix!G22,decompo4prix!G22,decompo5prix!G22,decompo6prix!G22,decompo7prix!G22,decompo8prix!G22,decompo9prix!G22,decompo10prix!G22)=decompo1prix!G22,decompo1prix!$A$7,IF(MIN(decompo1prix!G22,decompo2prix!G22,decompo3prix!G22,decompo4prix!G22,decompo5prix!G22,decompo6prix!G22,decompo7prix!G22,decompo8prix!G22,decompo9prix!G22,decompo10prix!G22)=decompo2prix!G22,decompo2prix!$A$7,IF(MIN(decompo1prix!G22,decompo2prix!G22,decompo3prix!G22,decompo4prix!G22,decompo5prix!G22,decompo6prix!G22,decompo7prix!G22,decompo8prix!G22,decompo9prix!G22,decompo10prix!G22)=decompo3prix!G22,decompo3prix!$A$7,IF(MIN(decompo1prix!G22,decompo2prix!G22,decompo3prix!G22,decompo4prix!G22,decompo5prix!G22,decompo6prix!G22,decompo7prix!G22,decompo8prix!G22,decompo9prix!G22,decompo10prix!G22)=decompo4prix!G22,decompo4prix!$A$7,IF(MIN(decompo1prix!G22,decompo2prix!G22,decompo3prix!G22,decompo4prix!G22,decompo5prix!G22,decompo6prix!G22,decompo7prix!G22,decompo8prix!G22,decompo9prix!G22,decompo10prix!G22)=decompo5prix!G22,decompo5prix!$A$7,IF(MIN(decompo1prix!G22,decompo2prix!G22,decompo3prix!G22,decompo4prix!G22,decompo5prix!G22,decompo6prix!G22,decompo7prix!G22,decompo8prix!G22,decompo9prix!G22,decompo10prix!G22)=decompo6prix!G22,decompo6prix!$A$7,IF(MIN(decompo1prix!G22,decompo2prix!G22,decompo3prix!G22,decompo4prix!G22,decompo5prix!G22,decompo6prix!G22,decompo7prix!G22,decompo8prix!G22,decompo9prix!G22,decompo10prix!G22)=decompo7prix!G22,decompo7prix!$A$7,IF(MIN(decompo1prix!G22,decompo2prix!G22,decompo3prix!G22,decompo4prix!G22,decompo5prix!G22,decompo6prix!G22,decompo7prix!G22,decompo8prix!G22,decompo9prix!G22,decompo10prix!G22)=decompo8prix!G22,decompo8prix!$A$7,IF(MIN(decompo1prix!G22,decompo2prix!G22,decompo3prix!G22,decompo4prix!G22,decompo5prix!G22,decompo6prix!G22,decompo7prix!G22,decompo8prix!G22,decompo9prix!G22,decompo10prix!G22)=decompo9prix!G22,decompo9prix!$A$7,decompo10prix!$A$7)))))))))) -> justine | X22: =IF($T22="","",IF(MIN(decompo1prix!H22,decompo2prix!H22,decompo3prix!H22,decompo4prix!H22,decompo5prix!H22,decompo6prix!H22,decompo7prix!H22,decompo8prix!H22,decompo9prix!H22,decompo10prix!H22)=decompo1prix!H22,decompo1prix!$A$7,IF(MIN(decompo1prix!H22,decompo2prix!H22,decompo3prix!H22,decompo4prix!H22,decompo5prix!H22,decompo6prix!H22,decompo7prix!H22,decompo8prix!H22,decompo9prix!H22,decompo10prix!H22)=decompo2prix!H22,decompo2prix!$A$7,IF(MIN(decompo1prix!H22,decompo2prix!H22,decompo3prix!H22,decompo4prix!H22,decompo5prix!H22,decompo6prix!H22,decompo7prix!H22,decompo8prix!H22,decompo9prix!H22,decompo10prix!H22)=decompo3prix!H22,decompo3prix!$A$7,IF(MIN(decompo1prix!H22,decompo2prix!H22,decompo3prix!H22,decompo4prix!H22,decompo5prix!H22,decompo6prix!H22,decompo7prix!H22,decompo8prix!H22,decompo9prix!H22,decompo10prix!H22)=decompo4prix!H22,decompo4prix!$A$7,IF(MIN(decompo1prix!H22,decompo2prix!H22,decompo3prix!H22,decompo4prix!H22,decompo5prix!H22,decompo6prix!H22,decompo7prix!H22,decompo8prix!H22,decompo9prix!H22,decompo10prix!H22)=decompo5prix!H22,decompo5prix!$A$7,IF(MIN(decompo1prix!H22,decompo2prix!H22,decompo3prix!H22,decompo4prix!H22,decompo5prix!H22,decompo6prix!H22,decompo7prix!H22,decompo8prix!H22,decompo9prix!H22,decompo10prix!H22)=decompo6prix!H22,decompo6prix!$A$7,IF(MIN(decompo1prix!H22,decompo2prix!H22,decompo3prix!H22,decompo4prix!H22,decompo5prix!H22,decompo6prix!H22,decompo7prix!H22,decompo8prix!H22,decompo9prix!H22,decompo10prix!H22)=decompo7prix!H22,decompo7prix!$A$7,IF(MIN(decompo1prix!H22,decompo2prix!H22,decompo3prix!H22,decompo4prix!H22,decompo5prix!H22,decompo6prix!H22,decompo7prix!H22,decompo8prix!H22,decompo9prix!H22,decompo10prix!H22)=decompo8prix!H22,decompo8prix!$A$7,IF(MIN(decompo1prix!H22,decompo2prix!H22,decompo3prix!H22,decompo4prix!H22,decompo5prix!H22,decompo6prix!H22,decompo7prix!H22,decompo8prix!H22,decompo9prix!H22,decompo10prix!H22)=decompo9prix!H22,decompo9prix!$A$7,decompo10prix!$A$7)))))))))) -> justine | Y22: =IF($T22="","",IF(MIN(decompo1prix!I22,decompo2prix!I22,decompo3prix!I22,decompo4prix!I22,decompo5prix!I22,decompo6prix!I22,decompo7prix!I22,decompo8prix!I22,decompo9prix!I22,decompo10prix!I22)=decompo1prix!I22,decompo1prix!$A$7,IF(MIN(decompo1prix!I22,decompo2prix!I22,decompo3prix!I22,decompo4prix!I22,decompo5prix!I22,decompo6prix!I22,decompo7prix!I22,decompo8prix!I22,decompo9prix!I22,decompo10prix!I22)=decompo2prix!I22,decompo2prix!$A$7,IF(MIN(decompo1prix!I22,decompo2prix!I22,decompo3prix!I22,decompo4prix!I22,decompo5prix!I22,decompo6prix!I22,decompo7prix!I22,decompo8prix!I22,decompo9prix!I22,decompo10prix!I22)=decompo3prix!I22,decompo3prix!$A$7,IF(MIN(decompo1prix!I22,decompo2prix!I22,decompo3prix!I22,decompo4prix!I22,decompo5prix!I22,decompo6prix!I22,decompo7prix!I22,decompo8prix!I22,decompo9prix!I22,decompo10prix!I22)=decompo4prix!I22,decompo4prix!$A$7,IF(MIN(decompo1prix!I22,decompo2prix!I22,decompo3prix!I22,decompo4prix!I22,decompo5prix!I22,decompo6prix!I22,decompo7prix!I22,decompo8prix!I22,decompo9prix!I22,decompo10prix!I22)=decompo5prix!I22,decompo5prix!$A$7,IF(MIN(decompo1prix!I22,decompo2prix!I22,decompo3prix!I22,decompo4prix!I22,decompo5prix!I22,decompo6prix!I22,decompo7prix!I22,decompo8prix!I22,decompo9prix!I22,decompo10prix!I22)=decompo6prix!I22,decompo6prix!$A$7,IF(MIN(decompo1prix!I22,decompo2prix!I22,decompo3prix!I22,decompo4prix!I22,decompo5prix!I22,decompo6prix!I22,decompo7prix!I22,decompo8prix!I22,decompo9prix!I22,decompo10prix!I22)=decompo7prix!I22,decompo7prix!$A$7,IF(MIN(decompo1prix!I22,decompo2prix!I22,decompo3prix!I22,decompo4prix!I22,decompo5prix!I22,decompo6prix!I22,decompo7prix!I22,decompo8prix!I22,decompo9prix!I22,decompo10prix!I22)=decompo8prix!I22,decompo8prix!$A$7,IF(MIN(decompo1prix!I22,decompo2prix!I22,decompo3prix!I22,decompo4prix!I22,decompo5prix!I22,decompo6prix!I22,decompo7prix!I22,decompo8prix!I22,decompo9prix!I22,decompo10prix!I22)=decompo9prix!I22,decompo9prix!$A$7,decompo10prix!$A$7)))))))))) -> justine | Z22: =IF($T22="","",IF(MIN(decompo1prix!J22,decompo2prix!J22,decompo3prix!J22,decompo4prix!J22,decompo5prix!J22,decompo6prix!J22,decompo7prix!J22,decompo8prix!J22,decompo9prix!J22,decompo10prix!J22)=decompo1prix!J22,decompo1prix!$A$7,IF(MIN(decompo1prix!J22,decompo2prix!J22,decompo3prix!J22,decompo4prix!J22,decompo5prix!J22,decompo6prix!J22,decompo7prix!J22,decompo8prix!J22,decompo9prix!J22,decompo10prix!J22)=decompo2prix!J22,decompo2prix!$A$7,IF(MIN(decompo1prix!J22,decompo2prix!J22,decompo3prix!J22,decompo4prix!J22,decompo5prix!J22,decompo6prix!J22,decompo7prix!J22,decompo8prix!J22,decompo9prix!J22,decompo10prix!J22)=decompo3prix!J22,decompo3prix!$A$7,IF(MIN(decompo1prix!J22,decompo2prix!J22,decompo3prix!J22,decompo4prix!J22,decompo5prix!J22,decompo6prix!J22,decompo7prix!J22,decompo8prix!J22,decompo9prix!J22,decompo10prix!J22)=decompo4prix!J22,decompo4prix!$A$7,IF(MIN(decompo1prix!J22,decompo2prix!J22,decompo3prix!J22,decompo4prix!J22,decompo5prix!J22,decompo6prix!J22,decompo7prix!J22,decompo8prix!J22,decompo9prix!J22,decompo10prix!J22)=decompo5prix!J22,decompo5prix!$A$7,IF(MIN(decompo1prix!J22,decompo2prix!J22,decompo3prix!J22,decompo4prix!J22,decompo5prix!J22,decompo6prix!J22,decompo7prix!J22,decompo8prix!J22,decompo9prix!J22,decompo10prix!J22)=decompo6prix!J22,decompo6prix!$A$7,IF(MIN(decompo1prix!J22,decompo2prix!J22,decompo3prix!J22,decompo4prix!J22,decompo5prix!J22,decompo6prix!J22,decompo7prix!J22,decompo8prix!J22,decompo9prix!J22,decompo10prix!J22)=decompo7prix!J22,decompo7prix!$A$7,IF(MIN(decompo1prix!J22,decompo2prix!J22,decompo3prix!J22,decompo4prix!J22,decompo5prix!J22,decompo6prix!J22,decompo7prix!J22,decompo8prix!J22,decompo9prix!J22,decompo10prix!J22)=decompo8prix!J22,decompo8prix!$A$7,IF(MIN(decompo1prix!J22,decompo2prix!J22,decompo3prix!J22,decompo4prix!J22,decompo5prix!J22,decompo6prix!J22,decompo7prix!J22,decompo8prix!J22,decompo9prix!J22,decompo10prix!J22)=decompo9prix!J22,decompo9prix!$A$7,decompo10prix!$A$7)))))))))) -> justine | AA22: =IF($T22="","",IF(MIN(decompo1prix!K22,decompo2prix!K22,decompo3prix!K22,decompo4prix!K22,decompo5prix!K22,decompo6prix!K22,decompo7prix!K22,decompo8prix!K22,decompo9prix!K22,decompo10prix!K22)=decompo1prix!K22,decompo1prix!$A$7,IF(MIN(decompo1prix!K22,decompo2prix!K22,decompo3prix!K22,decompo4prix!K22,decompo5prix!K22,decompo6prix!K22,decompo7prix!K22,decompo8prix!K22,decompo9prix!K22,decompo10prix!K22)=decompo2prix!K22,decompo2prix!$A$7,IF(MIN(decompo1prix!K22,decompo2prix!K22,decompo3prix!K22,decompo4prix!K22,decompo5prix!K22,decompo6prix!K22,decompo7prix!K22,decompo8prix!K22,decompo9prix!K22,decompo10prix!K22)=decompo3prix!K22,decompo3prix!$A$7,IF(MIN(decompo1prix!K22,decompo2prix!K22,decompo3prix!K22,decompo4prix!K22,decompo5prix!K22,decompo6prix!K22,decompo7prix!K22,decompo8prix!K22,decompo9prix!K22,decompo10prix!K22)=decompo4prix!K22,decompo4prix!$A$7,IF(MIN(decompo1prix!K22,decompo2prix!K22,decompo3prix!K22,decompo4prix!K22,decompo5prix!K22,decompo6prix!K22,decompo7prix!K22,decompo8prix!K22,decompo9prix!K22,decompo10prix!K22)=decompo5prix!K22,decompo5prix!$A$7,IF(MIN(decompo1prix!K22,decompo2prix!K22,decompo3prix!K22,decompo4prix!K22,decompo5prix!K22,decompo6prix!K22,decompo7prix!K22,decompo8prix!K22,decompo9prix!K22,decompo10prix!K22)=decompo6prix!K22,decompo6prix!$A$7,IF(MIN(decompo1prix!K22,decompo2prix!K22,decompo3prix!K22,decompo4prix!K22,decompo5prix!K22,decompo6prix!K22,decompo7prix!K22,decompo8prix!K22,decompo9prix!K22,decompo10prix!K22)=decompo7prix!K22,decompo7prix!$A$7,IF(MIN(decompo1prix!K22,decompo2prix!K22,decompo3prix!K22,decompo4prix!K22,decompo5prix!K22,decompo6prix!K22,decompo7prix!K22,decompo8prix!K22,decompo9prix!K22,decompo10prix!K22)=decompo8prix!K22,decompo8prix!$A$7,IF(MIN(decompo1prix!K22,decompo2prix!K22,decompo3prix!K22,decompo4prix!K22,decompo5prix!K22,decompo6prix!K22,decompo7prix!K22,decompo8prix!K22,decompo9prix!K22,decompo10prix!K22)=decompo9prix!K22,decompo9prix!$A$7,decompo10prix!$A$7)))))))))) -> justine | AB22: =IF($T22="","",IF(MIN(decompo1prix!L22,decompo2prix!L22,decompo3prix!L22,decompo4prix!L22,decompo5prix!L22,decompo6prix!L22,decompo7prix!L22,decompo8prix!L22,decompo9prix!L22,decompo10prix!L22)=decompo1prix!L22,decompo1prix!$A$7,IF(MIN(decompo1prix!L22,decompo2prix!L22,decompo3prix!L22,decompo4prix!L22,decompo5prix!L22,decompo6prix!L22,decompo7prix!L22,decompo8prix!L22,decompo9prix!L22,decompo10prix!L22)=decompo2prix!L22,decompo2prix!$A$7,IF(MIN(decompo1prix!L22,decompo2prix!L22,decompo3prix!L22,decompo4prix!L22,decompo5prix!L22,decompo6prix!L22,decompo7prix!L22,decompo8prix!L22,decompo9prix!L22,decompo10prix!L22)=decompo3prix!L22,decompo3prix!$A$7,IF(MIN(decompo1prix!L22,decompo2prix!L22,decompo3prix!L22,decompo4prix!L22,decompo5prix!L22,decompo6prix!L22,decompo7prix!L22,decompo8prix!L22,decompo9prix!L22,decompo10prix!L22)=decompo4prix!L22,decompo4prix!$A$7,IF(MIN(decompo1prix!L22,decompo2prix!L22,decompo3prix!L22,decompo4prix!L22,decompo5prix!L22,decompo6prix!L22,decompo7prix!L22,decompo8prix!L22,decompo9prix!L22,decompo10prix!L22)=decompo5prix!L22,decompo5prix!$A$7,IF(MIN(decompo1prix!L22,decompo2prix!L22,decompo3prix!L22,decompo4prix!L22,decompo5prix!L22,decompo6prix!L22,decompo7prix!L22,decompo8prix!L22,decompo9prix!L22,decompo10prix!L22)=decompo6prix!L22,decompo6prix!$A$7,IF(MIN(decompo1prix!L22,decompo2prix!L22,decompo3prix!L22,decompo4prix!L22,decompo5prix!L22,decompo6prix!L22,decompo7prix!L22,decompo8prix!L22,decompo9prix!L22,decompo10prix!L22)=decompo7prix!L22,decompo7prix!$A$7,IF(MIN(decompo1prix!L22,decompo2prix!L22,decompo3prix!L22,decompo4prix!L22,decompo5prix!L22,decompo6prix!L22,decompo7prix!L22,decompo8prix!L22,decompo9prix!L22,decompo10prix!L22)=decompo8prix!L22,decompo8prix!$A$7,IF(MIN(decompo1prix!L22,decompo2prix!L22,decompo3prix!L22,decompo4prix!L22,decompo5prix!L22,decompo6prix!L22,decompo7prix!L22,decompo8prix!L22,decompo9prix!L22,decompo10prix!L22)=decompo9prix!L22,decompo9prix!$A$7,decompo10prix!$A$7)))))))))) -> justine | AC22: =IF($T22="","",IF(MIN(decompo1prix!M22,decompo2prix!M22,decompo3prix!M22,decompo4prix!M22,decompo5prix!M22,decompo6prix!M22,decompo7prix!M22,decompo8prix!M22,decompo9prix!M22,decompo10prix!M22)=decompo1prix!M22,decompo1prix!$A$7,IF(MIN(decompo1prix!M22,decompo2prix!M22,decompo3prix!M22,decompo4prix!M22,decompo5prix!M22,decompo6prix!M22,decompo7prix!M22,decompo8prix!M22,decompo9prix!M22,decompo10prix!M22)=decompo2prix!M22,decompo2prix!$A$7,IF(MIN(decompo1prix!M22,decompo2prix!M22,decompo3prix!M22,decompo4prix!M22,decompo5prix!M22,decompo6prix!M22,decompo7prix!M22,decompo8prix!M22,decompo9prix!M22,decompo10prix!M22)=decompo3prix!M22,decompo3prix!$A$7,IF(MIN(decompo1prix!M22,decompo2prix!M22,decompo3prix!M22,decompo4prix!M22,decompo5prix!M22,decompo6prix!M22,decompo7prix!M22,decompo8prix!M22,decompo9prix!M22,decompo10prix!M22)=decompo4prix!M22,decompo4prix!$A$7,IF(MIN(decompo1prix!M22,decompo2prix!M22,decompo3prix!M22,decompo4prix!M22,decompo5prix!M22,decompo6prix!M22,decompo7prix!M22,decompo8prix!M22,decompo9prix!M22,decompo10prix!M22)=decompo5prix!M22,decompo5prix!$A$7,IF(MIN(decompo1prix!M22,decompo2prix!M22,decompo3prix!M22,decompo4prix!M22,decompo5prix!M22,decompo6prix!M22,decompo7prix!M22,decompo8prix!M22,decompo9prix!M22,decompo10prix!M22)=decompo6prix!M22,decompo6prix!$A$7,IF(MIN(decompo1prix!M22,decompo2prix!M22,decompo3prix!M22,decompo4prix!M22,decompo5prix!M22,decompo6prix!M22,decompo7prix!M22,decompo8prix!M22,decompo9prix!M22,decompo10prix!M22)=decompo7prix!M22,decompo7prix!$A$7,IF(MIN(decompo1prix!M22,decompo2prix!M22,decompo3prix!M22,decompo4prix!M22,decompo5prix!M22,decompo6prix!M22,decompo7prix!M22,decompo8prix!M22,decompo9prix!M22,decompo10prix!M22)=decompo8prix!M22,decompo8prix!$A$7,IF(MIN(decompo1prix!M22,decompo2prix!M22,decompo3prix!M22,decompo4prix!M22,decompo5prix!M22,decompo6prix!M22,decompo7prix!M22,decompo8prix!M22,decompo9prix!M22,decompo10prix!M22)=decompo9prix!M22,decompo9prix!$A$7,decompo10prix!$A$7)))))))))) -> justine
A23: VIS 14 | B23: IN14 | C23: =MIN(decompo1prix!F23,decompo2prix!F23,decompo3prix!F23,decompo4prix!F23,decompo5prix!F23,decompo6prix!F23,decompo7prix!F23,decompo8prix!F23,decompo9prix!F23,decompo10prix!F23) -> 21.62 | D23: =MIN(decompo1prix!G23,decompo2prix!G23,decompo3prix!G23,decompo4prix!G23,decompo5prix!G23,decompo6prix!G23,decompo7prix!G23,decompo8prix!G23,decompo9prix!G23,decompo10prix!G23) -> 21.62 | E23: =MIN(decompo1prix!H23,decompo2prix!H23,decompo3prix!H23,decompo4prix!H23,decompo5prix!H23,decompo6prix!H23,decompo7prix!H23,decompo8prix!H23,decompo9prix!H23,decompo10prix!H23) -> 18.13 | F23: =MIN(decompo1prix!I23,decompo2prix!I23,decompo3prix!I23,decompo4prix!I23,decompo5prix!I23,decompo6prix!I23,decompo7prix!I23,decompo8prix!I23,decompo9prix!I23,decompo10prix!I23) -> 16.47 | G23: =MIN(decompo1prix!J23,decompo2prix!J23,decompo3prix!J23,decompo4prix!J23,decompo5prix!J23,decompo6prix!J23,decompo7prix!J23,decompo8prix!J23,decompo9prix!J23,decompo10prix!J23) -> 16.47 | H23: =MIN(decompo1prix!K23,decompo2prix!K23,decompo3prix!K23,decompo4prix!K23,decompo5prix!K23,decompo6prix!K23,decompo7prix!K23,decompo8prix!K23,decompo9prix!K23,decompo10prix!K23) -> 15.65 | I23: =MIN(decompo1prix!L23,decompo2prix!L23,decompo3prix!L23,decompo4prix!L23,decompo5prix!L23,decompo6prix!L23,decompo7prix!L23,decompo8prix!L23,decompo9prix!L23,decompo10prix!L23) -> 15.65 | J23: =MIN(decompo1prix!M23,decompo2prix!M23,decompo3prix!M23,decompo4prix!M23,decompo5prix!M23,decompo6prix!M23,decompo7prix!M23,decompo8prix!M23,decompo9prix!M23,decompo10prix!M23) -> 14.4 | T23: VIS 14 | U23: in14 | V23: =IF($T23="","",IF(MIN(decompo1prix!F23,decompo2prix!F23,decompo3prix!F23,decompo4prix!F23,decompo5prix!F23,decompo6prix!F23,decompo7prix!F23,decompo8prix!F23,decompo9prix!F23,decompo10prix!F23)=decompo1prix!F23,decompo1prix!$A$7,IF(MIN(decompo1prix!F23,decompo2prix!F23,decompo3prix!F23,decompo4prix!F23,decompo5prix!F23,decompo6prix!F23,decompo7prix!F23,decompo8prix!F23,decompo9prix!F23,decompo10prix!F23)=decompo2prix!F23,decompo2prix!$A$7,IF(MIN(decompo1prix!F23,decompo2prix!F23,decompo3prix!F23,decompo4prix!F23,decompo5prix!F23,decompo6prix!F23,decompo7prix!F23,decompo8prix!F23,decompo9prix!F23,decompo10prix!F23)=decompo3prix!F23,decompo3prix!$A$7,IF(MIN(decompo1prix!F23,decompo2prix!F23,decompo3prix!F23,decompo4prix!F23,decompo5prix!F23,decompo6prix!F23,decompo7prix!F23,decompo8prix!F23,decompo9prix!F23,decompo10prix!F23)=decompo4prix!F23,decompo4prix!$A$7,IF(MIN(decompo1prix!F23,decompo2prix!F23,decompo3prix!F23,decompo4prix!F23,decompo5prix!F23,decompo6prix!F23,decompo7prix!F23,decompo8prix!F23,decompo9prix!F23,decompo10prix!F23)=decompo5prix!F23,decompo5prix!$A$7,IF(MIN(decompo1prix!F23,decompo2prix!F23,decompo3prix!F23,decompo4prix!F23,decompo5prix!F23,decompo6prix!F23,decompo7prix!F23,decompo8prix!F23,decompo9prix!F23,decompo10prix!F23)=decompo6prix!F23,decompo6prix!$A$7,IF(MIN(decompo1prix!F23,decompo2prix!F23,decompo3prix!F23,decompo4prix!F23,decompo5prix!F23,decompo6prix!F23,decompo7prix!F23,decompo8prix!F23,decompo9prix!F23,decompo10prix!F23)=decompo7prix!F23,decompo7prix!$A$7,IF(MIN(decompo1prix!F23,decompo2prix!F23,decompo3prix!F23,decompo4prix!F23,decompo5prix!F23,decompo6prix!F23,decompo7prix!F23,decompo8prix!F23,decompo9prix!F23,decompo10prix!F23)=decompo8prix!F23,decompo8prix!$A$7,IF(MIN(decompo1prix!F23,decompo2prix!F23,decompo3prix!F23,decompo4prix!F23,decompo5prix!F23,decompo6prix!F23,decompo7prix!F23,decompo8prix!F23,decompo9prix!F23,decompo10prix!F23)=decompo9prix!F23,decompo9prix!$A$7,decompo10prix!$A$7)))))))))) -> justine | W23: =IF($T23="","",IF(MIN(decompo1prix!G23,decompo2prix!G23,decompo3prix!G23,decompo4prix!G23,decompo5prix!G23,decompo6prix!G23,decompo7prix!G23,decompo8prix!G23,decompo9prix!G23,decompo10prix!G23)=decompo1prix!G23,decompo1prix!$A$7,IF(MIN(decompo1prix!G23,decompo2prix!G23,decompo3prix!G23,decompo4prix!G23,decompo5prix!G23,decompo6prix!G23,decompo7prix!G23,decompo8prix!G23,decompo9prix!G23,decompo10prix!G23)=decompo2prix!G23,decompo2prix!$A$7,IF(MIN(decompo1prix!G23,decompo2prix!G23,decompo3prix!G23,decompo4prix!G23,decompo5prix!G23,decompo6prix!G23,decompo7prix!G23,decompo8prix!G23,decompo9prix!G23,decompo10prix!G23)=decompo3prix!G23,decompo3prix!$A$7,IF(MIN(decompo1prix!G23,decompo2prix!G23,decompo3prix!G23,decompo4prix!G23,decompo5prix!G23,decompo6prix!G23,decompo7prix!G23,decompo8prix!G23,decompo9prix!G23,decompo10prix!G23)=decompo4prix!G23,decompo4prix!$A$7,IF(MIN(decompo1prix!G23,decompo2prix!G23,decompo3prix!G23,decompo4prix!G23,decompo5prix!G23,decompo6prix!G23,decompo7prix!G23,decompo8prix!G23,decompo9prix!G23,decompo10prix!G23)=decompo5prix!G23,decompo5prix!$A$7,IF(MIN(decompo1prix!G23,decompo2prix!G23,decompo3prix!G23,decompo4prix!G23,decompo5prix!G23,decompo6prix!G23,decompo7prix!G23,decompo8prix!G23,decompo9prix!G23,decompo10prix!G23)=decompo6prix!G23,decompo6prix!$A$7,IF(MIN(decompo1prix!G23,decompo2prix!G23,decompo3prix!G23,decompo4prix!G23,decompo5prix!G23,decompo6prix!G23,decompo7prix!G23,decompo8prix!G23,decompo9prix!G23,decompo10prix!G23)=decompo7prix!G23,decompo7prix!$A$7,IF(MIN(decompo1prix!G23,decompo2prix!G23,decompo3prix!G23,decompo4prix!G23,decompo5prix!G23,decompo6prix!G23,decompo7prix!G23,decompo8prix!G23,decompo9prix!G23,decompo10prix!G23)=decompo8prix!G23,decompo8prix!$A$7,IF(MIN(decompo1prix!G23,decompo2prix!G23,decompo3prix!G23,decompo4prix!G23,decompo5prix!G23,decompo6prix!G23,decompo7prix!G23,decompo8prix!G23,decompo9prix!G23,decompo10prix!G23)=decompo9prix!G23,decompo9prix!$A$7,decompo10prix!$A$7)))))))))) -> justine | X23: =IF($T23="","",IF(MIN(decompo1prix!H23,decompo2prix!H23,decompo3prix!H23,decompo4prix!H23,decompo5prix!H23,decompo6prix!H23,decompo7prix!H23,decompo8prix!H23,decompo9prix!H23,decompo10prix!H23)=decompo1prix!H23,decompo1prix!$A$7,IF(MIN(decompo1prix!H23,decompo2prix!H23,decompo3prix!H23,decompo4prix!H23,decompo5prix!H23,decompo6prix!H23,decompo7prix!H23,decompo8prix!H23,decompo9prix!H23,decompo10prix!H23)=decompo2prix!H23,decompo2prix!$A$7,IF(MIN(decompo1prix!H23,decompo2prix!H23,decompo3prix!H23,decompo4prix!H23,decompo5prix!H23,decompo6prix!H23,decompo7prix!H23,decompo8prix!H23,decompo9prix!H23,decompo10prix!H23)=decompo3prix!H23,decompo3prix!$A$7,IF(MIN(decompo1prix!H23,decompo2prix!H23,decompo3prix!H23,decompo4prix!H23,decompo5prix!H23,decompo6prix!H23,decompo7prix!H23,decompo8prix!H23,decompo9prix!H23,decompo10prix!H23)=decompo4prix!H23,decompo4prix!$A$7,IF(MIN(decompo1prix!H23,decompo2prix!H23,decompo3prix!H23,decompo4prix!H23,decompo5prix!H23,decompo6prix!H23,decompo7prix!H23,decompo8prix!H23,decompo9prix!H23,decompo10prix!H23)=decompo5prix!H23,decompo5prix!$A$7,IF(MIN(decompo1prix!H23,decompo2prix!H23,decompo3prix!H23,decompo4prix!H23,decompo5prix!H23,decompo6prix!H23,decompo7prix!H23,decompo8prix!H23,decompo9prix!H23,decompo10prix!H23)=decompo6prix!H23,decompo6prix!$A$7,IF(MIN(decompo1prix!H23,decompo2prix!H23,decompo3prix!H23,decompo4prix!H23,decompo5prix!H23,decompo6prix!H23,decompo7prix!H23,decompo8prix!H23,decompo9prix!H23,decompo10prix!H23)=decompo7prix!H23,decompo7prix!$A$7,IF(MIN(decompo1prix!H23,decompo2prix!H23,decompo3prix!H23,decompo4prix!H23,decompo5prix!H23,decompo6prix!H23,decompo7prix!H23,decompo8prix!H23,decompo9prix!H23,decompo10prix!H23)=decompo8prix!H23,decompo8prix!$A$7,IF(MIN(decompo1prix!H23,decompo2prix!H23,decompo3prix!H23,decompo4prix!H23,decompo5prix!H23,decompo6prix!H23,decompo7prix!H23,decompo8prix!H23,decompo9prix!H23,decompo10prix!H23)=decompo9prix!H23,decompo9prix!$A$7,decompo10prix!$A$7)))))))))) -> justine | Y23: =IF($T23="","",IF(MIN(decompo1prix!I23,decompo2prix!I23,decompo3prix!I23,decompo4prix!I23,decompo5prix!I23,decompo6prix!I23,decompo7prix!I23,decompo8prix!I23,decompo9prix!I23,decompo10prix!I23)=decompo1prix!I23,decompo1prix!$A$7,IF(MIN(decompo1prix!I23,decompo2prix!I23,decompo3prix!I23,decompo4prix!I23,decompo5prix!I23,decompo6prix!I23,decompo7prix!I23,decompo8prix!I23,decompo9prix!I23,decompo10prix!I23)=decompo2prix!I23,decompo2prix!$A$7,IF(MIN(decompo1prix!I23,decompo2prix!I23,decompo3prix!I23,decompo4prix!I23,decompo5prix!I23,decompo6prix!I23,decompo7prix!I23,decompo8prix!I23,decompo9prix!I23,decompo10prix!I23)=decompo3prix!I23,decompo3prix!$A$7,IF(MIN(decompo1prix!I23,decompo2prix!I23,decompo3prix!I23,decompo4prix!I23,decompo5prix!I23,decompo6prix!I23,decompo7prix!I23,decompo8prix!I23,decompo9prix!I23,decompo10prix!I23)=decompo4prix!I23,decompo4prix!$A$7,IF(MIN(decompo1prix!I23,decompo2prix!I23,decompo3prix!I23,decompo4prix!I23,decompo5prix!I23,decompo6prix!I23,decompo7prix!I23,decompo8prix!I23,decompo9prix!I23,decompo10prix!I23)=decompo5prix!I23,decompo5prix!$A$7,IF(MIN(decompo1prix!I23,decompo2prix!I23,decompo3prix!I23,decompo4prix!I23,decompo5prix!I23,decompo6prix!I23,decompo7prix!I23,decompo8prix!I23,decompo9prix!I23,decompo10prix!I23)=decompo6prix!I23,decompo6prix!$A$7,IF(MIN(decompo1prix!I23,decompo2prix!I23,decompo3prix!I23,decompo4prix!I23,decompo5prix!I23,decompo6prix!I23,decompo7prix!I23,decompo8prix!I23,decompo9prix!I23,decompo10prix!I23)=decompo7prix!I23,decompo7prix!$A$7,IF(MIN(decompo1prix!I23,decompo2prix!I23,decompo3prix!I23,decompo4prix!I23,decompo5prix!I23,decompo6prix!I23,decompo7prix!I23,decompo8prix!I23,decompo9prix!I23,decompo10prix!I23)=decompo8prix!I23,decompo8prix!$A$7,IF(MIN(decompo1prix!I23,decompo2prix!I23,decompo3prix!I23,decompo4prix!I23,decompo5prix!I23,decompo6prix!I23,decompo7prix!I23,decompo8prix!I23,decompo9prix!I23,decompo10prix!I23)=decompo9prix!I23,decompo9prix!$A$7,decompo10prix!$A$7)))))))))) -> justine | Z23: =IF($T23="","",IF(MIN(decompo1prix!J23,decompo2prix!J23,decompo3prix!J23,decompo4prix!J23,decompo5prix!J23,decompo6prix!J23,decompo7prix!J23,decompo8prix!J23,decompo9prix!J23,decompo10prix!J23)=decompo1prix!J23,decompo1prix!$A$7,IF(MIN(decompo1prix!J23,decompo2prix!J23,decompo3prix!J23,decompo4prix!J23,decompo5prix!J23,decompo6prix!J23,decompo7prix!J23,decompo8prix!J23,decompo9prix!J23,decompo10prix!J23)=decompo2prix!J23,decompo2prix!$A$7,IF(MIN(decompo1prix!J23,decompo2prix!J23,decompo3prix!J23,decompo4prix!J23,decompo5prix!J23,decompo6prix!J23,decompo7prix!J23,decompo8prix!J23,decompo9prix!J23,decompo10prix!J23)=decompo3prix!J23,decompo3prix!$A$7,IF(MIN(decompo1prix!J23,decompo2prix!J23,decompo3prix!J23,decompo4prix!J23,decompo5prix!J23,decompo6prix!J23,decompo7prix!J23,decompo8prix!J23,decompo9prix!J23,decompo10prix!J23)=decompo4prix!J23,decompo4prix!$A$7,IF(MIN(decompo1prix!J23,decompo2prix!J23,decompo3prix!J23,decompo4prix!J23,decompo5prix!J23,decompo6prix!J23,decompo7prix!J23,decompo8prix!J23,decompo9prix!J23,decompo10prix!J23)=decompo5prix!J23,decompo5prix!$A$7,IF(MIN(decompo1prix!J23,decompo2prix!J23,decompo3prix!J23,decompo4prix!J23,decompo5prix!J23,decompo6prix!J23,decompo7prix!J23,decompo8prix!J23,decompo9prix!J23,decompo10prix!J23)=decompo6prix!J23,decompo6prix!$A$7,IF(MIN(decompo1prix!J23,decompo2prix!J23,decompo3prix!J23,decompo4prix!J23,decompo5prix!J23,decompo6prix!J23,decompo7prix!J23,decompo8prix!J23,decompo9prix!J23,decompo10prix!J23)=decompo7prix!J23,decompo7prix!$A$7,IF(MIN(decompo1prix!J23,decompo2prix!J23,decompo3prix!J23,decompo4prix!J23,decompo5prix!J23,decompo6prix!J23,decompo7prix!J23,decompo8prix!J23,decompo9prix!J23,decompo10prix!J23)=decompo8prix!J23,decompo8prix!$A$7,IF(MIN(decompo1prix!J23,decompo2prix!J23,decompo3prix!J23,decompo4prix!J23,decompo5prix!J23,decompo6prix!J23,decompo7prix!J23,decompo8prix!J23,decompo9prix!J23,decompo10prix!J23)=decompo9prix!J23,decompo9prix!$A$7,decompo10prix!$A$7)))))))))) -> justine | AA23: =IF($T23="","",IF(MIN(decompo1prix!K23,decompo2prix!K23,decompo3prix!K23,decompo4prix!K23,decompo5prix!K23,decompo6prix!K23,decompo7prix!K23,decompo8prix!K23,decompo9prix!K23,decompo10prix!K23)=decompo1prix!K23,decompo1prix!$A$7,IF(MIN(decompo1prix!K23,decompo2prix!K23,decompo3prix!K23,decompo4prix!K23,decompo5prix!K23,decompo6prix!K23,decompo7prix!K23,decompo8prix!K23,decompo9prix!K23,decompo10prix!K23)=decompo2prix!K23,decompo2prix!$A$7,IF(MIN(decompo1prix!K23,decompo2prix!K23,decompo3prix!K23,decompo4prix!K23,decompo5prix!K23,decompo6prix!K23,decompo7prix!K23,decompo8prix!K23,decompo9prix!K23,decompo10prix!K23)=decompo3prix!K23,decompo3prix!$A$7,IF(MIN(decompo1prix!K23,decompo2prix!K23,decompo3prix!K23,decompo4prix!K23,decompo5prix!K23,decompo6prix!K23,decompo7prix!K23,decompo8prix!K23,decompo9prix!K23,decompo10prix!K23)=decompo4prix!K23,decompo4prix!$A$7,IF(MIN(decompo1prix!K23,decompo2prix!K23,decompo3prix!K23,decompo4prix!K23,decompo5prix!K23,decompo6prix!K23,decompo7prix!K23,decompo8prix!K23,decompo9prix!K23,decompo10prix!K23)=decompo5prix!K23,decompo5prix!$A$7,IF(MIN(decompo1prix!K23,decompo2prix!K23,decompo3prix!K23,decompo4prix!K23,decompo5prix!K23,decompo6prix!K23,decompo7prix!K23,decompo8prix!K23,decompo9prix!K23,decompo10prix!K23)=decompo6prix!K23,decompo6prix!$A$7,IF(MIN(decompo1prix!K23,decompo2prix!K23,decompo3prix!K23,decompo4prix!K23,decompo5prix!K23,decompo6prix!K23,decompo7prix!K23,decompo8prix!K23,decompo9prix!K23,decompo10prix!K23)=decompo7prix!K23,decompo7prix!$A$7,IF(MIN(decompo1prix!K23,decompo2prix!K23,decompo3prix!K23,decompo4prix!K23,decompo5prix!K23,decompo6prix!K23,decompo7prix!K23,decompo8prix!K23,decompo9prix!K23,decompo10prix!K23)=decompo8prix!K23,decompo8prix!$A$7,IF(MIN(decompo1prix!K23,decompo2prix!K23,decompo3prix!K23,decompo4prix!K23,decompo5prix!K23,decompo6prix!K23,decompo7prix!K23,decompo8prix!K23,decompo9prix!K23,decompo10prix!K23)=decompo9prix!K23,decompo9prix!$A$7,decompo10prix!$A$7)))))))))) -> justine | AB23: =IF($T23="","",IF(MIN(decompo1prix!L23,decompo2prix!L23,decompo3prix!L23,decompo4prix!L23,decompo5prix!L23,decompo6prix!L23,decompo7prix!L23,decompo8prix!L23,decompo9prix!L23,decompo10prix!L23)=decompo1prix!L23,decompo1prix!$A$7,IF(MIN(decompo1prix!L23,decompo2prix!L23,decompo3prix!L23,decompo4prix!L23,decompo5prix!L23,decompo6prix!L23,decompo7prix!L23,decompo8prix!L23,decompo9prix!L23,decompo10prix!L23)=decompo2prix!L23,decompo2prix!$A$7,IF(MIN(decompo1prix!L23,decompo2prix!L23,decompo3prix!L23,decompo4prix!L23,decompo5prix!L23,decompo6prix!L23,decompo7prix!L23,decompo8prix!L23,decompo9prix!L23,decompo10prix!L23)=decompo3prix!L23,decompo3prix!$A$7,IF(MIN(decompo1prix!L23,decompo2prix!L23,decompo3prix!L23,decompo4prix!L23,decompo5prix!L23,decompo6prix!L23,decompo7prix!L23,decompo8prix!L23,decompo9prix!L23,decompo10prix!L23)=decompo4prix!L23,decompo4prix!$A$7,IF(MIN(decompo1prix!L23,decompo2prix!L23,decompo3prix!L23,decompo4prix!L23,decompo5prix!L23,decompo6prix!L23,decompo7prix!L23,decompo8prix!L23,decompo9prix!L23,decompo10prix!L23)=decompo5prix!L23,decompo5prix!$A$7,IF(MIN(decompo1prix!L23,decompo2prix!L23,decompo3prix!L23,decompo4prix!L23,decompo5prix!L23,decompo6prix!L23,decompo7prix!L23,decompo8prix!L23,decompo9prix!L23,decompo10prix!L23)=decompo6prix!L23,decompo6prix!$A$7,IF(MIN(decompo1prix!L23,decompo2prix!L23,decompo3prix!L23,decompo4prix!L23,decompo5prix!L23,decompo6prix!L23,decompo7prix!L23,decompo8prix!L23,decompo9prix!L23,decompo10prix!L23)=decompo7prix!L23,decompo7prix!$A$7,IF(MIN(decompo1prix!L23,decompo2prix!L23,decompo3prix!L23,decompo4prix!L23,decompo5prix!L23,decompo6prix!L23,decompo7prix!L23,decompo8prix!L23,decompo9prix!L23,decompo10prix!L23)=decompo8prix!L23,decompo8prix!$A$7,IF(MIN(decompo1prix!L23,decompo2prix!L23,decompo3prix!L23,decompo4prix!L23,decompo5prix!L23,decompo6prix!L23,decompo7prix!L23,decompo8prix!L23,decompo9prix!L23,decompo10prix!L23)=decompo9prix!L23,decompo9prix!$A$7,decompo10prix!$A$7)))))))))) -> justine | AC23: =IF($T23="","",IF(MIN(decompo1prix!M23,decompo2prix!M23,decompo3prix!M23,decompo4prix!M23,decompo5prix!M23,decompo6prix!M23,decompo7prix!M23,decompo8prix!M23,decompo9prix!M23,decompo10prix!M23)=decompo1prix!M23,decompo1prix!$A$7,IF(MIN(decompo1prix!M23,decompo2prix!M23,decompo3prix!M23,decompo4prix!M23,decompo5prix!M23,decompo6prix!M23,decompo7prix!M23,decompo8prix!M23,decompo9prix!M23,decompo10prix!M23)=decompo2prix!M23,decompo2prix!$A$7,IF(MIN(decompo1prix!M23,decompo2prix!M23,decompo3prix!M23,decompo4prix!M23,decompo5prix!M23,decompo6prix!M23,decompo7prix!M23,decompo8prix!M23,decompo9prix!M23,decompo10prix!M23)=decompo3prix!M23,decompo3prix!$A$7,IF(MIN(decompo1prix!M23,decompo2prix!M23,decompo3prix!M23,decompo4prix!M23,decompo5prix!M23,decompo6prix!M23,decompo7prix!M23,decompo8prix!M23,decompo9prix!M23,decompo10prix!M23)=decompo4prix!M23,decompo4prix!$A$7,IF(MIN(decompo1prix!M23,decompo2prix!M23,decompo3prix!M23,decompo4prix!M23,decompo5prix!M23,decompo6prix!M23,decompo7prix!M23,decompo8prix!M23,decompo9prix!M23,decompo10prix!M23)=decompo5prix!M23,decompo5prix!$A$7,IF(MIN(decompo1prix!M23,decompo2prix!M23,decompo3prix!M23,decompo4prix!M23,decompo5prix!M23,decompo6prix!M23,decompo7prix!M23,decompo8prix!M23,decompo9prix!M23,decompo10prix!M23)=decompo6prix!M23,decompo6prix!$A$7,IF(MIN(decompo1prix!M23,decompo2prix!M23,decompo3prix!M23,decompo4prix!M23,decompo5prix!M23,decompo6prix!M23,decompo7prix!M23,decompo8prix!M23,decompo9prix!M23,decompo10prix!M23)=decompo7prix!M23,decompo7prix!$A$7,IF(MIN(decompo1prix!M23,decompo2prix!M23,decompo3prix!M23,decompo4prix!M23,decompo5prix!M23,decompo6prix!M23,decompo7prix!M23,decompo8prix!M23,decompo9prix!M23,decompo10prix!M23)=decompo8prix!M23,decompo8prix!$A$7,IF(MIN(decompo1prix!M23,decompo2prix!M23,decompo3prix!M23,decompo4prix!M23,decompo5prix!M23,decompo6prix!M23,decompo7prix!M23,decompo8prix!M23,decompo9prix!M23,decompo10prix!M23)=decompo9prix!M23,decompo9prix!$A$7,decompo10prix!$A$7)))))))))) -> justine | AF23: case vide | AQ23: lead time
A24: VIS 15 | B24: IN15 | C24: =MIN(decompo1prix!F24,decompo2prix!F24,decompo3prix!F24,decompo4prix!F24,decompo5prix!F24,decompo6prix!F24,decompo7prix!F24,decompo8prix!F24,decompo9prix!F24,decompo10prix!F24) -> 33.97 | D24: =MIN(decompo1prix!G24,decompo2prix!G24,decompo3prix!G24,decompo4prix!G24,decompo5prix!G24,decompo6prix!G24,decompo7prix!G24,decompo8prix!G24,decompo9prix!G24,decompo10prix!G24) -> 33.97 | E24: =MIN(decompo1prix!H24,decompo2prix!H24,decompo3prix!H24,decompo4prix!H24,decompo5prix!H24,decompo6prix!H24,decompo7prix!H24,decompo8prix!H24,decompo9prix!H24,decompo10prix!H24) -> 28.47 | F24: =MIN(decompo1prix!I24,decompo2prix!I24,decompo3prix!I24,decompo4prix!I24,decompo5prix!I24,decompo6prix!I24,decompo7prix!I24,decompo8prix!I24,decompo9prix!I24,decompo10prix!I24) -> 25.88 | G24: =MIN(decompo1prix!J24,decompo2prix!J24,decompo3prix!J24,decompo4prix!J24,decompo5prix!J24,decompo6prix!J24,decompo7prix!J24,decompo8prix!J24,decompo9prix!J24,decompo10prix!J24) -> 25.88 | H24: =MIN(decompo1prix!K24,decompo2prix!K24,decompo3prix!K24,decompo4prix!K24,decompo5prix!K24,decompo6prix!K24,decompo7prix!K24,decompo8prix!K24,decompo9prix!K24,decompo10prix!K24) -> 24.58 | I24: =MIN(decompo1prix!L24,decompo2prix!L24,decompo3prix!L24,decompo4prix!L24,decompo5prix!L24,decompo6prix!L24,decompo7prix!L24,decompo8prix!L24,decompo9prix!L24,decompo10prix!L24) -> 24.1 | J24: =MIN(decompo1prix!M24,decompo2prix!M24,decompo3prix!M24,decompo4prix!M24,decompo5prix!M24,decompo6prix!M24,decompo7prix!M24,decompo8prix!M24,decompo9prix!M24,decompo10prix!M24) -> 22 | T24: VIS 15 | U24: in15 | V24: =IF($T24="","",IF(MIN(decompo1prix!F24,decompo2prix!F24,decompo3prix!F24,decompo4prix!F24,decompo5prix!F24,decompo6prix!F24,decompo7prix!F24,decompo8prix!F24,decompo9prix!F24,decompo10prix!F24)=decompo1prix!F24,decompo1prix!$A$7,IF(MIN(decompo1prix!F24,decompo2prix!F24,decompo3prix!F24,decompo4prix!F24,decompo5prix!F24,decompo6prix!F24,decompo7prix!F24,decompo8prix!F24,decompo9prix!F24,decompo10prix!F24)=decompo2prix!F24,decompo2prix!$A$7,IF(MIN(decompo1prix!F24,decompo2prix!F24,decompo3prix!F24,decompo4prix!F24,decompo5prix!F24,decompo6prix!F24,decompo7prix!F24,decompo8prix!F24,decompo9prix!F24,decompo10prix!F24)=decompo3prix!F24,decompo3prix!$A$7,IF(MIN(decompo1prix!F24,decompo2prix!F24,decompo3prix!F24,decompo4prix!F24,decompo5prix!F24,decompo6prix!F24,decompo7prix!F24,decompo8prix!F24,decompo9prix!F24,decompo10prix!F24)=decompo4prix!F24,decompo4prix!$A$7,IF(MIN(decompo1prix!F24,decompo2prix!F24,decompo3prix!F24,decompo4prix!F24,decompo5prix!F24,decompo6prix!F24,decompo7prix!F24,decompo8prix!F24,decompo9prix!F24,decompo10prix!F24)=decompo5prix!F24,decompo5prix!$A$7,IF(MIN(decompo1prix!F24,decompo2prix!F24,decompo3prix!F24,decompo4prix!F24,decompo5prix!F24,decompo6prix!F24,decompo7prix!F24,decompo8prix!F24,decompo9prix!F24,decompo10prix!F24)=decompo6prix!F24,decompo6prix!$A$7,IF(MIN(decompo1prix!F24,decompo2prix!F24,decompo3prix!F24,decompo4prix!F24,decompo5prix!F24,decompo6prix!F24,decompo7prix!F24,decompo8prix!F24,decompo9prix!F24,decompo10prix!F24)=decompo7prix!F24,decompo7prix!$A$7,IF(MIN(decompo1prix!F24,decompo2prix!F24,decompo3prix!F24,decompo4prix!F24,decompo5prix!F24,decompo6prix!F24,decompo7prix!F24,decompo8prix!F24,decompo9prix!F24,decompo10prix!F24)=decompo8prix!F24,decompo8prix!$A$7,IF(MIN(decompo1prix!F24,decompo2prix!F24,decompo3prix!F24,decompo4prix!F24,decompo5prix!F24,decompo6prix!F24,decompo7prix!F24,decompo8prix!F24,decompo9prix!F24,decompo10prix!F24)=decompo9prix!F24,decompo9prix!$A$7,decompo10prix!$A$7)))))))))) -> justine | W24: =IF($T24="","",IF(MIN(decompo1prix!G24,decompo2prix!G24,decompo3prix!G24,decompo4prix!G24,decompo5prix!G24,decompo6prix!G24,decompo7prix!G24,decompo8prix!G24,decompo9prix!G24,decompo10prix!G24)=decompo1prix!G24,decompo1prix!$A$7,IF(MIN(decompo1prix!G24,decompo2prix!G24,decompo3prix!G24,decompo4prix!G24,decompo5prix!G24,decompo6prix!G24,decompo7prix!G24,decompo8prix!G24,decompo9prix!G24,decompo10prix!G24)=decompo2prix!G24,decompo2prix!$A$7,IF(MIN(decompo1prix!G24,decompo2prix!G24,decompo3prix!G24,decompo4prix!G24,decompo5prix!G24,decompo6prix!G24,decompo7prix!G24,decompo8prix!G24,decompo9prix!G24,decompo10prix!G24)=decompo3prix!G24,decompo3prix!$A$7,IF(MIN(decompo1prix!G24,decompo2prix!G24,decompo3prix!G24,decompo4prix!G24,decompo5prix!G24,decompo6prix!G24,decompo7prix!G24,decompo8prix!G24,decompo9prix!G24,decompo10prix!G24)=decompo4prix!G24,decompo4prix!$A$7,IF(MIN(decompo1prix!G24,decompo2prix!G24,decompo3prix!G24,decompo4prix!G24,decompo5prix!G24,decompo6prix!G24,decompo7prix!G24,decompo8prix!G24,decompo9prix!G24,decompo10prix!G24)=decompo5prix!G24,decompo5prix!$A$7,IF(MIN(decompo1prix!G24,decompo2prix!G24,decompo3prix!G24,decompo4prix!G24,decompo5prix!G24,decompo6prix!G24,decompo7prix!G24,decompo8prix!G24,decompo9prix!G24,decompo10prix!G24)=decompo6prix!G24,decompo6prix!$A$7,IF(MIN(decompo1prix!G24,decompo2prix!G24,decompo3prix!G24,decompo4prix!G24,decompo5prix!G24,decompo6prix!G24,decompo7prix!G24,decompo8prix!G24,decompo9prix!G24,decompo10prix!G24)=decompo7prix!G24,decompo7prix!$A$7,IF(MIN(decompo1prix!G24,decompo2prix!G24,decompo3prix!G24,decompo4prix!G24,decompo5prix!G24,decompo6prix!G24,decompo7prix!G24,decompo8prix!G24,decompo9prix!G24,decompo10prix!G24)=decompo8prix!G24,decompo8prix!$A$7,IF(MIN(decompo1prix!G24,decompo2prix!G24,decompo3prix!G24,decompo4prix!G24,decompo5prix!G24,decompo6prix!G24,decompo7prix!G24,decompo8prix!G24,decompo9prix!G24,decompo10prix!G24)=decompo9prix!G24,decompo9prix!$A$7,decompo10prix!$A$7)))))))))) -> justine | X24: =IF($T24="","",IF(MIN(decompo1prix!H24,decompo2prix!H24,decompo3prix!H24,decompo4prix!H24,decompo5prix!H24,decompo6prix!H24,decompo7prix!H24,decompo8prix!H24,decompo9prix!H24,decompo10prix!H24)=decompo1prix!H24,decompo1prix!$A$7,IF(MIN(decompo1prix!H24,decompo2prix!H24,decompo3prix!H24,decompo4prix!H24,decompo5prix!H24,decompo6prix!H24,decompo7prix!H24,decompo8prix!H24,decompo9prix!H24,decompo10prix!H24)=decompo2prix!H24,decompo2prix!$A$7,IF(MIN(decompo1prix!H24,decompo2prix!H24,decompo3prix!H24,decompo4prix!H24,decompo5prix!H24,decompo6prix!H24,decompo7prix!H24,decompo8prix!H24,decompo9prix!H24,decompo10prix!H24)=decompo3prix!H24,decompo3prix!$A$7,IF(MIN(decompo1prix!H24,decompo2prix!H24,decompo3prix!H24,decompo4prix!H24,decompo5prix!H24,decompo6prix!H24,decompo7prix!H24,decompo8prix!H24,decompo9prix!H24,decompo10prix!H24)=decompo4prix!H24,decompo4prix!$A$7,IF(MIN(decompo1prix!H24,decompo2prix!H24,decompo3prix!H24,decompo4prix!H24,decompo5prix!H24,decompo6prix!H24,decompo7prix!H24,decompo8prix!H24,decompo9prix!H24,decompo10prix!H24)=decompo5prix!H24,decompo5prix!$A$7,IF(MIN(decompo1prix!H24,decompo2prix!H24,decompo3prix!H24,decompo4prix!H24,decompo5prix!H24,decompo6prix!H24,decompo7prix!H24,decompo8prix!H24,decompo9prix!H24,decompo10prix!H24)=decompo6prix!H24,decompo6prix!$A$7,IF(MIN(decompo1prix!H24,decompo2prix!H24,decompo3prix!H24,decompo4prix!H24,decompo5prix!H24,decompo6prix!H24,decompo7prix!H24,decompo8prix!H24,decompo9prix!H24,decompo10prix!H24)=decompo7prix!H24,decompo7prix!$A$7,IF(MIN(decompo1prix!H24,decompo2prix!H24,decompo3prix!H24,decompo4prix!H24,decompo5prix!H24,decompo6prix!H24,decompo7prix!H24,decompo8prix!H24,decompo9prix!H24,decompo10prix!H24)=decompo8prix!H24,decompo8prix!$A$7,IF(MIN(decompo1prix!H24,decompo2prix!H24,decompo3prix!H24,decompo4prix!H24,decompo5prix!H24,decompo6prix!H24,decompo7prix!H24,decompo8prix!H24,decompo9prix!H24,decompo10prix!H24)=decompo9prix!H24,decompo9prix!$A$7,decompo10prix!$A$7)))))))))) -> justine | Y24: =IF($T24="","",IF(MIN(decompo1prix!I24,decompo2prix!I24,decompo3prix!I24,decompo4prix!I24,decompo5prix!I24,decompo6prix!I24,decompo7prix!I24,decompo8prix!I24,decompo9prix!I24,decompo10prix!I24)=decompo1prix!I24,decompo1prix!$A$7,IF(MIN(decompo1prix!I24,decompo2prix!I24,decompo3prix!I24,decompo4prix!I24,decompo5prix!I24,decompo6prix!I24,decompo7prix!I24,decompo8prix!I24,decompo9prix!I24,decompo10prix!I24)=decompo2prix!I24,decompo2prix!$A$7,IF(MIN(decompo1prix!I24,decompo2prix!I24,decompo3prix!I24,decompo4prix!I24,decompo5prix!I24,decompo6prix!I24,decompo7prix!I24,decompo8prix!I24,decompo9prix!I24,decompo10prix!I24)=decompo3prix!I24,decompo3prix!$A$7,IF(MIN(decompo1prix!I24,decompo2prix!I24,decompo3prix!I24,decompo4prix!I24,decompo5prix!I24,decompo6prix!I24,decompo7prix!I24,decompo8prix!I24,decompo9prix!I24,decompo10prix!I24)=decompo4prix!I24,decompo4prix!$A$7,IF(MIN(decompo1prix!I24,decompo2prix!I24,decompo3prix!I24,decompo4prix!I24,decompo5prix!I24,decompo6prix!I24,decompo7prix!I24,decompo8prix!I24,decompo9prix!I24,decompo10prix!I24)=decompo5prix!I24,decompo5prix!$A$7,IF(MIN(decompo1prix!I24,decompo2prix!I24,decompo3prix!I24,decompo4prix!I24,decompo5prix!I24,decompo6prix!I24,decompo7prix!I24,decompo8prix!I24,decompo9prix!I24,decompo10prix!I24)=decompo6prix!I24,decompo6prix!$A$7,IF(MIN(decompo1prix!I24,decompo2prix!I24,decompo3prix!I24,decompo4prix!I24,decompo5prix!I24,decompo6prix!I24,decompo7prix!I24,decompo8prix!I24,decompo9prix!I24,decompo10prix!I24)=decompo7prix!I24,decompo7prix!$A$7,IF(MIN(decompo1prix!I24,decompo2prix!I24,decompo3prix!I24,decompo4prix!I24,decompo5prix!I24,decompo6prix!I24,decompo7prix!I24,decompo8prix!I24,decompo9prix!I24,decompo10prix!I24)=decompo8prix!I24,decompo8prix!$A$7,IF(MIN(decompo1prix!I24,decompo2prix!I24,decompo3prix!I24,decompo4prix!I24,decompo5prix!I24,decompo6prix!I24,decompo7prix!I24,decompo8prix!I24,decompo9prix!I24,decompo10prix!I24)=decompo9prix!I24,decompo9prix!$A$7,decompo10prix!$A$7)))))))))) -> justine | Z24: =IF($T24="","",IF(MIN(decompo1prix!J24,decompo2prix!J24,decompo3prix!J24,decompo4prix!J24,decompo5prix!J24,decompo6prix!J24,decompo7prix!J24,decompo8prix!J24,decompo9prix!J24,decompo10prix!J24)=decompo1prix!J24,decompo1prix!$A$7,IF(MIN(decompo1prix!J24,decompo2prix!J24,decompo3prix!J24,decompo4prix!J24,decompo5prix!J24,decompo6prix!J24,decompo7prix!J24,decompo8prix!J24,decompo9prix!J24,decompo10prix!J24)=decompo2prix!J24,decompo2prix!$A$7,IF(MIN(decompo1prix!J24,decompo2prix!J24,decompo3prix!J24,decompo4prix!J24,decompo5prix!J24,decompo6prix!J24,decompo7prix!J24,decompo8prix!J24,decompo9prix!J24,decompo10prix!J24)=decompo3prix!J24,decompo3prix!$A$7,IF(MIN(decompo1prix!J24,decompo2prix!J24,decompo3prix!J24,decompo4prix!J24,decompo5prix!J24,decompo6prix!J24,decompo7prix!J24,decompo8prix!J24,decompo9prix!J24,decompo10prix!J24)=decompo4prix!J24,decompo4prix!$A$7,IF(MIN(decompo1prix!J24,decompo2prix!J24,decompo3prix!J24,decompo4prix!J24,decompo5prix!J24,decompo6prix!J24,decompo7prix!J24,decompo8prix!J24,decompo9prix!J24,decompo10prix!J24)=decompo5prix!J24,decompo5prix!$A$7,IF(MIN(decompo1prix!J24,decompo2prix!J24,decompo3prix!J24,decompo4prix!J24,decompo5prix!J24,decompo6prix!J24,decompo7prix!J24,decompo8prix!J24,decompo9prix!J24,decompo10prix!J24)=decompo6prix!J24,decompo6prix!$A$7,IF(MIN(decompo1prix!J24,decompo2prix!J24,decompo3prix!J24,decompo4prix!J24,decompo5prix!J24,decompo6prix!J24,decompo7prix!J24,decompo8prix!J24,decompo9prix!J24,decompo10prix!J24)=decompo7prix!J24,decompo7prix!$A$7,IF(MIN(decompo1prix!J24,decompo2prix!J24,decompo3prix!J24,decompo4prix!J24,decompo5prix!J24,decompo6prix!J24,decompo7prix!J24,decompo8prix!J24,decompo9prix!J24,decompo10prix!J24)=decompo8prix!J24,decompo8prix!$A$7,IF(MIN(decompo1prix!J24,decompo2prix!J24,decompo3prix!J24,decompo4prix!J24,decompo5prix!J24,decompo6prix!J24,decompo7prix!J24,decompo8prix!J24,decompo9prix!J24,decompo10prix!J24)=decompo9prix!J24,decompo9prix!$A$7,decompo10prix!$A$7)))))))))) -> justine | AA24: =IF($T24="","",IF(MIN(decompo1prix!K24,decompo2prix!K24,decompo3prix!K24,decompo4prix!K24,decompo5prix!K24,decompo6prix!K24,decompo7prix!K24,decompo8prix!K24,decompo9prix!K24,decompo10prix!K24)=decompo1prix!K24,decompo1prix!$A$7,IF(MIN(decompo1prix!K24,decompo2prix!K24,decompo3prix!K24,decompo4prix!K24,decompo5prix!K24,decompo6prix!K24,decompo7prix!K24,decompo8prix!K24,decompo9prix!K24,decompo10prix!K24)=decompo2prix!K24,decompo2prix!$A$7,IF(MIN(decompo1prix!K24,decompo2prix!K24,decompo3prix!K24,decompo4prix!K24,decompo5prix!K24,decompo6prix!K24,decompo7prix!K24,decompo8prix!K24,decompo9prix!K24,decompo10prix!K24)=decompo3prix!K24,decompo3prix!$A$7,IF(MIN(decompo1prix!K24,decompo2prix!K24,decompo3prix!K24,decompo4prix!K24,decompo5prix!K24,decompo6prix!K24,decompo7prix!K24,decompo8prix!K24,decompo9prix!K24,decompo10prix!K24)=decompo4prix!K24,decompo4prix!$A$7,IF(MIN(decompo1prix!K24,decompo2prix!K24,decompo3prix!K24,decompo4prix!K24,decompo5prix!K24,decompo6prix!K24,decompo7prix!K24,decompo8prix!K24,decompo9prix!K24,decompo10prix!K24)=decompo5prix!K24,decompo5prix!$A$7,IF(MIN(decompo1prix!K24,decompo2prix!K24,decompo3prix!K24,decompo4prix!K24,decompo5prix!K24,decompo6prix!K24,decompo7prix!K24,decompo8prix!K24,decompo9prix!K24,decompo10prix!K24)=decompo6prix!K24,decompo6prix!$A$7,IF(MIN(decompo1prix!K24,decompo2prix!K24,decompo3prix!K24,decompo4prix!K24,decompo5prix!K24,decompo6prix!K24,decompo7prix!K24,decompo8prix!K24,decompo9prix!K24,decompo10prix!K24)=decompo7prix!K24,decompo7prix!$A$7,IF(MIN(decompo1prix!K24,decompo2prix!K24,decompo3prix!K24,decompo4prix!K24,decompo5prix!K24,decompo6prix!K24,decompo7prix!K24,decompo8prix!K24,decompo9prix!K24,decompo10prix!K24)=decompo8prix!K24,decompo8prix!$A$7,IF(MIN(decompo1prix!K24,decompo2prix!K24,decompo3prix!K24,decompo4prix!K24,decompo5prix!K24,decompo6prix!K24,decompo7prix!K24,decompo8prix!K24,decompo9prix!K24,decompo10prix!K24)=decompo9prix!K24,decompo9prix!$A$7,decompo10prix!$A$7)))))))))) -> justine | AB24: =IF($T24="","",IF(MIN(decompo1prix!L24,decompo2prix!L24,decompo3prix!L24,decompo4prix!L24,decompo5prix!L24,decompo6prix!L24,decompo7prix!L24,decompo8prix!L24,decompo9prix!L24,decompo10prix!L24)=decompo1prix!L24,decompo1prix!$A$7,IF(MIN(decompo1prix!L24,decompo2prix!L24,decompo3prix!L24,decompo4prix!L24,decompo5prix!L24,decompo6prix!L24,decompo7prix!L24,decompo8prix!L24,decompo9prix!L24,decompo10prix!L24)=decompo2prix!L24,decompo2prix!$A$7,IF(MIN(decompo1prix!L24,decompo2prix!L24,decompo3prix!L24,decompo4prix!L24,decompo5prix!L24,decompo6prix!L24,decompo7prix!L24,decompo8prix!L24,decompo9prix!L24,decompo10prix!L24)=decompo3prix!L24,decompo3prix!$A$7,IF(MIN(decompo1prix!L24,decompo2prix!L24,decompo3prix!L24,decompo4prix!L24,decompo5prix!L24,decompo6prix!L24,decompo7prix!L24,decompo8prix!L24,decompo9prix!L24,decompo10prix!L24)=decompo4prix!L24,decompo4prix!$A$7,IF(MIN(decompo1prix!L24,decompo2prix!L24,decompo3prix!L24,decompo4prix!L24,decompo5prix!L24,decompo6prix!L24,decompo7prix!L24,decompo8prix!L24,decompo9prix!L24,decompo10prix!L24)=decompo5prix!L24,decompo5prix!$A$7,IF(MIN(decompo1prix!L24,decompo2prix!L24,decompo3prix!L24,decompo4prix!L24,decompo5prix!L24,decompo6prix!L24,decompo7prix!L24,decompo8prix!L24,decompo9prix!L24,decompo10prix!L24)=decompo6prix!L24,decompo6prix!$A$7,IF(MIN(decompo1prix!L24,decompo2prix!L24,decompo3prix!L24,decompo4prix!L24,decompo5prix!L24,decompo6prix!L24,decompo7prix!L24,decompo8prix!L24,decompo9prix!L24,decompo10prix!L24)=decompo7prix!L24,decompo7prix!$A$7,IF(MIN(decompo1prix!L24,decompo2prix!L24,decompo3prix!L24,decompo4prix!L24,decompo5prix!L24,decompo6prix!L24,decompo7prix!L24,decompo8prix!L24,decompo9prix!L24,decompo10prix!L24)=decompo8prix!L24,decompo8prix!$A$7,IF(MIN(decompo1prix!L24,decompo2prix!L24,decompo3prix!L24,decompo4prix!L24,decompo5prix!L24,decompo6prix!L24,decompo7prix!L24,decompo8prix!L24,decompo9prix!L24,decompo10prix!L24)=decompo9prix!L24,decompo9prix!$A$7,decompo10prix!$A$7)))))))))) -> romain | AC24: =IF($T24="","",IF(MIN(decompo1prix!M24,decompo2prix!M24,decompo3prix!M24,decompo4prix!M24,decompo5prix!M24,decompo6prix!M24,decompo7prix!M24,decompo8prix!M24,decompo9prix!M24,decompo10prix!M24)=decompo1prix!M24,decompo1prix!$A$7,IF(MIN(decompo1prix!M24,decompo2prix!M24,decompo3prix!M24,decompo4prix!M24,decompo5prix!M24,decompo6prix!M24,decompo7prix!M24,decompo8prix!M24,decompo9prix!M24,decompo10prix!M24)=decompo2prix!M24,decompo2prix!$A$7,IF(MIN(decompo1prix!M24,decompo2prix!M24,decompo3prix!M24,decompo4prix!M24,decompo5prix!M24,decompo6prix!M24,decompo7prix!M24,decompo8prix!M24,decompo9prix!M24,decompo10prix!M24)=decompo3prix!M24,decompo3prix!$A$7,IF(MIN(decompo1prix!M24,decompo2prix!M24,decompo3prix!M24,decompo4prix!M24,decompo5prix!M24,decompo6prix!M24,decompo7prix!M24,decompo8prix!M24,decompo9prix!M24,decompo10prix!M24)=decompo4prix!M24,decompo4prix!$A$7,IF(MIN(decompo1prix!M24,decompo2prix!M24,decompo3prix!M24,decompo4prix!M24,decompo5prix!M24,decompo6prix!M24,decompo7prix!M24,decompo8prix!M24,decompo9prix!M24,decompo10prix!M24)=decompo5prix!M24,decompo5prix!$A$7,IF(MIN(decompo1prix!M24,decompo2prix!M24,decompo3prix!M24,decompo4prix!M24,decompo5prix!M24,decompo6prix!M24,decompo7prix!M24,decompo8prix!M24,decompo9prix!M24,decompo10prix!M24)=decompo6prix!M24,decompo6prix!$A$7,IF(MIN(decompo1prix!M24,decompo2prix!M24,decompo3prix!M24,decompo4prix!M24,decompo5prix!M24,decompo6prix!M24,decompo7prix!M24,decompo8prix!M24,decompo9prix!M24,decompo10prix!M24)=decompo7prix!M24,decompo7prix!$A$7,IF(MIN(decompo1prix!M24,decompo2prix!M24,decompo3prix!M24,decompo4prix!M24,decompo5prix!M24,decompo6prix!M24,decompo7prix!M24,decompo8prix!M24,decompo9prix!M24,decompo10prix!M24)=decompo8prix!M24,decompo8prix!$A$7,IF(MIN(decompo1prix!M24,decompo2prix!M24,decompo3prix!M24,decompo4prix!M24,decompo5prix!M24,decompo6prix!M24,decompo7prix!M24,decompo8prix!M24,decompo9prix!M24,decompo10prix!M24)=decompo9prix!M24,decompo9prix!$A$7,decompo10prix!$A$7)))))))))) -> romain | AJ24: Quantités | AQ24: CAT | AS24: 2 | AT24: 4 | AU24: 8 | AV24: 16 | AW24: 24 | AX24: 32 | AY24: 40 | AZ24: 100
A25: VIS 16 | B25: IN16 | C25: =MIN(decompo1prix!F25,decompo2prix!F25,decompo3prix!F25,decompo4prix!F25,decompo5prix!F25,decompo6prix!F25,decompo7prix!F25,decompo8prix!F25,decompo9prix!F25,decompo10prix!F25) -> 31.64 | D25: =MIN(decompo1prix!G25,decompo2prix!G25,decompo3prix!G25,decompo4prix!G25,decompo5prix!G25,decompo6prix!G25,decompo7prix!G25,decompo8prix!G25,decompo9prix!G25,decompo10prix!G25) -> 31.64 | E25: =MIN(decompo1prix!H25,decompo2prix!H25,decompo3prix!H25,decompo4prix!H25,decompo5prix!H25,decompo6prix!H25,decompo7prix!H25,decompo8prix!H25,decompo9prix!H25,decompo10prix!H25) -> 26.52 | F25: =MIN(decompo1prix!I25,decompo2prix!I25,decompo3prix!I25,decompo4prix!I25,decompo5prix!I25,decompo6prix!I25,decompo7prix!I25,decompo8prix!I25,decompo9prix!I25,decompo10prix!I25) -> 24.11 | G25: =MIN(decompo1prix!J25,decompo2prix!J25,decompo3prix!J25,decompo4prix!J25,decompo5prix!J25,decompo6prix!J25,decompo7prix!J25,decompo8prix!J25,decompo9prix!J25,decompo10prix!J25) -> 24.11 | H25: =MIN(decompo1prix!K25,decompo2prix!K25,decompo3prix!K25,decompo4prix!K25,decompo5prix!K25,decompo6prix!K25,decompo7prix!K25,decompo8prix!K25,decompo9prix!K25,decompo10prix!K25) -> 22.9 | I25: =MIN(decompo1prix!L25,decompo2prix!L25,decompo3prix!L25,decompo4prix!L25,decompo5prix!L25,decompo6prix!L25,decompo7prix!L25,decompo8prix!L25,decompo9prix!L25,decompo10prix!L25) -> 22.9 | J25: =MIN(decompo1prix!M25,decompo2prix!M25,decompo3prix!M25,decompo4prix!M25,decompo5prix!M25,decompo6prix!M25,decompo7prix!M25,decompo8prix!M25,decompo9prix!M25,decompo10prix!M25) -> 21.08 | T25: VIS 16 | U25: in16 | V25: =IF($T25="","",IF(MIN(decompo1prix!F25,decompo2prix!F25,decompo3prix!F25,decompo4prix!F25,decompo5prix!F25,decompo6prix!F25,decompo7prix!F25,decompo8prix!F25,decompo9prix!F25,decompo10prix!F25)=decompo1prix!F25,decompo1prix!$A$7,IF(MIN(decompo1prix!F25,decompo2prix!F25,decompo3prix!F25,decompo4prix!F25,decompo5prix!F25,decompo6prix!F25,decompo7prix!F25,decompo8prix!F25,decompo9prix!F25,decompo10prix!F25)=decompo2prix!F25,decompo2prix!$A$7,IF(MIN(decompo1prix!F25,decompo2prix!F25,decompo3prix!F25,decompo4prix!F25,decompo5prix!F25,decompo6prix!F25,decompo7prix!F25,decompo8prix!F25,decompo9prix!F25,decompo10prix!F25)=decompo3prix!F25,decompo3prix!$A$7,IF(MIN(decompo1prix!F25,decompo2prix!F25,decompo3prix!F25,decompo4prix!F25,decompo5prix!F25,decompo6prix!F25,decompo7prix!F25,decompo8prix!F25,decompo9prix!F25,decompo10prix!F25)=decompo4prix!F25,decompo4prix!$A$7,IF(MIN(decompo1prix!F25,decompo2prix!F25,decompo3prix!F25,decompo4prix!F25,decompo5prix!F25,decompo6prix!F25,decompo7prix!F25,decompo8prix!F25,decompo9prix!F25,decompo10prix!F25)=decompo5prix!F25,decompo5prix!$A$7,IF(MIN(decompo1prix!F25,decompo2prix!F25,decompo3prix!F25,decompo4prix!F25,decompo5prix!F25,decompo6prix!F25,decompo7prix!F25,decompo8prix!F25,decompo9prix!F25,decompo10prix!F25)=decompo6prix!F25,decompo6prix!$A$7,IF(MIN(decompo1prix!F25,decompo2prix!F25,decompo3prix!F25,decompo4prix!F25,decompo5prix!F25,decompo6prix!F25,decompo7prix!F25,decompo8prix!F25,decompo9prix!F25,decompo10prix!F25)=decompo7prix!F25,decompo7prix!$A$7,IF(MIN(decompo1prix!F25,decompo2prix!F25,decompo3prix!F25,decompo4prix!F25,decompo5prix!F25,decompo6prix!F25,decompo7prix!F25,decompo8prix!F25,decompo9prix!F25,decompo10prix!F25)=decompo8prix!F25,decompo8prix!$A$7,IF(MIN(decompo1prix!F25,decompo2prix!F25,decompo3prix!F25,decompo4prix!F25,decompo5prix!F25,decompo6prix!F25,decompo7prix!F25,decompo8prix!F25,decompo9prix!F25,decompo10prix!F25)=decompo9prix!F25,decompo9prix!$A$7,decompo10prix!$A$7)))))))))) -> justine | W25: =IF($T25="","",IF(MIN(decompo1prix!G25,decompo2prix!G25,decompo3prix!G25,decompo4prix!G25,decompo5prix!G25,decompo6prix!G25,decompo7prix!G25,decompo8prix!G25,decompo9prix!G25,decompo10prix!G25)=decompo1prix!G25,decompo1prix!$A$7,IF(MIN(decompo1prix!G25,decompo2prix!G25,decompo3prix!G25,decompo4prix!G25,decompo5prix!G25,decompo6prix!G25,decompo7prix!G25,decompo8prix!G25,decompo9prix!G25,decompo10prix!G25)=decompo2prix!G25,decompo2prix!$A$7,IF(MIN(decompo1prix!G25,decompo2prix!G25,decompo3prix!G25,decompo4prix!G25,decompo5prix!G25,decompo6prix!G25,decompo7prix!G25,decompo8prix!G25,decompo9prix!G25,decompo10prix!G25)=decompo3prix!G25,decompo3prix!$A$7,IF(MIN(decompo1prix!G25,decompo2prix!G25,decompo3prix!G25,decompo4prix!G25,decompo5prix!G25,decompo6prix!G25,decompo7prix!G25,decompo8prix!G25,decompo9prix!G25,decompo10prix!G25)=decompo4prix!G25,decompo4prix!$A$7,IF(MIN(decompo1prix!G25,decompo2prix!G25,decompo3prix!G25,decompo4prix!G25,decompo5prix!G25,decompo6prix!G25,decompo7prix!G25,decompo8prix!G25,decompo9prix!G25,decompo10prix!G25)=decompo5prix!G25,decompo5prix!$A$7,IF(MIN(decompo1prix!G25,decompo2prix!G25,decompo3prix!G25,decompo4prix!G25,decompo5prix!G25,decompo6prix!G25,decompo7prix!G25,decompo8prix!G25,decompo9prix!G25,decompo10prix!G25)=decompo6prix!G25,decompo6prix!$A$7,IF(MIN(decompo1prix!G25,decompo2prix!G25,decompo3prix!G25,decompo4prix!G25,decompo5prix!G25,decompo6prix!G25,decompo7prix!G25,decompo8prix!G25,decompo9prix!G25,decompo10prix!G25)=decompo7prix!G25,decompo7prix!$A$7,IF(MIN(decompo1prix!G25,decompo2prix!G25,decompo3prix!G25,decompo4prix!G25,decompo5prix!G25,decompo6prix!G25,decompo7prix!G25,decompo8prix!G25,decompo9prix!G25,decompo10prix!G25)=decompo8prix!G25,decompo8prix!$A$7,IF(MIN(decompo1prix!G25,decompo2prix!G25,decompo3prix!G25,decompo4prix!G25,decompo5prix!G25,decompo6prix!G25,decompo7prix!G25,decompo8prix!G25,decompo9prix!G25,decompo10prix!G25)=decompo9prix!G25,decompo9prix!$A$7,decompo10prix!$A$7)))))))))) -> justine | X25: =IF($T25="","",IF(MIN(decompo1prix!H25,decompo2prix!H25,decompo3prix!H25,decompo4prix!H25,decompo5prix!H25,decompo6prix!H25,decompo7prix!H25,decompo8prix!H25,decompo9prix!H25,decompo10prix!H25)=decompo1prix!H25,decompo1prix!$A$7,IF(MIN(decompo1prix!H25,decompo2prix!H25,decompo3prix!H25,decompo4prix!H25,decompo5prix!H25,decompo6prix!H25,decompo7prix!H25,decompo8prix!H25,decompo9prix!H25,decompo10prix!H25)=decompo2prix!H25,decompo2prix!$A$7,IF(MIN(decompo1prix!H25,decompo2prix!H25,decompo3prix!H25,decompo4prix!H25,decompo5prix!H25,decompo6prix!H25,decompo7prix!H25,decompo8prix!H25,decompo9prix!H25,decompo10prix!H25)=decompo3prix!H25,decompo3prix!$A$7,IF(MIN(decompo1prix!H25,decompo2prix!H25,decompo3prix!H25,decompo4prix!H25,decompo5prix!H25,decompo6prix!H25,decompo7prix!H25,decompo8prix!H25,decompo9prix!H25,decompo10prix!H25)=decompo4prix!H25,decompo4prix!$A$7,IF(MIN(decompo1prix!H25,decompo2prix!H25,decompo3prix!H25,decompo4prix!H25,decompo5prix!H25,decompo6prix!H25,decompo7prix!H25,decompo8prix!H25,decompo9prix!H25,decompo10prix!H25)=decompo5prix!H25,decompo5prix!$A$7,IF(MIN(decompo1prix!H25,decompo2prix!H25,decompo3prix!H25,decompo4prix!H25,decompo5prix!H25,decompo6prix!H25,decompo7prix!H25,decompo8prix!H25,decompo9prix!H25,decompo10prix!H25)=decompo6prix!H25,decompo6prix!$A$7,IF(MIN(decompo1prix!H25,decompo2prix!H25,decompo3prix!H25,decompo4prix!H25,decompo5prix!H25,decompo6prix!H25,decompo7prix!H25,decompo8prix!H25,decompo9prix!H25,decompo10prix!H25)=decompo7prix!H25,decompo7prix!$A$7,IF(MIN(decompo1prix!H25,decompo2prix!H25,decompo3prix!H25,decompo4prix!H25,decompo5prix!H25,decompo6prix!H25,decompo7prix!H25,decompo8prix!H25,decompo9prix!H25,decompo10prix!H25)=decompo8prix!H25,decompo8prix!$A$7,IF(MIN(decompo1prix!H25,decompo2prix!H25,decompo3prix!H25,decompo4prix!H25,decompo5prix!H25,decompo6prix!H25,decompo7prix!H25,decompo8prix!H25,decompo9prix!H25,decompo10prix!H25)=decompo9prix!H25,decompo9prix!$A$7,decompo10prix!$A$7)))))))))) -> justine | Y25: =IF($T25="","",IF(MIN(decompo1prix!I25,decompo2prix!I25,decompo3prix!I25,decompo4prix!I25,decompo5prix!I25,decompo6prix!I25,decompo7prix!I25,decompo8prix!I25,decompo9prix!I25,decompo10prix!I25)=decompo1prix!I25,decompo1prix!$A$7,IF(MIN(decompo1prix!I25,decompo2prix!I25,decompo3prix!I25,decompo4prix!I25,decompo5prix!I25,decompo6prix!I25,decompo7prix!I25,decompo8prix!I25,decompo9prix!I25,decompo10prix!I25)=decompo2prix!I25,decompo2prix!$A$7,IF(MIN(decompo1prix!I25,decompo2prix!I25,decompo3prix!I25,decompo4prix!I25,decompo5prix!I25,decompo6prix!I25,decompo7prix!I25,decompo8prix!I25,decompo9prix!I25,decompo10prix!I25)=decompo3prix!I25,decompo3prix!$A$7,IF(MIN(decompo1prix!I25,decompo2prix!I25,decompo3prix!I25,decompo4prix!I25,decompo5prix!I25,decompo6prix!I25,decompo7prix!I25,decompo8prix!I25,decompo9prix!I25,decompo10prix!I25)=decompo4prix!I25,decompo4prix!$A$7,IF(MIN(decompo1prix!I25,decompo2prix!I25,decompo3prix!I25,decompo4prix!I25,decompo5prix!I25,decompo6prix!I25,decompo7prix!I25,decompo8prix!I25,decompo9prix!I25,decompo10prix!I25)=decompo5prix!I25,decompo5prix!$A$7,IF(MIN(decompo1prix!I25,decompo2prix!I25,decompo3prix!I25,decompo4prix!I25,decompo5prix!I25,decompo6prix!I25,decompo7prix!I25,decompo8prix!I25,decompo9prix!I25,decompo10prix!I25)=decompo6prix!I25,decompo6prix!$A$7,IF(MIN(decompo1prix!I25,decompo2prix!I25,decompo3prix!I25,decompo4prix!I25,decompo5prix!I25,decompo6prix!I25,decompo7prix!I25,decompo8prix!I25,decompo9prix!I25,decompo10prix!I25)=decompo7prix!I25,decompo7prix!$A$7,IF(MIN(decompo1prix!I25,decompo2prix!I25,decompo3prix!I25,decompo4prix!I25,decompo5prix!I25,decompo6prix!I25,decompo7prix!I25,decompo8prix!I25,decompo9prix!I25,decompo10prix!I25)=decompo8prix!I25,decompo8prix!$A$7,IF(MIN(decompo1prix!I25,decompo2prix!I25,decompo3prix!I25,decompo4prix!I25,decompo5prix!I25,decompo6prix!I25,decompo7prix!I25,decompo8prix!I25,decompo9prix!I25,decompo10prix!I25)=decompo9prix!I25,decompo9prix!$A$7,decompo10prix!$A$7)))))))))) -> justine | Z25: =IF($T25="","",IF(MIN(decompo1prix!J25,decompo2prix!J25,decompo3prix!J25,decompo4prix!J25,decompo5prix!J25,decompo6prix!J25,decompo7prix!J25,decompo8prix!J25,decompo9prix!J25,decompo10prix!J25)=decompo1prix!J25,decompo1prix!$A$7,IF(MIN(decompo1prix!J25,decompo2prix!J25,decompo3prix!J25,decompo4prix!J25,decompo5prix!J25,decompo6prix!J25,decompo7prix!J25,decompo8prix!J25,decompo9prix!J25,decompo10prix!J25)=decompo2prix!J25,decompo2prix!$A$7,IF(MIN(decompo1prix!J25,decompo2prix!J25,decompo3prix!J25,decompo4prix!J25,decompo5prix!J25,decompo6prix!J25,decompo7prix!J25,decompo8prix!J25,decompo9prix!J25,decompo10prix!J25)=decompo3prix!J25,decompo3prix!$A$7,IF(MIN(decompo1prix!J25,decompo2prix!J25,decompo3prix!J25,decompo4prix!J25,decompo5prix!J25,decompo6prix!J25,decompo7prix!J25,decompo8prix!J25,decompo9prix!J25,decompo10prix!J25)=decompo4prix!J25,decompo4prix!$A$7,IF(MIN(decompo1prix!J25,decompo2prix!J25,decompo3prix!J25,decompo4prix!J25,decompo5prix!J25,decompo6prix!J25,decompo7prix!J25,decompo8prix!J25,decompo9prix!J25,decompo10prix!J25)=decompo5prix!J25,decompo5prix!$A$7,IF(MIN(decompo1prix!J25,decompo2prix!J25,decompo3prix!J25,decompo4prix!J25,decompo5prix!J25,decompo6prix!J25,decompo7prix!J25,decompo8prix!J25,decompo9prix!J25,decompo10prix!J25)=decompo6prix!J25,decompo6prix!$A$7,IF(MIN(decompo1prix!J25,decompo2prix!J25,decompo3prix!J25,decompo4prix!J25,decompo5prix!J25,decompo6prix!J25,decompo7prix!J25,decompo8prix!J25,decompo9prix!J25,decompo10prix!J25)=decompo7prix!J25,decompo7prix!$A$7,IF(MIN(decompo1prix!J25,decompo2prix!J25,decompo3prix!J25,decompo4prix!J25,decompo5prix!J25,decompo6prix!J25,decompo7prix!J25,decompo8prix!J25,decompo9prix!J25,decompo10prix!J25)=decompo8prix!J25,decompo8prix!$A$7,IF(MIN(decompo1prix!J25,decompo2prix!J25,decompo3prix!J25,decompo4prix!J25,decompo5prix!J25,decompo6prix!J25,decompo7prix!J25,decompo8prix!J25,decompo9prix!J25,decompo10prix!J25)=decompo9prix!J25,decompo9prix!$A$7,decompo10prix!$A$7)))))))))) -> justine | AA25: =IF($T25="","",IF(MIN(decompo1prix!K25,decompo2prix!K25,decompo3prix!K25,decompo4prix!K25,decompo5prix!K25,decompo6prix!K25,decompo7prix!K25,decompo8prix!K25,decompo9prix!K25,decompo10prix!K25)=decompo1prix!K25,decompo1prix!$A$7,IF(MIN(decompo1prix!K25,decompo2prix!K25,decompo3prix!K25,decompo4prix!K25,decompo5prix!K25,decompo6prix!K25,decompo7prix!K25,decompo8prix!K25,decompo9prix!K25,decompo10prix!K25)=decompo2prix!K25,decompo2prix!$A$7,IF(MIN(decompo1prix!K25,decompo2prix!K25,decompo3prix!K25,decompo4prix!K25,decompo5prix!K25,decompo6prix!K25,decompo7prix!K25,decompo8prix!K25,decompo9prix!K25,decompo10prix!K25)=decompo3prix!K25,decompo3prix!$A$7,IF(MIN(decompo1prix!K25,decompo2prix!K25,decompo3prix!K25,decompo4prix!K25,decompo5prix!K25,decompo6prix!K25,decompo7prix!K25,decompo8prix!K25,decompo9prix!K25,decompo10prix!K25)=decompo4prix!K25,decompo4prix!$A$7,IF(MIN(decompo1prix!K25,decompo2prix!K25,decompo3prix!K25,decompo4prix!K25,decompo5prix!K25,decompo6prix!K25,decompo7prix!K25,decompo8prix!K25,decompo9prix!K25,decompo10prix!K25)=decompo5prix!K25,decompo5prix!$A$7,IF(MIN(decompo1prix!K25,decompo2prix!K25,decompo3prix!K25,decompo4prix!K25,decompo5prix!K25,decompo6prix!K25,decompo7prix!K25,decompo8prix!K25,decompo9prix!K25,decompo10prix!K25)=decompo6prix!K25,decompo6prix!$A$7,IF(MIN(decompo1prix!K25,decompo2prix!K25,decompo3prix!K25,decompo4prix!K25,decompo5prix!K25,decompo6prix!K25,decompo7prix!K25,decompo8prix!K25,decompo9prix!K25,decompo10prix!K25)=decompo7prix!K25,decompo7prix!$A$7,IF(MIN(decompo1prix!K25,decompo2prix!K25,decompo3prix!K25,decompo4prix!K25,decompo5prix!K25,decompo6prix!K25,decompo7prix!K25,decompo8prix!K25,decompo9prix!K25,decompo10prix!K25)=decompo8prix!K25,decompo8prix!$A$7,IF(MIN(decompo1prix!K25,decompo2prix!K25,decompo3prix!K25,decompo4prix!K25,decompo5prix!K25,decompo6prix!K25,decompo7prix!K25,decompo8prix!K25,decompo9prix!K25,decompo10prix!K25)=decompo9prix!K25,decompo9prix!$A$7,decompo10prix!$A$7)))))))))) -> justine | AB25: =IF($T25="","",IF(MIN(decompo1prix!L25,decompo2prix!L25,decompo3prix!L25,decompo4prix!L25,decompo5prix!L25,decompo6prix!L25,decompo7prix!L25,decompo8prix!L25,decompo9prix!L25,decompo10prix!L25)=decompo1prix!L25,decompo1prix!$A$7,IF(MIN(decompo1prix!L25,decompo2prix!L25,decompo3prix!L25,decompo4prix!L25,decompo5prix!L25,decompo6prix!L25,decompo7prix!L25,decompo8prix!L25,decompo9prix!L25,decompo10prix!L25)=decompo2prix!L25,decompo2prix!$A$7,IF(MIN(decompo1prix!L25,decompo2prix!L25,decompo3prix!L25,decompo4prix!L25,decompo5prix!L25,decompo6prix!L25,decompo7prix!L25,decompo8prix!L25,decompo9prix!L25,decompo10prix!L25)=decompo3prix!L25,decompo3prix!$A$7,IF(MIN(decompo1prix!L25,decompo2prix!L25,decompo3prix!L25,decompo4prix!L25,decompo5prix!L25,decompo6prix!L25,decompo7prix!L25,decompo8prix!L25,decompo9prix!L25,decompo10prix!L25)=decompo4prix!L25,decompo4prix!$A$7,IF(MIN(decompo1prix!L25,decompo2prix!L25,decompo3prix!L25,decompo4prix!L25,decompo5prix!L25,decompo6prix!L25,decompo7prix!L25,decompo8prix!L25,decompo9prix!L25,decompo10prix!L25)=decompo5prix!L25,decompo5prix!$A$7,IF(MIN(decompo1prix!L25,decompo2prix!L25,decompo3prix!L25,decompo4prix!L25,decompo5prix!L25,decompo6prix!L25,decompo7prix!L25,decompo8prix!L25,decompo9prix!L25,decompo10prix!L25)=decompo6prix!L25,decompo6prix!$A$7,IF(MIN(decompo1prix!L25,decompo2prix!L25,decompo3prix!L25,decompo4prix!L25,decompo5prix!L25,decompo6prix!L25,decompo7prix!L25,decompo8prix!L25,decompo9prix!L25,decompo10prix!L25)=decompo7prix!L25,decompo7prix!$A$7,IF(MIN(decompo1prix!L25,decompo2prix!L25,decompo3prix!L25,decompo4prix!L25,decompo5prix!L25,decompo6prix!L25,decompo7prix!L25,decompo8prix!L25,decompo9prix!L25,decompo10prix!L25)=decompo8prix!L25,decompo8prix!$A$7,IF(MIN(decompo1prix!L25,decompo2prix!L25,decompo3prix!L25,decompo4prix!L25,decompo5prix!L25,decompo6prix!L25,decompo7prix!L25,decompo8prix!L25,decompo9prix!L25,decompo10prix!L25)=decompo9prix!L25,decompo9prix!$A$7,decompo10prix!$A$7)))))))))) -> justine | AC25: =IF($T25="","",IF(MIN(decompo1prix!M25,decompo2prix!M25,decompo3prix!M25,decompo4prix!M25,decompo5prix!M25,decompo6prix!M25,decompo7prix!M25,decompo8prix!M25,decompo9prix!M25,decompo10prix!M25)=decompo1prix!M25,decompo1prix!$A$7,IF(MIN(decompo1prix!M25,decompo2prix!M25,decompo3prix!M25,decompo4prix!M25,decompo5prix!M25,decompo6prix!M25,decompo7prix!M25,decompo8prix!M25,decompo9prix!M25,decompo10prix!M25)=decompo2prix!M25,decompo2prix!$A$7,IF(MIN(decompo1prix!M25,decompo2prix!M25,decompo3prix!M25,decompo4prix!M25,decompo5prix!M25,decompo6prix!M25,decompo7prix!M25,decompo8prix!M25,decompo9prix!M25,decompo10prix!M25)=decompo3prix!M25,decompo3prix!$A$7,IF(MIN(decompo1prix!M25,decompo2prix!M25,decompo3prix!M25,decompo4prix!M25,decompo5prix!M25,decompo6prix!M25,decompo7prix!M25,decompo8prix!M25,decompo9prix!M25,decompo10prix!M25)=decompo4prix!M25,decompo4prix!$A$7,IF(MIN(decompo1prix!M25,decompo2prix!M25,decompo3prix!M25,decompo4prix!M25,decompo5prix!M25,decompo6prix!M25,decompo7prix!M25,decompo8prix!M25,decompo9prix!M25,decompo10prix!M25)=decompo5prix!M25,decompo5prix!$A$7,IF(MIN(decompo1prix!M25,decompo2prix!M25,decompo3prix!M25,decompo4prix!M25,decompo5prix!M25,decompo6prix!M25,decompo7prix!M25,decompo8prix!M25,decompo9prix!M25,decompo10prix!M25)=decompo6prix!M25,decompo6prix!$A$7,IF(MIN(decompo1prix!M25,decompo2prix!M25,decompo3prix!M25,decompo4prix!M25,decompo5prix!M25,decompo6prix!M25,decompo7prix!M25,decompo8prix!M25,decompo9prix!M25,decompo10prix!M25)=decompo7prix!M25,decompo7prix!$A$7,IF(MIN(decompo1prix!M25,decompo2prix!M25,decompo3prix!M25,decompo4prix!M25,decompo5prix!M25,decompo6prix!M25,decompo7prix!M25,decompo8prix!M25,decompo9prix!M25,decompo10prix!M25)=decompo8prix!M25,decompo8prix!$A$7,IF(MIN(decompo1prix!M25,decompo2prix!M25,decompo3prix!M25,decompo4prix!M25,decompo5prix!M25,decompo6prix!M25,decompo7prix!M25,decompo8prix!M25,decompo9prix!M25,decompo10prix!M25)=decompo9prix!M25,decompo9prix!$A$7,decompo10prix!$A$7)))))))))) -> justine | AF25: Fournisseur | AG25: 2 | AH25: 4 | AI25: 8 | AJ25: 16 | AK25: 24 | AL25: 32 | AM25: 40 | AN25: 100 | AQ25: Libéllé | AR25: Code A
